{"text_format":"1","workbook":"xlsx","n_sheets":13,"sheets":["Parametres","Paramétrage des points","Comités","Juges","Clubs","BASE","pesée","notes juge","résultat","résultat avec posing","Résultat final","Résultats clubs","comparaison"],"not_rendered":{"charts":0,"images":5,"macros":1,"external_links":0,"defined_names":30,"comments":4,"pivot_tables":1},"unopened":[],"bounds":{"document_bytes":16777216,"sheet_cells":100000,"rows_first":2000,"rows_last":500,"rows_between":2000,"halvings":0,"cell_chars":16384,"cell_head_chars":4096},"cells_cut":0,"cells_raw":0,"read":"whole","date_system":"1900"}

{"sheet":"Parametres","index":0,"n_rows":43,"n_cols":9,"rows_kept":43,"cut":false,"hidden":false,"merged":[[35,0,36,0],[38,0,39,0],[30,4,30,5]]}
["Paramètres de la compétition"]
[]
["Titre de la compétition :","Compétition magnifique"]
[]
["Type de compétition :","Nationale",{"$f":"VLOOKUP(B5,H5:I7,2,FALSE)","v":"N"},null,null,null,{"$f":"C5","v":"N"},"Régionale","R"]
[null,null,null,null,null,null,null,"Interzones","I"]
["Date de la compétition :","2013-03-13",null,null,null,null,null,"Nationale","N"]
[]
["Lieu de la compétition :","Gymnase c'est ici"]
[]
["Saison (1er septembre de référence) :","2012-09-01","jj/mm/aaaa"]
[]
["Année de début de saison",2014]
[]
["Paramètres du fichier"]
[]
["Athlètes : Maxi 15 par catégories et 200 sur l'ensemble de la compétition"]
["Catégories : Maxi 34"]
["La catégorie CULTURIS FORM doit être écrite obligatoirement en majuscule"]
["Juges : Maxi 9 par catégories et 15 sur l'ensemble de la compétition"]
["Clubs: Maxi 81"]
["Comités: Maxi 27"]
["Pour les zones verrouillées le mot de passe pour la modification est MODIF en majuscule"]
[]
[]
["ATTENTION: pour modifier une ligne, colonne ou catégorie: ne jamais utiliser \"supprimer\""]
["mais \"effacer contenu\" et (si besoin) trier pour déplacer la ligne ou colonne vide"]
[]
["Ne pas toucher à ce tableau"]
[]
[null,null,"Né(e)s en :",null,"âge révolu :"]
["Dénomination","Genre","année min","année max","min","max"]
["JUNIORS","Homme & Femme",{"$f":"$B$13-F33+1","v":1995},{"$f":"$B$13-E33+1","v":1997},18,20]
["ATHLETIQUE  JUNIORS","Homme & Femme",{"$f":"$B$13-F34+1","v":1995},{"$f":"$B$13-E34+1","v":1999},16,20]
["ESPOIRS","Homme",1992,1994,21,23]
["SENIORS","Homme",null,1991,24]
[null,"Femme",null,1994,21]
["CULTURIS-FORM","Femme",null,{"$f":"$B$13-E38","v":1998},16]
["MASTERS I","Homme",1966,1975,40,49]
[null,"Femme",null,1975,40]
["MASTERS II","Homme",1956,1965,50,59]
["MASTERS III","Homme",null,1955,60,60]
["ATHLETIQUE OPEN","Homme & Femme",null,1994,21]

{"sheet":"Paramétrage des points","index":1,"n_rows":142,"n_cols":28,"rows_kept":142,"cut":false,"hidden":false,"merged":[]}
["Paramètrage pour l'attribution des points"]
[]
["Catégories de la","Catégories de",null,null,null,"Les compétitions L (Locale), R(égionales), I(nterzone), O (open finales) n'utilisent que ce tableau",null,null,null,null,null,null,null,null,null,null,null,null,null,null,null,"pts",null,null,null,"place",null,"pts"]
["compétition","Référence",null,null,null,null,"L","R","I","O",null,null,"(points de participation)",null,null,null,null,null,null,null,null,null,null,"N","HV",1,{"$f":"X4&Y4&Z4","v":"NHV1"},10]
[null,"HJ-75","JE",null,null,"H",2,3,4,4,null,null,null,null,null,null,null,null,null,"R",{"$f":"T5&C5","v":"RJE"},6,null,"N","HV",2,{"$f":"X5&Y5&Z5","v":"NHV2"},8]
[null,"HJ+75","JE",null,null,"F",4,5,6,6,null,null,null,null,null,null,null,null,null,"R",{"$f":"T6&C6","v":"RJE"},6,null,"N","HV",3,"NHV3",6]
[null,"FJ-75","JE",null,null,"C",5,6,7,7,null,null,null,null,null,null,null,null,null,"R",{"$f":"T7&C7","v":"RJE"},6,null,"N","HV",4,"NHV4",4]
[null,"FJ+75","JE",null,null,"JE ",6,7,8,8,null,null,null,null,null,null,null,null,null,"R",{"$f":"T8&C8","v":"RJE"},6,null,"N","HV",5,"NHV5",3]
[null,"HE-75","JE",null,null,null,null,null,null,null,null,null,null,null,null,null,null,null,null,"R",{"$f":"T9&C9","v":"RJE"},6,null,"N","HV",6,"NHV6",2]
[null,"HE+75","JE",null,null,null,null,null,null,null,null,null,null,null,null,null,null,null,null,"R",{"$f":"T10&C10","v":"RJE"},6,null,"N","HV",7,"NHV7",1]
[null,"FS-52","SF",null,null,null,null,null,null,null,null,null,null,null,null,null,null,null,null,"R",{"$f":"T11&C11","v":"RSF"},4,null,"N","HV",8,"NHV8",1]
[null,"FS+52","SF",null,null,"Les compétitions F(inale) n'utilisent que ces tableaux",null,null,null,null,null,null,null,null,null,"Ce tableau disparait",null,null,null,"R",{"$f":"T12&C12","v":"RSF"},4,null,"N","HV",9,"NHV9",1]
[null,"HS-60","SH",null,null,"place","SH","SF","JE","V","C","CUF","AH","AF",null,"place","CH","CF",null,"R",{"$f":"T13&C14","v":"RSH"},2,null,"N","HV",10,"NHV10",1]
[null,"HS-65","SH",null,null,1,20,25,30,10,10,30,15,20,null,1,10,15,null,"R",{"$f":"T14&C15","v":"RSH"},2,null,"N","HV",11,"NHV11",1]
[null,"HS-70","SH",null,null,2,15,20,25,8,8,25,10,15,null,2,8,12,null,"R",{"$f":"T15&C16","v":"RSH"},2,null,"N","HV",12,"NHV12",1]
[null,"HS-75","SH",null,null,3,12,15,20,6,6,20,8,10,null,3,6,9,null,"R",{"$f":"T16&C17","v":"RSH"},2,null,"N","HV",13,"NHV13",1]
[null,"HS-80","SH",null,null,4,8,12,15,4,5,15,6,7,null,4,5,7,null,"R",{"$f":"T17&C18","v":"RSH"},2,null,"N","HV",14,"NHV14",1]
[null,"HS-85","SH",null,null,5,6,8,12,3,3,12,4,5,null,5,3,5,null,"R",{"$f":"T18&C19","v":"RSH"},2,null,"N","HV",15,"NHV15",1]
[null,"HS+85","SH",null,null,6,4,6,8,2,2,8,2,3,null,6,2,4,null,"R",{"$f":"T19&C20","v":"RV"},4,null,"N","HV",16,"NHV16",1]
[null,"FV-52","V",null,null,7,1,1,1,1,1,1,1,1,null,"Couples",null,null,null,"R",{"$f":"T20&C21","v":"RV"},4,null,"N","HV",17,"NHV17",1]
[null,"FV+52","V",null,null,8,1,1,1,1,1,1,1,1,null,null,null,null,null,"R",{"$f":"T21&#REF!","v":{"$error":"#REF!"}},2,null,"N","HV",18,"NHV18",1]
[null,"HV1-70","V",null,null,9,1,1,1,1,1,1,1,1,null,null,null,null,null,"R",{"$f":"T22&C22","v":"RV"},2,null,"N","HV",19,"NHV19",1]
[null,"HV1-75","V",null,null,10,1,1,1,1,1,1,1,1,null,null,null,null,null,"R",{"$f":"T23&C23","v":"RV"},2,null,"N","HV",20,"NHV20",1]
[null,"HV1+75","V",null,null,11,1,1,1,1,1,1,1,1,null,null,null,null,null,"R",{"$f":"T24&C24","v":"RV"},2]
[null,"HV2-75","V",null,null,12,1,1,1,1,1,1,1,1,null,null,null,null,null,"R",{"$f":"T25&C25","v":"RV"},2,null,"N","FV",1,{"$f":"X25&Y25&Z25","v":"NFV1"},15]
[null,"HV2+75","V",null,null,13,1,1,1,1,1,1,1,1,null,null,null,null,null,"R",{"$f":"T26&C26","v":"RV"},2,null,"N","FV",2,{"$f":"X26&Y26&Z26","v":"NFV2"},12]
[null,"HV3-75","V",null,null,14,1,1,1,1,1,1,1,1,null,null,null,null,null,"R",{"$f":"T27&C28","v":"RV"},2,null,"N","FV",3,"NFV3",10]
[null,"HV3+75","V",null,null,15,1,1,1,1,1,1,1,1,null,null,null,null,null,"R",{"$f":"T28&C29","v":"RC"},0,null,"N","FV",4,"NFV4",8]
["Couples","Couple","C",null,null,16,1,1,1,1,1,1,1,1,null,null,null,null,null,"R",{"$f":"T29&#REF!","v":{"$error":"#REF!"}},0,null,"N","FV",5,"NFV5",6]
["CULTURIS FORM","Culturisform","CUF",null,null,17,1,1,1,1,1,1,1,1,null,null,null,null,null,"R",{"$f":"T30&C30","v":"RCUF"},4,null,"N","FV",6,"NFV6",4]
[null,"AJH-178","AH",null,null,18,1,1,1,1,1,1,1,1,null,null,null,null,null,null,null,null,null,"N","FV",7,"NFV7",1]
[null,"AJH+178","AH",null,null,19,1,1,1,1,1,1,1,1,null,null,null,null,null,null,null,null,null,"N","FV",8,"NFV8",1]
[null,"AJF-65","AF",null,null,20,1,1,1,1,1,1,1,1,null,null,null,null,null,null,null,null,null,"N","FV",9,"NFV9",1]
[null,"AJF+165","AF",null,null,null,"Sénior",null,"Junior",null,"Couple",null,"Athlétique",null,null,null,null,null,null,"I",{"$f":"T34&C5","v":"IJE"},8,null,"N","FV",10,"NFV10",1]
[null,"AOH-178","AH",null,null,null,null,null,null,"Master",null,"Culturis-Form",null,null,null,null,null,null,null,"I",{"$f":"T35&C6","v":"IJE"},8,null,"N","FV",11,"NFV11",1]
[null,"AOH+178","AH",null,null,null,null,null,null,null,null,null,null,null,null,null,null,null,null,"I",{"$f":"T36&C7","v":"IJE"},8,null,"N","FV",12,"NFV12",1]
[null,"AOF-165","AF",null,null,null,null,null,null,null,null,null,null,null,null,null,null,null,null,"I",{"$f":"T37&C8","v":"IJE"},8,null,"N","FV",13,"NFV13",1]
[null,"AOF+165","AF",null,null,null,null,null,null,null,null,null,null,null,null,null,null,null,null,"I",{"$f":"T38&C9","v":"IJE"},8,null,"N","FV",14,"NFV14",1]
[null,null,null,null,null,null,null,null,null,null,null,null,null,null,null,null,null,null,null,"I",{"$f":"T39&C10","v":"IJE"},8,null,"N","FV",15,"NFV15",1]
[null,null,null,null,null,null,null,null,null,null,null,null,null,null,null,null,null,null,null,"I",{"$f":"T40&C11","v":"ISF"},6,null,"N","FV",16,"NFV16",1]
[null,null,null,null,null,null,null,null,null,null,null,null,null,null,null,null,null,null,null,"I",{"$f":"T41&C12","v":"ISF"},6,null,"N","FV",17,"NFV17",1]
[null,null,null,null,null,null,null,null,null,null,null,null,null,null,null,null,null,null,null,"I",{"$f":"T42&C14","v":"ISH"},4,null,"N","FV",18,"NFV18",1]
[null,null,null,null,null,null,null,null,null,null,null,null,null,null,null,null,null,null,null,"I",{"$f":"T43&C15","v":"ISH"},4,null,"N","FV",19,"NFV19",1]
[null,null,null,null,null,null,null,null,null,null,null,null,null,null,null,null,null,null,null,"I",{"$f":"T44&C16","v":"ISH"},4,null,"N","FV",20,"NFV20",1]
[null,null,null,null,null,null,null,null,null,null,null,null,null,null,null,null,null,null,null,"I",{"$f":"T45&C17","v":"ISH"},4]
[null,null,null,null,null,null,null,null,null,null,null,null,null,null,null,null,null,null,null,"I",{"$f":"T46&C18","v":"ISH"},4,null,"N","HS",1,{"$f":"X46&Y46&Z46","v":"NHS1"},20]
[null,null,null,null,null,null,null,null,null,null,null,null,null,null,null,null,null,null,null,"I",{"$f":"T47&C19","v":"ISH"},4,null,"N","HS",2,{"$f":"X47&Y47&Z47","v":"NHS2"},15]
[null,null,null,null,null,null,null,null,null,null,null,null,null,null,null,null,null,null,null,"I",{"$f":"T48&C20","v":"IV"},6,null,"N","HS",3,"NHS3",12]
[null,null,null,null,null,null,null,null,null,null,null,null,null,null,null,null,null,null,null,"I",{"$f":"T49&C21","v":"IV"},6,null,"N","HS",4,"NHS4",8]
[null,null,null,null,null,null,null,null,null,null,null,null,null,null,null,null,null,null,null,"I",{"$f":"T50&#REF!","v":{"$error":"#REF!"}},4,null,"N","HS",5,"NHS5",6]
[null,null,null,null,null,null,null,null,null,null,null,null,null,null,null,null,null,null,null,"I",{"$f":"T51&C22","v":"IV"},4,null,"N","HS",6,"NHS6",4]
[null,null,null,null,null,null,null,null,null,null,null,null,null,null,null,null,null,null,null,"I",{"$f":"T52&C23","v":"IV"},4,null,"N","HS",7,"NHS7",1]
[null,null,null,null,null,null,null,null,null,null,null,null,null,null,null,null,null,null,null,"I",{"$f":"T53&C24","v":"IV"},4,null,"N","HS",8,"NHS8",1]
[null,null,null,null,null,null,null,null,null,null,null,null,null,null,null,null,null,null,null,"I",{"$f":"T54&C25","v":"IV"},4,null,"N","HS",9,"NHS9",1]
[null,null,null,null,null,null,null,null,null,null,null,null,null,null,null,null,null,null,null,"I",{"$f":"T55&C26","v":"IV"},4,null,"N","HS",10,"NHS10",1]
[null,null,null,null,null,null,null,null,null,null,null,null,null,null,null,null,null,null,null,"I",{"$f":"T56&C28","v":"IV"},4,null,"N","HS",11,"NHS11",1]
[null,null,null,null,null,null,null,null,null,null,null,null,null,null,null,null,null,null,null,"I",{"$f":"T57&C29","v":"IC"},0,null,"N","HS",12,"NHS12",1]
[null,null,null,null,null,null,null,null,null,null,null,null,null,null,null,null,null,null,null,"I",{"$f":"T58&#REF!","v":{"$error":"#REF!"}},0,null,"N","HS",13,"NHS13",1]
[null,null,null,null,null,null,null,null,null,null,null,null,null,null,null,null,null,null,null,"I",{"$f":"T59&C30","v":"ICUF"},6,null,"N","HS",14,"NHS14",1]
[null,null,null,null,null,null,null,null,null,null,null,null,null,null,null,null,null,null,null,null,null,null,null,"N","HS",15,"NHS15",1]
[null,null,null,null,null,null,null,null,null,null,null,null,null,null,null,null,null,null,null,null,null,null,null,"N","HS",16,"NHS16",1]
[null,null,null,null,null,null,null,null,null,null,null,null,null,null,null,null,null,null,null,"N",{"$f":"T62&G13","v":"NSH"},null,null,"N","HS",17,"NHS17",1]
[null,null,null,null,null,null,null,null,null,null,null,null,null,null,null,null,null,null,null,"N",{"$f":"T63&H13","v":"NSF"},null,null,"N","HS",18,"NHS18",1]
[null,null,null,null,null,null,null,null,null,null,null,null,null,null,null,null,null,null,null,"N",{"$f":"T64&I13","v":"NJE"},null,null,"N","HS",19,"NHS19",1]
[null,null,null,null,null,null,null,null,null,null,null,null,null,null,null,null,null,null,null,"N",{"$f":"T65&J13","v":"NV"},null,null,"N","HS",20,"NHS20",1]
[null,null,null,null,null,null,null,null,null,null,null,null,null,null,null,null,null,null,null,"N",{"$f":"T66&K13","v":"NC"}]
[null,null,null,null,null,null,null,null,null,null,null,null,null,null,null,null,null,null,null,"N",{"$f":"T67&L13","v":"NCUF"},null,null,"N","FS",1,{"$f":"X67&Y67&Z67","v":"NFS1"},25]
[null,null,null,null,null,null,null,null,null,null,null,null,null,null,null,null,null,null,null,"N",{"$f":"T68&Q13","v":"NCH"},null,null,"N","FS",2,{"$f":"X68&Y68&Z68","v":"NFS2"},20]
[null,null,null,null,null,null,null,null,null,null,null,null,null,null,null,null,null,null,null,"N",{"$f":"T69&R13","v":"NCF"},null,null,"N","FS",3,"NFS3",15]
[null,null,null,null,null,null,null,null,null,null,null,null,null,null,null,null,null,null,null,null,null,null,null,"N","FS",4,"NFS4",12]
[null,null,null,null,null,null,null,null,null,null,null,null,null,null,null,null,null,null,null,null,null,null,null,"N","FS",5,"NFS5",8]
[null,null,null,null,null,null,null,null,null,null,null,null,null,null,null,null,null,null,null,null,null,null,null,"N","FS",6,"NFS6",6]
[null,null,null,null,null,null,null,null,null,null,null,null,null,null,null,null,null,null,null,null,null,null,null,"N","FS",7,"NFS7",2]
[null,null,null,null,null,null,null,null,null,null,null,null,null,null,null,null,null,null,null,null,null,null,null,"N","FS",8,"NFS8",2]
[null,null,null,null,null,null,null,null,null,null,null,null,null,null,null,null,null,null,null,null,null,null,null,"N","FS",9,"NFS9",2]
[null,null,null,null,null,null,null,null,null,null,null,null,null,null,null,null,null,null,null,null,null,null,null,"N","FS",10,"NFS10",2]
[null,null,null,null,null,null,null,null,null,null,null,null,null,null,null,null,null,null,null,null,null,null,null,"N","FS",11,"NFS11",2]
[null,null,null,null,null,null,null,null,null,null,null,null,null,null,null,null,null,null,null,null,null,null,null,"N","FS",12,"NFS12",2]
[null,null,null,null,null,null,null,null,null,null,null,null,null,null,null,null,null,null,null,null,null,null,null,"N","FS",13,"NFS13",2]
[null,null,null,null,null,null,null,null,null,null,null,null,null,null,null,null,null,null,null,null,null,null,null,"N","FS",14,"NFS14",2]
[null,null,null,null,null,null,null,null,null,null,null,null,null,null,null,null,null,null,null,null,null,null,null,"N","FS",15,"NFS15",2]
[null,null,null,null,null,null,null,null,null,null,null,null,null,null,null,null,null,null,null,null,null,null,null,"N","FS",16,"NFS16",2]
[null,null,null,null,null,null,null,null,null,null,null,null,null,null,null,null,null,null,null,null,null,null,null,"N","FS",17,"NFS17",2]
[null,null,null,null,null,null,null,null,null,null,null,null,null,null,null,null,null,null,null,null,null,null,null,"N","FS",18,"NFS18",2]
[null,null,null,null,null,null,null,null,null,null,null,null,null,null,null,null,null,null,null,null,null,null,null,"N","FS",19,"NFS19",2]
[null,null,null,null,null,null,null,null,null,null,null,null,null,null,null,null,null,null,null,null,null,null,null,"N","FS",20,"NFS20",2]
[]
[null,null,null,null,null,null,null,null,null,null,null,null,null,null,null,null,null,null,null,null,null,null,null,"N","CUF",1,{"$f":"X88&Y88&Z88","v":"NCUF1"},25]
[null,null,null,null,null,null,null,null,null,null,null,null,null,null,null,null,null,null,null,null,null,null,null,"N","CUF",2,{"$f":"X89&Y89&Z89","v":"NCUF2"},20]
[null,null,null,null,null,null,null,null,null,null,null,null,null,null,null,null,null,null,null,null,null,null,null,"N","CUF",3,"NCUF3",15]
[null,null,null,null,null,null,null,null,null,null,null,null,null,null,null,null,null,null,null,null,null,null,null,"N","CUF",4,"NCUF4",12]
[null,null,null,null,null,null,null,null,null,null,null,null,null,null,null,null,null,null,null,null,null,null,null,"N","CUF",5,"NCUF5",8]
[null,null,null,null,null,null,null,null,null,null,null,null,null,null,null,null,null,null,null,null,null,null,null,"N","CUF",6,"NCUF6",6]
[null,null,null,null,null,null,null,null,null,null,null,null,null,null,null,null,null,null,null,null,null,null,null,"N","CUF",7,"NCUF7",2]
[null,null,null,null,null,null,null,null,null,null,null,null,null,null,null,null,null,null,null,null,null,null,null,"N","CUF",8,"NCUF8",2]
[null,null,null,null,null,null,null,null,null,null,null,null,null,null,null,null,null,null,null,null,null,null,null,"N","CUF",9,"NCUF9",2]
[null,null,null,null,null,null,null,null,null,null,null,null,null,null,null,null,null,null,null,null,null,null,null,"N","CUF",10,"NCUF10",2]
[null,null,null,null,null,null,null,null,null,null,null,null,null,null,null,null,null,null,null,null,null,null,null,"N","CUF",11,"NCUF11",2]
[null,null,null,null,null,null,null,null,null,null,null,null,null,null,null,null,null,null,null,null,null,null,null,"N","CUF",12,"NCUF12",2]
[null,null,null,null,null,null,null,null,null,null,null,null,null,null,null,null,null,null,null,null,null,null,null,"N","CUF",13,"NCUF13",2]
[null,null,null,null,null,null,null,null,null,null,null,null,null,null,null,null,null,null,null,null,null,null,null,"N","CUF",14,"NCUF14",2]
[null,null,null,null,null,null,null,null,null,null,null,null,null,null,null,null,null,null,null,null,null,null,null,"N","CUF",15,"NCUF15",2]
[null,null,null,null,null,null,null,null,null,null,null,null,null,null,null,null,null,null,null,null,null,null,null,"N","CUF",16,"NCUF16",2]
[null,null,null,null,null,null,null,null,null,null,null,null,null,null,null,null,null,null,null,null,null,null,null,"N","CUF",17,"NCUF17",2]
[null,null,null,null,null,null,null,null,null,null,null,null,null,null,null,null,null,null,null,null,null,null,null,"N","CUF",18,"NCUF18",2]
[null,null,null,null,null,null,null,null,null,null,null,null,null,null,null,null,null,null,null,null,null,null,null,"N","CUF",19,"NCUF19",2]
[null,null,null,null,null,null,null,null,null,null,null,null,null,null,null,null,null,null,null,null,null,null,null,"N","CUF",20,"NCUF20",2]
[]
[null,null,null,null,null,null,null,null,null,null,null,null,null,null,null,null,null,null,null,null,null,null,null,"N","JE",1,{"$f":"X109&Y109&Z109","v":"NJE1"},30]
[null,null,null,null,null,null,null,null,null,null,null,null,null,null,null,null,null,null,null,null,null,null,null,"N","JE",2,{"$f":"X110&Y110&Z110","v":"NJE2"},25]
[null,null,null,null,null,null,null,null,null,null,null,null,null,null,null,null,null,null,null,null,null,null,null,"N","JE",3,"NJE3",20]
[null,null,null,null,null,null,null,null,null,null,null,null,null,null,null,null,null,null,null,null,null,null,null,"N","JE",4,"NJE4",15]
[null,null,null,null,null,null,null,null,null,null,null,null,null,null,null,null,null,null,null,null,null,null,null,"N","JE",5,"NJE5",12]
[null,null,null,null,null,null,null,null,null,null,null,null,null,null,null,null,null,null,null,null,null,null,null,"N","JE",6,"NJE6",8]
[null,null,null,null,null,null,null,null,null,null,null,null,null,null,null,null,null,null,null,null,null,null,null,"N","JE",7,"NJE7",2]
[null,null,null,null,null,null,null,null,null,null,null,null,null,null,null,null,null,null,null,null,null,null,null,"N","JE",8,"NJE8",2]
[null,null,null,null,null,null,null,null,null,null,null,null,null,null,null,null,null,null,null,null,null,null,null,"N","JE",9,"NJE9",2]
[null,null,null,null,null,null,null,null,null,null,null,null,null,null,null,null,null,null,null,null,null,null,null,"N","JE",10,"NJE10",2]
[null,null,null,null,null,null,null,null,null,null,null,null,null,null,null,null,null,null,null,null,null,null,null,"N","JE",11,"NJE11",2]
[null,null,null,null,null,null,null,null,null,null,null,null,null,null,null,null,null,null,null,null,null,null,null,"N","JE",12,"NJE12",2]
[null,null,null,null,null,null,null,null,null,null,null,null,null,null,null,null,null,null,null,null,null,null,null,"N","JE",13,"NJE13",2]
[null,null,null,null,null,null,null,null,null,null,null,null,null,null,null,null,null,null,null,null,null,null,null,"N","JE",14,"NJE14",2]
[null,null,null,null,null,null,null,null,null,null,null,null,null,null,null,null,null,null,null,null,null,null,null,"N","JE",15,"NJE15",2]
[null,null,null,null,null,null,null,null,null,null,null,null,null,null,null,null,null,null,null,null,null,null,null,"N","JE",16,"NJE16",2]
[null,null,null,null,null,null,null,null,null,null,null,null,null,null,null,null,null,null,null,null,null,null,null,"N","JE",17,"NJE17",2]
[null,null,null,null,null,null,null,null,null,null,null,null,null,null,null,null,null,null,null,null,null,null,null,"N","JE",18,"NJE18",2]
[null,null,null,null,null,null,null,null,null,null,null,null,null,null,null,null,null,null,null,null,null,null,null,"N","JE",19,"NJE19",2]
[null,null,null,null,null,null,null,null,null,null,null,null,null,null,null,null,null,null,null,null,null,null,null,"N","JE",20,"NJE20",2]
[]
[null,null,null,null,null,null,null,null,null,null,null,null,null,null,null,null,null,null,null,null,null,null,null,"N","CH",1,"NCH1",10]
[null,null,null,null,null,null,null,null,null,null,null,null,null,null,null,null,null,null,null,null,null,null,null,"N","CH",2,"NCH2",8]
[null,null,null,null,null,null,null,null,null,null,null,null,null,null,null,null,null,null,null,null,null,null,null,"N","CH",3,"NCH3",6]
[null,null,null,null,null,null,null,null,null,null,null,null,null,null,null,null,null,null,null,null,null,null,null,"N","CH",4,"NCH4",5]
[null,null,null,null,null,null,null,null,null,null,null,null,null,null,null,null,null,null,null,null,null,null,null,"N","CH",5,"NCH5",3]
[null,null,null,null,null,null,null,null,null,null,null,null,null,null,null,null,null,null,null,null,null,null,null,"N","CH",6,"NCH6",2]
[]
[null,null,null,null,null,null,null,null,null,null,null,null,null,null,null,null,null,null,null,null,null,null,null,"N","CF",1,"NCF1",15]
[null,null,null,null,null,null,null,null,null,null,null,null,null,null,null,null,null,null,null,null,null,null,null,"N","CF",2,"NCF2",12]
[null,null,null,null,null,null,null,null,null,null,null,null,null,null,null,null,null,null,null,null,null,null,null,"N","CF",3,"NCF3",9]
[null,null,null,null,null,null,null,null,null,null,null,null,null,null,null,null,null,null,null,null,null,null,null,"N","CF",4,"NCF4",7]
[null,null,null,null,null,null,null,null,null,null,null,null,null,null,null,null,null,null,null,null,null,null,null,"N","CF",5,"NCF5",5]
[null,null,null,null,null,null,null,null,null,null,null,null,null,null,null,null,null,null,null,null,null,null,null,"N","CF",6,"NCF6",4]

{"sheet":"Comités","index":2,"n_rows":28,"n_cols":3,"rows_kept":28,"cut":false,"hidden":false,"merged":[]}
["Comités régionaux","Départements","Zones"]
["ALSACE","67/68","ZONE NORD EST"]
["AQUITAINE","24 / 33 / 40 / 47 / 64","ZONE SUD OUEST"]
["AUVERGNE","03 / 15 / 43 / 63","ZONE SUD EST"]
["BASSE NORMANDIE","14 / 50 / 61","ZONE CENTRE OUEST"]
["BOURGOGNE","21/58/71/89","ZONE NORD EST"]
["BRETAGNE","22 / 29 / 35 / 56","ZONE CENTRE OUEST"]
["CENTRE","18 / 28 / 36 / 37 / 41 / 45","ZONE CENTRE OUEST"]
["CHAMPAGNE ARDENNES","08 / 10 / 51 / 52","ZONE NORD EST"]
["CORSE  / COTE D'AZUR","2A / 2B / 06 / 20 / 83","ZONE SUD EST"]
["FRANCHE COMTE","25/39/70/90","ZONE NORD EST"]
["GUADELOUPE",971,"ZONE DOM -TOM"]
["GUYANE",973,"ZONE DOM -TOM"]
["HAUTE NORMANDIE","27/76","ZONE NORD A"]
["ILE DE FRANCE","75/ 77/ 78/ 91/ 92/93/94/95","ZONE NORD B"]
["ILE DE LA REUNION ",974,"ZONE DOM -TOM"]
["LANGUEDOC ROUSSILLON","11 / 30 / 34 / 48 / 66","ZONE SUD EST"]
["LIMOUSIN","19 / 23 / 87","ZONE SUD OUEST"]
["LORRAINE ","54/55/57/88","ZONE NORD EST"]
["MARTINIQUE",972,"ZONE DOM -TOM"]
["NORD PAS DE CALAIS","59/62","ZONE NORD A"]
["NOUVELLE CALEDONIE","TOM","ZONE DOM -TOM"]
["PAYS DE LOIRE","44 / 49 / 53 / 72 / 85","ZONE CENTRE OUEST"]
["PICARDIE","02/60/80","ZONE NORD A"]
["POITOU","16 / 17 / 79 / 86","ZONE SUD OUEST"]
["PROVENCE","04 / 05 / 13 / 84 ","ZONE SUD EST"]
["PYRENEES","09/ 12/ 31/ 32/ 46/ 65/ 81/ 82","ZONE SUD OUEST"]
["RHONE ALPES","01 / 07 / 26 / 38 / 42 / 69 / 73 / 74","ZONE SUD EST"]

{"sheet":"Juges","index":3,"n_rows":22,"n_cols":32,"rows_kept":22,"cut":false,"hidden":false,"merged":[]}
["NOM PRENOM","C1","C2","C3","C4","C5","CULTURIS FORM","Couples","FV",null,null,null,null,null,null,null,null,null,null,null,null,null,null,null,null,null,null,null,null,null,null,"Maximum 30 catégories par fichier Excel"]
["AA",1,2,1,1,1,5,1,null,2,3,2,2,2,3,null,null,3,4,1,1,1,3,3,2,5]
["BB",2,8,3,2,2,4,2,null,3,2,null,3,3,2,9,null,7,3,null,2,2,1,null,1,4]
["CC",3,3,2,null,3,3,3,null,4,4,3,4,4,4,null,5,5,5,2,3,3,5,null,4,3]
["DD",4,4,null,5,5,2,4,null,5,5,null,1,6,5,8,1,6,6,null,4,4,null,2,3,7]
["EE",5,5,null,3,4,null,5,3,null,6,null,null,5,7,null,4,1,7,3,5,5,null,1,5,2]
["FF",6,1,null,null,6,1,7,2,null,7,null,null,7,6,null,3,2,1,null,null,6,2,null,6,6]
["GG",7,9,null,4,7,null,6,1,1,1,1,5,1,1,7,2,4,2,null,null,7,4,null,7,1]
["HH",8,null,null,null,null,6,null,4,null,null,null,null,null,null,6,null,null,null,null,null,null,null,5]
["II",null,null,null,null,9,null,null,5,null,null,null,null,null,null,5]
["JJ",null,6,null,null,8,null,8]
["KK",null,7,null,null,null,7,null,null,null,null,null,null,null,null,4,null,null,null,null,null,null,null,4]
["LL",9,null,null,null,null,null,null,null,null,null,null,null,null,null,3]
["MM",null,null,null,null,null,null,null,null,null,null,null,null,null,null,2]
["NN",null,null,null,null,null,null,9]
["OO",null,null,null,null,null,null,null,null,null,null,null,null,null,null,1]
[{"$f":"\"Nombre d'athlètes sur \"&COUNTA(BASE!$O$2:$O$201)","v":"Nombre d'athlètes sur 38"},{"$f":"COUNTIF(BASE!$O$2:$O$201,Juges!B$1)","v":5},{"$f":"COUNTIF(BASE!$O$2:$O$201,Juges!C$1)","v":5},{"$f":"COUNTIF(BASE!$O$2:$O$201,Juges!D$1)","v":7},{"$f":"COUNTIF(BASE!$O$2:$O$201,Juges!E$1)","v":0},{"$f":"COUNTIF(BASE!$O$2:$O$201,Juges!F$1)","v":11},{"$f":"COUNTIF(BASE!$O$2:$O$201,Juges!G$1)","v":6},{"$f":"COUNTIF(BASE!$O$2:$O$201,Juges!H$1)","v":2},{"$f":"COUNTIF(BASE!$O$2:$O$201,Juges!I$1)","v":2},{"$f":"COUNTIF(BASE!$O$2:$O$201,Juges!J$1)","v":0},{"$f":"COUNTIF(BASE!$O$2:$O$201,Juges!K$1)","v":0},{"$f":"COUNTIF(BASE!$O$2:$O$201,Juges!L$1)","v":0},{"$f":"COUNTIF(BASE!$O$2:$O$201,Juges!M$1)","v":0},{"$f":"COUNTIF(BASE!$O$2:$O$201,Juges!N$1)","v":0},{"$f":"COUNTIF(BASE!$O$2:$O$201,Juges!O$1)","v":0},{"$f":"COUNTIF(BASE!$O$2:$O$201,Juges!P$1)","v":0},{"$f":"COUNTIF(BASE!$O$2:$O$201,Juges!Q$1)","v":0},{"$f":"COUNTIF(BASE!$O$2:$O$201,Juges!R$1)","v":0},{"$f":"COUNTIF(BASE!$O$2:$O$201,Juges!S$1)","v":0},{"$f":"COUNTIF(BASE!$O$2:$O$201,Juges!T$1)","v":0},{"$f":"COUNTIF(BASE!$O$2:$O$201,Juges!U$1)","v":0},{"$f":"COUNTIF(BASE!$O$2:$O$201,Juges!V$1)","v":0},{"$f":"COUNTIF(BASE!$O$2:$O$201,Juges!W$1)","v":0},{"$f":"COUNTIF(BASE!$O$2:$O$201,Juges!X$1)","v":0},{"$f":"COUNTIF(BASE!$O$2:$O$201,Juges!Y$1)","v":0},{"$f":"COUNTIF(BASE!$O$2:$O$201,Juges!Z$1)","v":0},{"$f":"COUNTIF(BASE!$O$2:$O$201,Juges!AA$1)","v":0},{"$f":"COUNTIF(BASE!$O$2:$O$201,Juges!AB$1)","v":0},{"$f":"COUNTIF(BASE!$O$2:$O$201,Juges!AC$1)","v":0},{"$f":"COUNTIF(BASE!$O$2:$O$201,Juges!AD$1)","v":0},{"$f":"COUNTIF(BASE!$O$2:$O$201,Juges!AE$1)","v":0},{"$f":"SUM(B17:AE17)","v":38}]
["Nbre de juges/catégories",{"$f":"COUNTA(B2:B16)","v":9},{"$f":"COUNTA(C2:C16)","v":9},3,5,{"$f":"COUNTA(F2:F16)","v":9},{"$f":"COUNTA(G2:G16)","v":7},9,5,5,7,3,5,7,7,9,5,7,7,3,5,7,5,5,7,7,0,0,0,0,0]
[]
["Vérification catégorie nationale de référence",{"$f":"IFERROR(VLOOKUP(B1,'Paramétrage des points'!$A:$C,2,FALSE),\"\")","v":""},{"$f":"IFERROR(VLOOKUP(C1,'Paramétrage des points'!$A:$C,2,FALSE),\"\")","v":""},{"$f":"IFERROR(VLOOKUP(D1,'Paramétrage des points'!$A:$C,2,FALSE),\"\")","v":""},{"$f":"IFERROR(VLOOKUP(E1,'Paramétrage des points'!$A:$C,2,FALSE),\"\")","v":""},{"$f":"IFERROR(VLOOKUP(F1,'Paramétrage des points'!$A:$C,2,FALSE),\"\")","v":""},{"$f":"IFERROR(VLOOKUP(G1,'Paramétrage des points'!$A:$C,2,FALSE),\"\")","v":"Culturisform"},{"$f":"IFERROR(VLOOKUP(H1,'Paramétrage des points'!$A:$C,2,FALSE),\"\")","v":"Couple"},{"$f":"IFERROR(VLOOKUP(I1,'Paramétrage des points'!$A:$C,2,FALSE),\"\")","v":""},{"$f":"IFERROR(VLOOKUP(J1,'Paramétrage des points'!$A:$C,2,FALSE),\"\")","v":""},{"$f":"IFERROR(VLOOKUP(K1,'Paramétrage des points'!$A:$C,2,FALSE),\"\")","v":""},{"$f":"IFERROR(VLOOKUP(L1,'Paramétrage des points'!$A:$C,2,FALSE),\"\")","v":""},{"$f":"IFERROR(VLOOKUP(M1,'Paramétrage des points'!$A:$C,2,FALSE),\"\")","v":""},{"$f":"IFERROR(VLOOKUP(N1,'Paramétrage des points'!$A:$C,2,FALSE),\"\")","v":""},{"$f":"IFERROR(VLOOKUP(O1,'Paramétrage des points'!$A:$C,2,FALSE),\"\")","v":""},{"$f":"IFERROR(VLOOKUP(P1,'Paramétrage des points'!$A:$C,2,FALSE),\"\")","v":""},{"$f":"IFERROR(VLOOKUP(Q1,'Paramétrage des points'!$A:$C,2,FALSE),\"\")","v":""},{"$f":"IFERROR(VLOOKUP(R1,'Paramétrage des points'!$A:$C,2,FALSE),\"\")","v":""},{"$f":"IFERROR(VLOOKUP(S1,'Paramétrage des points'!$A:$C,2,FALSE),\"\")","v":""},{"$f":"IFERROR(VLOOKUP(T1,'Paramétrage des points'!$A:$C,2,FALSE),\"\")","v":""},{"$f":"IFERROR(VLOOKUP(U1,'Paramétrage des points'!$A:$C,2,FALSE),\"\")","v":""},{"$f":"IFERROR(VLOOKUP(V1,'Paramétrage des points'!$A:$C,2,FALSE),\"\")","v":""},{"$f":"IFERROR(VLOOKUP(W1,'Paramétrage des points'!$A:$C,2,FALSE),\"\")","v":""},{"$f":"IFERROR(VLOOKUP(X1,'Paramétrage des points'!$A:$C,2,FALSE),\"\")","v":""},{"$f":"IFERROR(VLOOKUP(Y1,'Paramétrage des points'!$A:$C,2,FALSE),\"\")","v":""},{"$f":"IFERROR(VLOOKUP(Z1,'Paramétrage des points'!$A:$C,2,FALSE),\"\")","v":""},{"$f":"IFERROR(VLOOKUP(AA1,'Paramétrage des points'!$A:$C,2,FALSE),\"\")","v":""},{"$f":"IFERROR(VLOOKUP(AB1,'Paramétrage des points'!$A:$C,2,FALSE),\"\")","v":""},{"$f":"IFERROR(VLOOKUP(AC1,'Paramétrage des points'!$A:$C,2,FALSE),\"\")","v":""},{"$f":"IFERROR(VLOOKUP(AD1,'Paramétrage des points'!$A:$C,2,FALSE),\"\")","v":""},{"$f":"IFERROR(VLOOKUP(AE1,'Paramétrage des points'!$A:$C,2,FALSE),\"\")","v":""}]
["Age de référence",{"$f":"IFERROR(VLOOKUP(B1,'Paramétrage des points'!$A:$C,3,FALSE),\"\")","v":""},{"$f":"IFERROR(VLOOKUP(C1,'Paramétrage des points'!$A:$C,3,FALSE),\"\")","v":""},{"$f":"IFERROR(VLOOKUP(D1,'Paramétrage des points'!$A:$C,3,FALSE),\"\")","v":""},{"$f":"IFERROR(VLOOKUP(E1,'Paramétrage des points'!$A:$C,3,FALSE),\"\")","v":""},{"$f":"IFERROR(VLOOKUP(F1,'Paramétrage des points'!$A:$C,3,FALSE),\"\")","v":""},{"$f":"IFERROR(VLOOKUP(G1,'Paramétrage des points'!$A:$C,3,FALSE),\"\")","v":"CUF"},{"$f":"IFERROR(VLOOKUP(H1,'Paramétrage des points'!$A:$C,3,FALSE),\"\")","v":"C"},{"$f":"IFERROR(VLOOKUP(I1,'Paramétrage des points'!$A:$C,3,FALSE),\"\")","v":""},{"$f":"IFERROR(VLOOKUP(J1,'Paramétrage des points'!$A:$C,3,FALSE),\"\")","v":""},{"$f":"IFERROR(VLOOKUP(K1,'Paramétrage des points'!$A:$C,3,FALSE),\"\")","v":""},{"$f":"IFERROR(VLOOKUP(L1,'Paramétrage des points'!$A:$C,3,FALSE),\"\")","v":""},{"$f":"IFERROR(VLOOKUP(M1,'Paramétrage des points'!$A:$C,3,FALSE),\"\")","v":""},{"$f":"IFERROR(VLOOKUP(N1,'Paramétrage des points'!$A:$C,3,FALSE),\"\")","v":""},{"$f":"IFERROR(VLOOKUP(O1,'Paramétrage des points'!$A:$C,3,FALSE),\"\")","v":""},{"$f":"IFERROR(VLOOKUP(P1,'Paramétrage des points'!$A:$C,3,FALSE),\"\")","v":""},{"$f":"IFERROR(VLOOKUP(Q1,'Paramétrage des points'!$A:$C,3,FALSE),\"\")","v":""},{"$f":"IFERROR(VLOOKUP(R1,'Paramétrage des points'!$A:$C,3,FALSE),\"\")","v":""},{"$f":"IFERROR(VLOOKUP(S1,'Paramétrage des points'!$A:$C,3,FALSE),\"\")","v":""},{"$f":"IFERROR(VLOOKUP(T1,'Paramétrage des points'!$A:$C,3,FALSE),\"\")","v":""},{"$f":"IFERROR(VLOOKUP(U1,'Paramétrage des points'!$A:$C,3,FALSE),\"\")","v":""},{"$f":"IFERROR(VLOOKUP(V1,'Paramétrage des points'!$A:$C,3,FALSE),\"\")","v":""},{"$f":"IFERROR(VLOOKUP(W1,'Paramétrage des points'!$A:$C,3,FALSE),\"\")","v":""},{"$f":"IFERROR(VLOOKUP(X1,'Paramétrage des points'!$A:$C,3,FALSE),\"\")","v":""},{"$f":"IFERROR(VLOOKUP(Y1,'Paramétrage des points'!$A:$C,3,FALSE),\"\")","v":""},{"$f":"IFERROR(VLOOKUP(Z1,'Paramétrage des points'!$A:$C,3,FALSE),\"\")","v":""},{"$f":"IFERROR(VLOOKUP(AA1,'Paramétrage des points'!$A:$C,3,FALSE),\"\")","v":""},{"$f":"IFERROR(VLOOKUP(AB1,'Paramétrage des points'!$A:$C,3,FALSE),\"\")","v":""},{"$f":"IFERROR(VLOOKUP(AC1,'Paramétrage des points'!$A:$C,3,FALSE),\"\")","v":""},{"$f":"IFERROR(VLOOKUP(AD1,'Paramétrage des points'!$A:$C,3,FALSE),\"\")","v":""},{"$f":"IFERROR(VLOOKUP(AE1,'Paramétrage des points'!$A:$C,3,FALSE),\"\")","v":""}]
["réf points",{"$f":"Parametres!$G$5&Juges!B21","v":"N"},{"$f":"Parametres!$G$5&Juges!C21","v":"N"},{"$f":"Parametres!$G$5&Juges!D21","v":"N"},{"$f":"Parametres!$G$5&Juges!E21","v":"N"},{"$f":"Parametres!$G$5&Juges!F21","v":"N"},{"$f":"Parametres!$G$5&Juges!G21","v":"NCUF"},{"$f":"Parametres!$G$5&Juges!H21","v":"NC"},{"$f":"Parametres!$G$5&Juges!I21","v":"N"},{"$f":"Parametres!$G$5&Juges!J21","v":"N"},{"$f":"Parametres!$G$5&Juges!K21","v":"N"},{"$f":"Parametres!$G$5&Juges!L21","v":"N"},{"$f":"Parametres!$G$5&Juges!M21","v":"N"},{"$f":"Parametres!$G$5&Juges!N21","v":"N"},{"$f":"Parametres!$G$5&Juges!O21","v":"N"},{"$f":"Parametres!$G$5&Juges!P21","v":"N"},{"$f":"Parametres!$G$5&Juges!Q21","v":"N"},{"$f":"Parametres!$G$5&Juges!R21","v":"N"},{"$f":"Parametres!$G$5&Juges!S21","v":"N"},{"$f":"Parametres!$G$5&Juges!T21","v":"N"},{"$f":"Parametres!$G$5&Juges!U21","v":"N"},{"$f":"Parametres!$G$5&Juges!V21","v":"N"},{"$f":"Parametres!$G$5&Juges!W21","v":"N"},{"$f":"Parametres!$G$5&Juges!X21","v":"N"},{"$f":"Parametres!$G$5&Juges!Y21","v":"N"},{"$f":"Parametres!$G$5&Juges!Z21","v":"N"},{"$f":"Parametres!$G$5&Juges!AA21","v":"N"},{"$f":"Parametres!$G$5&Juges!AB21","v":"N"},{"$f":"Parametres!$G$5&Juges!AC21","v":"N"},{"$f":"Parametres!$G$5&Juges!AD21","v":"N"},{"$f":"Parametres!$G$5&Juges!AE21","v":"N"}]

{"sheet":"Clubs","index":4,"n_rows":82,"n_cols":3,"rows_kept":82,"cut":false,"hidden":false,"merged":[]}
["CLUBS","COMITES","ZONES"]
["AS FOURCHAMBAULT","BOURGOGNE",{"$f":"IFERROR(VLOOKUP(B2,Comités!A:C,3,FALSE),\"\")","v":"ZONE NORD EST"}]
["CH LUNEVILLE","LORRAINE ",{"$f":"IFERROR(VLOOKUP(B3,Comités!A:C,3,FALSE),\"\")","v":"ZONE NORD EST"}]
["CSAG MOURMELON","CHAMPAGNE ARDENNES",{"$f":"IFERROR(VLOOKUP(B4,Comités!A:C,3,FALSE),\"\")","v":"ZONE NORD EST"}]
["PSA ACC CHARLEVILLE MEZIERES","CHAMPAGNE ARDENNES",{"$f":"IFERROR(VLOOKUP(B5,Comités!A:C,3,FALSE),\"\")","v":"ZONE NORD EST"}]
["ACH FONTENAY","ILE DE FRANCE",{"$f":"IFERROR(VLOOKUP(B6,Comités!A:C,3,FALSE),\"\")","v":"ZONE NORD B"}]
["AFHMA FRANCONVILLE","ILE DE FRANCE",{"$f":"IFERROR(VLOOKUP(B7,Comités!A:C,3,FALSE),\"\")","v":"ZONE NORD B"}]
["AGOS INRIA","ILE DE FRANCE",{"$f":"IFERROR(VLOOKUP(B8,Comités!A:C,3,FALSE),\"\")","v":"ZONE NORD B"}]
["APOLLO CLUB TREMBLAY","ILE DE FRANCE",{"$f":"IFERROR(VLOOKUP(B9,Comités!A:C,3,FALSE),\"\")","v":"ZONE NORD B"}]
["ASCAP - POISSY","ILE DE FRANCE",{"$f":"IFERROR(VLOOKUP(B10,Comités!A:C,3,FALSE),\"\")","v":"ZONE NORD B"}]
["ASHC VILLIERS LE BEL","ILE DE FRANCE",{"$f":"IFERROR(VLOOKUP(B11,Comités!A:C,3,FALSE),\"\")","v":"ZONE NORD B"}]
["ATHLETIQUE DE SAINT PRIX","ILE DE FRANCE",{"$f":"IFERROR(VLOOKUP(B12,Comités!A:C,3,FALSE),\"\")","v":"ZONE NORD B"}]
["AVENIR DE SURVILLIERS","ILE DE FRANCE",{"$f":"IFERROR(VLOOKUP(B13,Comités!A:C,3,FALSE),\"\")","v":"ZONE NORD B"}]
["BODY GYM PERSEVERANCE","ILE DE FRANCE",{"$f":"IFERROR(VLOOKUP(B14,Comités!A:C,3,FALSE),\"\")","v":"ZONE NORD B"}]
["CERCLE ATHLETIQUE PARIS 10","ILE DE FRANCE",{"$f":"IFERROR(VLOOKUP(B15,Comités!A:C,3,FALSE),\"\")","v":"ZONE NORD B"}]
["CFD MANTES LA VILLE","ILE DE FRANCE",{"$f":"IFERROR(VLOOKUP(B16,Comités!A:C,3,FALSE),\"\")","v":"ZONE NORD B"}]
["CHC PONTOISE","ILE DE FRANCE",{"$f":"IFERROR(VLOOKUP(B17,Comités!A:C,3,FALSE),\"\")","v":"ZONE NORD B"}]
["ES MASSY","ILE DE FRANCE",{"$f":"IFERROR(VLOOKUP(B18,Comités!A:C,3,FALSE),\"\")","v":"ZONE NORD B"}]
["EVA FITNESS EMERAINVILLE","ILE DE FRANCE",{"$f":"IFERROR(VLOOKUP(B19,Comités!A:C,3,FALSE),\"\")","v":"ZONE NORD B"}]
["FORCE ATHLETIQUE LONGJUMEAU","ILE DE FRANCE",{"$f":"IFERROR(VLOOKUP(B20,Comités!A:C,3,FALSE),\"\")","v":"ZONE NORD B"}]
["LINAS CLUB MUSCULATION","ILE DE FRANCE",{"$f":"IFERROR(VLOOKUP(B21,Comités!A:C,3,FALSE),\"\")","v":"ZONE NORD B"}]
["MUSCULATION VINCENNES CLUB","ILE DE FRANCE",{"$f":"IFERROR(VLOOKUP(B22,Comités!A:C,3,FALSE),\"\")","v":"ZONE NORD B"}]
["POWER CLUB DE FAREMOUTIERS","ILE DE FRANCE",{"$f":"IFERROR(VLOOKUP(B23,Comités!A:C,3,FALSE),\"\")","v":"ZONE NORD B"}]
["SA MONTMARTROISE","ILE DE FRANCE",{"$f":"IFERROR(VLOOKUP(B24,Comités!A:C,3,FALSE),\"\")","v":"ZONE NORD B"}]
["US CHAMPAGNE HM","ILE DE FRANCE",{"$f":"IFERROR(VLOOKUP(B25,Comités!A:C,3,FALSE),\"\")","v":"ZONE NORD B"}]
["US GRIGNY","ILE DE FRANCE",{"$f":"IFERROR(VLOOKUP(B26,Comités!A:C,3,FALSE),\"\")","v":"ZONE NORD B"}]
["US METRO PARIS","ILE DE FRANCE",{"$f":"IFERROR(VLOOKUP(B27,Comités!A:C,3,FALSE),\"\")","v":"ZONE NORD B"}]
["VAIRES DYNAMIC CLUB","ILE DE FRANCE",{"$f":"IFERROR(VLOOKUP(B28,Comités!A:C,3,FALSE),\"\")","v":"ZONE NORD B"}]
["VELIZY MUSCULATION","ILE DE FRANCE",{"$f":"IFERROR(VLOOKUP(B29,Comités!A:C,3,FALSE),\"\")","v":"ZONE NORD B"}]
["ASC MUSCLE GYM SOISSONS","PICARDIE",{"$f":"IFERROR(VLOOKUP(B30,Comités!A:C,3,FALSE),\"\")","v":"ZONE NORD A"}]
["CA LENSOIS","NORD PAS DE CALAIS",{"$f":"IFERROR(VLOOKUP(B31,Comités!A:C,3,FALSE),\"\")","v":"ZONE NORD A"}]
["CHFM ROISEL","PICARDIE",{"$f":"IFERROR(VLOOKUP(B32,Comités!A:C,3,FALSE),\"\")","v":"ZONE NORD A"}]
["CHRIS FITNESS THIBOUVILLE","HAUTE NORMANDIE",{"$f":"IFERROR(VLOOKUP(B33,Comités!A:C,3,FALSE),\"\")","v":"ZONE NORD A"}]
["CP MEDIOLANAISE","NORD PAS DE CALAIS",{"$f":"IFERROR(VLOOKUP(B34,Comités!A:C,3,FALSE),\"\")","v":"ZONE NORD A"}]
["EC FOURMISIENNE","NORD PAS DE CALAIS",{"$f":"IFERROR(VLOOKUP(B35,Comités!A:C,3,FALSE),\"\")","v":"ZONE NORD A"}]
["FIT BODY HOUDINOIS","NORD PAS DE CALAIS",{"$f":"IFERROR(VLOOKUP(B36,Comités!A:C,3,FALSE),\"\")","v":"ZONE NORD A"}]
["GS SENLIS","PICARDIE",{"$f":"IFERROR(VLOOKUP(B37,Comités!A:C,3,FALSE),\"\")","v":"ZONE NORD A"}]
["HC BEAUVAIS","PICARDIE",{"$f":"IFERROR(VLOOKUP(B38,Comités!A:C,3,FALSE),\"\")","v":"ZONE NORD A"}]
["MC FORM AUDRUICQ","NORD PAS DE CALAIS",{"$f":"IFERROR(VLOOKUP(B39,Comités!A:C,3,FALSE),\"\")","v":"ZONE NORD A"}]
["MH CLERMONTOIS","PICARDIE",{"$f":"IFERROR(VLOOKUP(B40,Comités!A:C,3,FALSE),\"\")","v":"ZONE NORD A"}]
["MUSCULATION HAUBOURDINOISE","NORD PAS DE CALAIS",{"$f":"IFERROR(VLOOKUP(B41,Comités!A:C,3,FALSE),\"\")","v":"ZONE NORD A"}]
["TOP FORME DOMART EN PONTHIEU","PICARDIE",{"$f":"IFERROR(VLOOKUP(B42,Comités!A:C,3,FALSE),\"\")","v":"ZONE NORD A"}]
["ACADEMIE CLUB LUCON","PAYS DE LOIRE",{"$f":"IFERROR(VLOOKUP(B43,Comités!A:C,3,FALSE),\"\")","v":"ZONE CENTRE OUEST"}]
["BBF ALLONES","PAYS DE LOIRE",{"$f":"IFERROR(VLOOKUP(B44,Comités!A:C,3,FALSE),\"\")","v":"ZONE CENTRE OUEST"}]
["CMF LOCMINE","BRETAGNE",{"$f":"IFERROR(VLOOKUP(B45,Comités!A:C,3,FALSE),\"\")","v":"ZONE CENTRE OUEST"}]
[null,null,{"$f":"IFERROR(VLOOKUP(B46,Comités!A:C,3,FALSE),\"\")","v":""}]
[null,null,{"$f":"IFERROR(VLOOKUP(B47,Comités!A:C,3,FALSE),\"\")","v":""}]
[null,null,{"$f":"IFERROR(VLOOKUP(B48,Comités!A:C,3,FALSE),\"\")","v":""}]
[null,null,{"$f":"IFERROR(VLOOKUP(B49,Comités!A:C,3,FALSE),\"\")","v":""}]
[null,null,{"$f":"IFERROR(VLOOKUP(B50,Comités!A:C,3,FALSE),\"\")","v":""}]
[null,null,{"$f":"IFERROR(VLOOKUP(B51,Comités!A:C,3,FALSE),\"\")","v":""}]
[null,null,{"$f":"IFERROR(VLOOKUP(B52,Comités!A:C,3,FALSE),\"\")","v":""}]
[null,null,{"$f":"IFERROR(VLOOKUP(B53,Comités!A:C,3,FALSE),\"\")","v":""}]
[null,null,{"$f":"IFERROR(VLOOKUP(B54,Comités!A:C,3,FALSE),\"\")","v":""}]
[null,null,{"$f":"IFERROR(VLOOKUP(B55,Comités!A:C,3,FALSE),\"\")","v":""}]
[null,null,{"$f":"IFERROR(VLOOKUP(B56,Comités!A:C,3,FALSE),\"\")","v":""}]
[null,null,{"$f":"IFERROR(VLOOKUP(B57,Comités!A:C,3,FALSE),\"\")","v":""}]
[null,null,{"$f":"IFERROR(VLOOKUP(B58,Comités!A:C,3,FALSE),\"\")","v":""}]
[null,null,{"$f":"IFERROR(VLOOKUP(B59,Comités!A:C,3,FALSE),\"\")","v":""}]
[null,null,{"$f":"IFERROR(VLOOKUP(B60,Comités!A:C,3,FALSE),\"\")","v":""}]
[null,null,{"$f":"IFERROR(VLOOKUP(B61,Comités!A:C,3,FALSE),\"\")","v":""}]
[null,null,{"$f":"IFERROR(VLOOKUP(B62,Comités!A:C,3,FALSE),\"\")","v":""}]
[null,null,{"$f":"IFERROR(VLOOKUP(B63,Comités!A:C,3,FALSE),\"\")","v":""}]
[null,null,{"$f":"IFERROR(VLOOKUP(B64,Comités!A:C,3,FALSE),\"\")","v":""}]
[null,null,{"$f":"IFERROR(VLOOKUP(B65,Comités!A:C,3,FALSE),\"\")","v":""}]
[null,null,{"$f":"IFERROR(VLOOKUP(B66,Comités!A:C,3,FALSE),\"\")","v":""}]
[null,null,{"$f":"IFERROR(VLOOKUP(B67,Comités!A:C,3,FALSE),\"\")","v":""}]
[null,null,{"$f":"IFERROR(VLOOKUP(B68,Comités!A:C,3,FALSE),\"\")","v":""}]
[null,null,{"$f":"IFERROR(VLOOKUP(B69,Comités!A:C,3,FALSE),\"\")","v":""}]
[null,null,{"$f":"IFERROR(VLOOKUP(B70,Comités!A:C,3,FALSE),\"\")","v":""}]
[null,null,{"$f":"IFERROR(VLOOKUP(B71,Comités!A:C,3,FALSE),\"\")","v":""}]
[null,null,{"$f":"IFERROR(VLOOKUP(B72,Comités!A:C,3,FALSE),\"\")","v":""}]
[null,null,{"$f":"IFERROR(VLOOKUP(B73,Comités!A:C,3,FALSE),\"\")","v":""}]
[null,null,{"$f":"IFERROR(VLOOKUP(B74,Comités!A:C,3,FALSE),\"\")","v":""}]
[null,null,{"$f":"IFERROR(VLOOKUP(B75,Comités!A:C,3,FALSE),\"\")","v":""}]
[null,null,{"$f":"IFERROR(VLOOKUP(B76,Comités!A:C,3,FALSE),\"\")","v":""}]
[null,null,{"$f":"IFERROR(VLOOKUP(B77,Comités!A:C,3,FALSE),\"\")","v":""}]
[null,null,{"$f":"IFERROR(VLOOKUP(B78,Comités!A:C,3,FALSE),\"\")","v":""}]
[null,null,{"$f":"IFERROR(VLOOKUP(B79,Comités!A:C,3,FALSE),\"\")","v":""}]
[null,null,{"$f":"IFERROR(VLOOKUP(B80,Comités!A:C,3,FALSE),\"\")","v":""}]
[null,null,{"$f":"IFERROR(VLOOKUP(B81,Comités!A:C,3,FALSE),\"\")","v":""}]
[null,null,{"$f":"IFERROR(VLOOKUP(B82,Comités!A:C,3,FALSE),\"\")","v":""}]

{"sheet":"BASE","index":5,"n_rows":201,"n_cols":22,"rows_kept":201,"cut":false,"hidden":false,"merged":[]}
["NOM","PRENOM","H/F","Nationalité","DATE-NAISSANCE","ÂGE (ANS)","ÂGE (J)","Année de naissance","N° LICENCE","CLUB","COMITE","TAILLE","POIDS","CATEGORIE normale","CATEGORIE","N° DOSSARD","PLACE","POINTS"]
["MONCOURTOIS","CHRISTELLE","F",null,"1960-11-20",{"$f":"IF(ISBLANK(A2),\"\",DATEDIF(E2,saison,\"y\"))","v":51},{"$f":"IF(ISBLANK($A2),\"\",IF(ISERROR(DATEDIF($E2,saison,\"yd\")),\"\",(DATEDIF($E2,saison,\"yd\"))))","v":285},null,141090,"ASC MUSCLE GYM SOISSONS",{"$f":"IF(A2=\"\",\"\",VLOOKUP(J2,Clubs!A:B,2,FALSE))","v":"PICARDIE"},null,52.5,{"$f":"IF(F2=\"\",\"\",IF(F2<16,\"ERREUR\",IF(AND(F2<18,C2=\"F\"),\"CF\",IF(F2<21,\"JUNIOR\", IF(F2<23,IF(C2=\"F\",\"SENIOR\",\"ESPOIR\"),IF(F2<40,\"SENIOR\",IF(C2=\"F\",\"VETERAN\",IF(F2<50,\"VET1\",IF(F2<60,\"VET2\",\"VET3\")))))))))","v":"VETERAN"},"Couples",1,{"$f":"IFERROR(VLOOKUP((S2&O2),'Résultat final'!A:B,2,FALSE),\"\")","v":1},{"$f":"SUM(U2:V2)","v":0},{"$f":"A2&\"  \"&B2","v":"MONCOURTOIS  CHRISTELLE"},{"$f":"IFERROR(HLOOKUP(O2,Juges!$1:$22,22,FALSE),\"\")","v":"NC"},{"$f":"+IF(OR(LEFT($T2,1)=\"I\",LEFT($T2,1)=\"R\"),VLOOKUP($T2,'Paramétrage des points'!$U:$V,2,FALSE),0)","v":0},{"$f":"IF(ISBLANK(P2),0,IFERROR(VLOOKUP(P2,'Résultat final'!D:L,9,FALSE),0))","v":0}]
["FOURNIER","SYLVIE","F",null,"1960-11-20",51,{"$f":"IF(ISBLANK($A3),\"\",IF(ISERROR(DATEDIF($E3,saison,\"yd\")),\"\",(DATEDIF($E3,saison,\"yd\"))))","v":285},null,221849,"MUSCULATION HAUBOURDINOISE",{"$f":"IF(A3=\"\",\"\",VLOOKUP(J3,Clubs!A:B,2,FALSE))","v":"NORD PAS DE CALAIS"},null,59.1,"VETERAN","FV",20,{"$f":"IFERROR(VLOOKUP((S3&O3),'Résultat final'!A:B,2,FALSE),\"\")","v":2},0,"FOURNIER  SYLVIE",{"$f":"IFERROR(HLOOKUP(O3,Juges!$1:$22,22,FALSE),\"\")","v":"N"},{"$f":"+IF(OR(LEFT($T3,1)=\"I\",LEFT($T3,1)=\"R\"),VLOOKUP($T3,'Paramétrage des points'!$U:$V,2,FALSE),0)","v":0},{"$f":"IF(ISBLANK(P3),0,IFERROR(VLOOKUP(P3,'Résultat final'!D:L,9,FALSE),0))","v":0}]
["OUSFANE","MOHAMED","F",null,"1963-06-01",49,{"$f":"IF(ISBLANK(A4),\"\",IF(ISERROR(DATEDIF(E4,saison,\"y\")),\"\",(DATEDIF(E4,saison,\"y\"))))","v":49},null,292237,"PSA ACC CHARLEVILLE MEZIERES",{"$f":"IF(A4=\"\",\"\",VLOOKUP(J4,Clubs!A:B,2,FALSE))","v":"CHAMPAGNE ARDENNES"},null,72,"VETERAN","CULTURIS FORM",27,{"$f":"IFERROR(VLOOKUP((S4&O4),'Résultat final'!A:B,2,FALSE),\"\")","v":6},0,"OUSFANE  MOHAMED",{"$f":"IFERROR(HLOOKUP(O4,Juges!$1:$22,22,FALSE),\"\")","v":"NCUF"},{"$f":"+IF(OR(LEFT($T4,1)=\"I\",LEFT($T4,1)=\"R\"),VLOOKUP($T4,'Paramétrage des points'!$U:$V,2,FALSE),0)","v":0},{"$f":"IF(ISBLANK(P4),0,IFERROR(VLOOKUP(P4,'Résultat final'!D:L,9,FALSE),0))","v":0}]
["BRONGNIART","SEBASTIEN","H",null,"1983-03-01",29,{"$f":"DATEDIF(E5,saison,\"yd\")","v":184},null,311318,"FIT BODY HOUDINOIS",{"$f":"IF(A5=\"\",\"\",VLOOKUP(J5,Clubs!A:B,2,FALSE))","v":"NORD PAS DE CALAIS"},null,85,"SENIOR",null,55,{"$f":"IFERROR(VLOOKUP((S5&O5),'Résultat final'!A:B,2,FALSE),\"\")","v":""},0,"BRONGNIART  SEBASTIEN",{"$f":"IFERROR(HLOOKUP(O5,Juges!$1:$22,22,FALSE),\"\")","v":""},{"$f":"+IF(OR(LEFT($T5,1)=\"I\",LEFT($T5,1)=\"R\"),VLOOKUP($T5,'Paramétrage des points'!$U:$V,2,FALSE),0)","v":0},{"$f":"IF(ISBLANK(P5),0,IFERROR(VLOOKUP(P5,'Résultat final'!D:L,9,FALSE),0))","v":0}]
["MIAN","Léonard","H",null,"1967-02-09",45,{"$f":"IF(ISBLANK(A6),\"\",IF(ISERROR(DATEDIF(E6,saison,\"y\")),\"\",(DATEDIF(E6,saison,\"y\"))))","v":45},null,154855,"EVA FITNESS EMERAINVILLE",{"$f":"IF(A6=\"\",\"\",VLOOKUP(J6,Clubs!A:B,2,FALSE))","v":"ILE DE FRANCE"},null,85,"VET1",null,32,{"$f":"IFERROR(VLOOKUP((S6&O6),'Résultat final'!A:B,2,FALSE),\"\")","v":""},0,"MIAN  Léonard",{"$f":"IFERROR(HLOOKUP(O6,Juges!$1:$22,22,FALSE),\"\")","v":""},{"$f":"+IF(OR(LEFT($T6,1)=\"I\",LEFT($T6,1)=\"R\"),VLOOKUP($T6,'Paramétrage des points'!$U:$V,2,FALSE),0)","v":0},{"$f":"IF(ISBLANK(P6),0,IFERROR(VLOOKUP(P6,'Résultat final'!D:L,9,FALSE),0))","v":0}]
["SIANGA-EYAP","Janvier","H",null,"1977-01-15",35,{"$f":"IF(ISBLANK(A7),\"\",IF(ISERROR(DATEDIF(E7,saison,\"y\")),\"\",(DATEDIF(E7,saison,\"y\"))))","v":35},null,268322,"ASCAP - POISSY",{"$f":"IF(A7=\"\",\"\",VLOOKUP(J7,Clubs!A:B,2,FALSE))","v":"ILE DE FRANCE"},null,"113.70","SENIOR",null,62,{"$f":"IFERROR(VLOOKUP((S7&O7),'Résultat final'!A:B,2,FALSE),\"\")","v":""},0,"SIANGA-EYAP  Janvier",{"$f":"IFERROR(HLOOKUP(O7,Juges!$1:$22,22,FALSE),\"\")","v":""},{"$f":"+IF(OR(LEFT($T7,1)=\"I\",LEFT($T7,1)=\"R\"),VLOOKUP($T7,'Paramétrage des points'!$U:$V,2,FALSE),0)","v":0},{"$f":"IF(ISBLANK(P7),0,IFERROR(VLOOKUP(P7,'Résultat final'!D:L,9,FALSE),0))","v":0}]
["DURET","Céline","F",null,"1980-02-22",32,{"$f":"IF(ISBLANK(A8),\"\",IF(ISERROR(DATEDIF(E8,saison,\"y\")),\"\",(DATEDIF(E8,saison,\"y\"))))","v":32},null,317004,"EVA FITNESS EMERAINVILLE",{"$f":"IF(A8=\"\",\"\",VLOOKUP(J8,Clubs!A:B,2,FALSE))","v":"ILE DE FRANCE"},null,"46.55","SENIOR",null,49,{"$f":"IFERROR(VLOOKUP((S8&O8),'Résultat final'!A:B,2,FALSE),\"\")","v":""},0,"DURET  Céline",{"$f":"IFERROR(HLOOKUP(O8,Juges!$1:$22,22,FALSE),\"\")","v":""},{"$f":"+IF(OR(LEFT($T8,1)=\"I\",LEFT($T8,1)=\"R\"),VLOOKUP($T8,'Paramétrage des points'!$U:$V,2,FALSE),0)","v":0},{"$f":"IF(ISBLANK(P8),0,IFERROR(VLOOKUP(P8,'Résultat final'!D:L,9,FALSE),0))","v":0}]
["MONCOURTOIS","CHRISTELLE","F",null,"1960-11-20",51,{"$f":"IF(ISBLANK($A9),\"\",IF(ISERROR(DATEDIF($E9,saison,\"yd\")),\"\",(DATEDIF($E9,saison,\"yd\"))))","v":285},null,141090,"ASC MUSCLE GYM SOISSONS",{"$f":"IF(A9=\"\",\"\",VLOOKUP(J9,Clubs!A:B,2,FALSE))","v":"PICARDIE"},null,"51.80","VETERAN","FV",33,{"$f":"IFERROR(VLOOKUP((S9&O9),'Résultat final'!A:B,2,FALSE),\"\")","v":5},0,"MONCOURTOIS  CHRISTELLE",{"$f":"IFERROR(HLOOKUP(O9,Juges!$1:$22,22,FALSE),\"\")","v":"N"},{"$f":"+IF(OR(LEFT($T9,1)=\"I\",LEFT($T9,1)=\"R\"),VLOOKUP($T9,'Paramétrage des points'!$U:$V,2,FALSE),0)","v":0},{"$f":"IF(ISBLANK(P9),0,IFERROR(VLOOKUP(P9,'Résultat final'!D:L,9,FALSE),0))","v":0}]
["HECTOR","LAURENCE","H",null,"1988-11-20",23,285,null,241883,"CP MEDIOLANAISE",{"$f":"IF(A10=\"\",\"\",VLOOKUP(J10,Clubs!A:B,2,FALSE))","v":"NORD PAS DE CALAIS"},null,"55.55","SENIOR","C2",16,{"$f":"IFERROR(VLOOKUP((S10&O10),'Résultat final'!A:B,2,FALSE),\"\")","v":""},0,"HECTOR  LAURENCE",{"$f":"IFERROR(HLOOKUP(O10,Juges!$1:$22,22,FALSE),\"\")","v":"N"},{"$f":"+IF(OR(LEFT($T10,1)=\"I\",LEFT($T10,1)=\"R\"),VLOOKUP($T10,'Paramétrage des points'!$U:$V,2,FALSE),0)","v":0},{"$f":"IF(ISBLANK(P10),0,IFERROR(VLOOKUP(P10,'Résultat final'!D:L,9,FALSE),0))","v":0}]
["RYCKEBUSCH","SOPHIE","H",null,"1989-09-01",23,0,null,311317,"FIT BODY HOUDINOIS",{"$f":"IF(A11=\"\",\"\",VLOOKUP(J11,Clubs!A:B,2,FALSE))","v":"NORD PAS DE CALAIS"},null,"55.55","SENIOR","C2",28,{"$f":"IFERROR(VLOOKUP((S11&O11),'Résultat final'!A:B,2,FALSE),\"\")","v":""},0,"RYCKEBUSCH  SOPHIE",{"$f":"IFERROR(HLOOKUP(O11,Juges!$1:$22,22,FALSE),\"\")","v":"N"},{"$f":"+IF(OR(LEFT($T11,1)=\"I\",LEFT($T11,1)=\"R\"),VLOOKUP($T11,'Paramétrage des points'!$U:$V,2,FALSE),0)","v":0},{"$f":"IF(ISBLANK(P11),0,IFERROR(VLOOKUP(P11,'Résultat final'!D:L,9,FALSE),0))","v":0}]
["MONTFLOR","Liliane","F",null,"1989-09-02",22,364,null,210098,"EVA FITNESS EMERAINVILLE",{"$f":"IF(A12=\"\",\"\",VLOOKUP(J12,Clubs!A:B,2,FALSE))","v":"ILE DE FRANCE"},null,"57.60","SENIOR","C2",66,{"$f":"IFERROR(VLOOKUP((S12&O12),'Résultat final'!A:B,2,FALSE),\"\")","v":""},0,"MONTFLOR  Liliane",{"$f":"IFERROR(HLOOKUP(O12,Juges!$1:$22,22,FALSE),\"\")","v":"N"},{"$f":"+IF(OR(LEFT($T12,1)=\"I\",LEFT($T12,1)=\"R\"),VLOOKUP($T12,'Paramétrage des points'!$U:$V,2,FALSE),0)","v":0},{"$f":"IF(ISBLANK(P12),0,IFERROR(VLOOKUP(P12,'Résultat final'!D:L,9,FALSE),0))","v":0}]
["STEPANOVA","IRYNA","F",null,"1991-06-22",21,71,null,304082,"MUSCULATION HAUBOURDINOISE",{"$f":"IF(A13=\"\",\"\",VLOOKUP(J13,Clubs!A:B,2,FALSE))","v":"NORD PAS DE CALAIS"},null,"62.50","SENIOR","C2",63,{"$f":"IFERROR(VLOOKUP((S13&O13),'Résultat final'!A:B,2,FALSE),\"\")","v":""},0,"STEPANOVA  IRYNA",{"$f":"IFERROR(HLOOKUP(O13,Juges!$1:$22,22,FALSE),\"\")","v":"N"},{"$f":"+IF(OR(LEFT($T13,1)=\"I\",LEFT($T13,1)=\"R\"),VLOOKUP($T13,'Paramétrage des points'!$U:$V,2,FALSE),0)","v":0},{"$f":"IF(ISBLANK(P13),0,IFERROR(VLOOKUP(P13,'Résultat final'!D:L,9,FALSE),0))","v":0}]
["DOYER","LUDOVIC","H",null,"1988-09-03",23,363,null,121919,"MC FORM AUDRUICQ",{"$f":"IF(A14=\"\",\"\",VLOOKUP(J14,Clubs!A:B,2,FALSE))","v":"NORD PAS DE CALAIS"},null,"63.30","SENIOR","C3",34,{"$f":"IFERROR(VLOOKUP((S14&O14),'Résultat final'!A:B,2,FALSE),\"\")","v":6},0,"DOYER  LUDOVIC",{"$f":"IFERROR(HLOOKUP(O14,Juges!$1:$22,22,FALSE),\"\")","v":"N"},{"$f":"+IF(OR(LEFT($T14,1)=\"I\",LEFT($T14,1)=\"R\"),VLOOKUP($T14,'Paramétrage des points'!$U:$V,2,FALSE),0)","v":0},{"$f":"IF(ISBLANK(P14),0,IFERROR(VLOOKUP(P14,'Résultat final'!D:L,9,FALSE),0))","v":0}]
["BUCHIN ","Franck","H",null,"1988-08-31",24,1,null,211042,"ACH FONTENAY",{"$f":"IF(A15=\"\",\"\",VLOOKUP(J15,Clubs!A:B,2,FALSE))","v":"ILE DE FRANCE"},null,"63.65 ","SENIOR","C3",56,{"$f":"IFERROR(VLOOKUP((S15&O15),'Résultat final'!A:B,2,FALSE),\"\")","v":3},0,"BUCHIN   Franck",{"$f":"IFERROR(HLOOKUP(O15,Juges!$1:$22,22,FALSE),\"\")","v":"N"},{"$f":"+IF(OR(LEFT($T15,1)=\"I\",LEFT($T15,1)=\"R\"),VLOOKUP($T15,'Paramétrage des points'!$U:$V,2,FALSE),0)","v":0},{"$f":"IF(ISBLANK(P15),0,IFERROR(VLOOKUP(P15,'Résultat final'!D:L,9,FALSE),0))","v":0}]
["MUNIER","CORINNE","F",null,"1987-11-20",24,286,null,301962,"MUSCULATION HAUBOURDINOISE",{"$f":"IF(A16=\"\",\"\",VLOOKUP(J16,Clubs!A:B,2,FALSE))","v":"NORD PAS DE CALAIS"},null,"64.15","SENIOR","C2",17,{"$f":"IFERROR(VLOOKUP((S16&O16),'Résultat final'!A:B,2,FALSE),\"\")","v":""},0,"MUNIER  CORINNE",{"$f":"IFERROR(HLOOKUP(O16,Juges!$1:$22,22,FALSE),\"\")","v":"N"},{"$f":"+IF(OR(LEFT($T16,1)=\"I\",LEFT($T16,1)=\"R\"),VLOOKUP($T16,'Paramétrage des points'!$U:$V,2,FALSE),0)","v":0},{"$f":"IF(ISBLANK(P16),0,IFERROR(VLOOKUP(P16,'Résultat final'!D:L,9,FALSE),0))","v":0}]
["VACTER","Christophe","F",null,"1970-11-18",41,{"$f":"IF(ISBLANK(A17),\"\",IF(ISERROR(DATEDIF(E17,saison,\"y\")),\"\",(DATEDIF(E17,saison,\"y\"))))","v":41},null,318727,"CSAG MOURMELON",{"$f":"IF(A17=\"\",\"\",VLOOKUP(J17,Clubs!A:B,2,FALSE))","v":"CHAMPAGNE ARDENNES"},null,"64.30","VETERAN","CULTURIS FORM",50,{"$f":"IFERROR(VLOOKUP((S17&O17),'Résultat final'!A:B,2,FALSE),\"\")","v":5},0,"VACTER  Christophe",{"$f":"IFERROR(HLOOKUP(O17,Juges!$1:$22,22,FALSE),\"\")","v":"NCUF"},{"$f":"+IF(OR(LEFT($T17,1)=\"I\",LEFT($T17,1)=\"R\"),VLOOKUP($T17,'Paramétrage des points'!$U:$V,2,FALSE),0)","v":0},{"$f":"IF(ISBLANK(P17),0,IFERROR(VLOOKUP(P17,'Résultat final'!D:L,9,FALSE),0))","v":0}]
["MANGOLD","NICOLAS","H",null,"1988-11-26",23,{"$f":"IF(ISBLANK($A18),\"\",IF(ISERROR(DATEDIF($E18,saison,\"yd\")),\"\",(DATEDIF($E18,saison,\"yd\"))))","v":279},null,306829,"CHRIS FITNESS THIBOUVILLE",{"$f":"IF(A18=\"\",\"\",VLOOKUP(J18,Clubs!A:B,2,FALSE))","v":"HAUTE NORMANDIE"},null,"64.45","SENIOR","C1",35,{"$f":"IFERROR(VLOOKUP((S18&O18),'Résultat final'!A:B,2,FALSE),\"\")","v":""},0,"MANGOLD  NICOLAS",{"$f":"IFERROR(HLOOKUP(O18,Juges!$1:$22,22,FALSE),\"\")","v":"N"},{"$f":"+IF(OR(LEFT($T18,1)=\"I\",LEFT($T18,1)=\"R\"),VLOOKUP($T18,'Paramétrage des points'!$U:$V,2,FALSE),0)","v":0},{"$f":"IF(ISBLANK(P18),0,IFERROR(VLOOKUP(P18,'Résultat final'!D:L,9,FALSE),0))","v":0}]
["DJEFAL","karim","H",null,"1988-09-02",23,{"$f":"IF(ISBLANK($A19),\"\",IF(ISERROR(DATEDIF($E19,saison,\"yd\")),\"\",(DATEDIF($E19,saison,\"yd\"))))","v":364},null,208754,"CA LENSOIS",{"$f":"IF(A19=\"\",\"\",VLOOKUP(J19,Clubs!A:B,2,FALSE))","v":"NORD PAS DE CALAIS"},null,"64.65","SENIOR","C3",57,{"$f":"IFERROR(VLOOKUP((S19&O19),'Résultat final'!A:B,2,FALSE),\"\")","v":5},0,"DJEFAL  karim",{"$f":"IFERROR(HLOOKUP(O19,Juges!$1:$22,22,FALSE),\"\")","v":"N"},{"$f":"+IF(OR(LEFT($T19,1)=\"I\",LEFT($T19,1)=\"R\"),VLOOKUP($T19,'Paramétrage des points'!$U:$V,2,FALSE),0)","v":0},{"$f":"IF(ISBLANK(P19),0,IFERROR(VLOOKUP(P19,'Résultat final'!D:L,9,FALSE),0))","v":0}]
["HENQUEZ","ROMAIN","H",null,"1990-05-06",22,{"$f":"IF(ISBLANK($A20),\"\",IF(ISERROR(DATEDIF($E20,saison,\"yd\")),\"\",(DATEDIF($E20,saison,\"yd\"))))","v":118},null,316269,"MC FORM AUDRUICQ",{"$f":"IF(A20=\"\",\"\",VLOOKUP(J20,Clubs!A:B,2,FALSE))","v":"NORD PAS DE CALAIS"},null,"64.75","ESPOIR","C1",58,{"$f":"IFERROR(VLOOKUP((S20&O20),'Résultat final'!A:B,2,FALSE),\"\")","v":""},0,"HENQUEZ  ROMAIN",{"$f":"IFERROR(HLOOKUP(O20,Juges!$1:$22,22,FALSE),\"\")","v":"N"},{"$f":"+IF(OR(LEFT($T20,1)=\"I\",LEFT($T20,1)=\"R\"),VLOOKUP($T20,'Paramétrage des points'!$U:$V,2,FALSE),0)","v":0},{"$f":"IF(ISBLANK(P20),0,IFERROR(VLOOKUP(P20,'Résultat final'!D:L,9,FALSE),0))","v":0}]
["COSTE","GEORGES","H",null,"1988-09-01",24,{"$f":"IF(ISBLANK($A21),\"\",IF(ISERROR(DATEDIF($E21,saison,\"yd\")),\"\",(DATEDIF($E21,saison,\"yd\"))))","v":0},null,"O36507","GS SENLIS",{"$f":"IF(A21=\"\",\"\",VLOOKUP(J21,Clubs!A:B,2,FALSE))","v":"PICARDIE"},null,"64.90","SENIOR","C3",36,{"$f":"IFERROR(VLOOKUP((S21&O21),'Résultat final'!A:B,2,FALSE),\"\")","v":4},0,"COSTE  GEORGES",{"$f":"IFERROR(HLOOKUP(O21,Juges!$1:$22,22,FALSE),\"\")","v":"N"},{"$f":"+IF(OR(LEFT($T21,1)=\"I\",LEFT($T21,1)=\"R\"),VLOOKUP($T21,'Paramétrage des points'!$U:$V,2,FALSE),0)","v":0},{"$f":"IF(ISBLANK(P21),0,IFERROR(VLOOKUP(P21,'Résultat final'!D:L,9,FALSE),0))","v":0}]
["QUANTIN","Maximilien","H",null,"1945-07-04",67,{"$f":"DATEDIF(E22,saison,\"yd\")","v":59},null,291647,"FORCE ATHLETIQUE LONGJUMEAU",{"$f":"IF(A22=\"\",\"\",VLOOKUP(J22,Clubs!A:B,2,FALSE))","v":"ILE DE FRANCE"},null,"66.40","VET3","C5",18,{"$f":"IFERROR(VLOOKUP((S22&O22),'Résultat final'!A:B,2,FALSE),\"\")","v":""},0,"QUANTIN  Maximilien",{"$f":"IFERROR(HLOOKUP(O22,Juges!$1:$22,22,FALSE),\"\")","v":"N"},{"$f":"+IF(OR(LEFT($T22,1)=\"I\",LEFT($T22,1)=\"R\"),VLOOKUP($T22,'Paramétrage des points'!$U:$V,2,FALSE),0)","v":0},{"$f":"IF(ISBLANK(P22),0,IFERROR(VLOOKUP(P22,'Résultat final'!D:L,9,FALSE),0))","v":0}]
["LESAGE ","CHRSISTOPHE","H",null,"1945-07-03",67,{"$f":"DATEDIF(E23,saison,\"yd\")","v":60},null,293190,"FIT BODY HOUDINOIS",{"$f":"IF(A23=\"\",\"\",VLOOKUP(J23,Clubs!A:B,2,FALSE))","v":"NORD PAS DE CALAIS"},null,"66.55","VET3","C5",8,{"$f":"IFERROR(VLOOKUP((S23&O23),'Résultat final'!A:B,2,FALSE),\"\")","v":""},0,"LESAGE   CHRSISTOPHE",{"$f":"IFERROR(HLOOKUP(O23,Juges!$1:$22,22,FALSE),\"\")","v":"N"},{"$f":"+IF(OR(LEFT($T23,1)=\"I\",LEFT($T23,1)=\"R\"),VLOOKUP($T23,'Paramétrage des points'!$U:$V,2,FALSE),0)","v":0},{"$f":"IF(ISBLANK(P23),0,IFERROR(VLOOKUP(P23,'Résultat final'!D:L,9,FALSE),0))","v":0}]
["ROCHE ","MATHIEU","H",null,"1991-06-22",21,{"$f":"IF(ISBLANK($A24),\"\",IF(ISERROR(DATEDIF($E24,saison,\"yd\")),\"\",(DATEDIF($E24,saison,\"yd\"))))","v":71},null,318785,"ACADEMIE CLUB LUCON",{"$f":"IF(A24=\"\",\"\",VLOOKUP(J24,Clubs!A:B,2,FALSE))","v":"PAYS DE LOIRE"},null,"67.15","ESPOIR","C3",19,{"$f":"IFERROR(VLOOKUP((S24&O24),'Résultat final'!A:B,2,FALSE),\"\")","v":1},0,"ROCHE   MATHIEU",{"$f":"IFERROR(HLOOKUP(O24,Juges!$1:$22,22,FALSE),\"\")","v":"N"},{"$f":"+IF(OR(LEFT($T24,1)=\"I\",LEFT($T24,1)=\"R\"),VLOOKUP($T24,'Paramétrage des points'!$U:$V,2,FALSE),0)","v":0},{"$f":"IF(ISBLANK(P24),0,IFERROR(VLOOKUP(P24,'Résultat final'!D:L,9,FALSE),0))","v":0}]
["ALNET","Philippe","H",null,"1988-09-04",23,{"$f":"IF(ISBLANK($A25),\"\",IF(ISERROR(DATEDIF($E25,saison,\"yd\")),\"\",(DATEDIF($E25,saison,\"yd\"))))","v":362},null,304564,"VELIZY MUSCULATION",{"$f":"IF(A25=\"\",\"\",VLOOKUP(J25,Clubs!A:B,2,FALSE))","v":"ILE DE FRANCE"},null,"67.55","SENIOR","C3",22,{"$f":"IFERROR(VLOOKUP((S25&O25),'Résultat final'!A:B,2,FALSE),\"\")","v":7},0,"ALNET  Philippe",{"$f":"IFERROR(HLOOKUP(O25,Juges!$1:$22,22,FALSE),\"\")","v":"N"},{"$f":"+IF(OR(LEFT($T25,1)=\"I\",LEFT($T25,1)=\"R\"),VLOOKUP($T25,'Paramétrage des points'!$U:$V,2,FALSE),0)","v":0},{"$f":"IF(ISBLANK(P25),0,IFERROR(VLOOKUP(P25,'Résultat final'!D:L,9,FALSE),0))","v":0}]
["WELTER","Yohan","H",null,"1976-07-01",36,{"$f":"DATEDIF(E26,saison,\"yd\")","v":62},null,270224,"POWER CLUB DE FAREMOUTIERS",{"$f":"IF(A26=\"\",\"\",VLOOKUP(J26,Clubs!A:B,2,FALSE))","v":"ILE DE FRANCE"},null,"68.50","SENIOR","C5",69,{"$f":"IFERROR(VLOOKUP((S26&O26),'Résultat final'!A:B,2,FALSE),\"\")","v":""},0,"WELTER  Yohan",{"$f":"IFERROR(HLOOKUP(O26,Juges!$1:$22,22,FALSE),\"\")","v":"N"},{"$f":"+IF(OR(LEFT($T26,1)=\"I\",LEFT($T26,1)=\"R\"),VLOOKUP($T26,'Paramétrage des points'!$U:$V,2,FALSE),0)","v":0},{"$f":"IF(ISBLANK(P26),0,IFERROR(VLOOKUP(P26,'Résultat final'!D:L,9,FALSE),0))","v":0}]
["LEFEVRE ","DAVID","H",null,"1945-07-02",67,{"$f":"IF(ISBLANK($A27),\"\",IF(ISERROR(DATEDIF($E27,saison,\"yd\")),\"\",(DATEDIF($E27,saison,\"yd\"))))","v":61},null,264910,"MUSCULATION HAUBOURDINOISE",{"$f":"IF(A27=\"\",\"\",VLOOKUP(J27,Clubs!A:B,2,FALSE))","v":"NORD PAS DE CALAIS"},null,"68.55","VET3","C5",41,{"$f":"IFERROR(VLOOKUP((S27&O27),'Résultat final'!A:B,2,FALSE),\"\")","v":""},0,"LEFEVRE   DAVID",{"$f":"IFERROR(HLOOKUP(O27,Juges!$1:$22,22,FALSE),\"\")","v":"N"},{"$f":"+IF(OR(LEFT($T27,1)=\"I\",LEFT($T27,1)=\"R\"),VLOOKUP($T27,'Paramétrage des points'!$U:$V,2,FALSE),0)","v":0},{"$f":"IF(ISBLANK(P27),0,IFERROR(VLOOKUP(P27,'Résultat final'!D:L,9,FALSE),0))","v":0}]
["CANTALOUVE","Christian","H",null,"1952-11-07",59,{"$f":"IF(ISBLANK(A28),\"\",IF(ISERROR(DATEDIF(E28,saison,\"y\")),\"\",(DATEDIF(E28,saison,\"y\"))))","v":59},null,84988,"AGOS INRIA",{"$f":"IF(A28=\"\",\"\",VLOOKUP(J28,Clubs!A:B,2,FALSE))","v":"ILE DE FRANCE"},null,"68.85","VET2",null,23,{"$f":"IFERROR(VLOOKUP((S28&O28),'Résultat final'!A:B,2,FALSE),\"\")","v":""},0,"CANTALOUVE  Christian",{"$f":"IFERROR(HLOOKUP(O28,Juges!$1:$22,22,FALSE),\"\")","v":""},{"$f":"+IF(OR(LEFT($T28,1)=\"I\",LEFT($T28,1)=\"R\"),VLOOKUP($T28,'Paramétrage des points'!$U:$V,2,FALSE),0)","v":0},{"$f":"IF(ISBLANK(P28),0,IFERROR(VLOOKUP(P28,'Résultat final'!D:L,9,FALSE),0))","v":0}]
["NORMAND","OLIVIER","H",null,"1971-02-07",41,{"$f":"IF(ISBLANK(A29),\"\",IF(ISERROR(DATEDIF(E29,saison,\"y\")),\"\",(DATEDIF(E29,saison,\"y\"))))","v":41},null,246360,"TOP FORME DOMART EN PONTHIEU",{"$f":"IF(A29=\"\",\"\",VLOOKUP(J29,Clubs!A:B,2,FALSE))","v":"PICARDIE"},null,"68.90","VET1",null,37,{"$f":"IFERROR(VLOOKUP((S29&O29),'Résultat final'!A:B,2,FALSE),\"\")","v":""},0,"NORMAND  OLIVIER",{"$f":"IFERROR(HLOOKUP(O29,Juges!$1:$22,22,FALSE),\"\")","v":""},{"$f":"+IF(OR(LEFT($T29,1)=\"I\",LEFT($T29,1)=\"R\"),VLOOKUP($T29,'Paramétrage des points'!$U:$V,2,FALSE),0)","v":0},{"$f":"IF(ISBLANK(P29),0,IFERROR(VLOOKUP(P29,'Résultat final'!D:L,9,FALSE),0))","v":0}]
["DUFLY","MATHIEU","H",null,"1983-03-25",29,{"$f":"DATEDIF(E30,saison,\"yd\")","v":160},null,241086,"MH CLERMONTOIS",{"$f":"IF(A30=\"\",\"\",VLOOKUP(J30,Clubs!A:B,2,FALSE))","v":"PICARDIE"},null,"69.15","SENIOR","C5",29,{"$f":"IFERROR(VLOOKUP((S30&O30),'Résultat final'!A:B,2,FALSE),\"\")","v":""},0,"DUFLY  MATHIEU",{"$f":"IFERROR(HLOOKUP(O30,Juges!$1:$22,22,FALSE),\"\")","v":"N"},{"$f":"+IF(OR(LEFT($T30,1)=\"I\",LEFT($T30,1)=\"R\"),VLOOKUP($T30,'Paramétrage des points'!$U:$V,2,FALSE),0)","v":0},{"$f":"IF(ISBLANK(P30),0,IFERROR(VLOOKUP(P30,'Résultat final'!D:L,9,FALSE),0))","v":0}]
["DUROT","OLIVIER","H",null,"1945-07-01",67,{"$f":"IF(ISBLANK($A31),\"\",IF(ISERROR(DATEDIF($E31,saison,\"yd\")),\"\",(DATEDIF($E31,saison,\"yd\"))))","v":62},null,235811,"MUSCULATION HAUBOURDINOISE",{"$f":"IF(A31=\"\",\"\",VLOOKUP(J31,Clubs!A:B,2,FALSE))","v":"NORD PAS DE CALAIS"},null,"69.35","VET3","C5",59,{"$f":"IFERROR(VLOOKUP((S31&O31),'Résultat final'!A:B,2,FALSE),\"\")","v":""},0,"DUROT  OLIVIER",{"$f":"IFERROR(HLOOKUP(O31,Juges!$1:$22,22,FALSE),\"\")","v":"N"},{"$f":"+IF(OR(LEFT($T31,1)=\"I\",LEFT($T31,1)=\"R\"),VLOOKUP($T31,'Paramétrage des points'!$U:$V,2,FALSE),0)","v":0},{"$f":"IF(ISBLANK(P31),0,IFERROR(VLOOKUP(P31,'Résultat final'!D:L,9,FALSE),0))","v":0}]
["LEPRETRE","THIERRY","H",null,"1964-08-23",48,{"$f":"IF(ISBLANK(A32),\"\",IF(ISERROR(DATEDIF(E32,saison,\"y\")),\"\",(DATEDIF(E32,saison,\"y\"))))","v":48},null,235823,"MUSCULATION HAUBOURDINOISE",{"$f":"IF(A32=\"\",\"\",VLOOKUP(J32,Clubs!A:B,2,FALSE))","v":"NORD PAS DE CALAIS"},null,"69.70","VET1",null,64,{"$f":"IFERROR(VLOOKUP((S32&O32),'Résultat final'!A:B,2,FALSE),\"\")","v":""},0,"LEPRETRE  THIERRY",{"$f":"IFERROR(HLOOKUP(O32,Juges!$1:$22,22,FALSE),\"\")","v":""},{"$f":"+IF(OR(LEFT($T32,1)=\"I\",LEFT($T32,1)=\"R\"),VLOOKUP($T32,'Paramétrage des points'!$U:$V,2,FALSE),0)","v":0},{"$f":"IF(ISBLANK(P32),0,IFERROR(VLOOKUP(P32,'Résultat final'!D:L,9,FALSE),0))","v":0}]
["BLANCHART","FREDDY","H",null,"1957-08-19",55,{"$f":"IF(ISBLANK(A33),\"\",IF(ISERROR(DATEDIF(E33,saison,\"y\")),\"\",(DATEDIF(E33,saison,\"y\"))))","v":55},null,191823,"ASC MUSCLE GYM SOISSONS",{"$f":"IF(A33=\"\",\"\",VLOOKUP(J33,Clubs!A:B,2,FALSE))","v":"PICARDIE"},null,"70.45","VET2",null,15,{"$f":"IFERROR(VLOOKUP((S33&O33),'Résultat final'!A:B,2,FALSE),\"\")","v":""},0,"BLANCHART  FREDDY",{"$f":"IFERROR(HLOOKUP(O33,Juges!$1:$22,22,FALSE),\"\")","v":""},{"$f":"+IF(OR(LEFT($T33,1)=\"I\",LEFT($T33,1)=\"R\"),VLOOKUP($T33,'Paramétrage des points'!$U:$V,2,FALSE),0)","v":0},{"$f":"IF(ISBLANK(P33),0,IFERROR(VLOOKUP(P33,'Résultat final'!D:L,9,FALSE),0))","v":0}]
["BLANCHART","FREDDY","H",null,"1957-08-19",{"$f":"IF(ISBLANK(A34),\"\",DATEDIF(E34,saison,\"y\"))","v":55},null,null,191823,"ASC MUSCLE GYM SOISSONS",{"$f":"IF(A34=\"\",\"\",VLOOKUP(J34,Clubs!A:B,2,FALSE))","v":"PICARDIE"},null,"70.45",{"$f":"IF(F34=\"\",\"\",IF(F34<16,\"ERREUR\",IF(AND(F34<18,C34=\"F\"),\"CF\",IF(F34<21,\"JUNIOR\", IF(F34<23,IF(C34=\"F\",\"SENIOR\",\"ESPOIR\"),IF(F34<40,\"SENIOR\",IF(C34=\"F\",\"VETERAN\",IF(F34<50,\"VET1\",IF(F34<60,\"VET2\",\"VET3\")))))))))","v":"VET2"},"Couples",1,{"$f":"IFERROR(VLOOKUP((S34&O34),'Résultat final'!A:B,2,FALSE),\"\")","v":5},{"$f":"SUM(U34:V34)","v":0},{"$f":"A34&\"  \"&B34","v":"BLANCHART  FREDDY"},{"$f":"IFERROR(HLOOKUP(O34,Juges!$1:$22,22,FALSE),\"\")","v":"NC"},{"$f":"+IF(OR(LEFT($T34,1)=\"I\",LEFT($T34,1)=\"R\"),VLOOKUP($T34,'Paramétrage des points'!$U:$V,2,FALSE),0)","v":0},{"$f":"IF(ISBLANK(P34),0,IFERROR(VLOOKUP(P34,'Résultat final'!D:L,9,FALSE),0))","v":0}]
["FORTIN ","JEAN DIDIER","H",null,"1959-07-13",53,{"$f":"IF(ISBLANK(A35),\"\",IF(ISERROR(DATEDIF(E35,saison,\"y\")),\"\",(DATEDIF(E35,saison,\"y\"))))","v":53},null,124155,"EC FOURMISIENNE",{"$f":"IF(A35=\"\",\"\",VLOOKUP(J35,Clubs!A:B,2,FALSE))","v":"NORD PAS DE CALAIS"},null,"71.85","VET2",null,6,{"$f":"IFERROR(VLOOKUP((S35&O35),'Résultat final'!A:B,2,FALSE),\"\")","v":""},0,"FORTIN   JEAN DIDIER",{"$f":"IFERROR(HLOOKUP(O35,Juges!$1:$22,22,FALSE),\"\")","v":""},{"$f":"+IF(OR(LEFT($T35,1)=\"I\",LEFT($T35,1)=\"R\"),VLOOKUP($T35,'Paramétrage des points'!$U:$V,2,FALSE),0)","v":0},{"$f":"IF(ISBLANK(P35),0,IFERROR(VLOOKUP(P35,'Résultat final'!D:L,9,FALSE),0))","v":0}]
["MARTIN","DANIEL","H",null,"1947-03-10",65,{"$f":"IF(ISBLANK(A36),\"\",IF(ISERROR(DATEDIF(E36,saison,\"y\")),\"\",(DATEDIF(E36,saison,\"y\"))))","v":65},null,313233,"AGOS INRIA",{"$f":"IF(A36=\"\",\"\",VLOOKUP(J36,Clubs!A:B,2,FALSE))","v":"ILE DE FRANCE"},null,"71.85","VET3",null,30,{"$f":"IFERROR(VLOOKUP((S36&O36),'Résultat final'!A:B,2,FALSE),\"\")","v":""},0,"MARTIN  DANIEL",{"$f":"IFERROR(HLOOKUP(O36,Juges!$1:$22,22,FALSE),\"\")","v":""},{"$f":"+IF(OR(LEFT($T36,1)=\"I\",LEFT($T36,1)=\"R\"),VLOOKUP($T36,'Paramétrage des points'!$U:$V,2,FALSE),0)","v":0},{"$f":"IF(ISBLANK(P36),0,IFERROR(VLOOKUP(P36,'Résultat final'!D:L,9,FALSE),0))","v":0}]
["MACHOME","DIDIER","H",null,"1989-09-02",22,{"$f":"IF(ISBLANK($A37),\"\",IF(ISERROR(DATEDIF($E37,saison,\"yd\")),\"\",(DATEDIF($E37,saison,\"yd\"))))","v":364},null,313234,"AGOS INRIA",{"$f":"IF(A37=\"\",\"\",VLOOKUP(J37,Clubs!A:B,2,FALSE))","v":"ILE DE FRANCE"},null,"71.86","ESPOIR","C1",51,{"$f":"IFERROR(VLOOKUP((S37&O37),'Résultat final'!A:B,2,FALSE),\"\")","v":2},0,"MACHOME  DIDIER",{"$f":"IFERROR(HLOOKUP(O37,Juges!$1:$22,22,FALSE),\"\")","v":"N"},{"$f":"+IF(OR(LEFT($T37,1)=\"I\",LEFT($T37,1)=\"R\"),VLOOKUP($T37,'Paramétrage des points'!$U:$V,2,FALSE),0)","v":0},{"$f":"IF(ISBLANK(P37),0,IFERROR(VLOOKUP(P37,'Résultat final'!D:L,9,FALSE),0))","v":0}]
["BLANCHET","PATRICK","F",null,"1962-06-30",50,{"$f":"IF(ISBLANK(A38),\"\",IF(ISERROR(DATEDIF(E38,saison,\"y\")),\"\",(DATEDIF(E38,saison,\"y\"))))","v":50},null,"O11674","CHFM ROISEL",{"$f":"IF(A38=\"\",\"\",VLOOKUP(J38,Clubs!A:B,2,FALSE))","v":"PICARDIE"},null,"72.75","VETERAN","CULTURIS FORM",42,{"$f":"IFERROR(VLOOKUP((S38&O38),'Résultat final'!A:B,2,FALSE),\"\")","v":4},0,"BLANCHET  PATRICK",{"$f":"IFERROR(HLOOKUP(O38,Juges!$1:$22,22,FALSE),\"\")","v":"NCUF"},{"$f":"+IF(OR(LEFT($T38,1)=\"I\",LEFT($T38,1)=\"R\"),VLOOKUP($T38,'Paramétrage des points'!$U:$V,2,FALSE),0)","v":0},{"$f":"IF(ISBLANK(P38),0,IFERROR(VLOOKUP(P38,'Résultat final'!D:L,9,FALSE),0))","v":0}]
["MARCHAL ","LAURENT","H",null,"1962-10-24",49,{"$f":"IF(ISBLANK(A39),\"\",IF(ISERROR(DATEDIF(E39,saison,\"y\")),\"\",(DATEDIF(E39,saison,\"y\"))))","v":49},null,166316,"MH CLERMONTOIS",{"$f":"IF(A39=\"\",\"\",VLOOKUP(J39,Clubs!A:B,2,FALSE))","v":"PICARDIE"},null,"73.90","VET1","culturis form",46,{"$f":"IFERROR(VLOOKUP((S39&O39),'Résultat final'!A:B,2,FALSE),\"\")","v":3},0,"MARCHAL   LAURENT",{"$f":"IFERROR(HLOOKUP(O39,Juges!$1:$22,22,FALSE),\"\")","v":"NCUF"},{"$f":"+IF(OR(LEFT($T39,1)=\"I\",LEFT($T39,1)=\"R\"),VLOOKUP($T39,'Paramétrage des points'!$U:$V,2,FALSE),0)","v":0},{"$f":"IF(ISBLANK(P39),0,IFERROR(VLOOKUP(P39,'Résultat final'!D:L,9,FALSE),0))","v":0}]
["OLIGIER","CEDRIC","H",null,"1979-10-24",32,{"$f":"DATEDIF(E40,saison,\"yd\")","v":313},null,232616,"CH LUNEVILLE",{"$f":"IF(A40=\"\",\"\",VLOOKUP(J40,Clubs!A:B,2,FALSE))","v":"LORRAINE "},null,"74.35","SENIOR","C5",43,{"$f":"IFERROR(VLOOKUP((S40&O40),'Résultat final'!A:B,2,FALSE),\"\")","v":""},0,"OLIGIER  CEDRIC",{"$f":"IFERROR(HLOOKUP(O40,Juges!$1:$22,22,FALSE),\"\")","v":"N"},{"$f":"+IF(OR(LEFT($T40,1)=\"I\",LEFT($T40,1)=\"R\"),VLOOKUP($T40,'Paramétrage des points'!$U:$V,2,FALSE),0)","v":0},{"$f":"IF(ISBLANK(P40),0,IFERROR(VLOOKUP(P40,'Résultat final'!D:L,9,FALSE),0))","v":0}]
["COUPEL","THIERRY","F",null,"1962-07-21",50,{"$f":"IF(ISBLANK(A41),\"\",IF(ISERROR(DATEDIF(E41,saison,\"y\")),\"\",(DATEDIF(E41,saison,\"y\"))))","v":50},null,"O95667","MH CLERMONTOIS",{"$f":"IF(A41=\"\",\"\",VLOOKUP(J41,Clubs!A:B,2,FALSE))","v":"PICARDIE"},null,"74.40","VETERAN","CULTURIS FORM",7,{"$f":"IFERROR(VLOOKUP((S41&O41),'Résultat final'!A:B,2,FALSE),\"\")","v":2},0,"COUPEL  THIERRY",{"$f":"IFERROR(HLOOKUP(O41,Juges!$1:$22,22,FALSE),\"\")","v":"NCUF"},{"$f":"+IF(OR(LEFT($T41,1)=\"I\",LEFT($T41,1)=\"R\"),VLOOKUP($T41,'Paramétrage des points'!$U:$V,2,FALSE),0)","v":0},{"$f":"IF(ISBLANK(P41),0,IFERROR(VLOOKUP(P41,'Résultat final'!D:L,9,FALSE),0))","v":0}]
["DUVAL","LAURENT","H",null,"1975-01-22",37,{"$f":"DATEDIF(E42,saison,\"yd\")","v":222},null,211690,"MUSCULATION HAUBOURDINOISE",{"$f":"IF(A42=\"\",\"\",VLOOKUP(J42,Clubs!A:B,2,FALSE))","v":"NORD PAS DE CALAIS"},null,"74.45","SENIOR","C5",11,{"$f":"IFERROR(VLOOKUP((S42&O42),'Résultat final'!A:B,2,FALSE),\"\")","v":""},0,"DUVAL  LAURENT",{"$f":"IFERROR(HLOOKUP(O42,Juges!$1:$22,22,FALSE),\"\")","v":"N"},{"$f":"+IF(OR(LEFT($T42,1)=\"I\",LEFT($T42,1)=\"R\"),VLOOKUP($T42,'Paramétrage des points'!$U:$V,2,FALSE),0)","v":0},{"$f":"IF(ISBLANK(P42),0,IFERROR(VLOOKUP(P42,'Résultat final'!D:L,9,FALSE),0))","v":0}]
["SEMAH","Gary","H",null,"1989-11-20",22,{"$f":"IF(ISBLANK($A43),\"\",IF(ISERROR(DATEDIF($E43,saison,\"yd\")),\"\",(DATEDIF($E43,saison,\"yd\"))))","v":285},null,290398,"US METRO PARIS",{"$f":"IF(A43=\"\",\"\",VLOOKUP(J43,Clubs!A:B,2,FALSE))","v":"ILE DE FRANCE"},null,"74.50","ESPOIR","C1",52,{"$f":"IFERROR(VLOOKUP((S43&O43),'Résultat final'!A:B,2,FALSE),\"\")","v":""},0,"SEMAH  Gary",{"$f":"IFERROR(HLOOKUP(O43,Juges!$1:$22,22,FALSE),\"\")","v":"N"},{"$f":"+IF(OR(LEFT($T43,1)=\"I\",LEFT($T43,1)=\"R\"),VLOOKUP($T43,'Paramétrage des points'!$U:$V,2,FALSE),0)","v":0},{"$f":"IF(ISBLANK(P43),0,IFERROR(VLOOKUP(P43,'Résultat final'!D:L,9,FALSE),0))","v":0}]
["LE MEUR","Sylvain","F",null,"1967-08-05",45,{"$f":"IF(ISBLANK(A44),\"\",IF(ISERROR(DATEDIF(E44,saison,\"y\")),\"\",(DATEDIF(E44,saison,\"y\"))))","v":45},null,206890,"CMF LOCMINE",{"$f":"IF(A44=\"\",\"\",VLOOKUP(J44,Clubs!A:B,2,FALSE))","v":"BRETAGNE"},null,"74.65","VETERAN","CULTURIS FORM",68,{"$f":"IFERROR(VLOOKUP((S44&O44),'Résultat final'!A:B,2,FALSE),\"\")","v":1},0,"LE MEUR  Sylvain",{"$f":"IFERROR(HLOOKUP(O44,Juges!$1:$22,22,FALSE),\"\")","v":"NCUF"},{"$f":"+IF(OR(LEFT($T44,1)=\"I\",LEFT($T44,1)=\"R\"),VLOOKUP($T44,'Paramétrage des points'!$U:$V,2,FALSE),0)","v":0},{"$f":"IF(ISBLANK(P44),0,IFERROR(VLOOKUP(P44,'Résultat final'!D:L,9,FALSE),0))","v":0}]
["ZANCANARO","WILLIAM","H",null,"1973-02-09",39,{"$f":"DATEDIF(E45,saison,\"yd\")","v":204},null,197838,"GS SENLIS",{"$f":"IF(A45=\"\",\"\",VLOOKUP(J45,Clubs!A:B,2,FALSE))","v":"PICARDIE"},null,"74.95","SENIOR","C5",40,{"$f":"IFERROR(VLOOKUP((S45&O45),'Résultat final'!A:B,2,FALSE),\"\")","v":""},0,"ZANCANARO  WILLIAM",{"$f":"IFERROR(HLOOKUP(O45,Juges!$1:$22,22,FALSE),\"\")","v":"N"},{"$f":"+IF(OR(LEFT($T45,1)=\"I\",LEFT($T45,1)=\"R\"),VLOOKUP($T45,'Paramétrage des points'!$U:$V,2,FALSE),0)","v":0},{"$f":"IF(ISBLANK(P45),0,IFERROR(VLOOKUP(P45,'Résultat final'!D:L,9,FALSE),0))","v":0}]
["COLIN","Bruno","H",null,"1964-07-20",48,{"$f":"IF(ISBLANK(A46),\"\",IF(ISERROR(DATEDIF(E46,saison,\"y\")),\"\",(DATEDIF(E46,saison,\"y\"))))","v":48},null,236,"AFHMA FRANCONVILLE",{"$f":"IF(A46=\"\",\"\",VLOOKUP(J46,Clubs!A:B,2,FALSE))","v":"ILE DE FRANCE"},null,"75.30","VET1",null,2,{"$f":"IFERROR(VLOOKUP((S46&O46),'Résultat final'!A:B,2,FALSE),\"\")","v":""},0,"COLIN  Bruno",{"$f":"IFERROR(HLOOKUP(O46,Juges!$1:$22,22,FALSE),\"\")","v":""},{"$f":"+IF(OR(LEFT($T46,1)=\"I\",LEFT($T46,1)=\"R\"),VLOOKUP($T46,'Paramétrage des points'!$U:$V,2,FALSE),0)","v":0},{"$f":"IF(ISBLANK(P46),0,IFERROR(VLOOKUP(P46,'Résultat final'!D:L,9,FALSE),0))","v":0}]
["POTEAU","ALEXANDRE","H",null,"1989-08-31",23,{"$f":"IF(ISBLANK($A47),\"\",IF(ISERROR(DATEDIF($E47,saison,\"yd\")),\"\",(DATEDIF($E47,saison,\"yd\"))))","v":1},null,291588,"MUSCULATION HAUBOURDINOISE",{"$f":"IF(A47=\"\",\"\",VLOOKUP(J47,Clubs!A:B,2,FALSE))","v":"NORD PAS DE CALAIS"},null,"75.80","SENIOR","C1",10,{"$f":"IFERROR(VLOOKUP((S47&O47),'Résultat final'!A:B,2,FALSE),\"\")","v":1},0,"POTEAU  ALEXANDRE",{"$f":"IFERROR(HLOOKUP(O47,Juges!$1:$22,22,FALSE),\"\")","v":"N"},{"$f":"+IF(OR(LEFT($T47,1)=\"I\",LEFT($T47,1)=\"R\"),VLOOKUP($T47,'Paramétrage des points'!$U:$V,2,FALSE),0)","v":0},{"$f":"IF(ISBLANK(P47),0,IFERROR(VLOOKUP(P47,'Résultat final'!D:L,9,FALSE),0))","v":0}]
["RIVIERE","Alain","H",null,"1960-03-03",52,{"$f":"IF(ISBLANK(A48),\"\",IF(ISERROR(DATEDIF(E48,saison,\"y\")),\"\",(DATEDIF(E48,saison,\"y\"))))","v":52},null,5017,"AS FOURCHAMBAULT",{"$f":"IF(A48=\"\",\"\",VLOOKUP(J48,Clubs!A:B,2,FALSE))","v":"BOURGOGNE"},null,"75.80","VET2",null,3,{"$f":"IFERROR(VLOOKUP((S48&O48),'Résultat final'!A:B,2,FALSE),\"\")","v":""},0,"RIVIERE  Alain",{"$f":"IFERROR(HLOOKUP(O48,Juges!$1:$22,22,FALSE),\"\")","v":""},{"$f":"+IF(OR(LEFT($T48,1)=\"I\",LEFT($T48,1)=\"R\"),VLOOKUP($T48,'Paramétrage des points'!$U:$V,2,FALSE),0)","v":0},{"$f":"IF(ISBLANK(P48),0,IFERROR(VLOOKUP(P48,'Résultat final'!D:L,9,FALSE),0))","v":0}]
["CARTRY","PHILIPPE","F",null,"1958-06-05",54,54,null,132962,"CHFM ROISEL",{"$f":"IF(A49=\"\",\"\",VLOOKUP(J49,Clubs!A:B,2,FALSE))","v":"PICARDIE"},null,"75.85","VETERAN",null,4,{"$f":"IFERROR(VLOOKUP((S49&O49),'Résultat final'!A:B,2,FALSE),\"\")","v":""},0,"CARTRY  PHILIPPE",{"$f":"IFERROR(HLOOKUP(O49,Juges!$1:$22,22,FALSE),\"\")","v":""},{"$f":"+IF(OR(LEFT($T49,1)=\"I\",LEFT($T49,1)=\"R\"),VLOOKUP($T49,'Paramétrage des points'!$U:$V,2,FALSE),0)","v":0},{"$f":"IF(ISBLANK(P49),0,IFERROR(VLOOKUP(P49,'Résultat final'!D:L,9,FALSE),0))","v":0}]
["BELROSE","BRUNO","H",null,"1964-08-22",48,48,null,252669,"AFHMA FRANCONVILLE",{"$f":"IF(A50=\"\",\"\",VLOOKUP(J50,Clubs!A:B,2,FALSE))","v":"ILE DE FRANCE"},null,"75.95","VET1",null,47,{"$f":"IFERROR(VLOOKUP((S50&O50),'Résultat final'!A:B,2,FALSE),\"\")","v":""},0,"BELROSE  BRUNO",{"$f":"IFERROR(HLOOKUP(O50,Juges!$1:$22,22,FALSE),\"\")","v":""},{"$f":"+IF(OR(LEFT($T50,1)=\"I\",LEFT($T50,1)=\"R\"),VLOOKUP($T50,'Paramétrage des points'!$U:$V,2,FALSE),0)","v":0},{"$f":"IF(ISBLANK(P50),0,IFERROR(VLOOKUP(P50,'Résultat final'!D:L,9,FALSE),0))","v":0}]
["TENIERE","JEAN FRANCOIS","H",null,"1965-05-07",47,47,null,"O29036","MUSCULATION HAUBOURDINOISE",{"$f":"IF(A51=\"\",\"\",VLOOKUP(J51,Clubs!A:B,2,FALSE))","v":"NORD PAS DE CALAIS"},null,"77.20","VET1",null,24,{"$f":"IFERROR(VLOOKUP((S51&O51),'Résultat final'!A:B,2,FALSE),\"\")","v":""},0,"TENIERE  JEAN FRANCOIS",{"$f":"IFERROR(HLOOKUP(O51,Juges!$1:$22,22,FALSE),\"\")","v":""},{"$f":"+IF(OR(LEFT($T51,1)=\"I\",LEFT($T51,1)=\"R\"),VLOOKUP($T51,'Paramétrage des points'!$U:$V,2,FALSE),0)","v":0},{"$f":"IF(ISBLANK(P51),0,IFERROR(VLOOKUP(P51,'Résultat final'!D:L,9,FALSE),0))","v":0}]
["DELAFONTAINE","MARTIAL","H",null,"1963-03-28",49,49,null,242656,"MH CLERMONTOIS",{"$f":"IF(A52=\"\",\"\",VLOOKUP(J52,Clubs!A:B,2,FALSE))","v":"PICARDIE"},null,"77.30","VET1",null,53,{"$f":"IFERROR(VLOOKUP((S52&O52),'Résultat final'!A:B,2,FALSE),\"\")","v":""},0,"DELAFONTAINE  MARTIAL",{"$f":"IFERROR(HLOOKUP(O52,Juges!$1:$22,22,FALSE),\"\")","v":""},{"$f":"+IF(OR(LEFT($T52,1)=\"I\",LEFT($T52,1)=\"R\"),VLOOKUP($T52,'Paramétrage des points'!$U:$V,2,FALSE),0)","v":0},{"$f":"IF(ISBLANK(P52),0,IFERROR(VLOOKUP(P52,'Résultat final'!D:L,9,FALSE),0))","v":0}]
["ALBERT","EMMANUEL","H",null,"1968-11-02",43,43,null,"O73940","MH CLERMONTOIS",{"$f":"IF(A53=\"\",\"\",VLOOKUP(J53,Clubs!A:B,2,FALSE))","v":"PICARDIE"},null,"78.25","VET1",null,26,{"$f":"IFERROR(VLOOKUP((S53&O53),'Résultat final'!A:B,2,FALSE),\"\")","v":""},0,"ALBERT  EMMANUEL",{"$f":"IFERROR(HLOOKUP(O53,Juges!$1:$22,22,FALSE),\"\")","v":""},{"$f":"+IF(OR(LEFT($T53,1)=\"I\",LEFT($T53,1)=\"R\"),VLOOKUP($T53,'Paramétrage des points'!$U:$V,2,FALSE),0)","v":0},{"$f":"IF(ISBLANK(P53),0,IFERROR(VLOOKUP(P53,'Résultat final'!D:L,9,FALSE),0))","v":0}]
["DELFAVERO","THIERRY","H",null,"1966-10-22",45,45,null,"OO2176","FIT BODY HOUDINOIS",{"$f":"IF(A54=\"\",\"\",VLOOKUP(J54,Clubs!A:B,2,FALSE))","v":"NORD PAS DE CALAIS"},null,"78.75","VET1",null,12,{"$f":"IFERROR(VLOOKUP((S54&O54),'Résultat final'!A:B,2,FALSE),\"\")","v":""},0,"DELFAVERO  THIERRY",{"$f":"IFERROR(HLOOKUP(O54,Juges!$1:$22,22,FALSE),\"\")","v":""},{"$f":"+IF(OR(LEFT($T54,1)=\"I\",LEFT($T54,1)=\"R\"),VLOOKUP($T54,'Paramétrage des points'!$U:$V,2,FALSE),0)","v":0},{"$f":"IF(ISBLANK(P54),0,IFERROR(VLOOKUP(P54,'Résultat final'!D:L,9,FALSE),0))","v":0}]
["PELLETIER","THIERRY","H",null,"1984-04-22",28,{"$f":"DATEDIF(E55,saison,\"yd\")","v":132},null,316455,"ACADEMIE CLUB LUCON",{"$f":"IF(A55=\"\",\"\",VLOOKUP(J55,Clubs!A:B,2,FALSE))","v":"PAYS DE LOIRE"},null,"78.80","SENIOR","C5",44,{"$f":"IFERROR(VLOOKUP((S55&O55),'Résultat final'!A:B,2,FALSE),\"\")","v":""},0,"PELLETIER  THIERRY",{"$f":"IFERROR(HLOOKUP(O55,Juges!$1:$22,22,FALSE),\"\")","v":"N"},{"$f":"+IF(OR(LEFT($T55,1)=\"I\",LEFT($T55,1)=\"R\"),VLOOKUP($T55,'Paramétrage des points'!$U:$V,2,FALSE),0)","v":0},{"$f":"IF(ISBLANK(P55),0,IFERROR(VLOOKUP(P55,'Résultat final'!D:L,9,FALSE),0))","v":0}]
["DORIZON","FLORENT","H",null,"1989-11-20",22,{"$f":"IF(ISBLANK($A56),\"\",IF(ISERROR(DATEDIF($E56,saison,\"yd\")),\"\",(DATEDIF($E56,saison,\"yd\"))))","v":285},null,309724,"BBF ALLONES",{"$f":"IF(A56=\"\",\"\",VLOOKUP(J56,Clubs!A:B,2,FALSE))","v":"PAYS DE LOIRE"},null,"79.80","ESPOIR","C3",31,{"$f":"IFERROR(VLOOKUP((S56&O56),'Résultat final'!A:B,2,FALSE),\"\")","v":2},0,"DORIZON  FLORENT",{"$f":"IFERROR(HLOOKUP(O56,Juges!$1:$22,22,FALSE),\"\")","v":"N"},{"$f":"+IF(OR(LEFT($T56,1)=\"I\",LEFT($T56,1)=\"R\"),VLOOKUP($T56,'Paramétrage des points'!$U:$V,2,FALSE),0)","v":0},{"$f":"IF(ISBLANK(P56),0,IFERROR(VLOOKUP(P56,'Résultat final'!D:L,9,FALSE),0))","v":0}]
["BASILE","LAURENT","H",null,"1977-01-22",35,{"$f":"DATEDIF(E57,saison,\"yd\")","v":222},null,232997,"CP MEDIOLANAISE",{"$f":"IF(A57=\"\",\"\",VLOOKUP(J57,Clubs!A:B,2,FALSE))","v":"NORD PAS DE CALAIS"},null,"82.65","SENIOR","C5",65,{"$f":"IFERROR(VLOOKUP((S57&O57),'Résultat final'!A:B,2,FALSE),\"\")","v":""},0,"BASILE  LAURENT",{"$f":"IFERROR(HLOOKUP(O57,Juges!$1:$22,22,FALSE),\"\")","v":"N"},{"$f":"+IF(OR(LEFT($T57,1)=\"I\",LEFT($T57,1)=\"R\"),VLOOKUP($T57,'Paramétrage des points'!$U:$V,2,FALSE),0)","v":0},{"$f":"IF(ISBLANK(P57),0,IFERROR(VLOOKUP(P57,'Résultat final'!D:L,9,FALSE),0))","v":0}]
["THOBOIS","Philippe","H",null,"1963-01-06",49,{"$f":"DATEDIF(E58,saison,\"yd\")","v":238},null,315544,"US GRIGNY",{"$f":"IF(A58=\"\",\"\",VLOOKUP(J58,Clubs!A:B,2,FALSE))","v":"ILE DE FRANCE"},null,"83.48","VET1",null,67,{"$f":"IFERROR(VLOOKUP((S58&O58),'Résultat final'!A:B,2,FALSE),\"\")","v":""},0,"THOBOIS  Philippe",{"$f":"IFERROR(HLOOKUP(O58,Juges!$1:$22,22,FALSE),\"\")","v":""},{"$f":"+IF(OR(LEFT($T58,1)=\"I\",LEFT($T58,1)=\"R\"),VLOOKUP($T58,'Paramétrage des points'!$U:$V,2,FALSE),0)","v":0},{"$f":"IF(ISBLANK(P58),0,IFERROR(VLOOKUP(P58,'Résultat final'!D:L,9,FALSE),0))","v":0}]
["HORCHOLLE","CEDRIC","H",null,"1980-04-04",32,{"$f":"DATEDIF(E59,saison,\"yd\")","v":150},null,229473,"HC BEAUVAIS",{"$f":"IF(A59=\"\",\"\",VLOOKUP(J59,Clubs!A:B,2,FALSE))","v":"PICARDIE"},null,"83.50","SENIOR",null,9,{"$f":"IFERROR(VLOOKUP((S59&O59),'Résultat final'!A:B,2,FALSE),\"\")","v":""},0,"HORCHOLLE  CEDRIC",{"$f":"IFERROR(HLOOKUP(O59,Juges!$1:$22,22,FALSE),\"\")","v":""},{"$f":"+IF(OR(LEFT($T59,1)=\"I\",LEFT($T59,1)=\"R\"),VLOOKUP($T59,'Paramétrage des points'!$U:$V,2,FALSE),0)","v":0},{"$f":"IF(ISBLANK(P59),0,IFERROR(VLOOKUP(P59,'Résultat final'!D:L,9,FALSE),0))","v":0}]
["CAMBIER","Richard","H",null,"1980-01-22",32,{"$f":"DATEDIF(E60,saison,\"yd\")","v":223},null,204598,"APOLLO CLUB TREMBLAY",{"$f":"IF(A60=\"\",\"\",VLOOKUP(J60,Clubs!A:B,2,FALSE))","v":"ILE DE FRANCE"},null,"83.65","SENIOR",null,13,{"$f":"IFERROR(VLOOKUP((S60&O60),'Résultat final'!A:B,2,FALSE),\"\")","v":""},0,"CAMBIER  Richard",{"$f":"IFERROR(HLOOKUP(O60,Juges!$1:$22,22,FALSE),\"\")","v":""},{"$f":"+IF(OR(LEFT($T60,1)=\"I\",LEFT($T60,1)=\"R\"),VLOOKUP($T60,'Paramétrage des points'!$U:$V,2,FALSE),0)","v":0},{"$f":"IF(ISBLANK(P60),0,IFERROR(VLOOKUP(P60,'Résultat final'!D:L,9,FALSE),0))","v":0}]
["FEUTRY","CHRISTOPHE","H",null,"1977-06-18",35,{"$f":"DATEDIF(E61,saison,\"yd\")","v":75},null,315660,"MC FORM AUDRUICQ",{"$f":"IF(A61=\"\",\"\",VLOOKUP(J61,Clubs!A:B,2,FALSE))","v":"NORD PAS DE CALAIS"},null,"84.15","SENIOR",null,5,{"$f":"IFERROR(VLOOKUP((S61&O61),'Résultat final'!A:B,2,FALSE),\"\")","v":""},0,"FEUTRY  CHRISTOPHE",{"$f":"IFERROR(HLOOKUP(O61,Juges!$1:$22,22,FALSE),\"\")","v":""},{"$f":"+IF(OR(LEFT($T61,1)=\"I\",LEFT($T61,1)=\"R\"),VLOOKUP($T61,'Paramétrage des points'!$U:$V,2,FALSE),0)","v":0},{"$f":"IF(ISBLANK(P61),0,IFERROR(VLOOKUP(P61,'Résultat final'!D:L,9,FALSE),0))","v":0}]
["THUILLIER","GERARD","H",null,"1972-09-26",39,{"$f":"IF(ISBLANK(A62),\"\",IF(ISERROR(DATEDIF(E62,saison,\"y\")),\"\",(DATEDIF(E62,saison,\"y\"))))","v":39},null,237200,"FIT BODY HOUDINOIS",{"$f":"IF(A62=\"\",\"\",VLOOKUP(J62,Clubs!A:B,2,FALSE))","v":"NORD PAS DE CALAIS"},null,"84.3O","SENIOR",null,38,{"$f":"IFERROR(VLOOKUP((S62&O62),'Résultat final'!A:B,2,FALSE),\"\")","v":""},0,"THUILLIER  GERARD",{"$f":"IFERROR(HLOOKUP(O62,Juges!$1:$22,22,FALSE),\"\")","v":""},{"$f":"+IF(OR(LEFT($T62,1)=\"I\",LEFT($T62,1)=\"R\"),VLOOKUP($T62,'Paramétrage des points'!$U:$V,2,FALSE),0)","v":0},{"$f":"IF(ISBLANK(P62),0,IFERROR(VLOOKUP(P62,'Résultat final'!D:L,9,FALSE),0))","v":0}]
["RANSON ","STEVE","H",null,"1976-02-22",36,{"$f":"DATEDIF(E63,saison,\"yd\")","v":192},null,318560,"MUSCULATION HAUBOURDINOISE",{"$f":"IF(A63=\"\",\"\",VLOOKUP(J63,Clubs!A:B,2,FALSE))","v":"NORD PAS DE CALAIS"},null,"84.75","SENIOR",null,1,{"$f":"IFERROR(VLOOKUP((S63&O63),'Résultat final'!A:B,2,FALSE),\"\")","v":""},0,"RANSON   STEVE",{"$f":"IFERROR(HLOOKUP(O63,Juges!$1:$22,22,FALSE),\"\")","v":""},{"$f":"+IF(OR(LEFT($T63,1)=\"I\",LEFT($T63,1)=\"R\"),VLOOKUP($T63,'Paramétrage des points'!$U:$V,2,FALSE),0)","v":0},{"$f":"IF(ISBLANK(P63),0,IFERROR(VLOOKUP(P63,'Résultat final'!D:L,9,FALSE),0))","v":0}]
["FORMENTEL","FREDERIC","H",null,"1970-05-27",42,{"$f":"IF(ISBLANK(A64),\"\",IF(ISERROR(DATEDIF(E64,saison,\"y\")),\"\",(DATEDIF(E64,saison,\"y\"))))","v":42},null,117303,"MUSCULATION HAUBOURDINOISE",{"$f":"IF(A64=\"\",\"\",VLOOKUP(J64,Clubs!A:B,2,FALSE))","v":"NORD PAS DE CALAIS"},null,"84.95","VET1",null,60,{"$f":"IFERROR(VLOOKUP((S64&O64),'Résultat final'!A:B,2,FALSE),\"\")","v":""},0,"FORMENTEL  FREDERIC",{"$f":"IFERROR(HLOOKUP(O64,Juges!$1:$22,22,FALSE),\"\")","v":""},{"$f":"+IF(OR(LEFT($T64,1)=\"I\",LEFT($T64,1)=\"R\"),VLOOKUP($T64,'Paramétrage des points'!$U:$V,2,FALSE),0)","v":0},{"$f":"IF(ISBLANK(P64),0,IFERROR(VLOOKUP(P64,'Résultat final'!D:L,9,FALSE),0))","v":0}]
["REULLIER","Bruno","H",null,"1955-07-11",57,{"$f":"IF(ISBLANK(A65),\"\",IF(ISERROR(DATEDIF(E65,saison,\"y\")),\"\",(DATEDIF(E65,saison,\"y\"))))","v":57},null,181695,"CERCLE ATHLETIQUE PARIS 10",{"$f":"IF(A65=\"\",\"\",VLOOKUP(J65,Clubs!A:B,2,FALSE))","v":"ILE DE FRANCE"},null,"85.35","VET2",null,39,{"$f":"IFERROR(VLOOKUP((S65&O65),'Résultat final'!A:B,2,FALSE),\"\")","v":""},0,"REULLIER  Bruno",{"$f":"IFERROR(HLOOKUP(O65,Juges!$1:$22,22,FALSE),\"\")","v":""},{"$f":"+IF(OR(LEFT($T65,1)=\"I\",LEFT($T65,1)=\"R\"),VLOOKUP($T65,'Paramétrage des points'!$U:$V,2,FALSE),0)","v":0},{"$f":"IF(ISBLANK(P65),0,IFERROR(VLOOKUP(P65,'Résultat final'!D:L,9,FALSE),0))","v":0}]
["VANHAUWAERT","OLIVIER","H",null,"1966-06-01",{"$f":"IF(ISBLANK(A66),\"\",DATEDIF(E66,saison,\"y\"))","v":46},{"$f":"IF(ISBLANK(A66),\"\",IF(ISERROR(DATEDIF(E66,saison,\"y\")),\"\",(DATEDIF(E66,saison,\"y\"))))","v":46},null,266683,"PSA ACC CHARLEVILLE MEZIERES",{"$f":"IF(A66=\"\",\"\",VLOOKUP(J66,Clubs!A:B,2,FALSE))","v":"CHAMPAGNE ARDENNES"},null,"85.65",{"$f":"IF(F66=\"\",\"\",IF(F66<16,\"ERREUR\",IF(AND(F66<18,C66=\"F\"),\"CF\",IF(F66<21,\"JUNIOR\", IF(F66<23,IF(C66=\"F\",\"SENIOR\",\"ESPOIR\"),IF(F66<40,\"SENIOR\",IF(C66=\"F\",\"VETERAN\",IF(F66<50,\"VET1\",IF(F66<60,\"VET2\",\"VET3\")))))))))","v":"VET1"},null,45,{"$f":"IFERROR(VLOOKUP((S66&O66),'Résultat final'!A:B,2,FALSE),\"\")","v":""},0,"VANHAUWAERT  OLIVIER",{"$f":"IFERROR(HLOOKUP(O66,Juges!$1:$22,22,FALSE),\"\")","v":""},{"$f":"+IF(OR(LEFT($T66,1)=\"I\",LEFT($T66,1)=\"R\"),VLOOKUP($T66,'Paramétrage des points'!$U:$V,2,FALSE),0)","v":0},{"$f":"IF(ISBLANK(P66),0,IFERROR(VLOOKUP(P66,'Résultat final'!D:L,9,FALSE),0))","v":0}]
["DESPIN","BERNARD","H",null,"1975-05-06",37,{"$f":"IF(ISBLANK(A67),\"\",IF(ISERROR(DATEDIF(E67,saison,\"y\")),\"\",(DATEDIF(E67,saison,\"y\"))))","v":37},null,239541,"PSA ACC CHARLEVILLE MEZIERES",{"$f":"IF(A67=\"\",\"\",VLOOKUP(J67,Clubs!A:B,2,FALSE))","v":"CHAMPAGNE ARDENNES"},null,"90.20","SENIOR",null,48,{"$f":"IFERROR(VLOOKUP((S67&O67),'Résultat final'!A:B,2,FALSE),\"\")","v":""},0,"DESPIN  BERNARD",{"$f":"IFERROR(HLOOKUP(O67,Juges!$1:$22,22,FALSE),\"\")","v":""},{"$f":"+IF(OR(LEFT($T67,1)=\"I\",LEFT($T67,1)=\"R\"),VLOOKUP($T67,'Paramétrage des points'!$U:$V,2,FALSE),0)","v":0},{"$f":"IF(ISBLANK(P67),0,IFERROR(VLOOKUP(P67,'Résultat final'!D:L,9,FALSE),0))","v":0}]
["CATEZ","VINCENT","H",null,"1981-09-14",30,{"$f":"DATEDIF(E68,saison,\"yd\")","v":352},null,316595,"MUSCULATION HAUBOURDINOISE",{"$f":"IF(A68=\"\",\"\",VLOOKUP(J68,Clubs!A:B,2,FALSE))","v":"NORD PAS DE CALAIS"},null,"90.80","SENIOR",null,61,{"$f":"IFERROR(VLOOKUP((S68&O68),'Résultat final'!A:B,2,FALSE),\"\")","v":""},0,"CATEZ  VINCENT",{"$f":"IFERROR(HLOOKUP(O68,Juges!$1:$22,22,FALSE),\"\")","v":""},{"$f":"+IF(OR(LEFT($T68,1)=\"I\",LEFT($T68,1)=\"R\"),VLOOKUP($T68,'Paramétrage des points'!$U:$V,2,FALSE),0)","v":0},{"$f":"IF(ISBLANK(P68),0,IFERROR(VLOOKUP(P68,'Résultat final'!D:L,9,FALSE),0))","v":0}]
["FERNAND","MATHIEU","H",null,"1985-11-03",26,{"$f":"IF(ISBLANK(A69),\"\",IF(ISERROR(DATEDIF(E69,saison,\"y\")),\"\",(DATEDIF(E69,saison,\"y\"))))","v":26},null,293191,"FIT BODY HOUDINOIS",{"$f":"IF(A69=\"\",\"\",VLOOKUP(J69,Clubs!A:B,2,FALSE))","v":"NORD PAS DE CALAIS"},null,"93.05","SENIOR",null,21,{"$f":"IFERROR(VLOOKUP((S69&O69),'Résultat final'!A:B,2,FALSE),\"\")","v":""},0,"FERNAND  MATHIEU",{"$f":"IFERROR(HLOOKUP(O69,Juges!$1:$22,22,FALSE),\"\")","v":""},{"$f":"+IF(OR(LEFT($T69,1)=\"I\",LEFT($T69,1)=\"R\"),VLOOKUP($T69,'Paramétrage des points'!$U:$V,2,FALSE),0)","v":0},{"$f":"IF(ISBLANK(P69),0,IFERROR(VLOOKUP(P69,'Résultat final'!D:L,9,FALSE),0))","v":0}]
["BERTHELOT","Sébastien","H",null,"1982-11-19",29,{"$f":"DATEDIF(E70,saison,\"yd\")","v":286},null,300312,"ATHLETIQUE DE SAINT PRIX",{"$f":"IF(A70=\"\",\"\",VLOOKUP(J70,Clubs!A:B,2,FALSE))","v":"ILE DE FRANCE"},null,"93.60","SENIOR",null,25,{"$f":"IFERROR(VLOOKUP((S70&O70),'Résultat final'!A:B,2,FALSE),\"\")","v":""},0,"BERTHELOT  Sébastien",{"$f":"IFERROR(HLOOKUP(O70,Juges!$1:$22,22,FALSE),\"\")","v":""},{"$f":"+IF(OR(LEFT($T70,1)=\"I\",LEFT($T70,1)=\"R\"),VLOOKUP($T70,'Paramétrage des points'!$U:$V,2,FALSE),0)","v":0},{"$f":"IF(ISBLANK(P70),0,IFERROR(VLOOKUP(P70,'Résultat final'!D:L,9,FALSE),0))","v":0}]
["DELACRESSONIERE","JOHANN","H",null,"1974-05-10",38,{"$f":"IF(ISBLANK(A71),\"\",IF(ISERROR(DATEDIF(E71,saison,\"y\")),\"\",(DATEDIF(E71,saison,\"y\"))))","v":38},null,291472,"MUSCULATION HAUBOURDINOISE",{"$f":"IF(A71=\"\",\"\",VLOOKUP(J71,Clubs!A:B,2,FALSE))","v":"NORD PAS DE CALAIS"},null,"95.50","SENIOR",null,1]
[null,null,null,null," ","",{"$f":"IF(ISBLANK(A72),\"\",IF(ISERROR(DATEDIF(E72,saison,\"y\")),\"\",(DATEDIF(E72,saison,\"y\"))))","v":""},null,null,null,{"$f":"IF(A72=\"\",\"\",VLOOKUP(J72,Clubs!A:B,2,FALSE))","v":""},null,null,{"$f":"IF(F72=\"\",\"\",IF(F72<16,\"ERREUR\",IF(AND(F72<18,C72=\"F\"),\"CF\",IF(F72<21,\"JUNIOR\", IF(F72<23,IF(C72=\"F\",\"SENIOR\",\"ESPOIR\"),IF(F72<40,\"SENIOR\",IF(C72=\"F\",\"VETERAN\",IF(F72<50,\"VET1\",IF(F72<60,\"VET2\",\"VET3\")))))))))","v":""},null,null,null,null,{"$f":"A72&\"  \"&B72","v":"  "},{"$f":"IFERROR(HLOOKUP(O72,Juges!$1:$22,22,FALSE),\"\")","v":""},{"$f":"+IF(OR(LEFT($T72,1)=\"I\",LEFT($T72,1)=\"R\"),VLOOKUP($T72,'Paramétrage des points'!$U:$V,2,FALSE),0)","v":0},{"$f":"IF(ISBLANK(P72),0,IFERROR(VLOOKUP(P72,'Résultat final'!D:L,9,FALSE),0))","v":0}]
[null,null,null,null," ","","",null,null,null,{"$f":"IF(A73=\"\",\"\",VLOOKUP(J73,Clubs!A:B,2,FALSE))","v":""},null,null,"",null,null,null,null,"  ",{"$f":"IFERROR(HLOOKUP(O73,Juges!$1:$22,22,FALSE),\"\")","v":""},{"$f":"+IF(OR(LEFT($T73,1)=\"I\",LEFT($T73,1)=\"R\"),VLOOKUP($T73,'Paramétrage des points'!$U:$V,2,FALSE),0)","v":0},{"$f":"IF(ISBLANK(P73),0,IFERROR(VLOOKUP(P73,'Résultat final'!D:L,9,FALSE),0))","v":0}]
[null,null,null,null," ","","",null,null,null,{"$f":"IF(A74=\"\",\"\",VLOOKUP(J74,Clubs!A:B,2,FALSE))","v":""},null,null,"",null,null,null,null,"  ",{"$f":"IFERROR(HLOOKUP(O74,Juges!$1:$22,22,FALSE),\"\")","v":""},{"$f":"+IF(OR(LEFT($T74,1)=\"I\",LEFT($T74,1)=\"R\"),VLOOKUP($T74,'Paramétrage des points'!$U:$V,2,FALSE),0)","v":0},{"$f":"IF(ISBLANK(P74),0,IFERROR(VLOOKUP(P74,'Résultat final'!D:L,9,FALSE),0))","v":0}]
[null,null,null,null," ","","",null,null,null,{"$f":"IF(A75=\"\",\"\",VLOOKUP(J75,Clubs!A:B,2,FALSE))","v":""},null,null,"",null,null,null,null,"  ",{"$f":"IFERROR(HLOOKUP(O75,Juges!$1:$22,22,FALSE),\"\")","v":""},{"$f":"+IF(OR(LEFT($T75,1)=\"I\",LEFT($T75,1)=\"R\"),VLOOKUP($T75,'Paramétrage des points'!$U:$V,2,FALSE),0)","v":0},{"$f":"IF(ISBLANK(P75),0,IFERROR(VLOOKUP(P75,'Résultat final'!D:L,9,FALSE),0))","v":0}]
[null,null,null,null," ","","",null,null,null,{"$f":"IF(A76=\"\",\"\",VLOOKUP(J76,Clubs!A:B,2,FALSE))","v":""},null,null,"",null,null,null,null,"  ",{"$f":"IFERROR(HLOOKUP(O76,Juges!$1:$22,22,FALSE),\"\")","v":""},{"$f":"+IF(OR(LEFT($T76,1)=\"I\",LEFT($T76,1)=\"R\"),VLOOKUP($T76,'Paramétrage des points'!$U:$V,2,FALSE),0)","v":0},{"$f":"IF(ISBLANK(P76),0,IFERROR(VLOOKUP(P76,'Résultat final'!D:L,9,FALSE),0))","v":0}]
[null,null,null,null," ","","",null,null,null,{"$f":"IF(A77=\"\",\"\",VLOOKUP(J77,Clubs!A:B,2,FALSE))","v":""},null,null,"",null,null,null,null,"  ",{"$f":"IFERROR(HLOOKUP(O77,Juges!$1:$22,22,FALSE),\"\")","v":""},{"$f":"+IF(OR(LEFT($T77,1)=\"I\",LEFT($T77,1)=\"R\"),VLOOKUP($T77,'Paramétrage des points'!$U:$V,2,FALSE),0)","v":0},{"$f":"IF(ISBLANK(P77),0,IFERROR(VLOOKUP(P77,'Résultat final'!D:L,9,FALSE),0))","v":0}]
[null,null,null,null," ","","",null,null,null,{"$f":"IF(A78=\"\",\"\",VLOOKUP(J78,Clubs!A:B,2,FALSE))","v":""},null,null,"",null,null,null,null,"  ",{"$f":"IFERROR(HLOOKUP(O78,Juges!$1:$22,22,FALSE),\"\")","v":""},{"$f":"+IF(OR(LEFT($T78,1)=\"I\",LEFT($T78,1)=\"R\"),VLOOKUP($T78,'Paramétrage des points'!$U:$V,2,FALSE),0)","v":0},{"$f":"IF(ISBLANK(P78),0,IFERROR(VLOOKUP(P78,'Résultat final'!D:L,9,FALSE),0))","v":0}]
[null,null,null,null," ","","",null,null,null,{"$f":"IF(A79=\"\",\"\",VLOOKUP(J79,Clubs!A:B,2,FALSE))","v":""},null,null,"",null,null,null,null,"  ",{"$f":"IFERROR(HLOOKUP(O79,Juges!$1:$22,22,FALSE),\"\")","v":""},{"$f":"+IF(OR(LEFT($T79,1)=\"I\",LEFT($T79,1)=\"R\"),VLOOKUP($T79,'Paramétrage des points'!$U:$V,2,FALSE),0)","v":0},{"$f":"IF(ISBLANK(P79),0,IFERROR(VLOOKUP(P79,'Résultat final'!D:L,9,FALSE),0))","v":0}]
[null,null,null,null," ","","",null,null,null,{"$f":"IF(A80=\"\",\"\",VLOOKUP(J80,Clubs!A:B,2,FALSE))","v":""},null,null,"",null,null,null,null,"  ",{"$f":"IFERROR(HLOOKUP(O80,Juges!$1:$22,22,FALSE),\"\")","v":""},{"$f":"+IF(OR(LEFT($T80,1)=\"I\",LEFT($T80,1)=\"R\"),VLOOKUP($T80,'Paramétrage des points'!$U:$V,2,FALSE),0)","v":0},{"$f":"IF(ISBLANK(P80),0,IFERROR(VLOOKUP(P80,'Résultat final'!D:L,9,FALSE),0))","v":0}]
[null,null,null,null," ",null,"",null,null,null,{"$f":"IF(A81=\"\",\"\",VLOOKUP(J81,Clubs!A:B,2,FALSE))","v":""},null,null,"",null,null,null,null,"  ",{"$f":"IFERROR(HLOOKUP(O81,Juges!$1:$22,22,FALSE),\"\")","v":""},{"$f":"+IF(OR(LEFT($T81,1)=\"I\",LEFT($T81,1)=\"R\"),VLOOKUP($T81,'Paramétrage des points'!$U:$V,2,FALSE),0)","v":0},{"$f":"IF(ISBLANK(P81),0,IFERROR(VLOOKUP(P81,'Résultat final'!D:L,9,FALSE),0))","v":0}]
[null,null,null,null," ",null,"",null,null,null,{"$f":"IF(A82=\"\",\"\",VLOOKUP(J82,Clubs!A:B,2,FALSE))","v":""},null,null,"",null,null,null,null,"  ",{"$f":"IFERROR(HLOOKUP(O82,Juges!$1:$22,22,FALSE),\"\")","v":""},{"$f":"+IF(OR(LEFT($T82,1)=\"I\",LEFT($T82,1)=\"R\"),VLOOKUP($T82,'Paramétrage des points'!$U:$V,2,FALSE),0)","v":0},{"$f":"IF(ISBLANK(P82),0,IFERROR(VLOOKUP(P82,'Résultat final'!D:L,9,FALSE),0))","v":0}]
[null,null,null,null," ",null,"",null,null,null,{"$f":"IF(A83=\"\",\"\",VLOOKUP(J83,Clubs!A:B,2,FALSE))","v":""},null,null,"",null,null,null,null,"  ",{"$f":"IFERROR(HLOOKUP(O83,Juges!$1:$22,22,FALSE),\"\")","v":""},{"$f":"+IF(OR(LEFT($T83,1)=\"I\",LEFT($T83,1)=\"R\"),VLOOKUP($T83,'Paramétrage des points'!$U:$V,2,FALSE),0)","v":0},{"$f":"IF(ISBLANK(P83),0,IFERROR(VLOOKUP(P83,'Résultat final'!D:L,9,FALSE),0))","v":0}]
[null,null,null,null," ",null,"",null,null,null,{"$f":"IF(A84=\"\",\"\",VLOOKUP(J84,Clubs!A:B,2,FALSE))","v":""},null,null,"",null,null,null,null,"  ",{"$f":"IFERROR(HLOOKUP(O84,Juges!$1:$22,22,FALSE),\"\")","v":""},{"$f":"+IF(OR(LEFT($T84,1)=\"I\",LEFT($T84,1)=\"R\"),VLOOKUP($T84,'Paramétrage des points'!$U:$V,2,FALSE),0)","v":0},{"$f":"IF(ISBLANK(P84),0,IFERROR(VLOOKUP(P84,'Résultat final'!D:L,9,FALSE),0))","v":0}]
[null,null,null,null," ",null,"",null,null,null,{"$f":"IF(A85=\"\",\"\",VLOOKUP(J85,Clubs!A:B,2,FALSE))","v":""},null,null,"",null,null,null,null,"  ",{"$f":"IFERROR(HLOOKUP(O85,Juges!$1:$22,22,FALSE),\"\")","v":""},{"$f":"+IF(OR(LEFT($T85,1)=\"I\",LEFT($T85,1)=\"R\"),VLOOKUP($T85,'Paramétrage des points'!$U:$V,2,FALSE),0)","v":0},{"$f":"IF(ISBLANK(P85),0,IFERROR(VLOOKUP(P85,'Résultat final'!D:L,9,FALSE),0))","v":0}]
[null,null,null,null," ",null,"",null,null,null,{"$f":"IF(A86=\"\",\"\",VLOOKUP(J86,Clubs!A:B,2,FALSE))","v":""},null,null,"",null,null,null,null,"  ",{"$f":"IFERROR(HLOOKUP(O86,Juges!$1:$22,22,FALSE),\"\")","v":""},{"$f":"+IF(OR(LEFT($T86,1)=\"I\",LEFT($T86,1)=\"R\"),VLOOKUP($T86,'Paramétrage des points'!$U:$V,2,FALSE),0)","v":0},{"$f":"IF(ISBLANK(P86),0,IFERROR(VLOOKUP(P86,'Résultat final'!D:L,9,FALSE),0))","v":0}]
[null,null,null,null," ",null,"",null,null,null,{"$f":"IF(A87=\"\",\"\",VLOOKUP(J87,Clubs!A:B,2,FALSE))","v":""},null,null,"",null,null,null,null,"  ",{"$f":"IFERROR(HLOOKUP(O87,Juges!$1:$22,22,FALSE),\"\")","v":""},{"$f":"+IF(OR(LEFT($T87,1)=\"I\",LEFT($T87,1)=\"R\"),VLOOKUP($T87,'Paramétrage des points'!$U:$V,2,FALSE),0)","v":0},{"$f":"IF(ISBLANK(P87),0,IFERROR(VLOOKUP(P87,'Résultat final'!D:L,9,FALSE),0))","v":0}]
[null,null,null,null," ",null,"",null,null,null,{"$f":"IF(A88=\"\",\"\",VLOOKUP(J88,Clubs!A:B,2,FALSE))","v":""},null,null,"",null,null,null,null,"  ",{"$f":"IFERROR(HLOOKUP(O88,Juges!$1:$22,22,FALSE),\"\")","v":""},{"$f":"+IF(OR(LEFT($T88,1)=\"I\",LEFT($T88,1)=\"R\"),VLOOKUP($T88,'Paramétrage des points'!$U:$V,2,FALSE),0)","v":0},{"$f":"IF(ISBLANK(P88),0,IFERROR(VLOOKUP(P88,'Résultat final'!D:L,9,FALSE),0))","v":0}]
[null,null,null,null," ",null,"",null,null,null,{"$f":"IF(A89=\"\",\"\",VLOOKUP(J89,Clubs!A:B,2,FALSE))","v":""},null,null,"",null,null,null,null,"  ",{"$f":"IFERROR(HLOOKUP(O89,Juges!$1:$22,22,FALSE),\"\")","v":""},{"$f":"+IF(OR(LEFT($T89,1)=\"I\",LEFT($T89,1)=\"R\"),VLOOKUP($T89,'Paramétrage des points'!$U:$V,2,FALSE),0)","v":0},{"$f":"IF(ISBLANK(P89),0,IFERROR(VLOOKUP(P89,'Résultat final'!D:L,9,FALSE),0))","v":0}]
[null,null,null,null,null,null,"",null,null,null,{"$f":"IF(A90=\"\",\"\",VLOOKUP(J90,Clubs!A:B,2,FALSE))","v":""},null,null,"",null,null,null,null,"  ",{"$f":"IFERROR(HLOOKUP(O90,Juges!$1:$22,22,FALSE),\"\")","v":""},{"$f":"+IF(OR(LEFT($T90,1)=\"I\",LEFT($T90,1)=\"R\"),VLOOKUP($T90,'Paramétrage des points'!$U:$V,2,FALSE),0)","v":0},{"$f":"IF(ISBLANK(P90),0,IFERROR(VLOOKUP(P90,'Résultat final'!D:L,9,FALSE),0))","v":0}]
[null,null,null,null,null,null,"",null,null,null,{"$f":"IF(A91=\"\",\"\",VLOOKUP(J91,Clubs!A:B,2,FALSE))","v":""},null,null,"",null,null,null,null,"  ",{"$f":"IFERROR(HLOOKUP(O91,Juges!$1:$22,22,FALSE),\"\")","v":""},{"$f":"+IF(OR(LEFT($T91,1)=\"I\",LEFT($T91,1)=\"R\"),VLOOKUP($T91,'Paramétrage des points'!$U:$V,2,FALSE),0)","v":0},{"$f":"IF(ISBLANK(P91),0,IFERROR(VLOOKUP(P91,'Résultat final'!D:L,9,FALSE),0))","v":0}]
[null,null,null,null,null,null,"",null,null,null,{"$f":"IF(A92=\"\",\"\",VLOOKUP(J92,Clubs!A:B,2,FALSE))","v":""},null,null,"",null,null,null,null,"  ",{"$f":"IFERROR(HLOOKUP(O92,Juges!$1:$22,22,FALSE),\"\")","v":""},{"$f":"+IF(OR(LEFT($T92,1)=\"I\",LEFT($T92,1)=\"R\"),VLOOKUP($T92,'Paramétrage des points'!$U:$V,2,FALSE),0)","v":0},{"$f":"IF(ISBLANK(P92),0,IFERROR(VLOOKUP(P92,'Résultat final'!D:L,9,FALSE),0))","v":0}]
[null,null,null,null,null,null,"",null,null,null,{"$f":"IF(A93=\"\",\"\",VLOOKUP(J93,Clubs!A:B,2,FALSE))","v":""},null,null,"",null,null,null,null,"  ",{"$f":"IFERROR(HLOOKUP(O93,Juges!$1:$22,22,FALSE),\"\")","v":""},{"$f":"+IF(OR(LEFT($T93,1)=\"I\",LEFT($T93,1)=\"R\"),VLOOKUP($T93,'Paramétrage des points'!$U:$V,2,FALSE),0)","v":0},{"$f":"IF(ISBLANK(P93),0,IFERROR(VLOOKUP(P93,'Résultat final'!D:L,9,FALSE),0))","v":0}]
[null,null,null,null,null,null,"",null,null,null,{"$f":"IF(A94=\"\",\"\",VLOOKUP(J94,Clubs!A:B,2,FALSE))","v":""},null,null,"",null,null,null,null,"  ",{"$f":"IFERROR(HLOOKUP(O94,Juges!$1:$22,22,FALSE),\"\")","v":""},{"$f":"+IF(OR(LEFT($T94,1)=\"I\",LEFT($T94,1)=\"R\"),VLOOKUP($T94,'Paramétrage des points'!$U:$V,2,FALSE),0)","v":0},{"$f":"IF(ISBLANK(P94),0,IFERROR(VLOOKUP(P94,'Résultat final'!D:L,9,FALSE),0))","v":0}]
[null,null,null,null,null,null,"",null,null,null,{"$f":"IF(A95=\"\",\"\",VLOOKUP(J95,Clubs!A:B,2,FALSE))","v":""},null,null,"",null,null,null,null,"  ",{"$f":"IFERROR(HLOOKUP(O95,Juges!$1:$22,22,FALSE),\"\")","v":""},{"$f":"+IF(OR(LEFT($T95,1)=\"I\",LEFT($T95,1)=\"R\"),VLOOKUP($T95,'Paramétrage des points'!$U:$V,2,FALSE),0)","v":0},{"$f":"IF(ISBLANK(P95),0,IFERROR(VLOOKUP(P95,'Résultat final'!D:L,9,FALSE),0))","v":0}]
[null,null,null,null,null,null,"",null,null,null,{"$f":"IF(A96=\"\",\"\",VLOOKUP(J96,Clubs!A:B,2,FALSE))","v":""},null,null,"",null,null,null,null,"  ",{"$f":"IFERROR(HLOOKUP(O96,Juges!$1:$22,22,FALSE),\"\")","v":""},{"$f":"+IF(OR(LEFT($T96,1)=\"I\",LEFT($T96,1)=\"R\"),VLOOKUP($T96,'Paramétrage des points'!$U:$V,2,FALSE),0)","v":0},{"$f":"IF(ISBLANK(P96),0,IFERROR(VLOOKUP(P96,'Résultat final'!D:L,9,FALSE),0))","v":0}]
[null,null,null,null,null,null,"",null,null,null,{"$f":"IF(A97=\"\",\"\",VLOOKUP(J97,Clubs!A:B,2,FALSE))","v":""},null,null,"",null,null,null,null,"  ",{"$f":"IFERROR(HLOOKUP(O97,Juges!$1:$22,22,FALSE),\"\")","v":""},{"$f":"+IF(OR(LEFT($T97,1)=\"I\",LEFT($T97,1)=\"R\"),VLOOKUP($T97,'Paramétrage des points'!$U:$V,2,FALSE),0)","v":0},{"$f":"IF(ISBLANK(P97),0,IFERROR(VLOOKUP(P97,'Résultat final'!D:L,9,FALSE),0))","v":0}]
[null,null,null,null,null,null,{"$f":"IF(ISBLANK(A98),\"\",IF(ISERROR(DATEDIF(E98,saison,\"y\")),\"\",(DATEDIF(E98,saison,\"y\"))))","v":""},null,null,null,{"$f":"IF(A98=\"\",\"\",VLOOKUP(J98,Clubs!A:B,2,FALSE))","v":""},null,null,"",null,null,null,null,"  ",{"$f":"IFERROR(HLOOKUP(O98,Juges!$1:$22,22,FALSE),\"\")","v":""},{"$f":"+IF(OR(LEFT($T98,1)=\"I\",LEFT($T98,1)=\"R\"),VLOOKUP($T98,'Paramétrage des points'!$U:$V,2,FALSE),0)","v":0},{"$f":"IF(ISBLANK(P98),0,IFERROR(VLOOKUP(P98,'Résultat final'!D:L,9,FALSE),0))","v":0}]
[null,null,null,null,null,null,"",null,null,null,{"$f":"IF(A99=\"\",\"\",VLOOKUP(J99,Clubs!A:B,2,FALSE))","v":""},null,null,"",null,null,null,null,"  ",{"$f":"IFERROR(HLOOKUP(O99,Juges!$1:$22,22,FALSE),\"\")","v":""},{"$f":"+IF(OR(LEFT($T99,1)=\"I\",LEFT($T99,1)=\"R\"),VLOOKUP($T99,'Paramétrage des points'!$U:$V,2,FALSE),0)","v":0},{"$f":"IF(ISBLANK(P99),0,IFERROR(VLOOKUP(P99,'Résultat final'!D:L,9,FALSE),0))","v":0}]
[null,null,null,null,null,null,"",null,null,null,{"$f":"IF(A100=\"\",\"\",VLOOKUP(J100,Clubs!A:B,2,FALSE))","v":""},null,null,"",null,null,null,null,"  ",{"$f":"IFERROR(HLOOKUP(O100,Juges!$1:$22,22,FALSE),\"\")","v":""},{"$f":"+IF(OR(LEFT($T100,1)=\"I\",LEFT($T100,1)=\"R\"),VLOOKUP($T100,'Paramétrage des points'!$U:$V,2,FALSE),0)","v":0},{"$f":"IF(ISBLANK(P100),0,IFERROR(VLOOKUP(P100,'Résultat final'!D:L,9,FALSE),0))","v":0}]
[null,null,null,null,null,null,"",null,null,null,{"$f":"IF(A101=\"\",\"\",VLOOKUP(J101,Clubs!A:B,2,FALSE))","v":""},null,null,"",null,null,null,null,"  ",{"$f":"IFERROR(HLOOKUP(O101,Juges!$1:$22,22,FALSE),\"\")","v":""},{"$f":"+IF(OR(LEFT($T101,1)=\"I\",LEFT($T101,1)=\"R\"),VLOOKUP($T101,'Paramétrage des points'!$U:$V,2,FALSE),0)","v":0},{"$f":"IF(ISBLANK(P101),0,IFERROR(VLOOKUP(P101,'Résultat final'!D:L,9,FALSE),0))","v":0}]
[null,null,null,null,null,null,"",null,null,null,{"$f":"IF(A102=\"\",\"\",VLOOKUP(J102,Clubs!A:B,2,FALSE))","v":""},null,null,"",null,null,null,null,"  ",{"$f":"IFERROR(HLOOKUP(O102,Juges!$1:$22,22,FALSE),\"\")","v":""},{"$f":"+IF(OR(LEFT($T102,1)=\"I\",LEFT($T102,1)=\"R\"),VLOOKUP($T102,'Paramétrage des points'!$U:$V,2,FALSE),0)","v":0},{"$f":"IF(ISBLANK(P102),0,IFERROR(VLOOKUP(P102,'Résultat final'!D:L,9,FALSE),0))","v":0}]
[null,null,null,null,null,null,"",null,null,null,{"$f":"IF(A103=\"\",\"\",VLOOKUP(J103,Clubs!A:B,2,FALSE))","v":""},null,null,"",null,null,null,null,"  ",{"$f":"IFERROR(HLOOKUP(O103,Juges!$1:$22,22,FALSE),\"\")","v":""},{"$f":"+IF(OR(LEFT($T103,1)=\"I\",LEFT($T103,1)=\"R\"),VLOOKUP($T103,'Paramétrage des points'!$U:$V,2,FALSE),0)","v":0},{"$f":"IF(ISBLANK(P103),0,IFERROR(VLOOKUP(P103,'Résultat final'!D:L,9,FALSE),0))","v":0}]
[null,null,null,null,null,null,"",null,null,null,{"$f":"IF(A104=\"\",\"\",VLOOKUP(J104,Clubs!A:B,2,FALSE))","v":""},null,null,"",null,null,null,null,{"$f":"A104&\"  \"&B104","v":"  "},{"$f":"IFERROR(HLOOKUP(O104,Juges!$1:$22,22,FALSE),\"\")","v":""},{"$f":"+IF(OR(LEFT($T104,1)=\"I\",LEFT($T104,1)=\"R\"),VLOOKUP($T104,'Paramétrage des points'!$U:$V,2,FALSE),0)","v":0},{"$f":"IF(ISBLANK(P104),0,IFERROR(VLOOKUP(P104,'Résultat final'!D:L,9,FALSE),0))","v":0}]
[null,null,null,null,null,null,"",null,null,null,{"$f":"IF(A105=\"\",\"\",VLOOKUP(J105,Clubs!A:B,2,FALSE))","v":""},null,null,"",null,null,null,null,"  ",{"$f":"IFERROR(HLOOKUP(O105,Juges!$1:$22,22,FALSE),\"\")","v":""},{"$f":"+IF(OR(LEFT($T105,1)=\"I\",LEFT($T105,1)=\"R\"),VLOOKUP($T105,'Paramétrage des points'!$U:$V,2,FALSE),0)","v":0},{"$f":"IF(ISBLANK(P105),0,IFERROR(VLOOKUP(P105,'Résultat final'!D:L,9,FALSE),0))","v":0}]
[null,null,null,null,null,null,"",null,null,null,{"$f":"IF(A106=\"\",\"\",VLOOKUP(J106,Clubs!A:B,2,FALSE))","v":""},null,null,"",null,null,null,null,"  ",{"$f":"IFERROR(HLOOKUP(O106,Juges!$1:$22,22,FALSE),\"\")","v":""},{"$f":"+IF(OR(LEFT($T106,1)=\"I\",LEFT($T106,1)=\"R\"),VLOOKUP($T106,'Paramétrage des points'!$U:$V,2,FALSE),0)","v":0},{"$f":"IF(ISBLANK(P106),0,IFERROR(VLOOKUP(P106,'Résultat final'!D:L,9,FALSE),0))","v":0}]
[null,null,null,null,null,null,"",null,null,null,{"$f":"IF(A107=\"\",\"\",VLOOKUP(J107,Clubs!A:B,2,FALSE))","v":""},null,null,"",null,null,null,null,"  ",{"$f":"IFERROR(HLOOKUP(O107,Juges!$1:$22,22,FALSE),\"\")","v":""},{"$f":"+IF(OR(LEFT($T107,1)=\"I\",LEFT($T107,1)=\"R\"),VLOOKUP($T107,'Paramétrage des points'!$U:$V,2,FALSE),0)","v":0},{"$f":"IF(ISBLANK(P107),0,IFERROR(VLOOKUP(P107,'Résultat final'!D:L,9,FALSE),0))","v":0}]
[null,null,null,null,null,null,"",null,null,null,{"$f":"IF(A108=\"\",\"\",VLOOKUP(J108,Clubs!A:B,2,FALSE))","v":""},null,null,"",null,null,null,null,"  ",{"$f":"IFERROR(HLOOKUP(O108,Juges!$1:$22,22,FALSE),\"\")","v":""},{"$f":"+IF(OR(LEFT($T108,1)=\"I\",LEFT($T108,1)=\"R\"),VLOOKUP($T108,'Paramétrage des points'!$U:$V,2,FALSE),0)","v":0},{"$f":"IF(ISBLANK(P108),0,IFERROR(VLOOKUP(P108,'Résultat final'!D:L,9,FALSE),0))","v":0}]
[null,null,null,null,null,null,"",null,null,null,{"$f":"IF(A109=\"\",\"\",VLOOKUP(J109,Clubs!A:B,2,FALSE))","v":""},null,null,"",null,null,null,null,"  ",{"$f":"IFERROR(HLOOKUP(O109,Juges!$1:$22,22,FALSE),\"\")","v":""},{"$f":"+IF(OR(LEFT($T109,1)=\"I\",LEFT($T109,1)=\"R\"),VLOOKUP($T109,'Paramétrage des points'!$U:$V,2,FALSE),0)","v":0},{"$f":"IF(ISBLANK(P109),0,IFERROR(VLOOKUP(P109,'Résultat final'!D:L,9,FALSE),0))","v":0}]
[null,null,null,null,null,null,"",null,null,null,{"$f":"IF(A110=\"\",\"\",VLOOKUP(J110,Clubs!A:B,2,FALSE))","v":""},null,null,"",null,null,null,null,"  ",{"$f":"IFERROR(HLOOKUP(O110,Juges!$1:$22,22,FALSE),\"\")","v":""},{"$f":"+IF(OR(LEFT($T110,1)=\"I\",LEFT($T110,1)=\"R\"),VLOOKUP($T110,'Paramétrage des points'!$U:$V,2,FALSE),0)","v":0},{"$f":"IF(ISBLANK(P110),0,IFERROR(VLOOKUP(P110,'Résultat final'!D:L,9,FALSE),0))","v":0}]
[null,null,null,null,null,null,"",null,null,null,{"$f":"IF(A111=\"\",\"\",VLOOKUP(J111,Clubs!A:B,2,FALSE))","v":""},null,null,"",null,null,null,null,"  ",{"$f":"IFERROR(HLOOKUP(O111,Juges!$1:$22,22,FALSE),\"\")","v":""},{"$f":"+IF(OR(LEFT($T111,1)=\"I\",LEFT($T111,1)=\"R\"),VLOOKUP($T111,'Paramétrage des points'!$U:$V,2,FALSE),0)","v":0},{"$f":"IF(ISBLANK(P111),0,IFERROR(VLOOKUP(P111,'Résultat final'!D:L,9,FALSE),0))","v":0}]
[null,null,null,null,null,null,"",null,null,null,{"$f":"IF(A112=\"\",\"\",VLOOKUP(J112,Clubs!A:B,2,FALSE))","v":""},null,null,"",null,null,null,null,"  ",{"$f":"IFERROR(HLOOKUP(O112,Juges!$1:$22,22,FALSE),\"\")","v":""},{"$f":"+IF(OR(LEFT($T112,1)=\"I\",LEFT($T112,1)=\"R\"),VLOOKUP($T112,'Paramétrage des points'!$U:$V,2,FALSE),0)","v":0},{"$f":"IF(ISBLANK(P112),0,IFERROR(VLOOKUP(P112,'Résultat final'!D:L,9,FALSE),0))","v":0}]
[null,null,null,null,null,null,"",null,null,null,{"$f":"IF(A113=\"\",\"\",VLOOKUP(J113,Clubs!A:B,2,FALSE))","v":""},null,null,"",null,null,null,null,"  ",{"$f":"IFERROR(HLOOKUP(O113,Juges!$1:$22,22,FALSE),\"\")","v":""},{"$f":"+IF(OR(LEFT($T113,1)=\"I\",LEFT($T113,1)=\"R\"),VLOOKUP($T113,'Paramétrage des points'!$U:$V,2,FALSE),0)","v":0},{"$f":"IF(ISBLANK(P113),0,IFERROR(VLOOKUP(P113,'Résultat final'!D:L,9,FALSE),0))","v":0}]
[null,null,null,null,null,null,"",null,null,null,{"$f":"IF(A114=\"\",\"\",VLOOKUP(J114,Clubs!A:B,2,FALSE))","v":""},null,null,"",null,null,null,null,"  ",{"$f":"IFERROR(HLOOKUP(O114,Juges!$1:$22,22,FALSE),\"\")","v":""},{"$f":"+IF(OR(LEFT($T114,1)=\"I\",LEFT($T114,1)=\"R\"),VLOOKUP($T114,'Paramétrage des points'!$U:$V,2,FALSE),0)","v":0},{"$f":"IF(ISBLANK(P114),0,IFERROR(VLOOKUP(P114,'Résultat final'!D:L,9,FALSE),0))","v":0}]
[null,null,null,null,null,null,"",null,null,null,{"$f":"IF(A115=\"\",\"\",VLOOKUP(J115,Clubs!A:B,2,FALSE))","v":""},null,null,"",null,null,null,null,"  ",{"$f":"IFERROR(HLOOKUP(O115,Juges!$1:$22,22,FALSE),\"\")","v":""},{"$f":"+IF(OR(LEFT($T115,1)=\"I\",LEFT($T115,1)=\"R\"),VLOOKUP($T115,'Paramétrage des points'!$U:$V,2,FALSE),0)","v":0},{"$f":"IF(ISBLANK(P115),0,IFERROR(VLOOKUP(P115,'Résultat final'!D:L,9,FALSE),0))","v":0}]
[null,null,null,null,null,null,"",null,null,null,{"$f":"IF(A116=\"\",\"\",VLOOKUP(J116,Clubs!A:B,2,FALSE))","v":""},null,null,"",null,null,null,null,"  ",{"$f":"IFERROR(HLOOKUP(O116,Juges!$1:$22,22,FALSE),\"\")","v":""},{"$f":"+IF(OR(LEFT($T116,1)=\"I\",LEFT($T116,1)=\"R\"),VLOOKUP($T116,'Paramétrage des points'!$U:$V,2,FALSE),0)","v":0},{"$f":"IF(ISBLANK(P116),0,IFERROR(VLOOKUP(P116,'Résultat final'!D:L,9,FALSE),0))","v":0}]
[null,null,null,null,null,null,"",null,null,null,{"$f":"IF(A117=\"\",\"\",VLOOKUP(J117,Clubs!A:B,2,FALSE))","v":""},null,null,"",null,null,null,null,"  ",{"$f":"IFERROR(HLOOKUP(O117,Juges!$1:$22,22,FALSE),\"\")","v":""},{"$f":"+IF(OR(LEFT($T117,1)=\"I\",LEFT($T117,1)=\"R\"),VLOOKUP($T117,'Paramétrage des points'!$U:$V,2,FALSE),0)","v":0},{"$f":"IF(ISBLANK(P117),0,IFERROR(VLOOKUP(P117,'Résultat final'!D:L,9,FALSE),0))","v":0}]
[null,null,null,null,null,null,"",null,null,null,{"$f":"IF(A118=\"\",\"\",VLOOKUP(J118,Clubs!A:B,2,FALSE))","v":""},null,null,"",null,null,null,null,"  ",{"$f":"IFERROR(HLOOKUP(O118,Juges!$1:$22,22,FALSE),\"\")","v":""},{"$f":"+IF(OR(LEFT($T118,1)=\"I\",LEFT($T118,1)=\"R\"),VLOOKUP($T118,'Paramétrage des points'!$U:$V,2,FALSE),0)","v":0},{"$f":"IF(ISBLANK(P118),0,IFERROR(VLOOKUP(P118,'Résultat final'!D:L,9,FALSE),0))","v":0}]
[null,null,null,null,null,null,"",null,null,null,{"$f":"IF(A119=\"\",\"\",VLOOKUP(J119,Clubs!A:B,2,FALSE))","v":""},null,null,"",null,null,null,null,"  ",{"$f":"IFERROR(HLOOKUP(O119,Juges!$1:$22,22,FALSE),\"\")","v":""},{"$f":"+IF(OR(LEFT($T119,1)=\"I\",LEFT($T119,1)=\"R\"),VLOOKUP($T119,'Paramétrage des points'!$U:$V,2,FALSE),0)","v":0},{"$f":"IF(ISBLANK(P119),0,IFERROR(VLOOKUP(P119,'Résultat final'!D:L,9,FALSE),0))","v":0}]
[null,null,null,null,null,null,"",null,null,null,{"$f":"IF(A120=\"\",\"\",VLOOKUP(J120,Clubs!A:B,2,FALSE))","v":""},null,null,"",null,null,null,null,"  ",{"$f":"IFERROR(HLOOKUP(O120,Juges!$1:$22,22,FALSE),\"\")","v":""},{"$f":"+IF(OR(LEFT($T120,1)=\"I\",LEFT($T120,1)=\"R\"),VLOOKUP($T120,'Paramétrage des points'!$U:$V,2,FALSE),0)","v":0},{"$f":"IF(ISBLANK(P120),0,IFERROR(VLOOKUP(P120,'Résultat final'!D:L,9,FALSE),0))","v":0}]
[null,null,null,null,null,null,"",null,null,null,{"$f":"IF(A121=\"\",\"\",VLOOKUP(J121,Clubs!A:B,2,FALSE))","v":""},null,null,"",null,null,null,null,"  ",{"$f":"IFERROR(HLOOKUP(O121,Juges!$1:$22,22,FALSE),\"\")","v":""},{"$f":"+IF(OR(LEFT($T121,1)=\"I\",LEFT($T121,1)=\"R\"),VLOOKUP($T121,'Paramétrage des points'!$U:$V,2,FALSE),0)","v":0},{"$f":"IF(ISBLANK(P121),0,IFERROR(VLOOKUP(P121,'Résultat final'!D:L,9,FALSE),0))","v":0}]
[null,null,null,null,null,null,"",null,null,null,{"$f":"IF(A122=\"\",\"\",VLOOKUP(J122,Clubs!A:B,2,FALSE))","v":""},null,null,"",null,null,null,null,"  ",{"$f":"IFERROR(HLOOKUP(O122,Juges!$1:$22,22,FALSE),\"\")","v":""},{"$f":"+IF(OR(LEFT($T122,1)=\"I\",LEFT($T122,1)=\"R\"),VLOOKUP($T122,'Paramétrage des points'!$U:$V,2,FALSE),0)","v":0},{"$f":"IF(ISBLANK(P122),0,IFERROR(VLOOKUP(P122,'Résultat final'!D:L,9,FALSE),0))","v":0}]
[null,null,null,null,null,null,"",null,null,null,{"$f":"IF(A123=\"\",\"\",VLOOKUP(J123,Clubs!A:B,2,FALSE))","v":""},null,null,"",null,null,null,null,"  ",{"$f":"IFERROR(HLOOKUP(O123,Juges!$1:$22,22,FALSE),\"\")","v":""},{"$f":"+IF(OR(LEFT($T123,1)=\"I\",LEFT($T123,1)=\"R\"),VLOOKUP($T123,'Paramétrage des points'!$U:$V,2,FALSE),0)","v":0},{"$f":"IF(ISBLANK(P123),0,IFERROR(VLOOKUP(P123,'Résultat final'!D:L,9,FALSE),0))","v":0}]
[null,null,null,null,null,null,"",null,null,null,{"$f":"IF(A124=\"\",\"\",VLOOKUP(J124,Clubs!A:B,2,FALSE))","v":""},null,null,"",null,null,null,null,"  ",{"$f":"IFERROR(HLOOKUP(O124,Juges!$1:$22,22,FALSE),\"\")","v":""},{"$f":"+IF(OR(LEFT($T124,1)=\"I\",LEFT($T124,1)=\"R\"),VLOOKUP($T124,'Paramétrage des points'!$U:$V,2,FALSE),0)","v":0},{"$f":"IF(ISBLANK(P124),0,IFERROR(VLOOKUP(P124,'Résultat final'!D:L,9,FALSE),0))","v":0}]
[null,null,null,null,null,null,"",null,null,null,{"$f":"IF(A125=\"\",\"\",VLOOKUP(J125,Clubs!A:B,2,FALSE))","v":""},null,null,"",null,null,null,null,"  ",{"$f":"IFERROR(HLOOKUP(O125,Juges!$1:$22,22,FALSE),\"\")","v":""},{"$f":"+IF(OR(LEFT($T125,1)=\"I\",LEFT($T125,1)=\"R\"),VLOOKUP($T125,'Paramétrage des points'!$U:$V,2,FALSE),0)","v":0},{"$f":"IF(ISBLANK(P125),0,IFERROR(VLOOKUP(P125,'Résultat final'!D:L,9,FALSE),0))","v":0}]
[null,null,null,null,null,null,"",null,null,null,{"$f":"IF(A126=\"\",\"\",VLOOKUP(J126,Clubs!A:B,2,FALSE))","v":""},null,null,"",null,null,null,null,"  ",{"$f":"IFERROR(HLOOKUP(O126,Juges!$1:$22,22,FALSE),\"\")","v":""},{"$f":"+IF(OR(LEFT($T126,1)=\"I\",LEFT($T126,1)=\"R\"),VLOOKUP($T126,'Paramétrage des points'!$U:$V,2,FALSE),0)","v":0},{"$f":"IF(ISBLANK(P126),0,IFERROR(VLOOKUP(P126,'Résultat final'!D:L,9,FALSE),0))","v":0}]
[null,null,null,null,null,null,"",null,null,null,{"$f":"IF(A127=\"\",\"\",VLOOKUP(J127,Clubs!A:B,2,FALSE))","v":""},null,null,"",null,null,null,null,"  ",{"$f":"IFERROR(HLOOKUP(O127,Juges!$1:$22,22,FALSE),\"\")","v":""},{"$f":"+IF(OR(LEFT($T127,1)=\"I\",LEFT($T127,1)=\"R\"),VLOOKUP($T127,'Paramétrage des points'!$U:$V,2,FALSE),0)","v":0},{"$f":"IF(ISBLANK(P127),0,IFERROR(VLOOKUP(P127,'Résultat final'!D:L,9,FALSE),0))","v":0}]
[null,null,null,null,null,null,"",null,null,null,{"$f":"IF(A128=\"\",\"\",VLOOKUP(J128,Clubs!A:B,2,FALSE))","v":""},null,null,"",null,null,null,null,"  ",{"$f":"IFERROR(HLOOKUP(O128,Juges!$1:$22,22,FALSE),\"\")","v":""},{"$f":"+IF(OR(LEFT($T128,1)=\"I\",LEFT($T128,1)=\"R\"),VLOOKUP($T128,'Paramétrage des points'!$U:$V,2,FALSE),0)","v":0},{"$f":"IF(ISBLANK(P128),0,IFERROR(VLOOKUP(P128,'Résultat final'!D:L,9,FALSE),0))","v":0}]
[null,null,null,null,null,null,"",null,null,null,{"$f":"IF(A129=\"\",\"\",VLOOKUP(J129,Clubs!A:B,2,FALSE))","v":""},null,null,"",null,null,null,null,"  ",{"$f":"IFERROR(HLOOKUP(O129,Juges!$1:$22,22,FALSE),\"\")","v":""},{"$f":"+IF(OR(LEFT($T129,1)=\"I\",LEFT($T129,1)=\"R\"),VLOOKUP($T129,'Paramétrage des points'!$U:$V,2,FALSE),0)","v":0},{"$f":"IF(ISBLANK(P129),0,IFERROR(VLOOKUP(P129,'Résultat final'!D:L,9,FALSE),0))","v":0}]
[null,null,null,null,null,null,{"$f":"IF(ISBLANK(A130),\"\",IF(ISERROR(DATEDIF(E130,saison,\"y\")),\"\",(DATEDIF(E130,saison,\"y\"))))","v":""},null,null,null,{"$f":"IF(A130=\"\",\"\",VLOOKUP(J130,Clubs!A:B,2,FALSE))","v":""},null,null,"",null,null,null,null,"  ",{"$f":"IFERROR(HLOOKUP(O130,Juges!$1:$22,22,FALSE),\"\")","v":""},{"$f":"+IF(OR(LEFT($T130,1)=\"I\",LEFT($T130,1)=\"R\"),VLOOKUP($T130,'Paramétrage des points'!$U:$V,2,FALSE),0)","v":0},{"$f":"IF(ISBLANK(P130),0,IFERROR(VLOOKUP(P130,'Résultat final'!D:L,9,FALSE),0))","v":0}]
[null,null,null,null,null,null,"",null,null,null,{"$f":"IF(A131=\"\",\"\",VLOOKUP(J131,Clubs!A:B,2,FALSE))","v":""},null,null,{"$f":"IF(F131=\"\",\"\",IF(F131<16,\"ERREUR\",IF(AND(F131<18,C131=\"F\"),\"CF\",IF(F131<21,\"JUNIOR\", IF(F131<23,IF(C131=\"F\",\"SENIOR\",\"ESPOIR\"),IF(F131<40,\"SENIOR\",IF(C131=\"F\",\"VETERAN\",IF(F131<50,\"VET1\",IF(F131<60,\"VET2\",\"VET3\")))))))))","v":""},null,null,null,null,{"$f":"A131&\"  \"&B131","v":"  "},{"$f":"IFERROR(HLOOKUP(O131,Juges!$1:$22,22,FALSE),\"\")","v":""},{"$f":"+IF(OR(LEFT($T131,1)=\"I\",LEFT($T131,1)=\"R\"),VLOOKUP($T131,'Paramétrage des points'!$U:$V,2,FALSE),0)","v":0},{"$f":"IF(ISBLANK(P131),0,IFERROR(VLOOKUP(P131,'Résultat final'!D:L,9,FALSE),0))","v":0}]
[null,null,null,null,null,null,"",null,null,null,{"$f":"IF(A132=\"\",\"\",VLOOKUP(J132,Clubs!A:B,2,FALSE))","v":""},null,null,"",null,null,null,null,"  ",{"$f":"IFERROR(HLOOKUP(O132,Juges!$1:$22,22,FALSE),\"\")","v":""},{"$f":"+IF(OR(LEFT($T132,1)=\"I\",LEFT($T132,1)=\"R\"),VLOOKUP($T132,'Paramétrage des points'!$U:$V,2,FALSE),0)","v":0},{"$f":"IF(ISBLANK(P132),0,IFERROR(VLOOKUP(P132,'Résultat final'!D:L,9,FALSE),0))","v":0}]
[null,null,null,null,null,null,"",null,null,null,{"$f":"IF(A133=\"\",\"\",VLOOKUP(J133,Clubs!A:B,2,FALSE))","v":""},null,null,"",null,null,null,null,"  ",{"$f":"IFERROR(HLOOKUP(O133,Juges!$1:$22,22,FALSE),\"\")","v":""},{"$f":"+IF(OR(LEFT($T133,1)=\"I\",LEFT($T133,1)=\"R\"),VLOOKUP($T133,'Paramétrage des points'!$U:$V,2,FALSE),0)","v":0},{"$f":"IF(ISBLANK(P133),0,IFERROR(VLOOKUP(P133,'Résultat final'!D:L,9,FALSE),0))","v":0}]
[null,null,null,null,null,null,"",null,null,null,{"$f":"IF(A134=\"\",\"\",VLOOKUP(J134,Clubs!A:B,2,FALSE))","v":""},null,null,"",null,null,null,null,"  ",{"$f":"IFERROR(HLOOKUP(O134,Juges!$1:$22,22,FALSE),\"\")","v":""},{"$f":"+IF(OR(LEFT($T134,1)=\"I\",LEFT($T134,1)=\"R\"),VLOOKUP($T134,'Paramétrage des points'!$U:$V,2,FALSE),0)","v":0},{"$f":"IF(ISBLANK(P134),0,IFERROR(VLOOKUP(P134,'Résultat final'!D:L,9,FALSE),0))","v":0}]
[null,null,null,null,null,null,"",null,null,null,{"$f":"IF(A135=\"\",\"\",VLOOKUP(J135,Clubs!A:B,2,FALSE))","v":""},null,null,"",null,null,null,null,"  ",{"$f":"IFERROR(HLOOKUP(O135,Juges!$1:$22,22,FALSE),\"\")","v":""},{"$f":"+IF(OR(LEFT($T135,1)=\"I\",LEFT($T135,1)=\"R\"),VLOOKUP($T135,'Paramétrage des points'!$U:$V,2,FALSE),0)","v":0},{"$f":"IF(ISBLANK(P135),0,IFERROR(VLOOKUP(P135,'Résultat final'!D:L,9,FALSE),0))","v":0}]
[null,null,null,null,null,null,"",null,null,null,{"$f":"IF(A136=\"\",\"\",VLOOKUP(J136,Clubs!A:B,2,FALSE))","v":""},null,null,"",null,null,null,null,"  ",{"$f":"IFERROR(HLOOKUP(O136,Juges!$1:$22,22,FALSE),\"\")","v":""},{"$f":"+IF(OR(LEFT($T136,1)=\"I\",LEFT($T136,1)=\"R\"),VLOOKUP($T136,'Paramétrage des points'!$U:$V,2,FALSE),0)","v":0},{"$f":"IF(ISBLANK(P136),0,IFERROR(VLOOKUP(P136,'Résultat final'!D:L,9,FALSE),0))","v":0}]
[null,null,null,null,null,null,"",null,null,null,{"$f":"IF(A137=\"\",\"\",VLOOKUP(J137,Clubs!A:B,2,FALSE))","v":""},null,null,"",null,null,null,null,"  ",{"$f":"IFERROR(HLOOKUP(O137,Juges!$1:$22,22,FALSE),\"\")","v":""},{"$f":"+IF(OR(LEFT($T137,1)=\"I\",LEFT($T137,1)=\"R\"),VLOOKUP($T137,'Paramétrage des points'!$U:$V,2,FALSE),0)","v":0},{"$f":"IF(ISBLANK(P137),0,IFERROR(VLOOKUP(P137,'Résultat final'!D:L,9,FALSE),0))","v":0}]
[null,null,null,null,null,null,"",null,null,null,{"$f":"IF(A138=\"\",\"\",VLOOKUP(J138,Clubs!A:B,2,FALSE))","v":""},null,null,"",null,null,null,null,"  ",{"$f":"IFERROR(HLOOKUP(O138,Juges!$1:$22,22,FALSE),\"\")","v":""},{"$f":"+IF(OR(LEFT($T138,1)=\"I\",LEFT($T138,1)=\"R\"),VLOOKUP($T138,'Paramétrage des points'!$U:$V,2,FALSE),0)","v":0},{"$f":"IF(ISBLANK(P138),0,IFERROR(VLOOKUP(P138,'Résultat final'!D:L,9,FALSE),0))","v":0}]
[null,null,null,null,null,null,"",null,null,null,{"$f":"IF(A139=\"\",\"\",VLOOKUP(J139,Clubs!A:B,2,FALSE))","v":""},null,null,"",null,null,null,null,"  ",{"$f":"IFERROR(HLOOKUP(O139,Juges!$1:$22,22,FALSE),\"\")","v":""},{"$f":"+IF(OR(LEFT($T139,1)=\"I\",LEFT($T139,1)=\"R\"),VLOOKUP($T139,'Paramétrage des points'!$U:$V,2,FALSE),0)","v":0},{"$f":"IF(ISBLANK(P139),0,IFERROR(VLOOKUP(P139,'Résultat final'!D:L,9,FALSE),0))","v":0}]
[null,null,null,null,null,null,"",null,null,null,{"$f":"IF(A140=\"\",\"\",VLOOKUP(J140,Clubs!A:B,2,FALSE))","v":""},null,null,"",null,null,null,null,"  ",{"$f":"IFERROR(HLOOKUP(O140,Juges!$1:$22,22,FALSE),\"\")","v":""},{"$f":"+IF(OR(LEFT($T140,1)=\"I\",LEFT($T140,1)=\"R\"),VLOOKUP($T140,'Paramétrage des points'!$U:$V,2,FALSE),0)","v":0},{"$f":"IF(ISBLANK(P140),0,IFERROR(VLOOKUP(P140,'Résultat final'!D:L,9,FALSE),0))","v":0}]
[null,null,null,null,null,null,"",null,null,null,{"$f":"IF(A141=\"\",\"\",VLOOKUP(J141,Clubs!A:B,2,FALSE))","v":""},null,null,"",null,null,null,null,"  ",{"$f":"IFERROR(HLOOKUP(O141,Juges!$1:$22,22,FALSE),\"\")","v":""},{"$f":"+IF(OR(LEFT($T141,1)=\"I\",LEFT($T141,1)=\"R\"),VLOOKUP($T141,'Paramétrage des points'!$U:$V,2,FALSE),0)","v":0},{"$f":"IF(ISBLANK(P141),0,IFERROR(VLOOKUP(P141,'Résultat final'!D:L,9,FALSE),0))","v":0}]
[null,null,null,null,null,null,"",null,null,null,{"$f":"IF(A142=\"\",\"\",VLOOKUP(J142,Clubs!A:B,2,FALSE))","v":""},null,null,"",null,null,null,null,"  ",{"$f":"IFERROR(HLOOKUP(O142,Juges!$1:$22,22,FALSE),\"\")","v":""},{"$f":"+IF(OR(LEFT($T142,1)=\"I\",LEFT($T142,1)=\"R\"),VLOOKUP($T142,'Paramétrage des points'!$U:$V,2,FALSE),0)","v":0},{"$f":"IF(ISBLANK(P142),0,IFERROR(VLOOKUP(P142,'Résultat final'!D:L,9,FALSE),0))","v":0}]
[null,null,null,null,null,null,"",null,null,null,{"$f":"IF(A143=\"\",\"\",VLOOKUP(J143,Clubs!A:B,2,FALSE))","v":""},null,null,"",null,null,null,null,"  ",{"$f":"IFERROR(HLOOKUP(O143,Juges!$1:$22,22,FALSE),\"\")","v":""},{"$f":"+IF(OR(LEFT($T143,1)=\"I\",LEFT($T143,1)=\"R\"),VLOOKUP($T143,'Paramétrage des points'!$U:$V,2,FALSE),0)","v":0},{"$f":"IF(ISBLANK(P143),0,IFERROR(VLOOKUP(P143,'Résultat final'!D:L,9,FALSE),0))","v":0}]
[null,null,null,null,null,null,"",null,null,null,{"$f":"IF(A144=\"\",\"\",VLOOKUP(J144,Clubs!A:B,2,FALSE))","v":""},null,null,"",null,null,null,null,"  ",{"$f":"IFERROR(HLOOKUP(O144,Juges!$1:$22,22,FALSE),\"\")","v":""},{"$f":"+IF(OR(LEFT($T144,1)=\"I\",LEFT($T144,1)=\"R\"),VLOOKUP($T144,'Paramétrage des points'!$U:$V,2,FALSE),0)","v":0},{"$f":"IF(ISBLANK(P144),0,IFERROR(VLOOKUP(P144,'Résultat final'!D:L,9,FALSE),0))","v":0}]
[null,null,null,null,null,null,"",null,null,null,{"$f":"IF(A145=\"\",\"\",VLOOKUP(J145,Clubs!A:B,2,FALSE))","v":""},null,null,"",null,null,null,null,"  ",{"$f":"IFERROR(HLOOKUP(O145,Juges!$1:$22,22,FALSE),\"\")","v":""},{"$f":"+IF(OR(LEFT($T145,1)=\"I\",LEFT($T145,1)=\"R\"),VLOOKUP($T145,'Paramétrage des points'!$U:$V,2,FALSE),0)","v":0},{"$f":"IF(ISBLANK(P145),0,IFERROR(VLOOKUP(P145,'Résultat final'!D:L,9,FALSE),0))","v":0}]
[null,null,null,null,null,null,"",null,null,null,{"$f":"IF(A146=\"\",\"\",VLOOKUP(J146,Clubs!A:B,2,FALSE))","v":""},null,null,"",null,null,null,null,"  ",{"$f":"IFERROR(HLOOKUP(O146,Juges!$1:$22,22,FALSE),\"\")","v":""},{"$f":"+IF(OR(LEFT($T146,1)=\"I\",LEFT($T146,1)=\"R\"),VLOOKUP($T146,'Paramétrage des points'!$U:$V,2,FALSE),0)","v":0},{"$f":"IF(ISBLANK(P146),0,IFERROR(VLOOKUP(P146,'Résultat final'!D:L,9,FALSE),0))","v":0}]
[null,null,null,null,null,null,"",null,null,null,{"$f":"IF(A147=\"\",\"\",VLOOKUP(J147,Clubs!A:B,2,FALSE))","v":""},null,null,"",null,null,null,null,"  ",{"$f":"IFERROR(HLOOKUP(O147,Juges!$1:$22,22,FALSE),\"\")","v":""},{"$f":"+IF(OR(LEFT($T147,1)=\"I\",LEFT($T147,1)=\"R\"),VLOOKUP($T147,'Paramétrage des points'!$U:$V,2,FALSE),0)","v":0},{"$f":"IF(ISBLANK(P147),0,IFERROR(VLOOKUP(P147,'Résultat final'!D:L,9,FALSE),0))","v":0}]
[null,null,null,null,null,null,"",null,null,null,{"$f":"IF(A148=\"\",\"\",VLOOKUP(J148,Clubs!A:B,2,FALSE))","v":""},null,null,"",null,null,null,null,"  ",{"$f":"IFERROR(HLOOKUP(O148,Juges!$1:$22,22,FALSE),\"\")","v":""},{"$f":"+IF(OR(LEFT($T148,1)=\"I\",LEFT($T148,1)=\"R\"),VLOOKUP($T148,'Paramétrage des points'!$U:$V,2,FALSE),0)","v":0},{"$f":"IF(ISBLANK(P148),0,IFERROR(VLOOKUP(P148,'Résultat final'!D:L,9,FALSE),0))","v":0}]
[null,null,null,null,null,null,"",null,null,null,{"$f":"IF(A149=\"\",\"\",VLOOKUP(J149,Clubs!A:B,2,FALSE))","v":""},null,null,"",null,null,null,null,"  ",{"$f":"IFERROR(HLOOKUP(O149,Juges!$1:$22,22,FALSE),\"\")","v":""},{"$f":"+IF(OR(LEFT($T149,1)=\"I\",LEFT($T149,1)=\"R\"),VLOOKUP($T149,'Paramétrage des points'!$U:$V,2,FALSE),0)","v":0},{"$f":"IF(ISBLANK(P149),0,IFERROR(VLOOKUP(P149,'Résultat final'!D:L,9,FALSE),0))","v":0}]
[null,null,null,null,null,null,"",null,null,null,{"$f":"IF(A150=\"\",\"\",VLOOKUP(J150,Clubs!A:B,2,FALSE))","v":""},null,null,"",null,null,null,null,"  ",{"$f":"IFERROR(HLOOKUP(O150,Juges!$1:$22,22,FALSE),\"\")","v":""},{"$f":"+IF(OR(LEFT($T150,1)=\"I\",LEFT($T150,1)=\"R\"),VLOOKUP($T150,'Paramétrage des points'!$U:$V,2,FALSE),0)","v":0},{"$f":"IF(ISBLANK(P150),0,IFERROR(VLOOKUP(P150,'Résultat final'!D:L,9,FALSE),0))","v":0}]
[null,null,null,null,null,null,"",null,null,null,{"$f":"IF(A151=\"\",\"\",VLOOKUP(J151,Clubs!A:B,2,FALSE))","v":""},null,null,"",null,null,null,null,"  ",{"$f":"IFERROR(HLOOKUP(O151,Juges!$1:$22,22,FALSE),\"\")","v":""},{"$f":"+IF(OR(LEFT($T151,1)=\"I\",LEFT($T151,1)=\"R\"),VLOOKUP($T151,'Paramétrage des points'!$U:$V,2,FALSE),0)","v":0},{"$f":"IF(ISBLANK(P151),0,IFERROR(VLOOKUP(P151,'Résultat final'!D:L,9,FALSE),0))","v":0}]
[null,null,null,null,null,null,"",null,null,null,{"$f":"IF(A152=\"\",\"\",VLOOKUP(J152,Clubs!A:B,2,FALSE))","v":""},null,null,"",null,null,null,null,"  ",{"$f":"IFERROR(HLOOKUP(O152,Juges!$1:$22,22,FALSE),\"\")","v":""},{"$f":"+IF(OR(LEFT($T152,1)=\"I\",LEFT($T152,1)=\"R\"),VLOOKUP($T152,'Paramétrage des points'!$U:$V,2,FALSE),0)","v":0},{"$f":"IF(ISBLANK(P152),0,IFERROR(VLOOKUP(P152,'Résultat final'!D:L,9,FALSE),0))","v":0}]
[null,null,null,null,null,null,"",null,null,null,{"$f":"IF(A153=\"\",\"\",VLOOKUP(J153,Clubs!A:B,2,FALSE))","v":""},null,null,"",null,null,null,null,"  ",{"$f":"IFERROR(HLOOKUP(O153,Juges!$1:$22,22,FALSE),\"\")","v":""},{"$f":"+IF(OR(LEFT($T153,1)=\"I\",LEFT($T153,1)=\"R\"),VLOOKUP($T153,'Paramétrage des points'!$U:$V,2,FALSE),0)","v":0},{"$f":"IF(ISBLANK(P153),0,IFERROR(VLOOKUP(P153,'Résultat final'!D:L,9,FALSE),0))","v":0}]
[null,null,null,null,null,null,"",null,null,null,{"$f":"IF(A154=\"\",\"\",VLOOKUP(J154,Clubs!A:B,2,FALSE))","v":""},null,null,"",null,null,null,null,"  ",{"$f":"IFERROR(HLOOKUP(O154,Juges!$1:$22,22,FALSE),\"\")","v":""},{"$f":"+IF(OR(LEFT($T154,1)=\"I\",LEFT($T154,1)=\"R\"),VLOOKUP($T154,'Paramétrage des points'!$U:$V,2,FALSE),0)","v":0},{"$f":"IF(ISBLANK(P154),0,IFERROR(VLOOKUP(P154,'Résultat final'!D:L,9,FALSE),0))","v":0}]
[null,null,null,null,null,null,"",null,null,null,{"$f":"IF(A155=\"\",\"\",VLOOKUP(J155,Clubs!A:B,2,FALSE))","v":""},null,null,"",null,null,null,null,"  ",{"$f":"IFERROR(HLOOKUP(O155,Juges!$1:$22,22,FALSE),\"\")","v":""},{"$f":"+IF(OR(LEFT($T155,1)=\"I\",LEFT($T155,1)=\"R\"),VLOOKUP($T155,'Paramétrage des points'!$U:$V,2,FALSE),0)","v":0},{"$f":"IF(ISBLANK(P155),0,IFERROR(VLOOKUP(P155,'Résultat final'!D:L,9,FALSE),0))","v":0}]
[null,null,null,null,null,null,"",null,null,null,{"$f":"IF(A156=\"\",\"\",VLOOKUP(J156,Clubs!A:B,2,FALSE))","v":""},null,null,"",null,null,null,null,"  ",{"$f":"IFERROR(HLOOKUP(O156,Juges!$1:$22,22,FALSE),\"\")","v":""},{"$f":"+IF(OR(LEFT($T156,1)=\"I\",LEFT($T156,1)=\"R\"),VLOOKUP($T156,'Paramétrage des points'!$U:$V,2,FALSE),0)","v":0},{"$f":"IF(ISBLANK(P156),0,IFERROR(VLOOKUP(P156,'Résultat final'!D:L,9,FALSE),0))","v":0}]
[null,null,null,null,null,null,"",null,null,null,{"$f":"IF(A157=\"\",\"\",VLOOKUP(J157,Clubs!A:B,2,FALSE))","v":""},null,null,"",null,null,null,null,"  ",{"$f":"IFERROR(HLOOKUP(O157,Juges!$1:$22,22,FALSE),\"\")","v":""},{"$f":"+IF(OR(LEFT($T157,1)=\"I\",LEFT($T157,1)=\"R\"),VLOOKUP($T157,'Paramétrage des points'!$U:$V,2,FALSE),0)","v":0},{"$f":"IF(ISBLANK(P157),0,IFERROR(VLOOKUP(P157,'Résultat final'!D:L,9,FALSE),0))","v":0}]
[null,null,null,null,null,null,"",null,null,null,{"$f":"IF(A158=\"\",\"\",VLOOKUP(J158,Clubs!A:B,2,FALSE))","v":""},null,null,"",null,null,null,null,"  ",{"$f":"IFERROR(HLOOKUP(O158,Juges!$1:$22,22,FALSE),\"\")","v":""},{"$f":"+IF(OR(LEFT($T158,1)=\"I\",LEFT($T158,1)=\"R\"),VLOOKUP($T158,'Paramétrage des points'!$U:$V,2,FALSE),0)","v":0},{"$f":"IF(ISBLANK(P158),0,IFERROR(VLOOKUP(P158,'Résultat final'!D:L,9,FALSE),0))","v":0}]
[null,null,null,null,null,null,"",null,null,null,{"$f":"IF(A159=\"\",\"\",VLOOKUP(J159,Clubs!A:B,2,FALSE))","v":""},null,null,"",null,null,null,null,"  ",{"$f":"IFERROR(HLOOKUP(O159,Juges!$1:$22,22,FALSE),\"\")","v":""},{"$f":"+IF(OR(LEFT($T159,1)=\"I\",LEFT($T159,1)=\"R\"),VLOOKUP($T159,'Paramétrage des points'!$U:$V,2,FALSE),0)","v":0},{"$f":"IF(ISBLANK(P159),0,IFERROR(VLOOKUP(P159,'Résultat final'!D:L,9,FALSE),0))","v":0}]
[null,null,null,null,null,null,"",null,null,null,{"$f":"IF(A160=\"\",\"\",VLOOKUP(J160,Clubs!A:B,2,FALSE))","v":""},null,null,"",null,null,null,null,"  ",{"$f":"IFERROR(HLOOKUP(O160,Juges!$1:$22,22,FALSE),\"\")","v":""},{"$f":"+IF(OR(LEFT($T160,1)=\"I\",LEFT($T160,1)=\"R\"),VLOOKUP($T160,'Paramétrage des points'!$U:$V,2,FALSE),0)","v":0},{"$f":"IF(ISBLANK(P160),0,IFERROR(VLOOKUP(P160,'Résultat final'!D:L,9,FALSE),0))","v":0}]
[null,null,null,null,null,null,"",null,null,null,{"$f":"IF(A161=\"\",\"\",VLOOKUP(J161,Clubs!A:B,2,FALSE))","v":""},null,null,"",null,null,null,null,"  ",{"$f":"IFERROR(HLOOKUP(O161,Juges!$1:$22,22,FALSE),\"\")","v":""},{"$f":"+IF(OR(LEFT($T161,1)=\"I\",LEFT($T161,1)=\"R\"),VLOOKUP($T161,'Paramétrage des points'!$U:$V,2,FALSE),0)","v":0},{"$f":"IF(ISBLANK(P161),0,IFERROR(VLOOKUP(P161,'Résultat final'!D:L,9,FALSE),0))","v":0}]
[null,null,null,null,null,null,{"$f":"IF(ISBLANK(A162),\"\",IF(ISERROR(DATEDIF(E162,saison,\"y\")),\"\",(DATEDIF(E162,saison,\"y\"))))","v":""},null,null,null,{"$f":"IF(A162=\"\",\"\",VLOOKUP(J162,Clubs!A:B,2,FALSE))","v":""},null,null,"",null,null,null,null,"  ",{"$f":"IFERROR(HLOOKUP(O162,Juges!$1:$22,22,FALSE),\"\")","v":""},{"$f":"+IF(OR(LEFT($T162,1)=\"I\",LEFT($T162,1)=\"R\"),VLOOKUP($T162,'Paramétrage des points'!$U:$V,2,FALSE),0)","v":0},{"$f":"IF(ISBLANK(P162),0,IFERROR(VLOOKUP(P162,'Résultat final'!D:L,9,FALSE),0))","v":0}]
[null,null,null,null,null,null,"",null,null,null,{"$f":"IF(A163=\"\",\"\",VLOOKUP(J163,Clubs!A:B,2,FALSE))","v":""},null,null,"",null,null,null,null,"  ",{"$f":"IFERROR(HLOOKUP(O163,Juges!$1:$22,22,FALSE),\"\")","v":""},{"$f":"+IF(OR(LEFT($T163,1)=\"I\",LEFT($T163,1)=\"R\"),VLOOKUP($T163,'Paramétrage des points'!$U:$V,2,FALSE),0)","v":0},{"$f":"IF(ISBLANK(P163),0,IFERROR(VLOOKUP(P163,'Résultat final'!D:L,9,FALSE),0))","v":0}]
[null,null,null,null,null,null,"",null,null,null,{"$f":"IF(A164=\"\",\"\",VLOOKUP(J164,Clubs!A:B,2,FALSE))","v":""},null,null,"",null,null,null,null,"  ",{"$f":"IFERROR(HLOOKUP(O164,Juges!$1:$22,22,FALSE),\"\")","v":""},{"$f":"+IF(OR(LEFT($T164,1)=\"I\",LEFT($T164,1)=\"R\"),VLOOKUP($T164,'Paramétrage des points'!$U:$V,2,FALSE),0)","v":0},{"$f":"IF(ISBLANK(P164),0,IFERROR(VLOOKUP(P164,'Résultat final'!D:L,9,FALSE),0))","v":0}]
[null,null,null,null,null,null,"",null,null,null,{"$f":"IF(A165=\"\",\"\",VLOOKUP(J165,Clubs!A:B,2,FALSE))","v":""},null,null,"",null,null,null,null,"  ",{"$f":"IFERROR(HLOOKUP(O165,Juges!$1:$22,22,FALSE),\"\")","v":""},{"$f":"+IF(OR(LEFT($T165,1)=\"I\",LEFT($T165,1)=\"R\"),VLOOKUP($T165,'Paramétrage des points'!$U:$V,2,FALSE),0)","v":0},{"$f":"IF(ISBLANK(P165),0,IFERROR(VLOOKUP(P165,'Résultat final'!D:L,9,FALSE),0))","v":0}]
[null,null,null,null,null,null,"",null,null,null,{"$f":"IF(A166=\"\",\"\",VLOOKUP(J166,Clubs!A:B,2,FALSE))","v":""},null,null,"",null,null,null,null,"  ",{"$f":"IFERROR(HLOOKUP(O166,Juges!$1:$22,22,FALSE),\"\")","v":""},{"$f":"+IF(OR(LEFT($T166,1)=\"I\",LEFT($T166,1)=\"R\"),VLOOKUP($T166,'Paramétrage des points'!$U:$V,2,FALSE),0)","v":0},{"$f":"IF(ISBLANK(P166),0,IFERROR(VLOOKUP(P166,'Résultat final'!D:L,9,FALSE),0))","v":0}]
[null,null,null,null,null,null,"",null,null,null,{"$f":"IF(A167=\"\",\"\",VLOOKUP(J167,Clubs!A:B,2,FALSE))","v":""},null,null,"",null,null,null,null,"  ",{"$f":"IFERROR(HLOOKUP(O167,Juges!$1:$22,22,FALSE),\"\")","v":""},{"$f":"+IF(OR(LEFT($T167,1)=\"I\",LEFT($T167,1)=\"R\"),VLOOKUP($T167,'Paramétrage des points'!$U:$V,2,FALSE),0)","v":0},{"$f":"IF(ISBLANK(P167),0,IFERROR(VLOOKUP(P167,'Résultat final'!D:L,9,FALSE),0))","v":0}]
[null,null,null,null,null,null,"",null,null,null,{"$f":"IF(A168=\"\",\"\",VLOOKUP(J168,Clubs!A:B,2,FALSE))","v":""},null,null,"",null,null,null,null,"  ",{"$f":"IFERROR(HLOOKUP(O168,Juges!$1:$22,22,FALSE),\"\")","v":""},{"$f":"+IF(OR(LEFT($T168,1)=\"I\",LEFT($T168,1)=\"R\"),VLOOKUP($T168,'Paramétrage des points'!$U:$V,2,FALSE),0)","v":0},{"$f":"IF(ISBLANK(P168),0,IFERROR(VLOOKUP(P168,'Résultat final'!D:L,9,FALSE),0))","v":0}]
[null,null,null,null,null,null,"",null,null,null,{"$f":"IF(A169=\"\",\"\",VLOOKUP(J169,Clubs!A:B,2,FALSE))","v":""},null,null,"",null,null,null,null,"  ",{"$f":"IFERROR(HLOOKUP(O169,Juges!$1:$22,22,FALSE),\"\")","v":""},{"$f":"+IF(OR(LEFT($T169,1)=\"I\",LEFT($T169,1)=\"R\"),VLOOKUP($T169,'Paramétrage des points'!$U:$V,2,FALSE),0)","v":0},{"$f":"IF(ISBLANK(P169),0,IFERROR(VLOOKUP(P169,'Résultat final'!D:L,9,FALSE),0))","v":0}]
[null,null,null,null,null,null,"",null,null,null,{"$f":"IF(A170=\"\",\"\",VLOOKUP(J170,Clubs!A:B,2,FALSE))","v":""},null,null,"",null,null,null,null,"  ",{"$f":"IFERROR(HLOOKUP(O170,Juges!$1:$22,22,FALSE),\"\")","v":""},{"$f":"+IF(OR(LEFT($T170,1)=\"I\",LEFT($T170,1)=\"R\"),VLOOKUP($T170,'Paramétrage des points'!$U:$V,2,FALSE),0)","v":0},{"$f":"IF(ISBLANK(P170),0,IFERROR(VLOOKUP(P170,'Résultat final'!D:L,9,FALSE),0))","v":0}]
[null,null,null,null,null,null,"",null,null,null,{"$f":"IF(A171=\"\",\"\",VLOOKUP(J171,Clubs!A:B,2,FALSE))","v":""},null,null,"",null,null,null,null,"  ",{"$f":"IFERROR(HLOOKUP(O171,Juges!$1:$22,22,FALSE),\"\")","v":""},{"$f":"+IF(OR(LEFT($T171,1)=\"I\",LEFT($T171,1)=\"R\"),VLOOKUP($T171,'Paramétrage des points'!$U:$V,2,FALSE),0)","v":0},{"$f":"IF(ISBLANK(P171),0,IFERROR(VLOOKUP(P171,'Résultat final'!D:L,9,FALSE),0))","v":0}]
[null,null,null,null,null,null,"",null,null,null,{"$f":"IF(A172=\"\",\"\",VLOOKUP(J172,Clubs!A:B,2,FALSE))","v":""},null,null,"",null,null,null,null,"  ",{"$f":"IFERROR(HLOOKUP(O172,Juges!$1:$22,22,FALSE),\"\")","v":""},{"$f":"+IF(OR(LEFT($T172,1)=\"I\",LEFT($T172,1)=\"R\"),VLOOKUP($T172,'Paramétrage des points'!$U:$V,2,FALSE),0)","v":0},{"$f":"IF(ISBLANK(P172),0,IFERROR(VLOOKUP(P172,'Résultat final'!D:L,9,FALSE),0))","v":0}]
[null,null,null,null,null,null,"",null,null,null,{"$f":"IF(A173=\"\",\"\",VLOOKUP(J173,Clubs!A:B,2,FALSE))","v":""},null,null,"",null,null,null,null,"  ",{"$f":"IFERROR(HLOOKUP(O173,Juges!$1:$22,22,FALSE),\"\")","v":""},{"$f":"+IF(OR(LEFT($T173,1)=\"I\",LEFT($T173,1)=\"R\"),VLOOKUP($T173,'Paramétrage des points'!$U:$V,2,FALSE),0)","v":0},{"$f":"IF(ISBLANK(P173),0,IFERROR(VLOOKUP(P173,'Résultat final'!D:L,9,FALSE),0))","v":0}]
[null,null,null,null,null,null,"",null,null,null,{"$f":"IF(A174=\"\",\"\",VLOOKUP(J174,Clubs!A:B,2,FALSE))","v":""},null,null,"",null,null,null,null,"  ",{"$f":"IFERROR(HLOOKUP(O174,Juges!$1:$22,22,FALSE),\"\")","v":""},{"$f":"+IF(OR(LEFT($T174,1)=\"I\",LEFT($T174,1)=\"R\"),VLOOKUP($T174,'Paramétrage des points'!$U:$V,2,FALSE),0)","v":0},{"$f":"IF(ISBLANK(P174),0,IFERROR(VLOOKUP(P174,'Résultat final'!D:L,9,FALSE),0))","v":0}]
[null,null,null,null,null,null,"",null,null,null,{"$f":"IF(A175=\"\",\"\",VLOOKUP(J175,Clubs!A:B,2,FALSE))","v":""},null,null,"",null,null,null,null,"  ",{"$f":"IFERROR(HLOOKUP(O175,Juges!$1:$22,22,FALSE),\"\")","v":""},{"$f":"+IF(OR(LEFT($T175,1)=\"I\",LEFT($T175,1)=\"R\"),VLOOKUP($T175,'Paramétrage des points'!$U:$V,2,FALSE),0)","v":0},{"$f":"IF(ISBLANK(P175),0,IFERROR(VLOOKUP(P175,'Résultat final'!D:L,9,FALSE),0))","v":0}]
[null,null,null,null,null,null,"",null,null,null,{"$f":"IF(A176=\"\",\"\",VLOOKUP(J176,Clubs!A:B,2,FALSE))","v":""},null,null,"",null,null,null,null,"  ",{"$f":"IFERROR(HLOOKUP(O176,Juges!$1:$22,22,FALSE),\"\")","v":""},{"$f":"+IF(OR(LEFT($T176,1)=\"I\",LEFT($T176,1)=\"R\"),VLOOKUP($T176,'Paramétrage des points'!$U:$V,2,FALSE),0)","v":0},{"$f":"IF(ISBLANK(P176),0,IFERROR(VLOOKUP(P176,'Résultat final'!D:L,9,FALSE),0))","v":0}]
[null,null,null,null,null,null,"",null,null,null,{"$f":"IF(A177=\"\",\"\",VLOOKUP(J177,Clubs!A:B,2,FALSE))","v":""},null,null,"",null,null,null,null,"  ",{"$f":"IFERROR(HLOOKUP(O177,Juges!$1:$22,22,FALSE),\"\")","v":""},{"$f":"+IF(OR(LEFT($T177,1)=\"I\",LEFT($T177,1)=\"R\"),VLOOKUP($T177,'Paramétrage des points'!$U:$V,2,FALSE),0)","v":0},{"$f":"IF(ISBLANK(P177),0,IFERROR(VLOOKUP(P177,'Résultat final'!D:L,9,FALSE),0))","v":0}]
[null,null,null,null,null,null,"",null,null,null,{"$f":"IF(A178=\"\",\"\",VLOOKUP(J178,Clubs!A:B,2,FALSE))","v":""},null,null,"",null,null,null,null,"  ",{"$f":"IFERROR(HLOOKUP(O178,Juges!$1:$22,22,FALSE),\"\")","v":""},{"$f":"+IF(OR(LEFT($T178,1)=\"I\",LEFT($T178,1)=\"R\"),VLOOKUP($T178,'Paramétrage des points'!$U:$V,2,FALSE),0)","v":0},{"$f":"IF(ISBLANK(P178),0,IFERROR(VLOOKUP(P178,'Résultat final'!D:L,9,FALSE),0))","v":0}]
[null,null,null,null,null,null,"",null,null,null,{"$f":"IF(A179=\"\",\"\",VLOOKUP(J179,Clubs!A:B,2,FALSE))","v":""},null,null,"",null,null,null,null,"  ",{"$f":"IFERROR(HLOOKUP(O179,Juges!$1:$22,22,FALSE),\"\")","v":""},{"$f":"+IF(OR(LEFT($T179,1)=\"I\",LEFT($T179,1)=\"R\"),VLOOKUP($T179,'Paramétrage des points'!$U:$V,2,FALSE),0)","v":0},{"$f":"IF(ISBLANK(P179),0,IFERROR(VLOOKUP(P179,'Résultat final'!D:L,9,FALSE),0))","v":0}]
[null,null,null,null,null,null,"",null,null,null,{"$f":"IF(A180=\"\",\"\",VLOOKUP(J180,Clubs!A:B,2,FALSE))","v":""},null,null,"",null,null,null,null,"  ",{"$f":"IFERROR(HLOOKUP(O180,Juges!$1:$22,22,FALSE),\"\")","v":""},{"$f":"+IF(OR(LEFT($T180,1)=\"I\",LEFT($T180,1)=\"R\"),VLOOKUP($T180,'Paramétrage des points'!$U:$V,2,FALSE),0)","v":0},{"$f":"IF(ISBLANK(P180),0,IFERROR(VLOOKUP(P180,'Résultat final'!D:L,9,FALSE),0))","v":0}]
[null,null,null,null,null,null,"",null,null,null,{"$f":"IF(A181=\"\",\"\",VLOOKUP(J181,Clubs!A:B,2,FALSE))","v":""},null,null,"",null,null,null,null,"  ",{"$f":"IFERROR(HLOOKUP(O181,Juges!$1:$22,22,FALSE),\"\")","v":""},{"$f":"+IF(OR(LEFT($T181,1)=\"I\",LEFT($T181,1)=\"R\"),VLOOKUP($T181,'Paramétrage des points'!$U:$V,2,FALSE),0)","v":0},{"$f":"IF(ISBLANK(P181),0,IFERROR(VLOOKUP(P181,'Résultat final'!D:L,9,FALSE),0))","v":0}]
[null,null,null,null,null,null,"",null,null,null,{"$f":"IF(A182=\"\",\"\",VLOOKUP(J182,Clubs!A:B,2,FALSE))","v":""},null,null,"",null,null,null,null,"  ",{"$f":"IFERROR(HLOOKUP(O182,Juges!$1:$22,22,FALSE),\"\")","v":""},{"$f":"+IF(OR(LEFT($T182,1)=\"I\",LEFT($T182,1)=\"R\"),VLOOKUP($T182,'Paramétrage des points'!$U:$V,2,FALSE),0)","v":0},{"$f":"IF(ISBLANK(P182),0,IFERROR(VLOOKUP(P182,'Résultat final'!D:L,9,FALSE),0))","v":0}]
[null,null,null,null,null,null,"",null,null,null,{"$f":"IF(A183=\"\",\"\",VLOOKUP(J183,Clubs!A:B,2,FALSE))","v":""},null,null,"",null,null,null,null,"  ",{"$f":"IFERROR(HLOOKUP(O183,Juges!$1:$22,22,FALSE),\"\")","v":""},{"$f":"+IF(OR(LEFT($T183,1)=\"I\",LEFT($T183,1)=\"R\"),VLOOKUP($T183,'Paramétrage des points'!$U:$V,2,FALSE),0)","v":0},{"$f":"IF(ISBLANK(P183),0,IFERROR(VLOOKUP(P183,'Résultat final'!D:L,9,FALSE),0))","v":0}]
[null,null,null,null,null,null,"",null,null,null,{"$f":"IF(A184=\"\",\"\",VLOOKUP(J184,Clubs!A:B,2,FALSE))","v":""},null,null,"",null,null,null,null,"  ",{"$f":"IFERROR(HLOOKUP(O184,Juges!$1:$22,22,FALSE),\"\")","v":""},{"$f":"+IF(OR(LEFT($T184,1)=\"I\",LEFT($T184,1)=\"R\"),VLOOKUP($T184,'Paramétrage des points'!$U:$V,2,FALSE),0)","v":0},{"$f":"IF(ISBLANK(P184),0,IFERROR(VLOOKUP(P184,'Résultat final'!D:L,9,FALSE),0))","v":0}]
[null,null,null,null,null,null,"",null,null,null,{"$f":"IF(A185=\"\",\"\",VLOOKUP(J185,Clubs!A:B,2,FALSE))","v":""},null,null,"",null,null,null,null,"  ",{"$f":"IFERROR(HLOOKUP(O185,Juges!$1:$22,22,FALSE),\"\")","v":""},{"$f":"+IF(OR(LEFT($T185,1)=\"I\",LEFT($T185,1)=\"R\"),VLOOKUP($T185,'Paramétrage des points'!$U:$V,2,FALSE),0)","v":0},{"$f":"IF(ISBLANK(P185),0,IFERROR(VLOOKUP(P185,'Résultat final'!D:L,9,FALSE),0))","v":0}]
[null,null,null,null,null,null,"",null,null,null,{"$f":"IF(A186=\"\",\"\",VLOOKUP(J186,Clubs!A:B,2,FALSE))","v":""},null,null,"",null,null,null,null,"  ",{"$f":"IFERROR(HLOOKUP(O186,Juges!$1:$22,22,FALSE),\"\")","v":""},{"$f":"+IF(OR(LEFT($T186,1)=\"I\",LEFT($T186,1)=\"R\"),VLOOKUP($T186,'Paramétrage des points'!$U:$V,2,FALSE),0)","v":0},{"$f":"IF(ISBLANK(P186),0,IFERROR(VLOOKUP(P186,'Résultat final'!D:L,9,FALSE),0))","v":0}]
[null,null,null,null,null,null,"",null,null,null,{"$f":"IF(A187=\"\",\"\",VLOOKUP(J187,Clubs!A:B,2,FALSE))","v":""},null,null,"",null,null,null,null,"  ",{"$f":"IFERROR(HLOOKUP(O187,Juges!$1:$22,22,FALSE),\"\")","v":""},{"$f":"+IF(OR(LEFT($T187,1)=\"I\",LEFT($T187,1)=\"R\"),VLOOKUP($T187,'Paramétrage des points'!$U:$V,2,FALSE),0)","v":0},{"$f":"IF(ISBLANK(P187),0,IFERROR(VLOOKUP(P187,'Résultat final'!D:L,9,FALSE),0))","v":0}]
[null,null,null,null,null,null,"",null,null,null,{"$f":"IF(A188=\"\",\"\",VLOOKUP(J188,Clubs!A:B,2,FALSE))","v":""},null,null,"",null,null,null,null,"  ",{"$f":"IFERROR(HLOOKUP(O188,Juges!$1:$22,22,FALSE),\"\")","v":""},{"$f":"+IF(OR(LEFT($T188,1)=\"I\",LEFT($T188,1)=\"R\"),VLOOKUP($T188,'Paramétrage des points'!$U:$V,2,FALSE),0)","v":0},{"$f":"IF(ISBLANK(P188),0,IFERROR(VLOOKUP(P188,'Résultat final'!D:L,9,FALSE),0))","v":0}]
[null,null,null,null,null,null,"",null,null,null,{"$f":"IF(A189=\"\",\"\",VLOOKUP(J189,Clubs!A:B,2,FALSE))","v":""},null,null,"",null,null,null,null,"  ",{"$f":"IFERROR(HLOOKUP(O189,Juges!$1:$22,22,FALSE),\"\")","v":""},{"$f":"+IF(OR(LEFT($T189,1)=\"I\",LEFT($T189,1)=\"R\"),VLOOKUP($T189,'Paramétrage des points'!$U:$V,2,FALSE),0)","v":0},{"$f":"IF(ISBLANK(P189),0,IFERROR(VLOOKUP(P189,'Résultat final'!D:L,9,FALSE),0))","v":0}]
[null,null,null,null,null,null,"",null,null,null,{"$f":"IF(A190=\"\",\"\",VLOOKUP(J190,Clubs!A:B,2,FALSE))","v":""},null,null,"",null,null,null,null,"  ",{"$f":"IFERROR(HLOOKUP(O190,Juges!$1:$22,22,FALSE),\"\")","v":""},{"$f":"+IF(OR(LEFT($T190,1)=\"I\",LEFT($T190,1)=\"R\"),VLOOKUP($T190,'Paramétrage des points'!$U:$V,2,FALSE),0)","v":0},{"$f":"IF(ISBLANK(P190),0,IFERROR(VLOOKUP(P190,'Résultat final'!D:L,9,FALSE),0))","v":0}]
[null,null,null,null,null,null,"",null,null,null,{"$f":"IF(A191=\"\",\"\",VLOOKUP(J191,Clubs!A:B,2,FALSE))","v":""},null,null,"",null,null,null,null,"  ",{"$f":"IFERROR(HLOOKUP(O191,Juges!$1:$22,22,FALSE),\"\")","v":""},{"$f":"+IF(OR(LEFT($T191,1)=\"I\",LEFT($T191,1)=\"R\"),VLOOKUP($T191,'Paramétrage des points'!$U:$V,2,FALSE),0)","v":0},{"$f":"IF(ISBLANK(P191),0,IFERROR(VLOOKUP(P191,'Résultat final'!D:L,9,FALSE),0))","v":0}]
[null,null,null,null,null,null,"",null,null,null,{"$f":"IF(A192=\"\",\"\",VLOOKUP(J192,Clubs!A:B,2,FALSE))","v":""},null,null,"",null,null,null,null,"  ",{"$f":"IFERROR(HLOOKUP(O192,Juges!$1:$22,22,FALSE),\"\")","v":""},{"$f":"+IF(OR(LEFT($T192,1)=\"I\",LEFT($T192,1)=\"R\"),VLOOKUP($T192,'Paramétrage des points'!$U:$V,2,FALSE),0)","v":0},{"$f":"IF(ISBLANK(P192),0,IFERROR(VLOOKUP(P192,'Résultat final'!D:L,9,FALSE),0))","v":0}]
[null,null,null,null,null,null,"",null,null,null,{"$f":"IF(A193=\"\",\"\",VLOOKUP(J193,Clubs!A:B,2,FALSE))","v":""},null,null,"",null,null,null,null,"  ",{"$f":"IFERROR(HLOOKUP(O193,Juges!$1:$22,22,FALSE),\"\")","v":""},{"$f":"+IF(OR(LEFT($T193,1)=\"I\",LEFT($T193,1)=\"R\"),VLOOKUP($T193,'Paramétrage des points'!$U:$V,2,FALSE),0)","v":0},{"$f":"IF(ISBLANK(P193),0,IFERROR(VLOOKUP(P193,'Résultat final'!D:L,9,FALSE),0))","v":0}]
[null,null,null,null,null,null,{"$f":"IF(ISBLANK(A194),\"\",IF(ISERROR(DATEDIF(E194,saison,\"y\")),\"\",(DATEDIF(E194,saison,\"y\"))))","v":""},null,null,null,{"$f":"IF(A194=\"\",\"\",VLOOKUP(J194,Clubs!A:B,2,FALSE))","v":""},null,null,"",null,null,null,null,"  ",{"$f":"IFERROR(HLOOKUP(O194,Juges!$1:$22,22,FALSE),\"\")","v":""},{"$f":"+IF(OR(LEFT($T194,1)=\"I\",LEFT($T194,1)=\"R\"),VLOOKUP($T194,'Paramétrage des points'!$U:$V,2,FALSE),0)","v":0},{"$f":"IF(ISBLANK(P194),0,IFERROR(VLOOKUP(P194,'Résultat final'!D:L,9,FALSE),0))","v":0}]
[null,null,null,null,null,null,"",null,null,null,{"$f":"IF(A195=\"\",\"\",VLOOKUP(J195,Clubs!A:B,2,FALSE))","v":""},null,null,{"$f":"IF(F195=\"\",\"\",IF(F195<16,\"ERREUR\",IF(AND(F195<18,C195=\"F\"),\"CF\",IF(F195<21,\"JUNIOR\", IF(F195<23,IF(C195=\"F\",\"SENIOR\",\"ESPOIR\"),IF(F195<40,\"SENIOR\",IF(C195=\"F\",\"VETERAN\",IF(F195<50,\"VET1\",IF(F195<60,\"VET2\",\"VET3\")))))))))","v":""},null,null,null,null,{"$f":"A195&\"  \"&B195","v":"  "},{"$f":"IFERROR(HLOOKUP(O195,Juges!$1:$22,22,FALSE),\"\")","v":""},{"$f":"+IF(OR(LEFT($T195,1)=\"I\",LEFT($T195,1)=\"R\"),VLOOKUP($T195,'Paramétrage des points'!$U:$V,2,FALSE),0)","v":0},{"$f":"IF(ISBLANK(P195),0,IFERROR(VLOOKUP(P195,'Résultat final'!D:L,9,FALSE),0))","v":0}]
[null,null,null,null,null,null,"",null,null,null,{"$f":"IF(A196=\"\",\"\",VLOOKUP(J196,Clubs!A:B,2,FALSE))","v":""},null,null,"",null,null,null,null,"  ",{"$f":"IFERROR(HLOOKUP(O196,Juges!$1:$22,22,FALSE),\"\")","v":""},{"$f":"+IF(OR(LEFT($T196,1)=\"I\",LEFT($T196,1)=\"R\"),VLOOKUP($T196,'Paramétrage des points'!$U:$V,2,FALSE),0)","v":0},{"$f":"IF(ISBLANK(P196),0,IFERROR(VLOOKUP(P196,'Résultat final'!D:L,9,FALSE),0))","v":0}]
[null,null,null,null,null,null,"",null,null,null,{"$f":"IF(A197=\"\",\"\",VLOOKUP(J197,Clubs!A:B,2,FALSE))","v":""},null,null,"",null,null,null,null,"  ",{"$f":"IFERROR(HLOOKUP(O197,Juges!$1:$22,22,FALSE),\"\")","v":""},{"$f":"+IF(OR(LEFT($T197,1)=\"I\",LEFT($T197,1)=\"R\"),VLOOKUP($T197,'Paramétrage des points'!$U:$V,2,FALSE),0)","v":0},{"$f":"IF(ISBLANK(P197),0,IFERROR(VLOOKUP(P197,'Résultat final'!D:L,9,FALSE),0))","v":0}]
[null,null,null,null,null,null,"",null,null,null,{"$f":"IF(A198=\"\",\"\",VLOOKUP(J198,Clubs!A:B,2,FALSE))","v":""},null,null,"",null,null,null,null,"  ",{"$f":"IFERROR(HLOOKUP(O198,Juges!$1:$22,22,FALSE),\"\")","v":""},{"$f":"+IF(OR(LEFT($T198,1)=\"I\",LEFT($T198,1)=\"R\"),VLOOKUP($T198,'Paramétrage des points'!$U:$V,2,FALSE),0)","v":0},{"$f":"IF(ISBLANK(P198),0,IFERROR(VLOOKUP(P198,'Résultat final'!D:L,9,FALSE),0))","v":0}]
[null,null,null,null,null,null,"",null,null,null,{"$f":"IF(A199=\"\",\"\",VLOOKUP(J199,Clubs!A:B,2,FALSE))","v":""},null,null,"",null,null,null,null,"  ",{"$f":"IFERROR(HLOOKUP(O199,Juges!$1:$22,22,FALSE),\"\")","v":""},{"$f":"+IF(OR(LEFT($T199,1)=\"I\",LEFT($T199,1)=\"R\"),VLOOKUP($T199,'Paramétrage des points'!$U:$V,2,FALSE),0)","v":0},{"$f":"IF(ISBLANK(P199),0,IFERROR(VLOOKUP(P199,'Résultat final'!D:L,9,FALSE),0))","v":0}]
[null,null,null,null,null,null,"",null,null,null,{"$f":"IF(A200=\"\",\"\",VLOOKUP(J200,Clubs!A:B,2,FALSE))","v":""},null,null,"",null,null,null,null,"  ",{"$f":"IFERROR(HLOOKUP(O200,Juges!$1:$22,22,FALSE),\"\")","v":""},{"$f":"+IF(OR(LEFT($T200,1)=\"I\",LEFT($T200,1)=\"R\"),VLOOKUP($T200,'Paramétrage des points'!$U:$V,2,FALSE),0)","v":0},{"$f":"IF(ISBLANK(P200),0,IFERROR(VLOOKUP(P200,'Résultat final'!D:L,9,FALSE),0))","v":0}]
[null,null,null,null,null,null,"",null,null,null,{"$f":"IF(A201=\"\",\"\",VLOOKUP(J201,Clubs!A:B,2,FALSE))","v":""},null,null,"",null,null,null,null,"  ",{"$f":"IFERROR(HLOOKUP(O201,Juges!$1:$22,22,FALSE),\"\")","v":""},{"$f":"+IF(OR(LEFT($T201,1)=\"I\",LEFT($T201,1)=\"R\"),VLOOKUP($T201,'Paramétrage des points'!$U:$V,2,FALSE),0)","v":0},{"$f":"IF(ISBLANK(P201),0,IFERROR(VLOOKUP(P201,'Résultat final'!D:L,9,FALSE),0))","v":0}]

{"sheet":"pesée","index":6,"n_rows":12,"n_cols":8,"rows_kept":12,"cut":false,"hidden":false,"merged":[[0,0,0,7],[1,0,1,7],[3,0,3,7]]}
["FEDERATION FRANCAISE D'HALTEROPHILIE,"]
["MUSCULATION, FORCE ATHLETIQUE ET CULTURISME"]
[]
[" DISCIPLINE  CULTURISME"]
[]
["COMPETITION     ",{"$f":"+Parametres!B3","v":"Compétition magnifique"},null,null,"LIEU    ",null,{"$f":"+Parametres!B9","v":"Gymnase c'est ici"}]
[]
["DATE    ",{"$f":"+dateco","v":"2013-03-13"},null,null,"CATEGORIE",null,"FV"]
[null,null,null,null,{"$f":"G8","v":"FV"}]
["NOM","PRENOM","DATE-NAISSANCE","N° LICENCE","CLUB","COMITE","N° DOSSARD","POIDS"]
["FOURNIER","SYLVIE","1960-11-20",221849,"MUSCULATION HAUBOURDINOISE","NORD PAS DE CALAIS",20,59.1]
["MONCOURTOIS","CHRISTELLE","1960-11-20",141090,"ASC MUSCLE GYM SOISSONS","PICARDIE",33,"51.80"]

{"sheet":"notes juge","index":7,"n_rows":146,"n_cols":11,"rows_kept":146,"cut":false,"hidden":false,"merged":[[6,1,6,3],[9,2,9,3],[6,8,6,10],[9,9,9,10]]}
[]
[null,"Compétition :",{"$f":"résultat!C6","v":"Compétition magnifique"},null,null,null,null,null,"Compétition :",{"$f":"C2","v":"Compétition magnifique"}]
[]
[null,"Date :",{"$f":"résultat!C8","v":"2013-03-13"},null,null,null,null,null,"Date :",{"$f":"C4","v":"2013-03-13"}]
[]
[null,"Juge","N° 1",null,null,null,null,null,"Juge","N° 2"]
[null,{"$f":"résultat!C13","v":"GG"},null,null,null,null,null,null,{"$f":"résultat!D13","v":"FF"}]
[null,"Juge :",null,null,null,null,null,null,"Juge :"]
[]
[null,"Catégorie :",{"$f":"résultat!L8","v":"FV"},null,null,null,null,null,"Catégorie :",{"$f":"C10","v":"FV"}]
[]
[null,"N° dossard","classement","posing",null,null,null,null,"N° dossard","classement","posing"]
[null,{"$f":"résultat!A14","v":20},null,null,null,null,null,null,{"$f":"B13","v":20}]
[null,{"$f":"résultat!A15","v":33},null,null,null,null,null,null,33]
[null,{"$f":"résultat!A16","v":0},null,null,null,null,null,null,0]
[null,{"$f":"résultat!A17","v":0},null,null,null,null,null,null,0]
[null,{"$f":"résultat!A18","v":0},null,null,null,null,null,null,0]
[null,{"$f":"résultat!A19","v":0},null,null,null,null,null,null,0]
[null,{"$f":"résultat!A20","v":0},null,null,null,null,null,null,0]
[null,{"$f":"résultat!A21","v":0},null,null,null,null,null,null,0]
[null,{"$f":"résultat!A22","v":0},null,null,null,null,null,null,0]
[null,{"$f":"résultat!A23","v":0},null,null,null,null,null,null,0]
[null,{"$f":"résultat!A24","v":0},null,null,null,null,null,null,0]
[null,{"$f":"résultat!A25","v":0},null,null,null,null,null,null,0]
[null,{"$f":"résultat!A26","v":0},null,null,null,null,null,null,0]
[null,{"$f":"résultat!A27","v":0},null,null,null,null,null,null,0]
[null,{"$f":"résultat!A28","v":0},null,null,null,null,null,null,0]
[]
[null,"Signature,",null,null,null,null,null,null,"Signature,"]
[]
[]
[null,"Compétition :",{"$f":"C2","v":"Compétition magnifique"},null,null,null,null,null,"Compétition :",{"$f":"C2","v":"Compétition magnifique"}]
[]
[null,"Date :",{"$f":"C4","v":"2013-03-13"},null,null,null,null,null,"Date :",{"$f":"C4","v":"2013-03-13"}]
[]
[null,"Juge","N° 3",null,null,null,null,null,"Juge","N° 4"]
[null,{"$f":"résultat!E13","v":"EE"},null,null,null,null,null,null,{"$f":"résultat!F13","v":"HH"}]
[null,"Juge :",null,null,null,null,null,null,"Juge :"]
[]
[null,"Catégorie :",{"$f":"C10","v":"FV"},null,null,null,null,null,"Catégorie :",{"$f":"C10","v":"FV"}]
[]
[null,"N° dossard","classement",null,null,null,null,null,"N° dossard","classement"]
[null,{"$f":"B13","v":20},null,null,null,null,null,null,{"$f":"B13","v":20}]
[null,33,null,null,null,null,null,null,{"$f":"B14","v":33}]
[null,0,null,null,null,null,null,null,0]
[null,0,null,null,null,null,null,null,0]
[null,0,null,null,null,null,null,null,0]
[null,0,null,null,null,null,null,null,0]
[null,0,null,null,null,null,null,null,0]
[null,0,null,null,null,null,null,null,0]
[null,0,null,null,null,null,null,null,0]
[null,0,null,null,null,null,null,null,0]
[null,0,null,null,null,null,null,null,0]
[null,0,null,null,null,null,null,null,0]
[null,0,null,null,null,null,null,null,0]
[null,0,null,null,null,null,null,null,0]
[null,0,null,null,null,null,null,null,0]
[]
[null,"Signature,",null,null,null,null,null,null,"Signature,"]
[]
[null,"Compétition :",{"$f":"C2","v":"Compétition magnifique"},null,null,null,null,null,"Compétition :",{"$f":"C2","v":"Compétition magnifique"}]
[]
[null,"Date :",{"$f":"C4","v":"2013-03-13"},null,null,null,null,null,"Date :",{"$f":"C4","v":"2013-03-13"}]
[]
[null,"Juge","N° 5",null,null,null,null,null,"Juge","N° 6"]
[null,{"$f":"résultat!G13","v":"II"},null,null,null,null,null,null,{"$f":"résultat!H13","v":""}]
[null,"Juge :",null,null,null,null,null,null,"Juge :"]
[]
[null,"Catégorie :",{"$f":"C10","v":"FV"},null,null,null,null,null,"Catégorie :",{"$f":"C10","v":"FV"}]
[]
[null,"N° dossard","classement",null,null,null,null,null,"N° dossard","classement"]
[null,{"$f":"B13","v":20},null,null,null,null,null,null,{"$f":"B13","v":20}]
[null,{"$f":"B14","v":33},null,null,null,null,null,null,{"$f":"B14","v":33}]
[null,0,null,null,null,null,null,null,0]
[null,0,null,null,null,null,null,null,0]
[null,0,null,null,null,null,null,null,0]
[null,0,null,null,null,null,null,null,0]
[null,0,null,null,null,null,null,null,0]
[null,0,null,null,null,null,null,null,0]
[null,0,null,null,null,null,null,null,0]
[null,0,null,null,null,null,null,null,0]
[null,0,null,null,null,null,null,null,0]
[null,0,null,null,null,null,null,null,0]
[null,0,null,null,null,null,null,null,0]
[null,0,null,null,null,null,null,null,0]
[null,0,null,null,null,null,null,null,0]
[]
[null,"Signature,",null,null,null,null,null,null,"Signature,"]
[]
[null,"Compétition :",{"$f":"C2","v":"Compétition magnifique"},null,null,null,null,null,"Compétition :",{"$f":"C2","v":"Compétition magnifique"}]
[]
[null,"Date :",{"$f":"C4","v":"2013-03-13"},null,null,null,null,null,"Date :",{"$f":"C4","v":"2013-03-13"}]
[]
[null,"Juge","N° 7",null,null,null,null,null,"Juge","N° 8"]
[null,{"$f":"résultat!I13","v":""},null,null,null,null,null,null,{"$f":"résultat!J13","v":""}]
[null,"Juge :",null,null,null,null,null,null,"Juge :"]
[]
[null,"Catégorie :",{"$f":"C10","v":"FV"},null,null,null,null,null,"Catégorie :",{"$f":"C10","v":"FV"}]
[]
[null,"N° dossard","classement",null,null,null,null,null,"N° dossard","classement"]
[null,{"$f":"B13","v":20},null,null,null,null,null,null,{"$f":"B13","v":20}]
[null,{"$f":"B14","v":33},null,null,null,null,null,null,{"$f":"B14","v":33}]
[null,0,null,null,null,null,null,null,0]
[null,0,null,null,null,null,null,null,0]
[null,0,null,null,null,null,null,null,0]
[null,0,null,null,null,null,null,null,0]
[null,0,null,null,null,null,null,null,0]
[null,0,null,null,null,null,null,null,0]
[null,0,null,null,null,null,null,null,0]
[null,0,null,null,null,null,null,null,0]
[null,0,null,null,null,null,null,null,0]
[null,0,null,null,null,null,null,null,0]
[null,0,null,null,null,null,null,null,0]
[null,0,null,null,null,null,null,null,0]
[null,0,null,null,null,null,null,null,0]
[]
[null,"Signature,",null,null,null,null,null,null,"Signature,"]
[]
[null,"Compétition :",{"$f":"C2","v":"Compétition magnifique"},null,null,null,null,null,"Compétition :",{"$f":"C2","v":"Compétition magnifique"}]
[]
[null,"Date :",{"$f":"C4","v":"2013-03-13"},null,null,null,null,null,"Date :",{"$f":"C4","v":"2013-03-13"}]
[]
[null,"Juge","N° 9",null,null,null,null,null,"Juge","N° "]
[null,{"$f":"résultat!K13","v":""}]
[null,"Juge :",null,null,null,null,null,null,"Juge :"]
[]
[null,"Catégorie :",{"$f":"C10","v":"FV"},null,null,null,null,null,"Catégorie :"]
[]
[null,"N° dossard","classement",null,null,null,null,null,"N° dossard","classement"]
[null,{"$f":"B13","v":20}]
[null,{"$f":"B14","v":33}]
[null,0]
[null,0]
[null,0]
[null,0]
[null,0]
[null,0]
[null,0]
[null,0]
[null,0]
[null,0]
[null,0]
[null,0]
[null,0]
[]
[null,"Signature,",null,null,null,null,null,null,"Signature,"]

{"sheet":"résultat","index":8,"n_rows":30,"n_cols":20,"rows_kept":30,"cut":false,"hidden":false,"merged":[[7,11,7,12],[7,2,7,7]]}
[null,{"$f":"pesée!A1","v":"FEDERATION FRANCAISE D'HALTEROPHILIE,"}]
[null,{"$f":"pesée!A2","v":"MUSCULATION, FORCE ATHLETIQUE ET CULTURISME"}]
[]
[null,{"$f":"pesée!A4","v":" DISCIPLINE  CULTURISME"}]
[null,null,{"$f":"MAX(C14:C28)","v":0},{"$f":"MAX(D14:D28)","v":0},0,0,0,0,0,0,0]
[null,"COMPETITION  :",{"$f":"pesée!$B$6","v":"Compétition magnifique"},null,null,null,null,null,null,null,"LIEU : ",{"$f":"pesée!G6","v":"Gymnase c'est ici"}]
[]
[null,"Date : ",{"$f":"pesée!$B$8","v":"2013-03-13"},null,null,null,null,null,null,null,"Catégorie : ",{"$f":"pesée!$G$8","v":"FV"},null,null,null,{"$f":"Parametres!C5","v":"N"},null,null,null,{"$f":"AVERAGEIF(T14:T28,\">0\")","v":{"$error":"#DIV/0!"}}]
[{"$f":"IF(L8=Juges!B1,\"Juges!B1:B15\",IF(L8=Juges!C1,\"Juges!C1:C15\",IF(L8=Juges!D1,\"Juges!D1:D15\",IF(L8=Juges!E1,\"Juges!E1:E15\",IF(L8=Juges!F1,\"Juges!F1:F15\",IF(L8=Juges!G1,\"Juges!G1:G15\",IF(L8=Juges!H1,\"Juges!H1:H15\",IF(L8=Juges!I1,\"Juges!I1:I15\",B9))))))))","v":"Juges!I1:I15"},{"$f":"IF(L8=Juges!J1,\"Juges!J1:J15\",IF(L8=Juges!K1,\"Juges!k1:K15\",IF(L8=Juges!L1,\"Juges!L1:L15\",IF(L8=Juges!M1,\"Juges!M1:M15\",IF(L8=Juges!N1,\"Juges!N1:N15\",IF(L8=Juges!O1,\"Juges!O1:O15\",IF(L8=Juges!P1,\"Juges!P1:P15\",IF(L8=Juges!Q1,\"Juges!Q1:Q15\",C9))))))))","v":0},{"$f":"IF(L8=Juges!R1,\"Juges!R1:R15\",IF(L8=Juges!S1,\"Juges!S1:S15\",IF(L8=Juges!T1,\"Juges!T1:T15\",IF(L8=Juges!U1,\"Juges!U1:U15\",IF(L8=Juges!V1,\"Juges!V1:V15\",IF(L8=Juges!W1,\"Juges!W1:W15\",IF(L8=Juges!X1,\"Juges!X1:X15\",IF(L8=Juges!Y1,\"Juges!y1:y15\",D9))))))))","v":0},{"$f":"IF(L8=Juges!Z1,\"Juges!z1:z15\",IF(L8=Juges!AA1,\"Juges!aa1:aa15\",IF(L8=Juges!AB1,\"Juges!ab1:ab15\",IF(L8=Juges!AC1,\"Juges!ac1:ac15\",IF(L8=Juges!AD1,\"Juges!ad1:ad15\",IF(L8=Juges!AE1,\"Juges!ae1:ae15\",))))))","v":0}]
[{"$f":"COUNTIF(A14:A28,\">0\")","v":2},null,{"$f":"COUNTA(C14:C28)","v":0},{"$f":"COUNTA(D14:D28)","v":0},0,0,0,0,0,0,{"$f":"COUNTA(K14:K28)","v":0},{"$f":"COUNTIF(L14:L28,\">0\")","v":0},null,null,null,null,null,null,null,{"$f":"COUNT(C10:K10)","v":9}]
[null,null,"JUGES TITULAIRES",null,null,null,null,null,null,null,null,{"$f":"SUM(L14:L28)","v":0},null,null,null,null,null,null,null,{"$f":"MIN(C10:K10)","v":0}]
[null,null,"N°1","N°2","N°3","N°4","N°5","N°6","N°7","N°8","N°9",null,null,null,null,null,null,null,null,{"$f":"COUNTIF(T14:T28,\">0\")","v":0}]
["N°","NOM, PRENOM DES ATHLETES",{"$f":"IFERROR(IF(ISBLANK(INDEX(Juges!A1:Z16,MATCH(1,INDIRECT(A9),),1)),\"\",INDEX(Juges!A1:Z16,MATCH(1,INDIRECT(A9),),1)),\"\")","v":"GG"},{"$f":"IFERROR(IF(ISBLANK(INDEX(Juges!A1:Z16,MATCH(2,INDIRECT(A9),),1)),\"\",INDEX(Juges!A1:Z16,MATCH(2,INDIRECT(A9),),1)),\"\")","v":"FF"},{"$f":"IFERROR(IF(ISBLANK(INDEX(Juges!A1:Z16,MATCH(3,INDIRECT(A9),),1)),\"\",INDEX(Juges!A1:Z16,MATCH(3,INDIRECT(A9),),1)),\"\")","v":"EE"},{"$f":"IFERROR(IF(ISBLANK(INDEX(Juges!A1:Z16,MATCH(4,INDIRECT(A9),),1)),\"\",INDEX(Juges!A1:Z16,MATCH(4,INDIRECT(A9),),1)),\"\")","v":"HH"},{"$f":"IFERROR(IF(ISBLANK(INDEX(Juges!A1:Z16,MATCH(5,INDIRECT(A9),),1)),\"\",INDEX(Juges!A1:Z16,MATCH(5,INDIRECT(A9),),1)),\"\")","v":"II"},{"$f":"IFERROR(IF(ISBLANK(INDEX(Juges!A1:Z16,MATCH(6,INDIRECT(A9),),1)),\"\",INDEX(Juges!A1:Z16,MATCH(6,INDIRECT(A9),),1)),\"\")","v":""},{"$f":"IFERROR(IF(ISBLANK(INDEX(Juges!A1:Z16,MATCH(7,INDIRECT(A9),),1)),\"\",INDEX(Juges!A1:Z16,MATCH(7,INDIRECT(A9),),1)),\"\")","v":""},{"$f":"IFERROR(IF(ISBLANK(INDEX(Juges!A1:Z16,MATCH(8,INDIRECT(A9),),1)),\"\",INDEX(Juges!A1:Z16,MATCH(8,INDIRECT(A9),),1)),\"\")","v":""},{"$f":"IFERROR(IF(ISBLANK(INDEX(Juges!A1:Z16,MATCH(9,INDIRECT(A9),),1)),\"\",INDEX(Juges!A1:Z16,MATCH(9,INDIRECT(A9),),1)),\"\")","v":""},"TOTAL","PLACE",null,null,{"$f":"pesée!A10","v":"NOM"},"N°","CLUB","COMITE",{"$f":"COUNTA(C13:K13)-COUNTIF(C13:K13,\"\")","v":5}]
[{"$f":"pesée!G11","v":20},{"$f":"pesée!A11&\" \"&pesée!B11","v":"FOURNIER SYLVIE"},null,null,null,null,null,null,null,null,null,{"$f":"IF(C14<>\"\",(IF(H14=\"\",SUM(C14:G14),(IF(K14=\"\",SUM(C14:K14)-MIN(C14:K14)-MAX(C14:K14),SUM(C14:K14)-MIN(C14:K14)-MAX(C14:K14)-SMALL(C14:K14,2)-LARGE(C14:K14,2))))),\"\")","v":""},{"$f":"IF(ISERROR(RANK(L14,$L$14:$L$28,3)),\"\",(RANK(L14,$L$14:$L$28,3)))","v":""},null,null,{"$f":"pesée!A11&\"  \"&pesée!B11","v":"FOURNIER  SYLVIE"},{"$f":"pesée!G11","v":20},{"$f":"pesée!E11","v":"MUSCULATION HAUBOURDINOISE"},{"$f":"pesée!F11","v":"NORD PAS DE CALAIS"},{"$f":"COUNTA(C14:K14)","v":0}]
[{"$f":"pesée!G12","v":33},{"$f":"pesée!A12&\" \"&pesée!B12","v":"MONCOURTOIS CHRISTELLE"},null,null,null,null,null,null,null,null,null,"","",null,null,{"$f":"pesée!A15&\"  \"&pesée!B15","v":"  "},{"$f":"pesée!G15","v":0},{"$f":"pesée!E15","v":0},{"$f":"pesée!F15","v":0},{"$f":"COUNTA(C15:K15)","v":0}]
[{"$f":"pesée!G13","v":0},{"$f":"pesée!A13&\" \"&pesée!B13","v":" "},null,null,null,null,null,null,null,null,null,"","",null,null,{"$f":"pesée!A14&\"  \"&pesée!B14","v":"  "},{"$f":"pesée!G14","v":0},{"$f":"pesée!E14","v":0},{"$f":"pesée!F14","v":0},0]
[{"$f":"pesée!G14","v":0},{"$f":"pesée!A14&\" \"&pesée!B14","v":" "},null,null,null,null,null,null,null,null,null,"","",null,null,{"$f":"pesée!A13&\"  \"&pesée!B13","v":"  "},{"$f":"pesée!G13","v":0},{"$f":"pesée!E13","v":0},{"$f":"pesée!F13","v":0},0]
[{"$f":"pesée!G15","v":0},{"$f":"pesée!A15&\" \"&pesée!B15","v":" "},null,null,null,null,null,null,null,null,null,"","",null,null,{"$f":"pesée!A12&\"  \"&pesée!B12","v":"MONCOURTOIS  CHRISTELLE"},{"$f":"pesée!G12","v":33},{"$f":"pesée!E12","v":"ASC MUSCLE GYM SOISSONS"},{"$f":"pesée!F12","v":"PICARDIE"},0]
[{"$f":"pesée!G16","v":0},{"$f":"pesée!A16&\" \"&pesée!B16","v":" "},null,null,null,null,null,null,null,null,null,"","",null,null,{"$f":"pesée!A16&\"  \"&pesée!B16","v":"  "},{"$f":"pesée!G16","v":0},{"$f":"pesée!E16","v":0},{"$f":"pesée!F16","v":0},0]
[{"$f":"pesée!G17","v":0},{"$f":"pesée!A17&\" \"&pesée!B17","v":" "},null,null,null,null,null,null,null,null,null,"","",null,null,{"$f":"pesée!A17&\"  \"&pesée!B17","v":"  "},{"$f":"pesée!G17","v":0},{"$f":"pesée!E17","v":0},{"$f":"pesée!F17","v":0},0]
[{"$f":"pesée!G18","v":0},{"$f":"pesée!A18&\" \"&pesée!B18","v":" "},null,null,null,null,null,null,null,null,null,{"$f":"IF(C21<>\"\",(IF(H21=\"\",SUM(C21:G21),(IF(K21=\"\",SUM(C21:K21)-MIN(C21:K21)-MAX(C21:K21),SUM(C21:K21)-MIN(C21:K21)-MAX(C21:K21)-SMALL(C21:K21,2)-LARGE(C21:K21,2))))),\"\")","v":""},{"$f":"IF(ISERROR(RANK(L21,$L$14:$L$28,3)),\"\",(RANK(L21,$L$14:$L$28,3)))","v":""},null,null,{"$f":"pesée!A18&\"  \"&pesée!B18","v":"  "},{"$f":"pesée!G18","v":0},{"$f":"pesée!E18","v":0},{"$f":"pesée!F18","v":0},0]
[{"$f":"pesée!G19","v":0},{"$f":"pesée!A19&\" \"&pesée!B19","v":" "},null,null,null,null,null,null,null,null,null,"","",null,null,{"$f":"pesée!A19&\"  \"&pesée!B19","v":"  "},{"$f":"pesée!G19","v":0},{"$f":"pesée!E19","v":0},{"$f":"pesée!F19","v":0},0]
[{"$f":"pesée!G20","v":0},{"$f":"pesée!A20&\" \"&pesée!B20","v":" "},null,null,null,null,null,null,null,null,null,"","",null,null,{"$f":"pesée!A20&\"  \"&pesée!B20","v":"  "},{"$f":"pesée!G20","v":0},{"$f":"pesée!E20","v":0},{"$f":"pesée!F20","v":0},0]
[{"$f":"pesée!G21","v":0},{"$f":"pesée!A21&\" \"&pesée!B21","v":" "},null,null,null,null,null,null,null,null,null,"","",null,null,{"$f":"pesée!A21&\"  \"&pesée!B21","v":"  "},{"$f":"pesée!G21","v":0},{"$f":"pesée!E21","v":0},{"$f":"pesée!F21","v":0},0]
[{"$f":"pesée!G22","v":0},{"$f":"pesée!A22&\" \"&pesée!B22","v":" "},null,null,null,null,null,null,null,null,null,{"$f":"IF(C25<>\"\",(IF(H25=\"\",SUM(C25:G25),(IF(K25=\"\",SUM(C25:K25)-MIN(C25:K25)-MAX(C25:K25),SUM(C25:K25)-MIN(C25:K25)-MAX(C25:K25)-SMALL(C25:K25,2)-LARGE(C25:K25,2))))),\"\")","v":""},{"$f":"IF(ISERROR(RANK(L25,$L$14:$L$28,3)),\"\",(RANK(L25,$L$14:$L$28,3)))","v":""},null,null,{"$f":"pesée!A22&\"  \"&pesée!B22","v":"  "},{"$f":"pesée!G22","v":0},{"$f":"pesée!E22","v":0},{"$f":"pesée!F22","v":0},0]
[{"$f":"pesée!G23","v":0},{"$f":"pesée!A23&\" \"&pesée!B23","v":" "},null,null,null,null,null,null,null,null,null,"","",null,null,{"$f":"pesée!A23&\"  \"&pesée!B23","v":"  "},{"$f":"pesée!G23","v":0},{"$f":"pesée!E23","v":0},{"$f":"pesée!F23","v":0},0]
[{"$f":"pesée!G24","v":0},{"$f":"pesée!A24&\" \"&pesée!B24","v":" "},null,null,null,null,null,null,null,null,null,"","",null,null,{"$f":"pesée!A24&\"  \"&pesée!B24","v":"  "},{"$f":"pesée!G24","v":0},{"$f":"pesée!E24","v":0},{"$f":"pesée!F24","v":0},0]
[{"$f":"pesée!G25","v":0},{"$f":"pesée!A25&\" \"&pesée!B25","v":" "},null,null,null,null,null,null,null,null,null,"","",null,null,{"$f":"pesée!A25&\"  \"&pesée!B25","v":"  "},{"$f":"pesée!G25","v":0},{"$f":"pesée!E25","v":0},{"$f":"pesée!F25","v":0},0]
["La secrétaire,",null,"Le responsable,",null,null,null,null,null,null,null,null,"le responsable des juges : "]
["Signature,",null,"Signature,",null,null,null,null,null,null,null,null,"Signature,"]

{"sheet":"résultat avec posing","index":9,"n_rows":30,"n_cols":51,"rows_kept":30,"cut":false,"hidden":false,"merged":[[12,12,12,13],[12,14,12,15],[12,16,12,17],[12,18,12,19],[12,2,12,3],[12,4,12,5],[12,6,12,7],[12,8,12,9],[12,10,12,11],[7,2,7,12],[7,21,7,22],[11,2,11,3],[11,4,11,5],[11,6,11,7],[11,8,11,9],[11,10,11,11],[11,12,11,13],[11,14,11,15],[11,16,11,17],[11,18,11,19],[10,2,10,19]]}
[null,{"$f":"pesée!A1","v":"FEDERATION FRANCAISE D'HALTEROPHILIE,"}]
[null,{"$f":"pesée!A2","v":"MUSCULATION, FORCE ATHLETIQUE ET CULTURISME"}]
[]
[null,{"$f":"pesée!A4","v":" DISCIPLINE  CULTURISME"}]
[null,null,{"$f":"MAX(C14:C28)","v":0},{"$f":"MAX(D14:D28)","v":0},0,0,0,0,0,0,0,0,0,0,0,0,0,0,0,0]
[null,"COMPETITION  :",{"$f":"pesée!$B$6","v":"Compétition magnifique"},null,null,null,null,null,null,null,null,null,null,null,null,null,null,null,"LIEU : ",null,null,{"$f":"pesée!G6","v":"Gymnase c'est ici"}]
[null,null,{"$f":"COUNTIF(C13,\"> \")","v":1},{"$f":"+C7","v":1},{"$f":"COUNTIF(E13,\"> \")","v":1},{"$f":"+E7","v":1},{"$f":"COUNTIF(G13,\"> \")","v":1},{"$f":"+G7","v":1},{"$f":"COUNTIF(I13,\"> \")","v":1},{"$f":"+I7","v":1},{"$f":"COUNTIF(K13,\"> \")","v":1},{"$f":"+K7","v":1},{"$f":"COUNTIF(M13,\"> \")","v":0},{"$f":"+M7","v":0},{"$f":"COUNTIF(O13,\"> \")","v":0},{"$f":"+O7","v":0},{"$f":"COUNTIF(Q13,\"> \")","v":0},{"$f":"+Q7","v":0},{"$f":"COUNTIF(S13,\"> \")","v":0},{"$f":"+S7","v":0}]
[null,"Date : ",{"$f":"pesée!$B$8","v":"2013-03-13"},null,null,null,null,null,null,null,null,null,null,null,null,null,null,null,"Catégorie : ",null,null,{"$f":"pesée!$G$8","v":"FV"},null,null,{"$f":"Parametres!C5","v":"N"},null,null,null,null,null,null,null,null,null,null,null,null,null,null,null,null,null,null,null,null,null,null,null,null,null,{"$f":"AVERAGEIF(AY14:AY28,\">0\")","v":{"$error":"#DIV/0!"}}]
[{"$f":"IF(V8=Juges!B1,\"Juges!B1:B15\",IF(V8=Juges!C1,\"Juges!C1:C15\",IF(V8=Juges!D1,\"Juges!D1:D15\",IF(V8=Juges!E1,\"Juges!E1:E15\",IF(V8=Juges!F1,\"Juges!F1:F15\",IF(V8=Juges!G1,\"Juges!G1:G15\",IF(V8=Juges!H1,\"Juges!H1:H15\",IF(V8=Juges!I1,\"Juges!I1:I15\",B9))))))))","v":"Juges!I1:I15"},{"$f":"IF(V8=Juges!J1,\"Juges!J1:J15\",IF(V8=Juges!K1,\"Juges!k1:K15\",IF(V8=Juges!L1,\"Juges!L1:L15\",IF(V8=Juges!M1,\"Juges!M1:M15\",IF(V8=Juges!N1,\"Juges!N1:N15\",IF(V8=Juges!O1,\"Juges!O1:O15\",IF(V8=Juges!P1,\"Juges!P1:P15\",IF(V8=Juges!Q1,\"Juges!Q1:Q15\",C9))))))))","v":0},{"$f":"IF(V8=Juges!R1,\"Juges!R1:R15\",IF(V8=Juges!S1,\"Juges!S1:S15\",IF(V8=Juges!T1,\"Juges!T1:T15\",IF(V8=Juges!U1,\"Juges!U1:U15\",IF(V8=Juges!V1,\"Juges!V1:V15\",IF(V8=Juges!W1,\"Juges!W1:W15\",IF(V8=Juges!X1,\"Juges!X1:X15\",IF(V8=Juges!Y1,\"Juges!y1:y15\",D9))))))))","v":0},{"$f":"IF(V8=Juges!Z1,\"Juges!z1:z15\",IF(V8=Juges!AA1,\"Juges!aa1:aa15\",IF(V8=Juges!AB1,\"Juges!ab1:ab15\",IF(V8=Juges!AC1,\"Juges!ac1:ac15\",IF(V8=Juges!AD1,\"Juges!ad1:ad15\",IF(V8=Juges!AE1,\"Juges!ae1:ae15\",))))))","v":0}]
[{"$f":"COUNTIF(A14:A28,\">0\")","v":2},null,{"$f":"COUNTA(C14:C28)","v":0},{"$f":"COUNTA(D14:D28)","v":0},0,0,0,0,0,0,{"$f":"COUNTA(K14:K28)","v":0},{"$f":"COUNTA(L14:L28)","v":0},0,0,0,0,0,0,0,0,null,{"$f":"COUNTIF(V14:V28,\">0\")","v":0},null,null,null,null,null,null,null,null,null,null,null,null,null,null,null,null,null,null,null,null,null,null,null,null,null,null,null,null,{"$f":"COUNT(C10:T10)/2","v":9}]
[null,null,"JUGES TITULAIRES",null,null,null,null,null,null,null,null,null,null,null,null,null,null,null,null,null,"Seuil:",{"$f":"SUM(V14:V28)","v":0},null,null,null,null,null,null,null,null,null,null,null,null,null,null,null,null,null,null,null,null,null,null,null,null,null,null,null,null,{"$f":"MIN(AH10:AP10)","v":0}]
[null,null,"N°1",null,"N°2",null,"N°3",null,"N°4",null,"N°5",null,"N°6",null,"N°7",null,"N°8",null,"N°9",null,null,null,null,null,null,null,null,null,null,null,null,null,null,null,null,null,null,null,null,null,null,null,null,null,null,null,null,null,null,null,{"$f":"COUNTIF(AY14:AY28,\">0\")","v":0}]
["N°","NOM, PRENOM DES ATHLETES",{"$f":"IFERROR(IF(ISBLANK(INDEX(Juges!A1:Z16,MATCH(1,INDIRECT(A9),),1)),\"\",INDEX(Juges!A1:Z16,MATCH(1,INDIRECT(A9),),1)),\"\")","v":"GG"},null,{"$f":"IFERROR(IF(ISBLANK(INDEX(Juges!A1:Z16,MATCH(2,INDIRECT(A9),),1)),\"\",INDEX(Juges!A1:Z16,MATCH(2,INDIRECT(A9),),1)),\"\")","v":"FF"},null,{"$f":"IFERROR(IF(ISBLANK(INDEX(Juges!A1:Z16,MATCH(3,INDIRECT(A9),),1)),\"\",INDEX(Juges!A1:Z16,MATCH(3,INDIRECT(A9),),1)),\"\")","v":"EE"},null,{"$f":"IFERROR(IF(ISBLANK(INDEX(Juges!A1:Z16,MATCH(4,INDIRECT(A9),),1)),\"\",INDEX(Juges!A1:Z16,MATCH(4,INDIRECT(A9),),1)),\"\")","v":"HH"},null,{"$f":"IFERROR(IF(ISBLANK(INDEX(Juges!A1:Z16,MATCH(5,INDIRECT(A9),),1)),\"\",INDEX(Juges!A1:Z16,MATCH(5,INDIRECT(A9),),1)),\"\")","v":"II"},null,{"$f":"IFERROR(IF(ISBLANK(INDEX(Juges!A1:Z16,MATCH(6,INDIRECT(A9),),1)),\"\",INDEX(Juges!A1:Z16,MATCH(6,INDIRECT(A9),),1)),\"\")","v":""},null,{"$f":"IFERROR(IF(ISBLANK(INDEX(Juges!A1:Z16,MATCH(7,INDIRECT(A9),),1)),\"\",INDEX(Juges!A1:Z16,MATCH(7,INDIRECT(A9),),1)),\"\")","v":""},null,{"$f":"IFERROR(IF(ISBLANK(INDEX(Juges!A1:Z16,MATCH(8,INDIRECT(A9),),1)),\"\",INDEX(Juges!A1:Z16,MATCH(8,INDIRECT(A9),),1)),\"\")","v":""},null,{"$f":"IFERROR(IF(ISBLANK(INDEX(Juges!A1:Z16,MATCH(9,INDIRECT(A9),),1)),\"\",INDEX(Juges!A1:Z16,MATCH(9,INDIRECT(A9),),1)),\"\")","v":""},null,"POSING  ","TOTAL","PLACE",null,{"$f":"pesée!A10","v":"NOM"},"N°","CLUB","COMITE",null,{"$f":"+C13","v":"GG"},{"$f":"+E13","v":"FF"},{"$f":"+G13","v":"EE"},{"$f":"+I13","v":"HH"},{"$f":"+K13","v":"II"},{"$f":"+M13","v":""},{"$f":"+O13","v":""},{"$f":"+Q13","v":""},{"$f":"+S13","v":""},null,null,null,null,null,null,null,null,null,null,null,null,{"$f":"SUM(C7:T7)","v":10}]
[{"$f":"pesée!G11","v":20},{"$f":"pesée!A11&\" \"&pesée!B11","v":"FOURNIER SYLVIE"},null,null,null,null,null,null,null,null,null,null,null,null,null,null,null,null,null,null,null,{"$f":"IF(C14<>\"\",SUM(AM14+AX14),\"\")","v":""},{"$f":"IF(ISERROR(RANK(V14,$V$14:$V$28,3)),\"\",(RANK(V14,$V$14:$V$28,3)))","v":""},null,{"$f":"pesée!A12&\"  \"&pesée!B12","v":"MONCOURTOIS  CHRISTELLE"},{"$f":"pesée!G12","v":33},{"$f":"pesée!E12","v":"ASC MUSCLE GYM SOISSONS"},{"$f":"pesée!F12","v":"PICARDIE"},null,{"$f":"C14","v":0},{"$f":"E14","v":0},{"$f":"G14","v":0},{"$f":"I14","v":0},{"$f":"K14","v":0},{"$f":"M14","v":0},{"$f":"O14","v":0},{"$f":"Q14","v":0},{"$f":"S14","v":0},{"$f":"IF(C14<>\"\",(IF(M14=\"\",SUM(AD14:AH14),(IF(AL14=\"\",SUM(AD14:AL14)-MIN(AD14:AL14)-MAX(AD14:AL14),SUM(AD14:AL14)-MIN(AD14:AL14)-MAX(AD14:AL14)-SMALL(AD14:AL14,2)-LARGE(AD14:AL14,2))))),\"\")","v":""},null,{"$f":"D14","v":0},{"$f":"F14","v":0},{"$f":"H14","v":0},{"$f":"J14","v":0},{"$f":"L14","v":0},{"$f":"N14","v":0},{"$f":"P14","v":0},{"$f":"R14","v":0},{"$f":"T14","v":0},{"$f":"IF(C14<>\"\",(IF(M14=\"\",SUM(AO14:AS14),(IF(AW14=\"\",SUM(AO14:AW14)-MIN(AO14:AW14)-MAX(AO14:AW14),SUM(AO14:AW14)-MIN(AO14:AW14)-MAX(AO14:AW14)-SMALL(AO14:AW14,2)-LARGE(AO14:AW14,2))))),\"\")","v":""},{"$f":"COUNTA(C14:T14)","v":0}]
[{"$f":"pesée!G12","v":33},{"$f":"pesée!A12&\" \"&pesée!B12","v":"MONCOURTOIS CHRISTELLE"},null,null,null,null,null,null,null,null,null,null,null,null,null,null,null,null,null,null,null,"","",null,{"$f":"pesée!A11&\"  \"&pesée!B11","v":"FOURNIER  SYLVIE"},{"$f":"pesée!G11","v":20},{"$f":"pesée!E11","v":"MUSCULATION HAUBOURDINOISE"},{"$f":"pesée!F11","v":"NORD PAS DE CALAIS"},null,0,0,0,0,0,0,0,0,0,"",null,0,0,0,0,0,0,0,0,0,"",0]
[{"$f":"pesée!G13","v":0},{"$f":"pesée!A13&\" \"&pesée!B13","v":" "},null,null,null,null,null,null,null,null,null,null,null,null,null,null,null,null,null,null,null,"","",null,{"$f":"pesée!A14&\"  \"&pesée!B14","v":"  "},{"$f":"pesée!G14","v":0},{"$f":"pesée!E14","v":0},{"$f":"pesée!F14","v":0},null,0,0,0,0,0,0,0,0,0,"",null,0,0,0,0,0,0,0,0,0,"",0]
[{"$f":"pesée!G14","v":0},{"$f":"pesée!A14&\" \"&pesée!B14","v":" "},null,null,null,null,null,null,null,null,null,null,null,null,null,null,null,null,null,null,null,"","",null,{"$f":"pesée!A15&\"  \"&pesée!B15","v":"  "},{"$f":"pesée!G15","v":0},{"$f":"pesée!E15","v":0},{"$f":"pesée!F15","v":0},null,0,0,0,0,0,0,0,0,0,"",null,0,0,0,0,0,0,0,0,0,"",0]
[{"$f":"pesée!G15","v":0},{"$f":"pesée!A15&\" \"&pesée!B15","v":" "},null,null,null,null,null,null,null,null,null,null,null,null,null,null,null,null,null,null,null,"","",null,{"$f":"pesée!A13&\"  \"&pesée!B13","v":"  "},{"$f":"pesée!G13","v":0},{"$f":"pesée!E13","v":0},{"$f":"pesée!F13","v":0},null,0,0,0,0,0,0,0,0,0,"",null,0,0,0,0,0,0,0,0,0,"",0]
[{"$f":"pesée!G16","v":0},{"$f":"pesée!A16&\" \"&pesée!B16","v":" "},null,null,null,null,null,null,null,null,null,null,null,null,null,null,null,null,null,null,null,"","",null,{"$f":"pesée!A16&\"  \"&pesée!B16","v":"  "},{"$f":"pesée!G16","v":0},{"$f":"pesée!E16","v":0},{"$f":"pesée!F16","v":0},null,0,0,0,0,0,0,0,0,0,"",null,0,0,0,0,0,0,0,0,0,"",0]
[{"$f":"pesée!G17","v":0},{"$f":"pesée!A17&\" \"&pesée!B17","v":" "},null,null,null,null,null,null,null,null,null,null,null,null,null,null,null,null,null,null,null,{"$f":"IF(C20<>\"\",SUM(AM20+AX20),\"\")","v":""},{"$f":"IF(ISERROR(RANK(V20,$V$14:$V$28,3)),\"\",(RANK(V20,$V$14:$V$28,3)))","v":""},null,{"$f":"pesée!A17&\"  \"&pesée!B17","v":"  "},{"$f":"pesée!G17","v":0},{"$f":"pesée!E17","v":0},{"$f":"pesée!F17","v":0},null,{"$f":"C20","v":0},{"$f":"E20","v":0},{"$f":"G20","v":0},{"$f":"I20","v":0},{"$f":"K20","v":0},{"$f":"M20","v":0},{"$f":"O20","v":0},{"$f":"Q20","v":0},{"$f":"S20","v":0},{"$f":"IF(C20<>\"\",(IF(M20=\"\",SUM(AD20:AH20),(IF(AL20=\"\",SUM(AD20:AL20)-MIN(AD20:AL20)-MAX(AD20:AL20),SUM(AD20:AL20)-MIN(AD20:AL20)-MAX(AD20:AL20)-SMALL(AD20:AL20,2)-LARGE(AD20:AL20,2))))),\"\")","v":""},null,{"$f":"D20","v":0},{"$f":"F20","v":0},{"$f":"H20","v":0},{"$f":"J20","v":0},{"$f":"L20","v":0},{"$f":"N20","v":0},{"$f":"P20","v":0},{"$f":"R20","v":0},{"$f":"T20","v":0},{"$f":"IF(C20<>\"\",(IF(M20=\"\",SUM(AO20:AS20),(IF(AW20=\"\",SUM(AO20:AW20)-MIN(AO20:AW20)-MAX(AO20:AW20),SUM(AO20:AW20)-MIN(AO20:AW20)-MAX(AO20:AW20)-SMALL(AO20:AW20,2)-LARGE(AO20:AW20,2))))),\"\")","v":""},{"$f":"COUNTA(C20:T20)","v":0}]
[{"$f":"pesée!G18","v":0},{"$f":"pesée!A18&\" \"&pesée!B18","v":" "},null,null,null,null,null,null,null,null,null,null,null,null,null,null,null,null,null,null,null,"","",null,{"$f":"pesée!A18&\"  \"&pesée!B18","v":"  "},{"$f":"pesée!G18","v":0},{"$f":"pesée!E18","v":0},{"$f":"pesée!F18","v":0},null,0,0,0,0,0,0,0,0,0,"",null,0,0,0,0,0,0,0,0,0,"",0]
[{"$f":"pesée!G19","v":0},{"$f":"pesée!A19&\" \"&pesée!B19","v":" "},null,null,null,null,null,null,null,null,null,null,null,null,null,null,null,null,null,null,null,"","",null,{"$f":"pesée!A19&\"  \"&pesée!B19","v":"  "},{"$f":"pesée!G19","v":0},{"$f":"pesée!E19","v":0},{"$f":"pesée!F19","v":0},null,0,0,0,0,0,0,0,0,0,"",null,0,0,0,0,0,0,0,0,0,"",0]
[{"$f":"pesée!G20","v":0},{"$f":"pesée!A20&\" \"&pesée!B20","v":" "},null,null,null,null,null,null,null,null,null,null,null,null,null,null,null,null,null,null,null,"","",null,{"$f":"pesée!A20&\"  \"&pesée!B20","v":"  "},{"$f":"pesée!G20","v":0},{"$f":"pesée!E20","v":0},{"$f":"pesée!F20","v":0},null,0,0,0,0,0,0,0,0,0,"",null,0,0,0,0,0,0,0,0,0,"",0]
[{"$f":"pesée!G21","v":0},{"$f":"pesée!A21&\" \"&pesée!B21","v":" "},null,null,null,null,null,null,null,null,null,null,null,null,null,null,null,null,null,null,null,"","",null,{"$f":"pesée!A21&\"  \"&pesée!B21","v":"  "},{"$f":"pesée!G21","v":0},{"$f":"pesée!E21","v":0},{"$f":"pesée!F21","v":0},null,0,0,0,0,0,0,0,0,0,"",null,0,0,0,0,0,0,0,0,0,"",0]
[{"$f":"pesée!G22","v":0},{"$f":"pesée!A22&\" \"&pesée!B22","v":" "},null,null,null,null,null,null,null,null,null,null,null,null,null,null,null,null,null,null,null,{"$f":"IF(C25<>\"\",SUM(AM25+AX25),\"\")","v":""},{"$f":"IF(ISERROR(RANK(V25,$V$14:$V$28,3)),\"\",(RANK(V25,$V$14:$V$28,3)))","v":""},null,{"$f":"pesée!A22&\"  \"&pesée!B22","v":"  "},{"$f":"pesée!G22","v":0},{"$f":"pesée!E22","v":0},{"$f":"pesée!F22","v":0},null,{"$f":"C25","v":0},{"$f":"E25","v":0},{"$f":"G25","v":0},{"$f":"I25","v":0},{"$f":"K25","v":0},{"$f":"M25","v":0},{"$f":"O25","v":0},{"$f":"Q25","v":0},{"$f":"S25","v":0},{"$f":"IF(C25<>\"\",(IF(M25=\"\",SUM(AD25:AH25),(IF(AL25=\"\",SUM(AD25:AL25)-MIN(AD25:AL25)-MAX(AD25:AL25),SUM(AD25:AL25)-MIN(AD25:AL25)-MAX(AD25:AL25)-SMALL(AD25:AL25,2)-LARGE(AD25:AL25,2))))),\"\")","v":""},null,{"$f":"D25","v":0},{"$f":"F25","v":0},{"$f":"H25","v":0},{"$f":"J25","v":0},{"$f":"L25","v":0},{"$f":"N25","v":0},{"$f":"P25","v":0},{"$f":"R25","v":0},{"$f":"T25","v":0},{"$f":"IF(C25<>\"\",(IF(M25=\"\",SUM(AO25:AS25),(IF(AW25=\"\",SUM(AO25:AW25)-MIN(AO25:AW25)-MAX(AO25:AW25),SUM(AO25:AW25)-MIN(AO25:AW25)-MAX(AO25:AW25)-SMALL(AO25:AW25,2)-LARGE(AO25:AW25,2))))),\"\")","v":""},0]
[{"$f":"pesée!G23","v":0},{"$f":"pesée!A23&\" \"&pesée!B23","v":" "},null,null,null,null,null,null,null,null,null,null,null,null,null,null,null,null,null,null,null,"","",null,{"$f":"pesée!A23&\"  \"&pesée!B23","v":"  "},{"$f":"pesée!G23","v":0},{"$f":"pesée!E23","v":0},{"$f":"pesée!F23","v":0},null,0,0,0,0,0,0,0,0,0,"",null,0,0,0,0,0,0,0,0,0,"",0]
[{"$f":"pesée!G24","v":0},{"$f":"pesée!A24&\" \"&pesée!B24","v":" "},null,null,null,null,null,null,null,null,null,null,null,null,null,null,null,null,null,null,null,"","",null,{"$f":"pesée!A24&\"  \"&pesée!B24","v":"  "},{"$f":"pesée!G24","v":0},{"$f":"pesée!E24","v":0},{"$f":"pesée!F24","v":0},null,0,0,0,0,0,0,0,0,0,"",null,0,0,0,0,0,0,0,0,0,"",0]
[{"$f":"pesée!G25","v":0},{"$f":"pesée!A25&\" \"&pesée!B25","v":" "},null,null,null,null,null,null,null,null,null,null,null,null,null,null,null,null,null,null,null,"","",null,{"$f":"pesée!A25&\"  \"&pesée!B25","v":"  "},{"$f":"pesée!G25","v":0},{"$f":"pesée!E25","v":0},{"$f":"pesée!F25","v":0},null,0,0,0,0,0,0,0,0,0,"",null,0,0,0,0,0,0,0,0,0,"",0]
["La secrétaire,",null,"Le responsable,",null,null,null,null,null,null,null,null,null,null,null,null,null,null,null,null,null,null,"le responsable des juges : "]
["Signature,",null,"Signature,",null,null,null,null,null,null,null,null,null,null,null,null,null,null,null,null,null,null,"Signature,"]

{"sheet":"Résultat final","index":10,"n_rows":544,"n_cols":12,"rows_kept":544,"cut":false,"hidden":false,"merged":[[1,0,1,6],[3,0,3,6],[185,1,185,5],[77,1,77,5],[59,1,59,5],[41,1,41,5],[167,1,167,5],[149,1,149,5],[131,1,131,5],[113,1,113,5],[0,0,0,6],[527,1,527,5],[419,1,419,5],[437,1,437,5],[455,1,455,5],[473,1,473,5],[491,1,491,5],[329,1,329,5],[347,1,347,5],[95,1,95,5],[5,1,5,5],[365,1,365,5],[383,1,383,5],[23,1,23,5],[221,1,221,5],[239,1,239,5],[509,1,509,5],[401,1,401,5],[203,1,203,5],[275,1,275,5],[293,1,293,5],[311,1,311,5],[257,1,257,5]]}
["FEDERATION FRANCAISE D'HALTEROPHILIE,"]
["MUSCULATION, FORCE ATHLETIQUE ET CULTURISME"]
[null,null,null,null,null,null,null,null,{"$f":"Parametres!G5","v":"N"}]
[" DISCIPLINE  CULTURISME"]
[]
[{"$f":"C6&G6","v":"C1"},{"$f":"Juges!B1","v":"C1"},null,null,null,null,{"$f":"B6","v":"C1"},null,null,{"$f":"VLOOKUP(B6,'Paramétrage des points'!$A$5:$C$28,3,FALSE)","v":{"$error":"#N/A"}},null,{"$f":"IFERROR(VLOOKUP(K6,'Paramétrage des points'!AA:AB,2,FALSE),0)","v":0}]
["N0M / PRENOMC1","PLACE","N0M / PRENOM","DOSSARD","CLUB","COMITE",{"$f":"+G6","v":"C1"},null,null,{"$f":"J6","v":{"$error":"#N/A"}},null,{"$f":"IFERROR(VLOOKUP(K7,'Paramétrage des points'!AA:AB,2,FALSE),0)","v":0}]
["POTEAU  ALEXANDREC1",{"$f":"1","v":1},"POTEAU  ALEXANDRE",5,null,null,{"$f":"+G7","v":"C1"},null,null,{"$f":"J7","v":{"$error":"#N/A"}},{"$f":"IF($I$3=\"N\",\"N\"&J8&B8,\"\")","v":{"$error":"#N/A"}},{"$f":"IFERROR(VLOOKUP(K8,'Paramétrage des points'!AA:AB,2,FALSE),0)","v":0}]
["MACHOME  DIDIERC1",2,"MACHOME  DIDIER",6,null,null,{"$f":"+G8","v":"C1"},null,null,{"$error":"#N/A"},{"$error":"#N/A"},{"$f":"IFERROR(VLOOKUP(K9,'Paramétrage des points'!AA:AB,2,FALSE),0)","v":0}]
["C1",3,null,null,null,null,{"$f":"+G9","v":"C1"},null,null,{"$error":"#N/A"},{"$error":"#N/A"},{"$f":"IFERROR(VLOOKUP(K10,'Paramétrage des points'!AA:AB,2,FALSE),0)","v":0}]
["C1",4,null,null,null,null,{"$f":"+G10","v":"C1"},null,null,{"$error":"#N/A"},{"$error":"#N/A"},{"$f":"IFERROR(VLOOKUP(K11,'Paramétrage des points'!AA:AB,2,FALSE),0)","v":0}]
["C1",5,null,null,null,null,"C1",null,null,{"$error":"#N/A"},{"$error":"#N/A"},{"$f":"IFERROR(VLOOKUP(K12,'Paramétrage des points'!AA:AB,2,FALSE),0)","v":0}]
["C1",6,null,null,null,null,"C1",null,null,{"$error":"#N/A"},{"$error":"#N/A"},{"$f":"IFERROR(VLOOKUP(K13,'Paramétrage des points'!AA:AB,2,FALSE),0)","v":0}]
["  C1",7,"  ",0,0,0,"C1",null,null,{"$error":"#N/A"},{"$error":"#N/A"},{"$f":"IFERROR(VLOOKUP(K14,'Paramétrage des points'!AA:AB,2,FALSE),0)","v":0}]
["  C1",8,"  ",0,0,0,"C1",null,null,{"$error":"#N/A"},{"$error":"#N/A"},{"$f":"IFERROR(VLOOKUP(K15,'Paramétrage des points'!AA:AB,2,FALSE),0)","v":0}]
["  C1",9,"  ",0,0,0,"C1",null,null,{"$error":"#N/A"},{"$error":"#N/A"},{"$f":"IFERROR(VLOOKUP(K16,'Paramétrage des points'!AA:AB,2,FALSE),0)","v":0}]
["  C1",10,"  ",0,0,0,"C1",null,null,{"$error":"#N/A"},{"$error":"#N/A"},{"$f":"IFERROR(VLOOKUP(K17,'Paramétrage des points'!AA:AB,2,FALSE),0)","v":0}]
["  C1",11,"  ",0,0,0,"C1",null,null,{"$error":"#N/A"},{"$error":"#N/A"},{"$f":"IFERROR(VLOOKUP(K18,'Paramétrage des points'!AA:AB,2,FALSE),0)","v":0}]
["  C1",12,"  ",0,0,0,"C1",null,null,{"$error":"#N/A"},{"$error":"#N/A"},{"$f":"IFERROR(VLOOKUP(K19,'Paramétrage des points'!AA:AB,2,FALSE),0)","v":0}]
["  C1",13,"  ",0,0,0,"C1",null,null,{"$error":"#N/A"},{"$error":"#N/A"},{"$f":"IFERROR(VLOOKUP(K20,'Paramétrage des points'!AA:AB,2,FALSE),0)","v":0}]
["  C1",14,"  ",0,0,0,"C1",null,null,{"$error":"#N/A"},{"$error":"#N/A"},{"$f":"IFERROR(VLOOKUP(K21,'Paramétrage des points'!AA:AB,2,FALSE),0)","v":0}]
["  C1",15,"  ",0,0,0,"C1",null,null,{"$error":"#N/A"},{"$error":"#N/A"},{"$f":"IFERROR(VLOOKUP(K22,'Paramétrage des points'!AA:AB,2,FALSE),0)","v":0}]
["",null,null,null,null,null,null,null,null,null,null,{"$f":"IFERROR(VLOOKUP(K23,'Paramétrage des points'!AA:AB,2,FALSE),0)","v":0}]
["C2",{"$f":"Juges!C1","v":"C2"},null,null,null,null,{"$f":"B24","v":"C2"},null,null,{"$f":"VLOOKUP(B24,'Paramétrage des points'!$A$5:$C$28,3,FALSE)","v":{"$error":"#N/A"}},null,{"$f":"IFERROR(VLOOKUP(K24,'Paramétrage des points'!AA:AB,2,FALSE),0)","v":0}]
["N0M / PRENOMC2","PLACE","N0M / PRENOM","DOSSARD","CLUB","COMITE",{"$f":"+G24","v":"C2"},null,null,{"$f":"J24","v":{"$error":"#N/A"}},null,{"$f":"IFERROR(VLOOKUP(K25,'Paramétrage des points'!AA:AB,2,FALSE),0)","v":0}]
["C2",{"$f":"1","v":1},null,null,null,null,{"$f":"+G25","v":"C2"},null,null,{"$f":"J25","v":{"$error":"#N/A"}},{"$f":"IF($I$3=\"N\",\"N\"&J26&B26,\"\")","v":{"$error":"#N/A"}},{"$f":"IFERROR(VLOOKUP(K26,'Paramétrage des points'!AA:AB,2,FALSE),0)","v":0}]
["C2",2,null,null,null,null,{"$f":"+G26","v":"C2"},null,null,{"$error":"#N/A"},{"$error":"#N/A"},{"$f":"IFERROR(VLOOKUP(K27,'Paramétrage des points'!AA:AB,2,FALSE),0)","v":0}]
["C2",3,null,null,null,null,{"$f":"+G27","v":"C2"},null,null,{"$error":"#N/A"},{"$error":"#N/A"},{"$f":"IFERROR(VLOOKUP(K28,'Paramétrage des points'!AA:AB,2,FALSE),0)","v":0}]
["C2",4,null,null,null,null,{"$f":"+G28","v":"C2"},null,null,{"$error":"#N/A"},{"$error":"#N/A"},{"$f":"IFERROR(VLOOKUP(K29,'Paramétrage des points'!AA:AB,2,FALSE),0)","v":0}]
["C2",5,null,null,null,null,"C2",null,null,{"$error":"#N/A"},{"$error":"#N/A"},{"$f":"IFERROR(VLOOKUP(K30,'Paramétrage des points'!AA:AB,2,FALSE),0)","v":0}]
["C2",6,null,null,null,null,"C2",null,null,{"$error":"#N/A"},{"$error":"#N/A"},{"$f":"IFERROR(VLOOKUP(K31,'Paramétrage des points'!AA:AB,2,FALSE),0)","v":0}]
["C2",7,null,null,null,null,"C2",null,null,{"$error":"#N/A"},{"$error":"#N/A"},{"$f":"IFERROR(VLOOKUP(K32,'Paramétrage des points'!AA:AB,2,FALSE),0)","v":0}]
["C2",8,null,null,null,null,"C2",null,null,{"$error":"#N/A"},{"$error":"#N/A"},{"$f":"IFERROR(VLOOKUP(K33,'Paramétrage des points'!AA:AB,2,FALSE),0)","v":0}]
["C2",9,null,null,null,null,"C2",null,null,{"$error":"#N/A"},{"$error":"#N/A"},{"$f":"IFERROR(VLOOKUP(K34,'Paramétrage des points'!AA:AB,2,FALSE),0)","v":0}]
["  C2",10,"  ",0,0,0,"C2",null,null,{"$error":"#N/A"},{"$error":"#N/A"},{"$f":"IFERROR(VLOOKUP(K35,'Paramétrage des points'!AA:AB,2,FALSE),0)","v":0}]
["  C2",11,"  ",0,0,0,"C2",null,null,{"$error":"#N/A"},{"$error":"#N/A"},{"$f":"IFERROR(VLOOKUP(K36,'Paramétrage des points'!AA:AB,2,FALSE),0)","v":0}]
["  C2",12,"  ",0,0,0,"C2",null,null,{"$error":"#N/A"},{"$error":"#N/A"},{"$f":"IFERROR(VLOOKUP(K37,'Paramétrage des points'!AA:AB,2,FALSE),0)","v":0}]
["  C2",13,"  ",0,0,0,"C2",null,null,{"$error":"#N/A"},{"$error":"#N/A"},{"$f":"IFERROR(VLOOKUP(K38,'Paramétrage des points'!AA:AB,2,FALSE),0)","v":0}]
["  C2",14,"  ",0,0,0,"C2",null,null,{"$error":"#N/A"},{"$error":"#N/A"},{"$f":"IFERROR(VLOOKUP(K39,'Paramétrage des points'!AA:AB,2,FALSE),0)","v":0}]
["  C2",15,"  ",0,0,0,"C2",null,null,{"$error":"#N/A"},{"$error":"#N/A"},{"$f":"IFERROR(VLOOKUP(K40,'Paramétrage des points'!AA:AB,2,FALSE),0)","v":0}]
["",null,null,null,null,null,null,null,null,null,null,{"$f":"IFERROR(VLOOKUP(K41,'Paramétrage des points'!AA:AB,2,FALSE),0)","v":0}]
["C3",{"$f":"Juges!D1","v":"C3"},null,null,null,null,{"$f":"B42","v":"C3"},null,null,{"$f":"VLOOKUP(B42,'Paramétrage des points'!$A$5:$C$28,3,FALSE)","v":{"$error":"#N/A"}},null,{"$f":"IFERROR(VLOOKUP(K42,'Paramétrage des points'!AA:AB,2,FALSE),0)","v":0}]
["N0M / PRENOMC3","PLACE","N0M / PRENOM","DOSSARD","CLUB","COMITE",{"$f":"+G42","v":"C3"},null,null,{"$f":"J42","v":{"$error":"#N/A"}},null,{"$f":"IFERROR(VLOOKUP(K43,'Paramétrage des points'!AA:AB,2,FALSE),0)","v":0}]
["ROCHE   MATHIEUC3",1,"ROCHE   MATHIEU",9,"ACADEMIE CLUB LUCON","PAYS DE LOIRE",{"$f":"+G43","v":"C3"},null,null,{"$f":"J43","v":{"$error":"#N/A"}},{"$f":"IF($I$3=\"N\",\"N\"&J44&B44,\"\")","v":{"$error":"#N/A"}},{"$f":"IFERROR(VLOOKUP(K44,'Paramétrage des points'!AA:AB,2,FALSE),0)","v":0}]
["DORIZON  FLORENTC3",2,"DORIZON  FLORENT",8,"BBF ALLONES","PAYS DE LOIRE",{"$f":"+G44","v":"C3"},null,null,{"$error":"#N/A"},{"$error":"#N/A"},{"$f":"IFERROR(VLOOKUP(K45,'Paramétrage des points'!AA:AB,2,FALSE),0)","v":0}]
["BUCHIN   FranckC3",3,"BUCHIN   Franck",16,"ACH FONTENAY","ILE DE FRANCE",{"$f":"+G45","v":"C3"},null,null,{"$error":"#N/A"},{"$error":"#N/A"},{"$f":"IFERROR(VLOOKUP(K46,'Paramétrage des points'!AA:AB,2,FALSE),0)","v":0}]
["COSTE  GEORGESC3",4,"COSTE  GEORGES",17,"GS SENLIS","PICARDIE",{"$f":"+G46","v":"C3"},null,null,{"$error":"#N/A"},{"$error":"#N/A"},{"$f":"IFERROR(VLOOKUP(K47,'Paramétrage des points'!AA:AB,2,FALSE),0)","v":0}]
["DJEFAL  karimC3",5,"DJEFAL  karim",18,"CA LENSOIS","NORD PAS DE CALAIS","C3",null,null,{"$error":"#N/A"},{"$error":"#N/A"},{"$f":"IFERROR(VLOOKUP(K48,'Paramétrage des points'!AA:AB,2,FALSE),0)","v":0}]
["DOYER  LUDOVICC3",6,"DOYER  LUDOVIC",19,"MC FORM AUDRUICQ","NORD PAS DE CALAIS","C3",null,null,{"$error":"#N/A"},{"$error":"#N/A"},{"$f":"IFERROR(VLOOKUP(K49,'Paramétrage des points'!AA:AB,2,FALSE),0)","v":0}]
["ALNET  PhilippeC3",7,"ALNET  Philippe",20,"VELIZY MUSCULATION","ILE DE FRANCE","C3",null,null,{"$error":"#N/A"},{"$error":"#N/A"},{"$f":"IFERROR(VLOOKUP(K50,'Paramétrage des points'!AA:AB,2,FALSE),0)","v":0}]
["  C3",8,"  ",0,0,0,"C3",null,null,{"$error":"#N/A"},{"$error":"#N/A"},{"$f":"IFERROR(VLOOKUP(K51,'Paramétrage des points'!AA:AB,2,FALSE),0)","v":0}]
["  C3",9,"  ",0,0,0,"C3",null,null,{"$error":"#N/A"},{"$error":"#N/A"},{"$f":"IFERROR(VLOOKUP(K52,'Paramétrage des points'!AA:AB,2,FALSE),0)","v":0}]
["  C3",10,"  ",0,0,0,"C3",null,null,{"$error":"#N/A"},{"$error":"#N/A"},{"$f":"IFERROR(VLOOKUP(K53,'Paramétrage des points'!AA:AB,2,FALSE),0)","v":0}]
["  C3",11,"  ",0,0,0,"C3",null,null,{"$error":"#N/A"},{"$error":"#N/A"},{"$f":"IFERROR(VLOOKUP(K54,'Paramétrage des points'!AA:AB,2,FALSE),0)","v":0}]
["  C3",12,"  ",0,0,0,"C3",null,null,{"$error":"#N/A"},{"$error":"#N/A"},{"$f":"IFERROR(VLOOKUP(K55,'Paramétrage des points'!AA:AB,2,FALSE),0)","v":0}]
["  C3",13,"  ",0,0,0,"C3",null,null,{"$error":"#N/A"},{"$error":"#N/A"},{"$f":"IFERROR(VLOOKUP(K56,'Paramétrage des points'!AA:AB,2,FALSE),0)","v":0}]
["  C3",14,"  ",0,0,0,"C3",null,null,{"$error":"#N/A"},{"$error":"#N/A"},{"$f":"IFERROR(VLOOKUP(K57,'Paramétrage des points'!AA:AB,2,FALSE),0)","v":0}]
["  C3",15,"  ",0,0,0,"C3",null,null,{"$error":"#N/A"},{"$error":"#N/A"},{"$f":"IFERROR(VLOOKUP(K58,'Paramétrage des points'!AA:AB,2,FALSE),0)","v":0}]
["",null,null,null,null,null,null,null,null,null,null,{"$f":"IFERROR(VLOOKUP(K59,'Paramétrage des points'!AA:AB,2,FALSE),0)","v":0}]
["C4",{"$f":"Juges!E1","v":"C4"},null,null,null,null,{"$f":"B60","v":"C4"},null,null,{"$f":"VLOOKUP(B60,'Paramétrage des points'!$A$5:$C$28,3,FALSE)","v":{"$error":"#N/A"}},null,{"$f":"IFERROR(VLOOKUP(K60,'Paramétrage des points'!AA:AB,2,FALSE),0)","v":0}]
["N0M / PRENOMC4","PLACE","N0M / PRENOM","DOSSARD","CLUB","COMITE",{"$f":"+G60","v":"C4"},null,null,{"$f":"J60","v":{"$error":"#N/A"}},null,{"$f":"IFERROR(VLOOKUP(K61,'Paramétrage des points'!AA:AB,2,FALSE),0)","v":0}]
["C4",1,null,null,null,null,{"$f":"+G61","v":"C4"},null,null,{"$f":"J61","v":{"$error":"#N/A"}},{"$f":"IF($I$3=\"N\",\"N\"&J62&B62,\"\")","v":{"$error":"#N/A"}},{"$f":"IFERROR(VLOOKUP(K62,'Paramétrage des points'!AA:AB,2,FALSE),0)","v":0}]
["C4",2,null,null,null,null,{"$f":"+G62","v":"C4"},null,null,{"$error":"#N/A"},{"$error":"#N/A"},{"$f":"IFERROR(VLOOKUP(K63,'Paramétrage des points'!AA:AB,2,FALSE),0)","v":0}]
["C4",3,null,null,null,null,{"$f":"+G63","v":"C4"},null,null,{"$error":"#N/A"},{"$error":"#N/A"},{"$f":"IFERROR(VLOOKUP(K64,'Paramétrage des points'!AA:AB,2,FALSE),0)","v":0}]
["C4",4,null,null,null,null,{"$f":"+G64","v":"C4"},null,null,{"$error":"#N/A"},{"$error":"#N/A"},{"$f":"IFERROR(VLOOKUP(K65,'Paramétrage des points'!AA:AB,2,FALSE),0)","v":0}]
["C4",5,null,null,null,null,"C4",null,null,{"$error":"#N/A"},{"$error":"#N/A"},{"$f":"IFERROR(VLOOKUP(K66,'Paramétrage des points'!AA:AB,2,FALSE),0)","v":0}]
["C4",6,null,null,null,null,"C4",null,null,{"$error":"#N/A"},{"$error":"#N/A"},{"$f":"IFERROR(VLOOKUP(K67,'Paramétrage des points'!AA:AB,2,FALSE),0)","v":0}]
["C4",7,null,null,null,null,"C4",null,null,{"$error":"#N/A"},{"$error":"#N/A"},{"$f":"IFERROR(VLOOKUP(K68,'Paramétrage des points'!AA:AB,2,FALSE),0)","v":0}]
["C4",8,null,null,null,null,"C4",null,null,{"$error":"#N/A"},{"$error":"#N/A"},{"$f":"IFERROR(VLOOKUP(K69,'Paramétrage des points'!AA:AB,2,FALSE),0)","v":0}]
["C4",9,null,null,null,null,"C4",null,null,{"$error":"#N/A"},{"$error":"#N/A"},{"$f":"IFERROR(VLOOKUP(K70,'Paramétrage des points'!AA:AB,2,FALSE),0)","v":0}]
["C4",10,null,null,null,null,"C4",null,null,{"$error":"#N/A"},{"$error":"#N/A"},{"$f":"IFERROR(VLOOKUP(K71,'Paramétrage des points'!AA:AB,2,FALSE),0)","v":0}]
["C4",11,null,null,null,null,"C4",null,null,{"$error":"#N/A"},{"$error":"#N/A"},{"$f":"IFERROR(VLOOKUP(K72,'Paramétrage des points'!AA:AB,2,FALSE),0)","v":0}]
[{"$f":"C73&G73","v":"C4"},12,null,null,null,null,"C4",null,null,{"$error":"#N/A"},{"$error":"#N/A"},{"$f":"IFERROR(VLOOKUP(K73,'Paramétrage des points'!AA:AB,2,FALSE),0)","v":0}]
["C4",13,null,null,null,null,"C4",null,null,{"$error":"#N/A"},{"$error":"#N/A"},{"$f":"IFERROR(VLOOKUP(K74,'Paramétrage des points'!AA:AB,2,FALSE),0)","v":0}]
["C4",14,null,null,null,null,"C4",null,null,{"$error":"#N/A"},{"$error":"#N/A"},{"$f":"IFERROR(VLOOKUP(K75,'Paramétrage des points'!AA:AB,2,FALSE),0)","v":0}]
["C4",15,null,null,null,null,"C4",null,null,{"$error":"#N/A"},{"$error":"#N/A"},{"$f":"IFERROR(VLOOKUP(K76,'Paramétrage des points'!AA:AB,2,FALSE),0)","v":0}]
["",null,null,null,null,null,null,null,null,null,null,{"$f":"IFERROR(VLOOKUP(K77,'Paramétrage des points'!AA:AB,2,FALSE),0)","v":0}]
["C5",{"$f":"Juges!F1","v":"C5"},null,null,null,null,{"$f":"B78","v":"C5"},null,null,{"$f":"VLOOKUP(B78,'Paramétrage des points'!$A$5:$C$28,3,FALSE)","v":{"$error":"#N/A"}},null,{"$f":"IFERROR(VLOOKUP(K78,'Paramétrage des points'!AA:AB,2,FALSE),0)","v":0}]
["N0M / PRENOMC5","PLACE","N0M / PRENOM","DOSSARD","CLUB","COMITE",{"$f":"+G78","v":"C5"},null,null,{"$f":"J78","v":{"$error":"#N/A"}},null,{"$f":"IFERROR(VLOOKUP(K79,'Paramétrage des points'!AA:AB,2,FALSE),0)","v":0}]
["C5",1,null,null,null,null,{"$f":"+G79","v":"C5"},null,null,{"$f":"J79","v":{"$error":"#N/A"}},{"$f":"IF($I$3=\"N\",\"N\"&J80&B80,\"\")","v":{"$error":"#N/A"}},{"$f":"IFERROR(VLOOKUP(K80,'Paramétrage des points'!AA:AB,2,FALSE),0)","v":0}]
["C5",2,null,null,null,null,{"$f":"+G80","v":"C5"},null,null,{"$error":"#N/A"},{"$error":"#N/A"},{"$f":"IFERROR(VLOOKUP(K81,'Paramétrage des points'!AA:AB,2,FALSE),0)","v":0}]
["C5",3,null,null,null,null,{"$f":"+G81","v":"C5"},null,null,{"$error":"#N/A"},{"$error":"#N/A"},{"$f":"IFERROR(VLOOKUP(K82,'Paramétrage des points'!AA:AB,2,FALSE),0)","v":0}]
["C5",4,null,null,null,null,{"$f":"+G82","v":"C5"},null,null,{"$error":"#N/A"},{"$error":"#N/A"},{"$f":"IFERROR(VLOOKUP(K83,'Paramétrage des points'!AA:AB,2,FALSE),0)","v":0}]
["C5",5,null,null,null,null,"C5",null,null,{"$error":"#N/A"},{"$error":"#N/A"},{"$f":"IFERROR(VLOOKUP(K84,'Paramétrage des points'!AA:AB,2,FALSE),0)","v":0}]
["C5",6,null,null,null,null,"C5",null,null,{"$error":"#N/A"},{"$error":"#N/A"},{"$f":"IFERROR(VLOOKUP(K85,'Paramétrage des points'!AA:AB,2,FALSE),0)","v":0}]
["C5",7,null,null,null,null,"C5",null,null,{"$error":"#N/A"},{"$error":"#N/A"},{"$f":"IFERROR(VLOOKUP(K86,'Paramétrage des points'!AA:AB,2,FALSE),0)","v":0}]
["C5",8,null,null,null,null,"C5",null,null,{"$error":"#N/A"},{"$error":"#N/A"},{"$f":"IFERROR(VLOOKUP(K87,'Paramétrage des points'!AA:AB,2,FALSE),0)","v":0}]
["C5",9,null,null,null,null,"C5",null,null,{"$error":"#N/A"},{"$error":"#N/A"},{"$f":"IFERROR(VLOOKUP(K88,'Paramétrage des points'!AA:AB,2,FALSE),0)","v":0}]
["C5",10,null,null,null,null,"C5",null,null,{"$error":"#N/A"},{"$error":"#N/A"},{"$f":"IFERROR(VLOOKUP(K89,'Paramétrage des points'!AA:AB,2,FALSE),0)","v":0}]
["C5",11,null,null,null,null,"C5",null,null,{"$error":"#N/A"},{"$error":"#N/A"},{"$f":"IFERROR(VLOOKUP(K90,'Paramétrage des points'!AA:AB,2,FALSE),0)","v":0}]
["C5",12,null,null,null,null,"C5",null,null,{"$error":"#N/A"},{"$error":"#N/A"},{"$f":"IFERROR(VLOOKUP(K91,'Paramétrage des points'!AA:AB,2,FALSE),0)","v":0}]
["C5",13,null,null,null,null,"C5",null,null,{"$error":"#N/A"},{"$error":"#N/A"},{"$f":"IFERROR(VLOOKUP(K92,'Paramétrage des points'!AA:AB,2,FALSE),0)","v":0}]
["C5",14,null,null,null,null,"C5",null,null,{"$error":"#N/A"},{"$error":"#N/A"},{"$f":"IFERROR(VLOOKUP(K93,'Paramétrage des points'!AA:AB,2,FALSE),0)","v":0}]
["  C5",15,"  ",0,0,0,"C5",null,null,{"$error":"#N/A"},{"$error":"#N/A"},{"$f":"IFERROR(VLOOKUP(K94,'Paramétrage des points'!AA:AB,2,FALSE),0)","v":0}]
["",null,null,null,null,null,null,null,null,null,null,{"$f":"IFERROR(VLOOKUP(K95,'Paramétrage des points'!AA:AB,2,FALSE),0)","v":0}]
["CULTURIS FORM",{"$f":"Juges!G1","v":"CULTURIS FORM"},null,null,null,null,{"$f":"B96","v":"CULTURIS FORM"},null,null,{"$f":"VLOOKUP(B96,'Paramétrage des points'!$A$5:$C$28,3,FALSE)","v":{"$error":"#N/A"}},null,{"$f":"IFERROR(VLOOKUP(K96,'Paramétrage des points'!AA:AB,2,FALSE),0)","v":0}]
["N0M / PRENOMCULTURIS FORM","PLACE","N0M / PRENOM","DOSSARD","CLUB","COMITE",{"$f":"+G96","v":"CULTURIS FORM"},null,null,{"$f":"J96","v":{"$error":"#N/A"}},null,{"$f":"IFERROR(VLOOKUP(K97,'Paramétrage des points'!AA:AB,2,FALSE),0)","v":0}]
["LE MEUR  SylvainCULTURIS FORM",1,"LE MEUR  Sylvain",52,"CMF LOCMINE","BRETAGNE",{"$f":"+G97","v":"CULTURIS FORM"},null,null,{"$f":"J97","v":{"$error":"#N/A"}},{"$f":"IF($I$3=\"N\",\"N\"&J98&B98,\"\")","v":{"$error":"#N/A"}},{"$f":"IFERROR(VLOOKUP(K98,'Paramétrage des points'!AA:AB,2,FALSE),0)","v":0}]
["COUPEL  THIERRYCULTURIS FORM",2,"COUPEL  THIERRY",43,"MH CLERMONTOIS","PICARDIE",{"$f":"+G98","v":"CULTURIS FORM"},null,null,{"$error":"#N/A"},{"$error":"#N/A"},{"$f":"IFERROR(VLOOKUP(K99,'Paramétrage des points'!AA:AB,2,FALSE),0)","v":0}]
["MARCHAL   LAURENTCULTURIS FORM",3,"MARCHAL   LAURENT",42,"MH CLERMONTOIS","PICARDIE",{"$f":"+G99","v":"CULTURIS FORM"},null,null,{"$error":"#N/A"},{"$error":"#N/A"},{"$f":"IFERROR(VLOOKUP(K100,'Paramétrage des points'!AA:AB,2,FALSE),0)","v":0}]
["BLANCHET  PATRICKCULTURIS FORM",4,"BLANCHET  PATRICK",51,"CHFM ROISEL","PICARDIE",{"$f":"+G100","v":"CULTURIS FORM"},null,null,{"$error":"#N/A"},{"$error":"#N/A"},{"$f":"IFERROR(VLOOKUP(K101,'Paramétrage des points'!AA:AB,2,FALSE),0)","v":0}]
["VACTER  ChristopheCULTURIS FORM",5,"VACTER  Christophe",17,"CSAG MOURMELON","CHAMPAGNE ARDENNES","CULTURIS FORM",null,null,{"$error":"#N/A"},{"$error":"#N/A"},{"$f":"IFERROR(VLOOKUP(K102,'Paramétrage des points'!AA:AB,2,FALSE),0)","v":0}]
["OUSFANE  MOHAMEDCULTURIS FORM",6,"OUSFANE  MOHAMED",20,"PSA ACC CHARLEVILLE MEZIERES","CHAMPAGNE ARDENNES","CULTURIS FORM",null,null,{"$error":"#N/A"},{"$error":"#N/A"},{"$f":"IFERROR(VLOOKUP(K103,'Paramétrage des points'!AA:AB,2,FALSE),0)","v":0}]
["  CULTURIS FORM",7,"  ",0,0,0,"CULTURIS FORM",null,null,{"$error":"#N/A"},{"$error":"#N/A"},{"$f":"IFERROR(VLOOKUP(K104,'Paramétrage des points'!AA:AB,2,FALSE),0)","v":0}]
["  CULTURIS FORM",8,"  ",0,0,0,"CULTURIS FORM",null,null,{"$error":"#N/A"},{"$error":"#N/A"},{"$f":"IFERROR(VLOOKUP(K105,'Paramétrage des points'!AA:AB,2,FALSE),0)","v":0}]
["  CULTURIS FORM",9,"  ",0,0,0,"CULTURIS FORM",null,null,{"$error":"#N/A"},{"$error":"#N/A"},{"$f":"IFERROR(VLOOKUP(K106,'Paramétrage des points'!AA:AB,2,FALSE),0)","v":0}]
["  CULTURIS FORM",10,"  ",0,0,0,"CULTURIS FORM",null,null,{"$error":"#N/A"},{"$error":"#N/A"},{"$f":"IFERROR(VLOOKUP(K107,'Paramétrage des points'!AA:AB,2,FALSE),0)","v":0}]
["  CULTURIS FORM",11,"  ",0,0,0,"CULTURIS FORM",null,null,{"$error":"#N/A"},{"$error":"#N/A"},{"$f":"IFERROR(VLOOKUP(K108,'Paramétrage des points'!AA:AB,2,FALSE),0)","v":0}]
["  CULTURIS FORM",12,"  ",0,0,0,"CULTURIS FORM",null,null,{"$error":"#N/A"},{"$error":"#N/A"},{"$f":"IFERROR(VLOOKUP(K109,'Paramétrage des points'!AA:AB,2,FALSE),0)","v":0}]
["  CULTURIS FORM",13,"  ",0,0,0,"CULTURIS FORM",null,null,{"$error":"#N/A"},{"$error":"#N/A"},{"$f":"IFERROR(VLOOKUP(K110,'Paramétrage des points'!AA:AB,2,FALSE),0)","v":0}]
["  CULTURIS FORM",14,"  ",0,0,0,"CULTURIS FORM",null,null,{"$error":"#N/A"},{"$error":"#N/A"},{"$f":"IFERROR(VLOOKUP(K111,'Paramétrage des points'!AA:AB,2,FALSE),0)","v":0}]
["  CULTURIS FORM",15,"  ",0,0,0,"CULTURIS FORM",null,null,{"$error":"#N/A"},{"$error":"#N/A"},{"$f":"IFERROR(VLOOKUP(K112,'Paramétrage des points'!AA:AB,2,FALSE),0)","v":0}]
["",null,null,null,null,null,null,null,null,null,null,{"$f":"IFERROR(VLOOKUP(K113,'Paramétrage des points'!AA:AB,2,FALSE),0)","v":0}]
["Couples",{"$f":"Juges!H1","v":"Couples"},null,null,null,null,{"$f":"B114","v":"Couples"},null,null,{"$f":"VLOOKUP(B114,'Paramétrage des points'!$A$5:$C$28,3,FALSE)","v":{"$error":"#N/A"}},null,{"$f":"IFERROR(VLOOKUP(K114,'Paramétrage des points'!AA:AB,2,FALSE),0)","v":0}]
["N0M / PRENOMCouples","PLACE","N0M / PRENOM","DOSSARD","CLUB","COMITE",{"$f":"+G114","v":"Couples"},null,null,{"$f":"J114","v":{"$error":"#N/A"}},null,{"$f":"IFERROR(VLOOKUP(K115,'Paramétrage des points'!AA:AB,2,FALSE),0)","v":0}]
["MONCOURTOIS  CHRISTELLECouples",1,"MONCOURTOIS  CHRISTELLE",1,"ASC MUSCLE GYM SOISSONS","PICARDIE",{"$f":"+G115","v":"Couples"},null,null,{"$f":"J115","v":{"$error":"#N/A"}},{"$f":"IF($I$3=\"N\",\"N\"&J116&B116,\"\")","v":{"$error":"#N/A"}},{"$f":"IFERROR(VLOOKUP(K116,'Paramétrage des points'!AA:AB,2,FALSE),0)","v":0}]
["  Couples",2,"  ",0,0,0,{"$f":"+G116","v":"Couples"},null,null,{"$error":"#N/A"},{"$error":"#N/A"},{"$f":"IFERROR(VLOOKUP(K117,'Paramétrage des points'!AA:AB,2,FALSE),0)","v":0}]
["  Couples",3,"  ",0,0,0,{"$f":"+G117","v":"Couples"},null,null,{"$error":"#N/A"},{"$error":"#N/A"},{"$f":"IFERROR(VLOOKUP(K118,'Paramétrage des points'!AA:AB,2,FALSE),0)","v":0}]
["  Couples",4,"  ",0,0,0,{"$f":"+G118","v":"Couples"},null,null,{"$error":"#N/A"},{"$error":"#N/A"},{"$f":"IFERROR(VLOOKUP(K119,'Paramétrage des points'!AA:AB,2,FALSE),0)","v":0}]
["BLANCHART  FREDDYCouples",5,"BLANCHART  FREDDY",1,"ASC MUSCLE GYM SOISSONS","PICARDIE","Couples",null,null,{"$error":"#N/A"},{"$error":"#N/A"},{"$f":"IFERROR(VLOOKUP(K120,'Paramétrage des points'!AA:AB,2,FALSE),0)","v":0}]
["  Couples",6,"  ",0,0,0,"Couples",null,null,{"$error":"#N/A"},{"$error":"#N/A"},{"$f":"IFERROR(VLOOKUP(K121,'Paramétrage des points'!AA:AB,2,FALSE),0)","v":0}]
["  Couples",7,"  ",0,0,0,"Couples",null,null,{"$error":"#N/A"},{"$error":"#N/A"},{"$f":"IFERROR(VLOOKUP(K122,'Paramétrage des points'!AA:AB,2,FALSE),0)","v":0}]
["  Couples",8,"  ",0,0,0,"Couples",null,null,{"$error":"#N/A"},{"$error":"#N/A"},{"$f":"IFERROR(VLOOKUP(K123,'Paramétrage des points'!AA:AB,2,FALSE),0)","v":0}]
["  Couples",9,"  ",0,0,0,"Couples",null,null,{"$error":"#N/A"},{"$error":"#N/A"},{"$f":"IFERROR(VLOOKUP(K124,'Paramétrage des points'!AA:AB,2,FALSE),0)","v":0}]
["  Couples",10,"  ",0,0,0,"Couples",null,null,{"$error":"#N/A"},{"$error":"#N/A"},{"$f":"IFERROR(VLOOKUP(K125,'Paramétrage des points'!AA:AB,2,FALSE),0)","v":0}]
["  Couples",11,"  ",0,0,0,"Couples",null,null,{"$error":"#N/A"},{"$error":"#N/A"},{"$f":"IFERROR(VLOOKUP(K126,'Paramétrage des points'!AA:AB,2,FALSE),0)","v":0}]
["  Couples",12,"  ",0,0,0,"Couples",null,null,{"$error":"#N/A"},{"$error":"#N/A"},{"$f":"IFERROR(VLOOKUP(K127,'Paramétrage des points'!AA:AB,2,FALSE),0)","v":0}]
["  Couples",13,"  ",0,0,0,"Couples",null,null,{"$error":"#N/A"},{"$error":"#N/A"},{"$f":"IFERROR(VLOOKUP(K128,'Paramétrage des points'!AA:AB,2,FALSE),0)","v":0}]
["  Couples",14,"  ",0,0,0,"Couples",null,null,{"$error":"#N/A"},{"$error":"#N/A"},{"$f":"IFERROR(VLOOKUP(K129,'Paramétrage des points'!AA:AB,2,FALSE),0)","v":0}]
["  Couples",15,"  ",0,0,0,"Couples",null,null,{"$error":"#N/A"},{"$error":"#N/A"},{"$f":"IFERROR(VLOOKUP(K130,'Paramétrage des points'!AA:AB,2,FALSE),0)","v":0}]
["",null,null,null,null,null,null,null,null,null,null,{"$f":"IFERROR(VLOOKUP(K131,'Paramétrage des points'!AA:AB,2,FALSE),0)","v":0}]
["FV",{"$f":"Juges!I1","v":"FV"},null,null,null,null,{"$f":"B132","v":"FV"},null,null,{"$f":"VLOOKUP(B132,'Paramétrage des points'!$A$5:$C$28,3,FALSE)","v":{"$error":"#N/A"}},null,{"$f":"IFERROR(VLOOKUP(K132,'Paramétrage des points'!AA:AB,2,FALSE),0)","v":0}]
["N0M / PRENOMFV","PLACE","N0M / PRENOM","DOSSARD","CLUB","COMITE",{"$f":"+G132","v":"FV"},null,null,{"$f":"J132","v":{"$error":"#N/A"}},null,{"$f":"IFERROR(VLOOKUP(K133,'Paramétrage des points'!AA:AB,2,FALSE),0)","v":0}]
["  FV",1,"  ",0,0,0,{"$f":"+G133","v":"FV"},null,null,{"$f":"J133","v":{"$error":"#N/A"}},{"$f":"IF($I$3=\"N\",\"N\"&J134&B134,\"\")","v":{"$error":"#N/A"}},{"$f":"IFERROR(VLOOKUP(K134,'Paramétrage des points'!AA:AB,2,FALSE),0)","v":0}]
["FOURNIER  SYLVIEFV",2,"FOURNIER  SYLVIE",20,"MUSCULATION HAUBOURDINOISE","NORD PAS DE CALAIS",{"$f":"+G134","v":"FV"},null,null,{"$error":"#N/A"},{"$error":"#N/A"},{"$f":"IFERROR(VLOOKUP(K135,'Paramétrage des points'!AA:AB,2,FALSE),0)","v":0}]
["  FV",3,"  ",0,0,0,{"$f":"+G135","v":"FV"},null,null,{"$error":"#N/A"},{"$error":"#N/A"},{"$f":"IFERROR(VLOOKUP(K136,'Paramétrage des points'!AA:AB,2,FALSE),0)","v":0}]
[{"$f":"C137&G137","v":"  FV"},4,"  ",0,0,0,{"$f":"+G136","v":"FV"},null,null,{"$error":"#N/A"},{"$error":"#N/A"},{"$f":"IFERROR(VLOOKUP(K137,'Paramétrage des points'!AA:AB,2,FALSE),0)","v":0}]
["MONCOURTOIS  CHRISTELLEFV",5,"MONCOURTOIS  CHRISTELLE",33,"ASC MUSCLE GYM SOISSONS","PICARDIE","FV",null,null,{"$error":"#N/A"},{"$error":"#N/A"},{"$f":"IFERROR(VLOOKUP(K138,'Paramétrage des points'!AA:AB,2,FALSE),0)","v":0}]
["  FV",6,"  ",0,0,0,"FV",null,null,{"$error":"#N/A"},{"$error":"#N/A"},{"$f":"IFERROR(VLOOKUP(K139,'Paramétrage des points'!AA:AB,2,FALSE),0)","v":0}]
["  FV",7,"  ",0,0,0,"FV",null,null,{"$error":"#N/A"},{"$error":"#N/A"},{"$f":"IFERROR(VLOOKUP(K140,'Paramétrage des points'!AA:AB,2,FALSE),0)","v":0}]
["  FV",8,"  ",0,0,0,"FV",null,null,{"$error":"#N/A"},{"$error":"#N/A"},{"$f":"IFERROR(VLOOKUP(K141,'Paramétrage des points'!AA:AB,2,FALSE),0)","v":0}]
["  FV",9,"  ",0,0,0,"FV",null,null,{"$error":"#N/A"},{"$error":"#N/A"},{"$f":"IFERROR(VLOOKUP(K142,'Paramétrage des points'!AA:AB,2,FALSE),0)","v":0}]
["  FV",10,"  ",0,0,0,"FV",null,null,{"$error":"#N/A"},{"$error":"#N/A"},{"$f":"IFERROR(VLOOKUP(K143,'Paramétrage des points'!AA:AB,2,FALSE),0)","v":0}]
["  FV",11,"  ",0,0,0,"FV",null,null,{"$error":"#N/A"},{"$error":"#N/A"},{"$f":"IFERROR(VLOOKUP(K144,'Paramétrage des points'!AA:AB,2,FALSE),0)","v":0}]
["  FV",12,"  ",0,0,0,"FV",null,null,{"$error":"#N/A"},{"$error":"#N/A"},{"$f":"IFERROR(VLOOKUP(K145,'Paramétrage des points'!AA:AB,2,FALSE),0)","v":0}]
["  FV",13,"  ",0,0,0,"FV",null,null,{"$error":"#N/A"},{"$error":"#N/A"},{"$f":"IFERROR(VLOOKUP(K146,'Paramétrage des points'!AA:AB,2,FALSE),0)","v":0}]
["  FV",14,"  ",0,0,0,"FV",null,null,{"$error":"#N/A"},{"$error":"#N/A"},{"$f":"IFERROR(VLOOKUP(K147,'Paramétrage des points'!AA:AB,2,FALSE),0)","v":0}]
["  FV",15,"  ",0,0,0,"FV",null,null,{"$error":"#N/A"},{"$error":"#N/A"},{"$f":"IFERROR(VLOOKUP(K148,'Paramétrage des points'!AA:AB,2,FALSE),0)","v":0}]
["",null,null,null,null,null,null,null,null,null,null,{"$f":"IFERROR(VLOOKUP(K149,'Paramétrage des points'!AA:AB,2,FALSE),0)","v":0}]
["0",{"$f":"Juges!J1","v":0},null,null,null,null,{"$f":"B150","v":0},null,null,{"$f":"VLOOKUP(B150,'Paramétrage des points'!$A$5:$C$28,3,FALSE)","v":{"$error":"#N/A"}},null,{"$f":"IFERROR(VLOOKUP(K150,'Paramétrage des points'!AA:AB,2,FALSE),0)","v":0}]
["N0M / PRENOM0","PLACE","N0M / PRENOM","DOSSARD","CLUB","COMITE",{"$f":"+G150","v":0},null,null,{"$f":"J150","v":{"$error":"#N/A"}},null,{"$f":"IFERROR(VLOOKUP(K151,'Paramétrage des points'!AA:AB,2,FALSE),0)","v":0}]
["0",1,null,null,null,null,{"$f":"+G151","v":0},null,null,{"$f":"J151","v":{"$error":"#N/A"}},{"$f":"IF($I$3=\"N\",\"N\"&J152&B152,\"\")","v":{"$error":"#N/A"}},{"$f":"IFERROR(VLOOKUP(K152,'Paramétrage des points'!AA:AB,2,FALSE),0)","v":0}]
["0",2,null,null,null,null,{"$f":"+G152","v":0},null,null,{"$error":"#N/A"},{"$error":"#N/A"},{"$f":"IFERROR(VLOOKUP(K153,'Paramétrage des points'!AA:AB,2,FALSE),0)","v":0}]
["0",3,null,null,null,null,{"$f":"+G153","v":0},null,null,{"$error":"#N/A"},{"$error":"#N/A"},{"$f":"IFERROR(VLOOKUP(K154,'Paramétrage des points'!AA:AB,2,FALSE),0)","v":0}]
["0",4,null,null,null,null,{"$f":"+G154","v":0},null,null,{"$error":"#N/A"},{"$error":"#N/A"},{"$f":"IFERROR(VLOOKUP(K155,'Paramétrage des points'!AA:AB,2,FALSE),0)","v":0}]
["0",5,null,null,null,null,0,null,null,{"$error":"#N/A"},{"$error":"#N/A"},{"$f":"IFERROR(VLOOKUP(K156,'Paramétrage des points'!AA:AB,2,FALSE),0)","v":0}]
["0",6,null,null,null,null,0,null,null,{"$error":"#N/A"},{"$error":"#N/A"},{"$f":"IFERROR(VLOOKUP(K157,'Paramétrage des points'!AA:AB,2,FALSE),0)","v":0}]
["0",7,null,null,null,null,0,null,null,{"$error":"#N/A"},{"$error":"#N/A"},{"$f":"IFERROR(VLOOKUP(K158,'Paramétrage des points'!AA:AB,2,FALSE),0)","v":0}]
["0",8,null,null,null,null,0,null,null,{"$error":"#N/A"},{"$error":"#N/A"},{"$f":"IFERROR(VLOOKUP(K159,'Paramétrage des points'!AA:AB,2,FALSE),0)","v":0}]
["0",9,null,null,null,null,0,null,null,{"$error":"#N/A"},{"$error":"#N/A"},{"$f":"IFERROR(VLOOKUP(K160,'Paramétrage des points'!AA:AB,2,FALSE),0)","v":0}]
["0",10,null,null,null,null,0,null,null,{"$error":"#N/A"},{"$error":"#N/A"},{"$f":"IFERROR(VLOOKUP(K161,'Paramétrage des points'!AA:AB,2,FALSE),0)","v":0}]
["0",11,null,null,null,null,0,null,null,{"$error":"#N/A"},{"$error":"#N/A"},{"$f":"IFERROR(VLOOKUP(K162,'Paramétrage des points'!AA:AB,2,FALSE),0)","v":0}]
["0",12,null,null,null,null,0,null,null,{"$error":"#N/A"},{"$error":"#N/A"},{"$f":"IFERROR(VLOOKUP(K163,'Paramétrage des points'!AA:AB,2,FALSE),0)","v":0}]
["0",13,null,null,null,null,0,null,null,{"$error":"#N/A"},{"$error":"#N/A"},{"$f":"IFERROR(VLOOKUP(K164,'Paramétrage des points'!AA:AB,2,FALSE),0)","v":0}]
["0",14,null,null,null,null,0,null,null,{"$error":"#N/A"},{"$error":"#N/A"},{"$f":"IFERROR(VLOOKUP(K165,'Paramétrage des points'!AA:AB,2,FALSE),0)","v":0}]
["0",15,null,null,null,null,0,null,null,{"$error":"#N/A"},{"$error":"#N/A"},{"$f":"IFERROR(VLOOKUP(K166,'Paramétrage des points'!AA:AB,2,FALSE),0)","v":0}]
["",null,null,null,null,null,null,null,null,null,null,{"$f":"IFERROR(VLOOKUP(K167,'Paramétrage des points'!AA:AB,2,FALSE),0)","v":0}]
["0",{"$f":"Juges!K1","v":0},null,null,null,null,{"$f":"B168","v":0},null,null,{"$f":"VLOOKUP(B168,'Paramétrage des points'!$A$5:$C$28,3,FALSE)","v":{"$error":"#N/A"}},null,{"$f":"IFERROR(VLOOKUP(K168,'Paramétrage des points'!AA:AB,2,FALSE),0)","v":0}]
["N0M / PRENOM0","PLACE","N0M / PRENOM","DOSSARD","CLUB","COMITE",{"$f":"+G168","v":0},null,null,{"$f":"J168","v":{"$error":"#N/A"}},null,{"$f":"IFERROR(VLOOKUP(K169,'Paramétrage des points'!AA:AB,2,FALSE),0)","v":0}]
["0",1,null,null,null,null,{"$f":"+G169","v":0},null,null,{"$f":"J169","v":{"$error":"#N/A"}},{"$f":"IF($I$3=\"N\",\"N\"&J170&B170,\"\")","v":{"$error":"#N/A"}},{"$f":"IFERROR(VLOOKUP(K170,'Paramétrage des points'!AA:AB,2,FALSE),0)","v":0}]
["0",2,null,null,null,null,{"$f":"+G170","v":0},null,null,{"$error":"#N/A"},{"$error":"#N/A"},{"$f":"IFERROR(VLOOKUP(K171,'Paramétrage des points'!AA:AB,2,FALSE),0)","v":0}]
["0",3,null,null,null,null,{"$f":"+G171","v":0},null,null,{"$error":"#N/A"},{"$error":"#N/A"},{"$f":"IFERROR(VLOOKUP(K172,'Paramétrage des points'!AA:AB,2,FALSE),0)","v":0}]
["0",4,null,null,null,null,{"$f":"+G172","v":0},null,null,{"$error":"#N/A"},{"$error":"#N/A"},{"$f":"IFERROR(VLOOKUP(K173,'Paramétrage des points'!AA:AB,2,FALSE),0)","v":0}]
["0",5,null,null,null,null,0,null,null,{"$error":"#N/A"},{"$error":"#N/A"},{"$f":"IFERROR(VLOOKUP(K174,'Paramétrage des points'!AA:AB,2,FALSE),0)","v":0}]
["0",6,null,null,null,null,0,null,null,{"$error":"#N/A"},{"$error":"#N/A"},{"$f":"IFERROR(VLOOKUP(K175,'Paramétrage des points'!AA:AB,2,FALSE),0)","v":0}]
["0",7,null,null,null,null,0,null,null,{"$error":"#N/A"},{"$error":"#N/A"},{"$f":"IFERROR(VLOOKUP(K176,'Paramétrage des points'!AA:AB,2,FALSE),0)","v":0}]
["0",8,null,null,null,null,0,null,null,{"$error":"#N/A"},{"$error":"#N/A"},{"$f":"IFERROR(VLOOKUP(K177,'Paramétrage des points'!AA:AB,2,FALSE),0)","v":0}]
["0",9,null,null,null,null,0,null,null,{"$error":"#N/A"},{"$error":"#N/A"},{"$f":"IFERROR(VLOOKUP(K178,'Paramétrage des points'!AA:AB,2,FALSE),0)","v":0}]
["0",10,null,null,null,null,0,null,null,{"$error":"#N/A"},{"$error":"#N/A"},{"$f":"IFERROR(VLOOKUP(K179,'Paramétrage des points'!AA:AB,2,FALSE),0)","v":0}]
["0",11,null,null,null,null,0,null,null,{"$error":"#N/A"},{"$error":"#N/A"},{"$f":"IFERROR(VLOOKUP(K180,'Paramétrage des points'!AA:AB,2,FALSE),0)","v":0}]
["0",12,null,null,null,null,0,null,null,{"$error":"#N/A"},{"$error":"#N/A"},{"$f":"IFERROR(VLOOKUP(K181,'Paramétrage des points'!AA:AB,2,FALSE),0)","v":0}]
["0",13,null,null,null,null,0,null,null,{"$error":"#N/A"},{"$error":"#N/A"},{"$f":"IFERROR(VLOOKUP(K182,'Paramétrage des points'!AA:AB,2,FALSE),0)","v":0}]
["0",14,null,null,null,null,0,null,null,{"$error":"#N/A"},{"$error":"#N/A"},{"$f":"IFERROR(VLOOKUP(K183,'Paramétrage des points'!AA:AB,2,FALSE),0)","v":0}]
["0",15,null,null,null,null,0,null,null,{"$error":"#N/A"},{"$error":"#N/A"},{"$f":"IFERROR(VLOOKUP(K184,'Paramétrage des points'!AA:AB,2,FALSE),0)","v":0}]
["",null,null,null,null,null,null,null,null,null,null,{"$f":"IFERROR(VLOOKUP(K185,'Paramétrage des points'!AA:AB,2,FALSE),0)","v":0}]
["0",{"$f":"Juges!L1","v":0},null,null,null,null,{"$f":"B186","v":0},null,null,{"$f":"VLOOKUP(B186,'Paramétrage des points'!$A$5:$C$28,3,FALSE)","v":{"$error":"#N/A"}},null,{"$f":"IFERROR(VLOOKUP(K186,'Paramétrage des points'!AA:AB,2,FALSE),0)","v":0}]
["N0M / PRENOM0","PLACE","N0M / PRENOM","DOSSARD","CLUB","COMITE",{"$f":"+G186","v":0},null,null,{"$f":"J186","v":{"$error":"#N/A"}},null,{"$f":"IFERROR(VLOOKUP(K187,'Paramétrage des points'!AA:AB,2,FALSE),0)","v":0}]
["0",1,null,null,null,null,{"$f":"+G187","v":0},null,null,{"$f":"J187","v":{"$error":"#N/A"}},{"$f":"IF($I$3=\"N\",\"N\"&J188&B188,\"\")","v":{"$error":"#N/A"}},{"$f":"IFERROR(VLOOKUP(K188,'Paramétrage des points'!AA:AB,2,FALSE),0)","v":0}]
["0",2,null,null,null,null,{"$f":"+G188","v":0},null,null,{"$error":"#N/A"},{"$error":"#N/A"},{"$f":"IFERROR(VLOOKUP(K189,'Paramétrage des points'!AA:AB,2,FALSE),0)","v":0}]
["0",3,null,null,null,null,{"$f":"+G189","v":0},null,null,{"$error":"#N/A"},{"$error":"#N/A"},{"$f":"IFERROR(VLOOKUP(K190,'Paramétrage des points'!AA:AB,2,FALSE),0)","v":0}]
["0",4,null,null,null,null,{"$f":"+G190","v":0},null,null,{"$error":"#N/A"},{"$error":"#N/A"},{"$f":"IFERROR(VLOOKUP(K191,'Paramétrage des points'!AA:AB,2,FALSE),0)","v":0}]
["0",5,null,null,null,null,0,null,null,{"$error":"#N/A"},{"$error":"#N/A"},{"$f":"IFERROR(VLOOKUP(K192,'Paramétrage des points'!AA:AB,2,FALSE),0)","v":0}]
["0",6,null,null,null,null,0,null,null,{"$error":"#N/A"},{"$error":"#N/A"},{"$f":"IFERROR(VLOOKUP(K193,'Paramétrage des points'!AA:AB,2,FALSE),0)","v":0}]
["0",7,null,null,null,null,0,null,null,{"$error":"#N/A"},{"$error":"#N/A"},{"$f":"IFERROR(VLOOKUP(K194,'Paramétrage des points'!AA:AB,2,FALSE),0)","v":0}]
["0",8,null,null,null,null,0,null,null,{"$error":"#N/A"},{"$error":"#N/A"},{"$f":"IFERROR(VLOOKUP(K195,'Paramétrage des points'!AA:AB,2,FALSE),0)","v":0}]
["0",9,null,null,null,null,0,null,null,{"$error":"#N/A"},{"$error":"#N/A"},{"$f":"IFERROR(VLOOKUP(K196,'Paramétrage des points'!AA:AB,2,FALSE),0)","v":0}]
["0",10,null,null,null,null,0,null,null,{"$error":"#N/A"},{"$error":"#N/A"},{"$f":"IFERROR(VLOOKUP(K197,'Paramétrage des points'!AA:AB,2,FALSE),0)","v":0}]
["0",11,null,null,null,null,0,null,null,{"$error":"#N/A"},{"$error":"#N/A"},{"$f":"IFERROR(VLOOKUP(K198,'Paramétrage des points'!AA:AB,2,FALSE),0)","v":0}]
["0",12,null,null,null,null,0,null,null,{"$error":"#N/A"},{"$error":"#N/A"},{"$f":"IFERROR(VLOOKUP(K199,'Paramétrage des points'!AA:AB,2,FALSE),0)","v":0}]
["0",13,null,null,null,null,0,null,null,{"$error":"#N/A"},{"$error":"#N/A"},{"$f":"IFERROR(VLOOKUP(K200,'Paramétrage des points'!AA:AB,2,FALSE),0)","v":0}]
[{"$f":"C201&G201","v":"0"},14,null,null,null,null,0,null,null,{"$error":"#N/A"},{"$error":"#N/A"},{"$f":"IFERROR(VLOOKUP(K201,'Paramétrage des points'!AA:AB,2,FALSE),0)","v":0}]
["0",15,null,null,null,null,0,null,null,{"$error":"#N/A"},{"$error":"#N/A"},{"$f":"IFERROR(VLOOKUP(K202,'Paramétrage des points'!AA:AB,2,FALSE),0)","v":0}]
["",null,null,null,null,null,null,null,null,null,null,{"$f":"IFERROR(VLOOKUP(K203,'Paramétrage des points'!AA:AB,2,FALSE),0)","v":0}]
["0",{"$f":"Juges!M1","v":0},null,null,null,null,{"$f":"B204","v":0},null,null,{"$f":"VLOOKUP(B204,'Paramétrage des points'!$A$5:$C$28,3,FALSE)","v":{"$error":"#N/A"}},null,{"$f":"IFERROR(VLOOKUP(K204,'Paramétrage des points'!AA:AB,2,FALSE),0)","v":0}]
["N0M / PRENOM0","PLACE","N0M / PRENOM","DOSSARD","CLUB","COMITE",{"$f":"+G204","v":0},null,null,{"$f":"J204","v":{"$error":"#N/A"}},null,{"$f":"IFERROR(VLOOKUP(K205,'Paramétrage des points'!AA:AB,2,FALSE),0)","v":0}]
["0",1,null,null,null,null,{"$f":"+G205","v":0},null,null,{"$f":"J205","v":{"$error":"#N/A"}},{"$f":"IF($I$3=\"N\",\"N\"&J206&B206,\"\")","v":{"$error":"#N/A"}},{"$f":"IFERROR(VLOOKUP(K206,'Paramétrage des points'!AA:AB,2,FALSE),0)","v":0}]
["0",2,null,null,null,null,{"$f":"+G206","v":0},null,null,{"$error":"#N/A"},{"$error":"#N/A"},{"$f":"IFERROR(VLOOKUP(K207,'Paramétrage des points'!AA:AB,2,FALSE),0)","v":0}]
["0",3,null,null,null,null,{"$f":"+G207","v":0},null,null,{"$error":"#N/A"},{"$error":"#N/A"},{"$f":"IFERROR(VLOOKUP(K208,'Paramétrage des points'!AA:AB,2,FALSE),0)","v":0}]
["0",4,null,null,null,null,{"$f":"+G208","v":0},null,null,{"$error":"#N/A"},{"$error":"#N/A"},{"$f":"IFERROR(VLOOKUP(K209,'Paramétrage des points'!AA:AB,2,FALSE),0)","v":0}]
["0",5,null,null,null,null,0,null,null,{"$error":"#N/A"},{"$error":"#N/A"},{"$f":"IFERROR(VLOOKUP(K210,'Paramétrage des points'!AA:AB,2,FALSE),0)","v":0}]
["0",6,null,null,null,null,0,null,null,{"$error":"#N/A"},{"$error":"#N/A"},{"$f":"IFERROR(VLOOKUP(K211,'Paramétrage des points'!AA:AB,2,FALSE),0)","v":0}]
["0",7,null,null,null,null,0,null,null,{"$error":"#N/A"},{"$error":"#N/A"},{"$f":"IFERROR(VLOOKUP(K212,'Paramétrage des points'!AA:AB,2,FALSE),0)","v":0}]
["0",8,null,null,null,null,0,null,null,{"$error":"#N/A"},{"$error":"#N/A"},{"$f":"IFERROR(VLOOKUP(K213,'Paramétrage des points'!AA:AB,2,FALSE),0)","v":0}]
["0",9,null,null,null,null,0,null,null,{"$error":"#N/A"},{"$error":"#N/A"},{"$f":"IFERROR(VLOOKUP(K214,'Paramétrage des points'!AA:AB,2,FALSE),0)","v":0}]
["0",10,null,null,null,null,0,null,null,{"$error":"#N/A"},{"$error":"#N/A"},{"$f":"IFERROR(VLOOKUP(K215,'Paramétrage des points'!AA:AB,2,FALSE),0)","v":0}]
["0",11,null,null,null,null,0,null,null,{"$error":"#N/A"},{"$error":"#N/A"},{"$f":"IFERROR(VLOOKUP(K216,'Paramétrage des points'!AA:AB,2,FALSE),0)","v":0}]
["0",12,null,null,null,null,0,null,null,{"$error":"#N/A"},{"$error":"#N/A"},{"$f":"IFERROR(VLOOKUP(K217,'Paramétrage des points'!AA:AB,2,FALSE),0)","v":0}]
["0",13,null,null,null,null,0,null,null,{"$error":"#N/A"},{"$error":"#N/A"},{"$f":"IFERROR(VLOOKUP(K218,'Paramétrage des points'!AA:AB,2,FALSE),0)","v":0}]
["0",14,null,null,null,null,0,null,null,{"$error":"#N/A"},{"$error":"#N/A"},{"$f":"IFERROR(VLOOKUP(K219,'Paramétrage des points'!AA:AB,2,FALSE),0)","v":0}]
["0",15,null,null,null,null,0,null,null,{"$error":"#N/A"},{"$error":"#N/A"},{"$f":"IFERROR(VLOOKUP(K220,'Paramétrage des points'!AA:AB,2,FALSE),0)","v":0}]
["",null,null,null,null,null,null,null,null,null,null,{"$f":"IFERROR(VLOOKUP(K221,'Paramétrage des points'!AA:AB,2,FALSE),0)","v":0}]
["0",{"$f":"Juges!N1","v":0},null,null,null,null,{"$f":"B222","v":0},null,null,{"$f":"VLOOKUP(B222,'Paramétrage des points'!$A$5:$C$28,3,FALSE)","v":{"$error":"#N/A"}},null,{"$f":"IFERROR(VLOOKUP(K222,'Paramétrage des points'!AA:AB,2,FALSE),0)","v":0}]
["N0M / PRENOM0","PLACE","N0M / PRENOM","DOSSARD","CLUB","COMITE",{"$f":"+G222","v":0},null,null,{"$f":"J222","v":{"$error":"#N/A"}},null,{"$f":"IFERROR(VLOOKUP(K223,'Paramétrage des points'!AA:AB,2,FALSE),0)","v":0}]
["0",1,null,null,null,null,{"$f":"+G223","v":0},null,null,{"$f":"J223","v":{"$error":"#N/A"}},{"$f":"IF($I$3=\"N\",\"N\"&J224&B224,\"\")","v":{"$error":"#N/A"}},{"$f":"IFERROR(VLOOKUP(K224,'Paramétrage des points'!AA:AB,2,FALSE),0)","v":0}]
["0",2,null,null,null,null,{"$f":"+G224","v":0},null,null,{"$error":"#N/A"},{"$error":"#N/A"},{"$f":"IFERROR(VLOOKUP(K225,'Paramétrage des points'!AA:AB,2,FALSE),0)","v":0}]
["0",3,null,null,null,null,{"$f":"+G225","v":0},null,null,{"$error":"#N/A"},{"$error":"#N/A"},{"$f":"IFERROR(VLOOKUP(K226,'Paramétrage des points'!AA:AB,2,FALSE),0)","v":0}]
["0",4,null,null,null,null,{"$f":"+G226","v":0},null,null,{"$error":"#N/A"},{"$error":"#N/A"},{"$f":"IFERROR(VLOOKUP(K227,'Paramétrage des points'!AA:AB,2,FALSE),0)","v":0}]
["0",5,null,null,null,null,0,null,null,{"$error":"#N/A"},{"$error":"#N/A"},{"$f":"IFERROR(VLOOKUP(K228,'Paramétrage des points'!AA:AB,2,FALSE),0)","v":0}]
["0",6,null,null,null,null,0,null,null,{"$error":"#N/A"},{"$error":"#N/A"},{"$f":"IFERROR(VLOOKUP(K229,'Paramétrage des points'!AA:AB,2,FALSE),0)","v":0}]
["0",7,null,null,null,null,0,null,null,{"$error":"#N/A"},{"$error":"#N/A"},{"$f":"IFERROR(VLOOKUP(K230,'Paramétrage des points'!AA:AB,2,FALSE),0)","v":0}]
["0",8,null,null,null,null,0,null,null,{"$error":"#N/A"},{"$error":"#N/A"},{"$f":"IFERROR(VLOOKUP(K231,'Paramétrage des points'!AA:AB,2,FALSE),0)","v":0}]
["0",9,null,null,null,null,0,null,null,{"$error":"#N/A"},{"$error":"#N/A"},{"$f":"IFERROR(VLOOKUP(K232,'Paramétrage des points'!AA:AB,2,FALSE),0)","v":0}]
["0",10,null,null,null,null,0,null,null,{"$error":"#N/A"},{"$error":"#N/A"},{"$f":"IFERROR(VLOOKUP(K233,'Paramétrage des points'!AA:AB,2,FALSE),0)","v":0}]
["0",11,null,null,null,null,0,null,null,{"$error":"#N/A"},{"$error":"#N/A"},{"$f":"IFERROR(VLOOKUP(K234,'Paramétrage des points'!AA:AB,2,FALSE),0)","v":0}]
["0",12,null,null,null,null,0,null,null,{"$error":"#N/A"},{"$error":"#N/A"},{"$f":"IFERROR(VLOOKUP(K235,'Paramétrage des points'!AA:AB,2,FALSE),0)","v":0}]
["0",13,null,null,null,null,0,null,null,{"$error":"#N/A"},{"$error":"#N/A"},{"$f":"IFERROR(VLOOKUP(K236,'Paramétrage des points'!AA:AB,2,FALSE),0)","v":0}]
["0",14,null,null,null,null,0,null,null,{"$error":"#N/A"},{"$error":"#N/A"},{"$f":"IFERROR(VLOOKUP(K237,'Paramétrage des points'!AA:AB,2,FALSE),0)","v":0}]
["0",15,null,null,null,null,0,null,null,{"$error":"#N/A"},{"$error":"#N/A"},{"$f":"IFERROR(VLOOKUP(K238,'Paramétrage des points'!AA:AB,2,FALSE),0)","v":0}]
["",null,null,null,null,null,null,null,null,null,null,{"$f":"IFERROR(VLOOKUP(K239,'Paramétrage des points'!AA:AB,2,FALSE),0)","v":0}]
["0",{"$f":"Juges!O1","v":0},null,null,null,null,{"$f":"B240","v":0},null,null,{"$f":"VLOOKUP(B240,'Paramétrage des points'!$A$5:$C$28,3,FALSE)","v":{"$error":"#N/A"}},null,{"$f":"IFERROR(VLOOKUP(K240,'Paramétrage des points'!AA:AB,2,FALSE),0)","v":0}]
["N0M / PRENOM0","PLACE","N0M / PRENOM","DOSSARD","CLUB","COMITE",{"$f":"+G240","v":0},null,null,{"$f":"J240","v":{"$error":"#N/A"}},null,{"$f":"IFERROR(VLOOKUP(K241,'Paramétrage des points'!AA:AB,2,FALSE),0)","v":0}]
["0",1,null,null,null,null,{"$f":"+G241","v":0},null,null,{"$f":"J241","v":{"$error":"#N/A"}},{"$f":"IF($I$3=\"N\",\"N\"&J242&B242,\"\")","v":{"$error":"#N/A"}},{"$f":"IFERROR(VLOOKUP(K242,'Paramétrage des points'!AA:AB,2,FALSE),0)","v":0}]
["0",2,null,null,null,null,{"$f":"+G242","v":0},null,null,{"$error":"#N/A"},{"$error":"#N/A"},{"$f":"IFERROR(VLOOKUP(K243,'Paramétrage des points'!AA:AB,2,FALSE),0)","v":0}]
["0",3,null,null,null,null,{"$f":"+G243","v":0},null,null,{"$error":"#N/A"},{"$error":"#N/A"},{"$f":"IFERROR(VLOOKUP(K244,'Paramétrage des points'!AA:AB,2,FALSE),0)","v":0}]
["0",4,null,null,null,null,{"$f":"+G244","v":0},null,null,{"$error":"#N/A"},{"$error":"#N/A"},{"$f":"IFERROR(VLOOKUP(K245,'Paramétrage des points'!AA:AB,2,FALSE),0)","v":0}]
["0",5,null,null,null,null,0,null,null,{"$error":"#N/A"},{"$error":"#N/A"},{"$f":"IFERROR(VLOOKUP(K246,'Paramétrage des points'!AA:AB,2,FALSE),0)","v":0}]
["0",6,null,null,null,null,0,null,null,{"$error":"#N/A"},{"$error":"#N/A"},{"$f":"IFERROR(VLOOKUP(K247,'Paramétrage des points'!AA:AB,2,FALSE),0)","v":0}]
["0",7,null,null,null,null,0,null,null,{"$error":"#N/A"},{"$error":"#N/A"},{"$f":"IFERROR(VLOOKUP(K248,'Paramétrage des points'!AA:AB,2,FALSE),0)","v":0}]
["0",8,null,null,null,null,0,null,null,{"$error":"#N/A"},{"$error":"#N/A"},{"$f":"IFERROR(VLOOKUP(K249,'Paramétrage des points'!AA:AB,2,FALSE),0)","v":0}]
["0",9,null,null,null,null,0,null,null,{"$error":"#N/A"},{"$error":"#N/A"},{"$f":"IFERROR(VLOOKUP(K250,'Paramétrage des points'!AA:AB,2,FALSE),0)","v":0}]
["0",10,null,null,null,null,0,null,null,{"$error":"#N/A"},{"$error":"#N/A"},{"$f":"IFERROR(VLOOKUP(K251,'Paramétrage des points'!AA:AB,2,FALSE),0)","v":0}]
["0",11,null,null,null,null,0,null,null,{"$error":"#N/A"},{"$error":"#N/A"},{"$f":"IFERROR(VLOOKUP(K252,'Paramétrage des points'!AA:AB,2,FALSE),0)","v":0}]
["0",12,null,null,null,null,0,null,null,{"$error":"#N/A"},{"$error":"#N/A"},{"$f":"IFERROR(VLOOKUP(K253,'Paramétrage des points'!AA:AB,2,FALSE),0)","v":0}]
["0",13,null,null,null,null,0,null,null,{"$error":"#N/A"},{"$error":"#N/A"},{"$f":"IFERROR(VLOOKUP(K254,'Paramétrage des points'!AA:AB,2,FALSE),0)","v":0}]
["0",14,null,null,null,null,0,null,null,{"$error":"#N/A"},{"$error":"#N/A"},{"$f":"IFERROR(VLOOKUP(K255,'Paramétrage des points'!AA:AB,2,FALSE),0)","v":0}]
["0",15,null,null,null,null,0,null,null,{"$error":"#N/A"},{"$error":"#N/A"},{"$f":"IFERROR(VLOOKUP(K256,'Paramétrage des points'!AA:AB,2,FALSE),0)","v":0}]
["",null,null,null,null,null,null,null,null,null,null,{"$f":"IFERROR(VLOOKUP(K257,'Paramétrage des points'!AA:AB,2,FALSE),0)","v":0}]
["0",{"$f":"Juges!P1","v":0},null,null,null,null,{"$f":"B258","v":0},null,null,{"$f":"VLOOKUP(B258,'Paramétrage des points'!$A$5:$C$28,3,FALSE)","v":{"$error":"#N/A"}},null,{"$f":"IFERROR(VLOOKUP(K258,'Paramétrage des points'!AA:AB,2,FALSE),0)","v":0}]
["N0M / PRENOM0","PLACE","N0M / PRENOM","DOSSARD","CLUB","COMITE",{"$f":"+G258","v":0},null,null,{"$f":"J258","v":{"$error":"#N/A"}},null,{"$f":"IFERROR(VLOOKUP(K259,'Paramétrage des points'!AA:AB,2,FALSE),0)","v":0}]
["0",1,null,null,null,null,{"$f":"+G259","v":0},null,null,{"$f":"J259","v":{"$error":"#N/A"}},{"$f":"IF($I$3=\"N\",\"N\"&J260&B260,\"\")","v":{"$error":"#N/A"}},{"$f":"IFERROR(VLOOKUP(K260,'Paramétrage des points'!AA:AB,2,FALSE),0)","v":0}]
["0",2,null,null,null,null,{"$f":"+G260","v":0},null,null,{"$error":"#N/A"},{"$error":"#N/A"},{"$f":"IFERROR(VLOOKUP(K261,'Paramétrage des points'!AA:AB,2,FALSE),0)","v":0}]
["0",3,null,null,null,null,{"$f":"+G261","v":0},null,null,{"$error":"#N/A"},{"$error":"#N/A"},{"$f":"IFERROR(VLOOKUP(K262,'Paramétrage des points'!AA:AB,2,FALSE),0)","v":0}]
["0",4,null,null,null,null,{"$f":"+G262","v":0},null,null,{"$error":"#N/A"},{"$error":"#N/A"},{"$f":"IFERROR(VLOOKUP(K263,'Paramétrage des points'!AA:AB,2,FALSE),0)","v":0}]
["0",5,null,null,null,null,0,null,null,{"$error":"#N/A"},{"$error":"#N/A"},{"$f":"IFERROR(VLOOKUP(K264,'Paramétrage des points'!AA:AB,2,FALSE),0)","v":0}]
[{"$f":"C265&G265","v":"0"},6,null,null,null,null,0,null,null,{"$error":"#N/A"},{"$error":"#N/A"},{"$f":"IFERROR(VLOOKUP(K265,'Paramétrage des points'!AA:AB,2,FALSE),0)","v":0}]
["0",7,null,null,null,null,0,null,null,{"$error":"#N/A"},{"$error":"#N/A"},{"$f":"IFERROR(VLOOKUP(K266,'Paramétrage des points'!AA:AB,2,FALSE),0)","v":0}]
["0",8,null,null,null,null,0,null,null,{"$error":"#N/A"},{"$error":"#N/A"},{"$f":"IFERROR(VLOOKUP(K267,'Paramétrage des points'!AA:AB,2,FALSE),0)","v":0}]
["0",9,null,null,null,null,0,null,null,{"$error":"#N/A"},{"$error":"#N/A"},{"$f":"IFERROR(VLOOKUP(K268,'Paramétrage des points'!AA:AB,2,FALSE),0)","v":0}]
["0",10,null,null,null,null,0,null,null,{"$error":"#N/A"},{"$error":"#N/A"},{"$f":"IFERROR(VLOOKUP(K269,'Paramétrage des points'!AA:AB,2,FALSE),0)","v":0}]
["0",11,null,null,null,null,0,null,null,{"$error":"#N/A"},{"$error":"#N/A"},{"$f":"IFERROR(VLOOKUP(K270,'Paramétrage des points'!AA:AB,2,FALSE),0)","v":0}]
["0",12,null,null,null,null,0,null,null,{"$error":"#N/A"},{"$error":"#N/A"},{"$f":"IFERROR(VLOOKUP(K271,'Paramétrage des points'!AA:AB,2,FALSE),0)","v":0}]
["0",13,null,null,null,null,0,null,null,{"$error":"#N/A"},{"$error":"#N/A"},{"$f":"IFERROR(VLOOKUP(K272,'Paramétrage des points'!AA:AB,2,FALSE),0)","v":0}]
["0",14,null,null,null,null,0,null,null,{"$error":"#N/A"},{"$error":"#N/A"},{"$f":"IFERROR(VLOOKUP(K273,'Paramétrage des points'!AA:AB,2,FALSE),0)","v":0}]
["0",15,null,null,null,null,0,null,null,{"$error":"#N/A"},{"$error":"#N/A"},{"$f":"IFERROR(VLOOKUP(K274,'Paramétrage des points'!AA:AB,2,FALSE),0)","v":0}]
["",null,null,null,null,null,null,null,null,null,null,{"$f":"IFERROR(VLOOKUP(K275,'Paramétrage des points'!AA:AB,2,FALSE),0)","v":0}]
["0",{"$f":"Juges!Q1","v":0},null,null,null,null,{"$f":"B276","v":0},null,null,{"$f":"VLOOKUP(B276,'Paramétrage des points'!$A$5:$C$28,3,FALSE)","v":{"$error":"#N/A"}},null,{"$f":"IFERROR(VLOOKUP(K276,'Paramétrage des points'!AA:AB,2,FALSE),0)","v":0}]
["N0M / PRENOM0","PLACE","N0M / PRENOM","DOSSARD","CLUB","COMITE",{"$f":"+G276","v":0},null,null,{"$f":"J276","v":{"$error":"#N/A"}},null,{"$f":"IFERROR(VLOOKUP(K277,'Paramétrage des points'!AA:AB,2,FALSE),0)","v":0}]
["0",1,null,null,null,null,{"$f":"+G277","v":0},null,null,{"$f":"J277","v":{"$error":"#N/A"}},{"$f":"IF($I$3=\"N\",\"N\"&J278&B278,\"\")","v":{"$error":"#N/A"}},{"$f":"IFERROR(VLOOKUP(K278,'Paramétrage des points'!AA:AB,2,FALSE),0)","v":0}]
["0",2,null,null,null,null,{"$f":"+G278","v":0},null,null,{"$error":"#N/A"},{"$error":"#N/A"},{"$f":"IFERROR(VLOOKUP(K279,'Paramétrage des points'!AA:AB,2,FALSE),0)","v":0}]
["0",3,null,null,null,null,{"$f":"+G279","v":0},null,null,{"$error":"#N/A"},{"$error":"#N/A"},{"$f":"IFERROR(VLOOKUP(K280,'Paramétrage des points'!AA:AB,2,FALSE),0)","v":0}]
["0",4,null,null,null,null,{"$f":"+G280","v":0},null,null,{"$error":"#N/A"},{"$error":"#N/A"},{"$f":"IFERROR(VLOOKUP(K281,'Paramétrage des points'!AA:AB,2,FALSE),0)","v":0}]
["0",5,null,null,null,null,0,null,null,{"$error":"#N/A"},{"$error":"#N/A"},{"$f":"IFERROR(VLOOKUP(K282,'Paramétrage des points'!AA:AB,2,FALSE),0)","v":0}]
["0",6,null,null,null,null,0,null,null,{"$error":"#N/A"},{"$error":"#N/A"},{"$f":"IFERROR(VLOOKUP(K283,'Paramétrage des points'!AA:AB,2,FALSE),0)","v":0}]
["0",7,null,null,null,null,0,null,null,{"$error":"#N/A"},{"$error":"#N/A"},{"$f":"IFERROR(VLOOKUP(K284,'Paramétrage des points'!AA:AB,2,FALSE),0)","v":0}]
["0",8,null,null,null,null,0,null,null,{"$error":"#N/A"},{"$error":"#N/A"},{"$f":"IFERROR(VLOOKUP(K285,'Paramétrage des points'!AA:AB,2,FALSE),0)","v":0}]
["0",9,null,null,null,null,0,null,null,{"$error":"#N/A"},{"$error":"#N/A"},{"$f":"IFERROR(VLOOKUP(K286,'Paramétrage des points'!AA:AB,2,FALSE),0)","v":0}]
["0",10,null,null,null,null,0,null,null,{"$error":"#N/A"},{"$error":"#N/A"},{"$f":"IFERROR(VLOOKUP(K287,'Paramétrage des points'!AA:AB,2,FALSE),0)","v":0}]
["0",11,null,null,null,null,0,null,null,{"$error":"#N/A"},{"$error":"#N/A"},{"$f":"IFERROR(VLOOKUP(K288,'Paramétrage des points'!AA:AB,2,FALSE),0)","v":0}]
["0",12,null,null,null,null,0,null,null,{"$error":"#N/A"},{"$error":"#N/A"},{"$f":"IFERROR(VLOOKUP(K289,'Paramétrage des points'!AA:AB,2,FALSE),0)","v":0}]
["0",13,null,null,null,null,0,null,null,{"$error":"#N/A"},{"$error":"#N/A"},{"$f":"IFERROR(VLOOKUP(K290,'Paramétrage des points'!AA:AB,2,FALSE),0)","v":0}]
["0",14,null,null,null,null,0,null,null,{"$error":"#N/A"},{"$error":"#N/A"},{"$f":"IFERROR(VLOOKUP(K291,'Paramétrage des points'!AA:AB,2,FALSE),0)","v":0}]
["0",15,null,null,null,null,0,null,null,{"$error":"#N/A"},{"$error":"#N/A"},{"$f":"IFERROR(VLOOKUP(K292,'Paramétrage des points'!AA:AB,2,FALSE),0)","v":0}]
["",null,null,null,null,null,null,null,null,null,null,{"$f":"IFERROR(VLOOKUP(K293,'Paramétrage des points'!AA:AB,2,FALSE),0)","v":0}]
["0",{"$f":"Juges!R1","v":0},null,null,null,null,{"$f":"B294","v":0},null,null,{"$f":"VLOOKUP(B294,'Paramétrage des points'!$A$5:$C$28,3,FALSE)","v":{"$error":"#N/A"}},null,{"$f":"IFERROR(VLOOKUP(K294,'Paramétrage des points'!AA:AB,2,FALSE),0)","v":0}]
["N0M / PRENOM0","PLACE","N0M / PRENOM","DOSSARD","CLUB","COMITE",{"$f":"+G294","v":0},null,null,{"$f":"J294","v":{"$error":"#N/A"}},null,{"$f":"IFERROR(VLOOKUP(K295,'Paramétrage des points'!AA:AB,2,FALSE),0)","v":0}]
["0",1,null,null,null,null,{"$f":"+G295","v":0},null,null,{"$f":"J295","v":{"$error":"#N/A"}},{"$f":"IF($I$3=\"N\",\"N\"&J296&B296,\"\")","v":{"$error":"#N/A"}},{"$f":"IFERROR(VLOOKUP(K296,'Paramétrage des points'!AA:AB,2,FALSE),0)","v":0}]
["0",2,null,null,null,null,{"$f":"+G296","v":0},null,null,{"$error":"#N/A"},{"$error":"#N/A"},{"$f":"IFERROR(VLOOKUP(K297,'Paramétrage des points'!AA:AB,2,FALSE),0)","v":0}]
["0",3,null,null,null,null,{"$f":"+G297","v":0},null,null,{"$error":"#N/A"},{"$error":"#N/A"},{"$f":"IFERROR(VLOOKUP(K298,'Paramétrage des points'!AA:AB,2,FALSE),0)","v":0}]
["0",4,null,null,null,null,{"$f":"+G298","v":0},null,null,{"$error":"#N/A"},{"$error":"#N/A"},{"$f":"IFERROR(VLOOKUP(K299,'Paramétrage des points'!AA:AB,2,FALSE),0)","v":0}]
["0",5,null,null,null,null,0,null,null,{"$error":"#N/A"},{"$error":"#N/A"},{"$f":"IFERROR(VLOOKUP(K300,'Paramétrage des points'!AA:AB,2,FALSE),0)","v":0}]
["0",6,null,null,null,null,0,null,null,{"$error":"#N/A"},{"$error":"#N/A"},{"$f":"IFERROR(VLOOKUP(K301,'Paramétrage des points'!AA:AB,2,FALSE),0)","v":0}]
["0",7,null,null,null,null,0,null,null,{"$error":"#N/A"},{"$error":"#N/A"},{"$f":"IFERROR(VLOOKUP(K302,'Paramétrage des points'!AA:AB,2,FALSE),0)","v":0}]
["0",8,null,null,null,null,0,null,null,{"$error":"#N/A"},{"$error":"#N/A"},{"$f":"IFERROR(VLOOKUP(K303,'Paramétrage des points'!AA:AB,2,FALSE),0)","v":0}]
["0",9,null,null,null,null,0,null,null,{"$error":"#N/A"},{"$error":"#N/A"},{"$f":"IFERROR(VLOOKUP(K304,'Paramétrage des points'!AA:AB,2,FALSE),0)","v":0}]
["0",10,null,null,null,null,0,null,null,{"$error":"#N/A"},{"$error":"#N/A"},{"$f":"IFERROR(VLOOKUP(K305,'Paramétrage des points'!AA:AB,2,FALSE),0)","v":0}]
["0",11,null,null,null,null,0,null,null,{"$error":"#N/A"},{"$error":"#N/A"},{"$f":"IFERROR(VLOOKUP(K306,'Paramétrage des points'!AA:AB,2,FALSE),0)","v":0}]
["0",12,null,null,null,null,0,null,null,{"$error":"#N/A"},{"$error":"#N/A"},{"$f":"IFERROR(VLOOKUP(K307,'Paramétrage des points'!AA:AB,2,FALSE),0)","v":0}]
["0",13,null,null,null,null,0,null,null,{"$error":"#N/A"},{"$error":"#N/A"},{"$f":"IFERROR(VLOOKUP(K308,'Paramétrage des points'!AA:AB,2,FALSE),0)","v":0}]
["0",14,null,null,null,null,0,null,null,{"$error":"#N/A"},{"$error":"#N/A"},{"$f":"IFERROR(VLOOKUP(K309,'Paramétrage des points'!AA:AB,2,FALSE),0)","v":0}]
["0",15,null,null,null,null,0,null,null,{"$error":"#N/A"},{"$error":"#N/A"},{"$f":"IFERROR(VLOOKUP(K310,'Paramétrage des points'!AA:AB,2,FALSE),0)","v":0}]
["",null,null,null,null,null,null,null,null,null,null,{"$f":"IFERROR(VLOOKUP(K311,'Paramétrage des points'!AA:AB,2,FALSE),0)","v":0}]
["0",{"$f":"Juges!S1","v":0},null,null,null,null,{"$f":"B312","v":0},null,null,{"$f":"VLOOKUP(B312,'Paramétrage des points'!$A$5:$C$28,3,FALSE)","v":{"$error":"#N/A"}},null,{"$f":"IFERROR(VLOOKUP(K312,'Paramétrage des points'!AA:AB,2,FALSE),0)","v":0}]
["N0M / PRENOM0","PLACE","N0M / PRENOM","DOSSARD","CLUB","COMITE",{"$f":"+G312","v":0},null,null,{"$f":"J312","v":{"$error":"#N/A"}},null,{"$f":"IFERROR(VLOOKUP(K313,'Paramétrage des points'!AA:AB,2,FALSE),0)","v":0}]
["0",1,null,null,null,null,{"$f":"+G313","v":0},null,null,{"$f":"J313","v":{"$error":"#N/A"}},{"$f":"IF($I$3=\"N\",\"N\"&J314&B314,\"\")","v":{"$error":"#N/A"}},{"$f":"IFERROR(VLOOKUP(K314,'Paramétrage des points'!AA:AB,2,FALSE),0)","v":0}]
["0",2,null,null,null,null,{"$f":"+G314","v":0},null,null,{"$error":"#N/A"},{"$error":"#N/A"},{"$f":"IFERROR(VLOOKUP(K315,'Paramétrage des points'!AA:AB,2,FALSE),0)","v":0}]
["0",3,null,null,null,null,{"$f":"+G315","v":0},null,null,{"$error":"#N/A"},{"$error":"#N/A"},{"$f":"IFERROR(VLOOKUP(K316,'Paramétrage des points'!AA:AB,2,FALSE),0)","v":0}]
["0",4,null,null,null,null,{"$f":"+G316","v":0},null,null,{"$error":"#N/A"},{"$error":"#N/A"},{"$f":"IFERROR(VLOOKUP(K317,'Paramétrage des points'!AA:AB,2,FALSE),0)","v":0}]
["0",5,null,null,null,null,0,null,null,{"$error":"#N/A"},{"$error":"#N/A"},{"$f":"IFERROR(VLOOKUP(K318,'Paramétrage des points'!AA:AB,2,FALSE),0)","v":0}]
["0",6,null,null,null,null,0,null,null,{"$error":"#N/A"},{"$error":"#N/A"},{"$f":"IFERROR(VLOOKUP(K319,'Paramétrage des points'!AA:AB,2,FALSE),0)","v":0}]
["0",7,null,null,null,null,0,null,null,{"$error":"#N/A"},{"$error":"#N/A"},{"$f":"IFERROR(VLOOKUP(K320,'Paramétrage des points'!AA:AB,2,FALSE),0)","v":0}]
["0",8,null,null,null,null,0,null,null,{"$error":"#N/A"},{"$error":"#N/A"},{"$f":"IFERROR(VLOOKUP(K321,'Paramétrage des points'!AA:AB,2,FALSE),0)","v":0}]
["0",9,null,null,null,null,0,null,null,{"$error":"#N/A"},{"$error":"#N/A"},{"$f":"IFERROR(VLOOKUP(K322,'Paramétrage des points'!AA:AB,2,FALSE),0)","v":0}]
["0",10,null,null,null,null,0,null,null,{"$error":"#N/A"},{"$error":"#N/A"},{"$f":"IFERROR(VLOOKUP(K323,'Paramétrage des points'!AA:AB,2,FALSE),0)","v":0}]
["0",11,null,null,null,null,0,null,null,{"$error":"#N/A"},{"$error":"#N/A"},{"$f":"IFERROR(VLOOKUP(K324,'Paramétrage des points'!AA:AB,2,FALSE),0)","v":0}]
["0",12,null,null,null,null,0,null,null,{"$error":"#N/A"},{"$error":"#N/A"},{"$f":"IFERROR(VLOOKUP(K325,'Paramétrage des points'!AA:AB,2,FALSE),0)","v":0}]
["0",13,null,null,null,null,0,null,null,{"$error":"#N/A"},{"$error":"#N/A"},{"$f":"IFERROR(VLOOKUP(K326,'Paramétrage des points'!AA:AB,2,FALSE),0)","v":0}]
["0",14,null,null,null,null,0,null,null,{"$error":"#N/A"},{"$error":"#N/A"},{"$f":"IFERROR(VLOOKUP(K327,'Paramétrage des points'!AA:AB,2,FALSE),0)","v":0}]
["0",15,null,null,null,null,0,null,null,{"$error":"#N/A"},{"$error":"#N/A"},{"$f":"IFERROR(VLOOKUP(K328,'Paramétrage des points'!AA:AB,2,FALSE),0)","v":0}]
[{"$f":"C329&G329","v":""},null,null,null,null,null,null,null,null,null,null,{"$f":"IFERROR(VLOOKUP(K329,'Paramétrage des points'!AA:AB,2,FALSE),0)","v":0}]
["0",{"$f":"Juges!T1","v":0},null,null,null,null,{"$f":"B330","v":0},null,null,{"$f":"VLOOKUP(B330,'Paramétrage des points'!$A$5:$C$28,3,FALSE)","v":{"$error":"#N/A"}},null,{"$f":"IFERROR(VLOOKUP(K330,'Paramétrage des points'!AA:AB,2,FALSE),0)","v":0}]
["N0M / PRENOM0","PLACE","N0M / PRENOM","DOSSARD","CLUB","COMITE",{"$f":"+G330","v":0},null,null,{"$f":"J330","v":{"$error":"#N/A"}},null,{"$f":"IFERROR(VLOOKUP(K331,'Paramétrage des points'!AA:AB,2,FALSE),0)","v":0}]
["0",1,null,null,null,null,{"$f":"+G331","v":0},null,null,{"$f":"J331","v":{"$error":"#N/A"}},{"$f":"IF($I$3=\"N\",\"N\"&J332&B332,\"\")","v":{"$error":"#N/A"}},{"$f":"IFERROR(VLOOKUP(K332,'Paramétrage des points'!AA:AB,2,FALSE),0)","v":0}]
["0",2,null,null,null,null,{"$f":"+G332","v":0},null,null,{"$error":"#N/A"},{"$error":"#N/A"},{"$f":"IFERROR(VLOOKUP(K333,'Paramétrage des points'!AA:AB,2,FALSE),0)","v":0}]
["0",3,null,null,null,null,{"$f":"+G333","v":0},null,null,{"$error":"#N/A"},{"$error":"#N/A"},{"$f":"IFERROR(VLOOKUP(K334,'Paramétrage des points'!AA:AB,2,FALSE),0)","v":0}]
["0",4,null,null,null,null,{"$f":"+G334","v":0},null,null,{"$error":"#N/A"},{"$error":"#N/A"},{"$f":"IFERROR(VLOOKUP(K335,'Paramétrage des points'!AA:AB,2,FALSE),0)","v":0}]
["0",5,null,null,null,null,0,null,null,{"$error":"#N/A"},{"$error":"#N/A"},{"$f":"IFERROR(VLOOKUP(K336,'Paramétrage des points'!AA:AB,2,FALSE),0)","v":0}]
["0",6,null,null,null,null,0,null,null,{"$error":"#N/A"},{"$error":"#N/A"},{"$f":"IFERROR(VLOOKUP(K337,'Paramétrage des points'!AA:AB,2,FALSE),0)","v":0}]
["0",7,null,null,null,null,0,null,null,{"$error":"#N/A"},{"$error":"#N/A"},{"$f":"IFERROR(VLOOKUP(K338,'Paramétrage des points'!AA:AB,2,FALSE),0)","v":0}]
["0",8,null,null,null,null,0,null,null,{"$error":"#N/A"},{"$error":"#N/A"},{"$f":"IFERROR(VLOOKUP(K339,'Paramétrage des points'!AA:AB,2,FALSE),0)","v":0}]
["0",9,null,null,null,null,0,null,null,{"$error":"#N/A"},{"$error":"#N/A"},{"$f":"IFERROR(VLOOKUP(K340,'Paramétrage des points'!AA:AB,2,FALSE),0)","v":0}]
["0",10,null,null,null,null,0,null,null,{"$error":"#N/A"},{"$error":"#N/A"},{"$f":"IFERROR(VLOOKUP(K341,'Paramétrage des points'!AA:AB,2,FALSE),0)","v":0}]
["0",11,null,null,null,null,0,null,null,{"$error":"#N/A"},{"$error":"#N/A"},{"$f":"IFERROR(VLOOKUP(K342,'Paramétrage des points'!AA:AB,2,FALSE),0)","v":0}]
["0",12,null,null,null,null,0,null,null,{"$error":"#N/A"},{"$error":"#N/A"},{"$f":"IFERROR(VLOOKUP(K343,'Paramétrage des points'!AA:AB,2,FALSE),0)","v":0}]
["0",13,null,null,null,null,0,null,null,{"$error":"#N/A"},{"$error":"#N/A"},{"$f":"IFERROR(VLOOKUP(K344,'Paramétrage des points'!AA:AB,2,FALSE),0)","v":0}]
["0",14,null,null,null,null,0,null,null,{"$error":"#N/A"},{"$error":"#N/A"},{"$f":"IFERROR(VLOOKUP(K345,'Paramétrage des points'!AA:AB,2,FALSE),0)","v":0}]
["0",15,null,null,null,null,0,null,null,{"$error":"#N/A"},{"$error":"#N/A"},{"$f":"IFERROR(VLOOKUP(K346,'Paramétrage des points'!AA:AB,2,FALSE),0)","v":0}]
["",null,null,null,null,null,null,null,null,null,null,{"$f":"IFERROR(VLOOKUP(K347,'Paramétrage des points'!AA:AB,2,FALSE),0)","v":0}]
["0",{"$f":"Juges!U1","v":0},null,null,null,null,{"$f":"B348","v":0},null,null,{"$f":"VLOOKUP(B348,'Paramétrage des points'!$A$5:$C$28,3,FALSE)","v":{"$error":"#N/A"}},null,{"$f":"IFERROR(VLOOKUP(K348,'Paramétrage des points'!AA:AB,2,FALSE),0)","v":0}]
["N0M / PRENOM0","PLACE","N0M / PRENOM","DOSSARD","CLUB","COMITE",{"$f":"+G348","v":0},null,null,{"$f":"J348","v":{"$error":"#N/A"}},null,{"$f":"IFERROR(VLOOKUP(K349,'Paramétrage des points'!AA:AB,2,FALSE),0)","v":0}]
["0",1,null,null,null,null,{"$f":"+G349","v":0},null,null,{"$f":"J349","v":{"$error":"#N/A"}},{"$f":"IF($I$3=\"N\",\"N\"&J350&B350,\"\")","v":{"$error":"#N/A"}},{"$f":"IFERROR(VLOOKUP(K350,'Paramétrage des points'!AA:AB,2,FALSE),0)","v":0}]
["0",2,null,null,null,null,{"$f":"+G350","v":0},null,null,{"$error":"#N/A"},{"$error":"#N/A"},{"$f":"IFERROR(VLOOKUP(K351,'Paramétrage des points'!AA:AB,2,FALSE),0)","v":0}]
["0",3,null,null,null,null,{"$f":"+G351","v":0},null,null,{"$error":"#N/A"},{"$error":"#N/A"},{"$f":"IFERROR(VLOOKUP(K352,'Paramétrage des points'!AA:AB,2,FALSE),0)","v":0}]
["0",4,null,null,null,null,{"$f":"+G352","v":0},null,null,{"$error":"#N/A"},{"$error":"#N/A"},{"$f":"IFERROR(VLOOKUP(K353,'Paramétrage des points'!AA:AB,2,FALSE),0)","v":0}]
["0",5,null,null,null,null,0,null,null,{"$error":"#N/A"},{"$error":"#N/A"},{"$f":"IFERROR(VLOOKUP(K354,'Paramétrage des points'!AA:AB,2,FALSE),0)","v":0}]
["0",6,null,null,null,null,0,null,null,{"$error":"#N/A"},{"$error":"#N/A"},{"$f":"IFERROR(VLOOKUP(K355,'Paramétrage des points'!AA:AB,2,FALSE),0)","v":0}]
["0",7,null,null,null,null,0,null,null,{"$error":"#N/A"},{"$error":"#N/A"},{"$f":"IFERROR(VLOOKUP(K356,'Paramétrage des points'!AA:AB,2,FALSE),0)","v":0}]
["0",8,null,null,null,null,0,null,null,{"$error":"#N/A"},{"$error":"#N/A"},{"$f":"IFERROR(VLOOKUP(K357,'Paramétrage des points'!AA:AB,2,FALSE),0)","v":0}]
["0",9,null,null,null,null,0,null,null,{"$error":"#N/A"},{"$error":"#N/A"},{"$f":"IFERROR(VLOOKUP(K358,'Paramétrage des points'!AA:AB,2,FALSE),0)","v":0}]
["0",10,null,null,null,null,0,null,null,{"$error":"#N/A"},{"$error":"#N/A"},{"$f":"IFERROR(VLOOKUP(K359,'Paramétrage des points'!AA:AB,2,FALSE),0)","v":0}]
["0",11,null,null,null,null,0,null,null,{"$error":"#N/A"},{"$error":"#N/A"},{"$f":"IFERROR(VLOOKUP(K360,'Paramétrage des points'!AA:AB,2,FALSE),0)","v":0}]
["0",12,null,null,null,null,0,null,null,{"$error":"#N/A"},{"$error":"#N/A"},{"$f":"IFERROR(VLOOKUP(K361,'Paramétrage des points'!AA:AB,2,FALSE),0)","v":0}]
["0",13,null,null,null,null,0,null,null,{"$error":"#N/A"},{"$error":"#N/A"},{"$f":"IFERROR(VLOOKUP(K362,'Paramétrage des points'!AA:AB,2,FALSE),0)","v":0}]
["0",14,null,null,null,null,0,null,null,{"$error":"#N/A"},{"$error":"#N/A"},{"$f":"IFERROR(VLOOKUP(K363,'Paramétrage des points'!AA:AB,2,FALSE),0)","v":0}]
["0",15,null,null,null,null,0,null,null,{"$error":"#N/A"},{"$error":"#N/A"},{"$f":"IFERROR(VLOOKUP(K364,'Paramétrage des points'!AA:AB,2,FALSE),0)","v":0}]
["",null,null,null,null,null,null,null,null,null,null,{"$f":"IFERROR(VLOOKUP(K365,'Paramétrage des points'!AA:AB,2,FALSE),0)","v":0}]
["0",{"$f":"Juges!V1","v":0},null,null,null,null,{"$f":"B366","v":0},null,null,{"$f":"VLOOKUP(B366,'Paramétrage des points'!$A$5:$C$28,3,FALSE)","v":{"$error":"#N/A"}},null,{"$f":"IFERROR(VLOOKUP(K366,'Paramétrage des points'!AA:AB,2,FALSE),0)","v":0}]
["N0M / PRENOM0","PLACE","N0M / PRENOM","DOSSARD","CLUB","COMITE",{"$f":"+G366","v":0},null,null,{"$f":"J366","v":{"$error":"#N/A"}},null,{"$f":"IFERROR(VLOOKUP(K367,'Paramétrage des points'!AA:AB,2,FALSE),0)","v":0}]
["0",1,null,null,null,null,{"$f":"+G367","v":0},null,null,{"$f":"J367","v":{"$error":"#N/A"}},{"$f":"IF($I$3=\"N\",\"N\"&J368&B368,\"\")","v":{"$error":"#N/A"}},{"$f":"IFERROR(VLOOKUP(K368,'Paramétrage des points'!AA:AB,2,FALSE),0)","v":0}]
["0",2,null,null,null,null,{"$f":"+G368","v":0},null,null,{"$error":"#N/A"},{"$error":"#N/A"},{"$f":"IFERROR(VLOOKUP(K369,'Paramétrage des points'!AA:AB,2,FALSE),0)","v":0}]
["0",3,null,null,null,null,{"$f":"+G369","v":0},null,null,{"$error":"#N/A"},{"$error":"#N/A"},{"$f":"IFERROR(VLOOKUP(K370,'Paramétrage des points'!AA:AB,2,FALSE),0)","v":0}]
["0",4,null,null,null,null,{"$f":"+G370","v":0},null,null,{"$error":"#N/A"},{"$error":"#N/A"},{"$f":"IFERROR(VLOOKUP(K371,'Paramétrage des points'!AA:AB,2,FALSE),0)","v":0}]
["0",5,null,null,null,null,0,null,null,{"$error":"#N/A"},{"$error":"#N/A"},{"$f":"IFERROR(VLOOKUP(K372,'Paramétrage des points'!AA:AB,2,FALSE),0)","v":0}]
["0",6,null,null,null,null,0,null,null,{"$error":"#N/A"},{"$error":"#N/A"},{"$f":"IFERROR(VLOOKUP(K373,'Paramétrage des points'!AA:AB,2,FALSE),0)","v":0}]
["0",7,null,null,null,null,0,null,null,{"$error":"#N/A"},{"$error":"#N/A"},{"$f":"IFERROR(VLOOKUP(K374,'Paramétrage des points'!AA:AB,2,FALSE),0)","v":0}]
["0",8,null,null,null,null,0,null,null,{"$error":"#N/A"},{"$error":"#N/A"},{"$f":"IFERROR(VLOOKUP(K375,'Paramétrage des points'!AA:AB,2,FALSE),0)","v":0}]
["0",9,null,null,null,null,0,null,null,{"$error":"#N/A"},{"$error":"#N/A"},{"$f":"IFERROR(VLOOKUP(K376,'Paramétrage des points'!AA:AB,2,FALSE),0)","v":0}]
["0",10,null,null,null,null,0,null,null,{"$error":"#N/A"},{"$error":"#N/A"},{"$f":"IFERROR(VLOOKUP(K377,'Paramétrage des points'!AA:AB,2,FALSE),0)","v":0}]
["0",11,null,null,null,null,0,null,null,{"$error":"#N/A"},{"$error":"#N/A"},{"$f":"IFERROR(VLOOKUP(K378,'Paramétrage des points'!AA:AB,2,FALSE),0)","v":0}]
["0",12,null,null,null,null,0,null,null,{"$error":"#N/A"},{"$error":"#N/A"},{"$f":"IFERROR(VLOOKUP(K379,'Paramétrage des points'!AA:AB,2,FALSE),0)","v":0}]
["0",13,null,null,null,null,0,null,null,{"$error":"#N/A"},{"$error":"#N/A"},{"$f":"IFERROR(VLOOKUP(K380,'Paramétrage des points'!AA:AB,2,FALSE),0)","v":0}]
["0",14,null,null,null,null,0,null,null,{"$error":"#N/A"},{"$error":"#N/A"},{"$f":"IFERROR(VLOOKUP(K381,'Paramétrage des points'!AA:AB,2,FALSE),0)","v":0}]
["0",15,null,null,null,null,0,null,null,{"$error":"#N/A"},{"$error":"#N/A"},{"$f":"IFERROR(VLOOKUP(K382,'Paramétrage des points'!AA:AB,2,FALSE),0)","v":0}]
["",null,null,null,null,null,null,null,null,null,null,{"$f":"IFERROR(VLOOKUP(K383,'Paramétrage des points'!AA:AB,2,FALSE),0)","v":0}]
["0",{"$f":"Juges!W1","v":0},null,null,null,null,{"$f":"B384","v":0},null,null,{"$f":"VLOOKUP(B384,'Paramétrage des points'!$A$5:$C$28,3,FALSE)","v":{"$error":"#N/A"}},null,{"$f":"IFERROR(VLOOKUP(K384,'Paramétrage des points'!AA:AB,2,FALSE),0)","v":0}]
["N0M / PRENOM0","PLACE","N0M / PRENOM","DOSSARD","CLUB","COMITE",{"$f":"+G384","v":0},null,null,{"$f":"J384","v":{"$error":"#N/A"}},null,{"$f":"IFERROR(VLOOKUP(K385,'Paramétrage des points'!AA:AB,2,FALSE),0)","v":0}]
["0",1,null,null,null,null,{"$f":"+G385","v":0},null,null,{"$f":"J385","v":{"$error":"#N/A"}},{"$f":"IF($I$3=\"N\",\"N\"&J386&B386,\"\")","v":{"$error":"#N/A"}},{"$f":"IFERROR(VLOOKUP(K386,'Paramétrage des points'!AA:AB,2,FALSE),0)","v":0}]
["0",2,null,null,null,null,{"$f":"+G386","v":0},null,null,{"$error":"#N/A"},{"$error":"#N/A"},{"$f":"IFERROR(VLOOKUP(K387,'Paramétrage des points'!AA:AB,2,FALSE),0)","v":0}]
["0",3,null,null,null,null,{"$f":"+G387","v":0},null,null,{"$error":"#N/A"},{"$error":"#N/A"},{"$f":"IFERROR(VLOOKUP(K388,'Paramétrage des points'!AA:AB,2,FALSE),0)","v":0}]
["0",4,null,null,null,null,{"$f":"+G388","v":0},null,null,{"$error":"#N/A"},{"$error":"#N/A"},{"$f":"IFERROR(VLOOKUP(K389,'Paramétrage des points'!AA:AB,2,FALSE),0)","v":0}]
["0",5,null,null,null,null,0,null,null,{"$error":"#N/A"},{"$error":"#N/A"},{"$f":"IFERROR(VLOOKUP(K390,'Paramétrage des points'!AA:AB,2,FALSE),0)","v":0}]
["0",6,null,null,null,null,0,null,null,{"$error":"#N/A"},{"$error":"#N/A"},{"$f":"IFERROR(VLOOKUP(K391,'Paramétrage des points'!AA:AB,2,FALSE),0)","v":0}]
["0",7,null,null,null,null,0,null,null,{"$error":"#N/A"},{"$error":"#N/A"},{"$f":"IFERROR(VLOOKUP(K392,'Paramétrage des points'!AA:AB,2,FALSE),0)","v":0}]
[{"$f":"C393&G393","v":"0"},8,null,null,null,null,0,null,null,{"$error":"#N/A"},{"$error":"#N/A"},{"$f":"IFERROR(VLOOKUP(K393,'Paramétrage des points'!AA:AB,2,FALSE),0)","v":0}]
["0",9,null,null,null,null,0,null,null,{"$error":"#N/A"},{"$error":"#N/A"},{"$f":"IFERROR(VLOOKUP(K394,'Paramétrage des points'!AA:AB,2,FALSE),0)","v":0}]
["0",10,null,null,null,null,0,null,null,{"$error":"#N/A"},{"$error":"#N/A"},{"$f":"IFERROR(VLOOKUP(K395,'Paramétrage des points'!AA:AB,2,FALSE),0)","v":0}]
["0",11,null,null,null,null,0,null,null,{"$error":"#N/A"},{"$error":"#N/A"},{"$f":"IFERROR(VLOOKUP(K396,'Paramétrage des points'!AA:AB,2,FALSE),0)","v":0}]
["0",12,null,null,null,null,0,null,null,{"$error":"#N/A"},{"$error":"#N/A"},{"$f":"IFERROR(VLOOKUP(K397,'Paramétrage des points'!AA:AB,2,FALSE),0)","v":0}]
["0",13,null,null,null,null,0,null,null,{"$error":"#N/A"},{"$error":"#N/A"},{"$f":"IFERROR(VLOOKUP(K398,'Paramétrage des points'!AA:AB,2,FALSE),0)","v":0}]
["0",14,null,null,null,null,0,null,null,{"$error":"#N/A"},{"$error":"#N/A"},{"$f":"IFERROR(VLOOKUP(K399,'Paramétrage des points'!AA:AB,2,FALSE),0)","v":0}]
["0",15,null,null,null,null,0,null,null,{"$error":"#N/A"},{"$error":"#N/A"},{"$f":"IFERROR(VLOOKUP(K400,'Paramétrage des points'!AA:AB,2,FALSE),0)","v":0}]
["",null,null,null,null,null,null,null,null,null,null,{"$f":"IFERROR(VLOOKUP(K401,'Paramétrage des points'!AA:AB,2,FALSE),0)","v":0}]
["0",{"$f":"Juges!X1","v":0},null,null,null,null,{"$f":"B402","v":0},null,null,{"$f":"VLOOKUP(B402,'Paramétrage des points'!$A$5:$C$28,3,FALSE)","v":{"$error":"#N/A"}},null,{"$f":"IFERROR(VLOOKUP(K402,'Paramétrage des points'!AA:AB,2,FALSE),0)","v":0}]
["N0M / PRENOM0","PLACE","N0M / PRENOM","DOSSARD","CLUB","COMITE",{"$f":"+G402","v":0},null,null,{"$f":"J402","v":{"$error":"#N/A"}},null,{"$f":"IFERROR(VLOOKUP(K403,'Paramétrage des points'!AA:AB,2,FALSE),0)","v":0}]
["0",1,null,null,null,null,{"$f":"+G403","v":0},null,null,{"$f":"J403","v":{"$error":"#N/A"}},{"$f":"IF($I$3=\"N\",\"N\"&J404&B404,\"\")","v":{"$error":"#N/A"}},{"$f":"IFERROR(VLOOKUP(K404,'Paramétrage des points'!AA:AB,2,FALSE),0)","v":0}]
["0",2,null,null,null,null,{"$f":"+G404","v":0},null,null,{"$error":"#N/A"},{"$error":"#N/A"},{"$f":"IFERROR(VLOOKUP(K405,'Paramétrage des points'!AA:AB,2,FALSE),0)","v":0}]
["0",3,null,null,null,null,{"$f":"+G405","v":0},null,null,{"$error":"#N/A"},{"$error":"#N/A"},{"$f":"IFERROR(VLOOKUP(K406,'Paramétrage des points'!AA:AB,2,FALSE),0)","v":0}]
["0",4,null,null,null,null,{"$f":"+G406","v":0},null,null,{"$error":"#N/A"},{"$error":"#N/A"},{"$f":"IFERROR(VLOOKUP(K407,'Paramétrage des points'!AA:AB,2,FALSE),0)","v":0}]
["0",5,null,null,null,null,0,null,null,{"$error":"#N/A"},{"$error":"#N/A"},{"$f":"IFERROR(VLOOKUP(K408,'Paramétrage des points'!AA:AB,2,FALSE),0)","v":0}]
["0",6,null,null,null,null,0,null,null,{"$error":"#N/A"},{"$error":"#N/A"},{"$f":"IFERROR(VLOOKUP(K409,'Paramétrage des points'!AA:AB,2,FALSE),0)","v":0}]
["0",7,null,null,null,null,0,null,null,{"$error":"#N/A"},{"$error":"#N/A"},{"$f":"IFERROR(VLOOKUP(K410,'Paramétrage des points'!AA:AB,2,FALSE),0)","v":0}]
["0",8,null,null,null,null,0,null,null,{"$error":"#N/A"},{"$error":"#N/A"},{"$f":"IFERROR(VLOOKUP(K411,'Paramétrage des points'!AA:AB,2,FALSE),0)","v":0}]
["0",9,null,null,null,null,0,null,null,{"$error":"#N/A"},{"$error":"#N/A"},{"$f":"IFERROR(VLOOKUP(K412,'Paramétrage des points'!AA:AB,2,FALSE),0)","v":0}]
["0",10,null,null,null,null,0,null,null,{"$error":"#N/A"},{"$error":"#N/A"},{"$f":"IFERROR(VLOOKUP(K413,'Paramétrage des points'!AA:AB,2,FALSE),0)","v":0}]
["0",11,null,null,null,null,0,null,null,{"$error":"#N/A"},{"$error":"#N/A"},{"$f":"IFERROR(VLOOKUP(K414,'Paramétrage des points'!AA:AB,2,FALSE),0)","v":0}]
["0",12,null,null,null,null,0,null,null,{"$error":"#N/A"},{"$error":"#N/A"},{"$f":"IFERROR(VLOOKUP(K415,'Paramétrage des points'!AA:AB,2,FALSE),0)","v":0}]
["0",13,null,null,null,null,0,null,null,{"$error":"#N/A"},{"$error":"#N/A"},{"$f":"IFERROR(VLOOKUP(K416,'Paramétrage des points'!AA:AB,2,FALSE),0)","v":0}]
["0",14,null,null,null,null,0,null,null,{"$error":"#N/A"},{"$error":"#N/A"},{"$f":"IFERROR(VLOOKUP(K417,'Paramétrage des points'!AA:AB,2,FALSE),0)","v":0}]
["0",15,null,null,null,null,0,null,null,{"$error":"#N/A"},{"$error":"#N/A"},{"$f":"IFERROR(VLOOKUP(K418,'Paramétrage des points'!AA:AB,2,FALSE),0)","v":0}]
["",null,null,null,null,null,null,null,null,null,null,{"$f":"IFERROR(VLOOKUP(K419,'Paramétrage des points'!AA:AB,2,FALSE),0)","v":0}]
["0",{"$f":"Juges!Y1","v":0},null,null,null,null,{"$f":"B420","v":0},null,null,{"$f":"VLOOKUP(B420,'Paramétrage des points'!$A$5:$C$28,3,FALSE)","v":{"$error":"#N/A"}},null,{"$f":"IFERROR(VLOOKUP(K420,'Paramétrage des points'!AA:AB,2,FALSE),0)","v":0}]
["N0M / PRENOM0","PLACE","N0M / PRENOM","DOSSARD","CLUB","COMITE",{"$f":"+G420","v":0},null,null,{"$f":"J420","v":{"$error":"#N/A"}},null,{"$f":"IFERROR(VLOOKUP(K421,'Paramétrage des points'!AA:AB,2,FALSE),0)","v":0}]
["0",1,null,null,null,null,{"$f":"+G421","v":0},null,null,{"$f":"J421","v":{"$error":"#N/A"}},{"$f":"IF($I$3=\"N\",\"N\"&J422&B422,\"\")","v":{"$error":"#N/A"}},{"$f":"IFERROR(VLOOKUP(K422,'Paramétrage des points'!AA:AB,2,FALSE),0)","v":0}]
["0",2,null,null,null,null,{"$f":"+G422","v":0},null,null,{"$error":"#N/A"},{"$error":"#N/A"},{"$f":"IFERROR(VLOOKUP(K423,'Paramétrage des points'!AA:AB,2,FALSE),0)","v":0}]
["0",3,null,null,null,null,{"$f":"+G423","v":0},null,null,{"$error":"#N/A"},{"$error":"#N/A"},{"$f":"IFERROR(VLOOKUP(K424,'Paramétrage des points'!AA:AB,2,FALSE),0)","v":0}]
["0",4,null,null,null,null,{"$f":"+G424","v":0},null,null,{"$error":"#N/A"},{"$error":"#N/A"},{"$f":"IFERROR(VLOOKUP(K425,'Paramétrage des points'!AA:AB,2,FALSE),0)","v":0}]
["0",5,null,null,null,null,0,null,null,{"$error":"#N/A"},{"$error":"#N/A"},{"$f":"IFERROR(VLOOKUP(K426,'Paramétrage des points'!AA:AB,2,FALSE),0)","v":0}]
["0",6,null,null,null,null,0,null,null,{"$error":"#N/A"},{"$error":"#N/A"},{"$f":"IFERROR(VLOOKUP(K427,'Paramétrage des points'!AA:AB,2,FALSE),0)","v":0}]
["0",7,null,null,null,null,0,null,null,{"$error":"#N/A"},{"$error":"#N/A"},{"$f":"IFERROR(VLOOKUP(K428,'Paramétrage des points'!AA:AB,2,FALSE),0)","v":0}]
["0",8,null,null,null,null,0,null,null,{"$error":"#N/A"},{"$error":"#N/A"},{"$f":"IFERROR(VLOOKUP(K429,'Paramétrage des points'!AA:AB,2,FALSE),0)","v":0}]
["0",9,null,null,null,null,0,null,null,{"$error":"#N/A"},{"$error":"#N/A"},{"$f":"IFERROR(VLOOKUP(K430,'Paramétrage des points'!AA:AB,2,FALSE),0)","v":0}]
["0",10,null,null,null,null,0,null,null,{"$error":"#N/A"},{"$error":"#N/A"},{"$f":"IFERROR(VLOOKUP(K431,'Paramétrage des points'!AA:AB,2,FALSE),0)","v":0}]
["0",11,null,null,null,null,0,null,null,{"$error":"#N/A"},{"$error":"#N/A"},{"$f":"IFERROR(VLOOKUP(K432,'Paramétrage des points'!AA:AB,2,FALSE),0)","v":0}]
["0",12,null,null,null,null,0,null,null,{"$error":"#N/A"},{"$error":"#N/A"},{"$f":"IFERROR(VLOOKUP(K433,'Paramétrage des points'!AA:AB,2,FALSE),0)","v":0}]
["0",13,null,null,null,null,0,null,null,{"$error":"#N/A"},{"$error":"#N/A"},{"$f":"IFERROR(VLOOKUP(K434,'Paramétrage des points'!AA:AB,2,FALSE),0)","v":0}]
["0",14,null,null,null,null,0,null,null,{"$error":"#N/A"},{"$error":"#N/A"},{"$f":"IFERROR(VLOOKUP(K435,'Paramétrage des points'!AA:AB,2,FALSE),0)","v":0}]
["0",15,null,null,null,null,0,null,null,{"$error":"#N/A"},{"$error":"#N/A"},{"$f":"IFERROR(VLOOKUP(K436,'Paramétrage des points'!AA:AB,2,FALSE),0)","v":0}]
["",null,null,null,null,null,null,null,null,null,null,{"$f":"IFERROR(VLOOKUP(K437,'Paramétrage des points'!AA:AB,2,FALSE),0)","v":0}]
["0",{"$f":"Juges!Z1","v":0},null,null,null,null,{"$f":"B438","v":0},null,null,{"$f":"VLOOKUP(B438,'Paramétrage des points'!$A$5:$C$28,3,FALSE)","v":{"$error":"#N/A"}},null,{"$f":"IFERROR(VLOOKUP(K438,'Paramétrage des points'!AA:AB,2,FALSE),0)","v":0}]
["N0M / PRENOM0","PLACE","N0M / PRENOM","DOSSARD","CLUB","COMITE",{"$f":"+G438","v":0},null,null,{"$f":"J438","v":{"$error":"#N/A"}},null,{"$f":"IFERROR(VLOOKUP(K439,'Paramétrage des points'!AA:AB,2,FALSE),0)","v":0}]
["0",1,null,null,null,null,{"$f":"+G439","v":0},null,null,{"$f":"J439","v":{"$error":"#N/A"}},{"$f":"IF($I$3=\"N\",\"N\"&J440&B440,\"\")","v":{"$error":"#N/A"}},{"$f":"IFERROR(VLOOKUP(K440,'Paramétrage des points'!AA:AB,2,FALSE),0)","v":0}]
["0",2,null,null,null,null,{"$f":"+G440","v":0},null,null,{"$error":"#N/A"},{"$error":"#N/A"},{"$f":"IFERROR(VLOOKUP(K441,'Paramétrage des points'!AA:AB,2,FALSE),0)","v":0}]
["0",3,null,null,null,null,{"$f":"+G441","v":0},null,null,{"$error":"#N/A"},{"$error":"#N/A"},{"$f":"IFERROR(VLOOKUP(K442,'Paramétrage des points'!AA:AB,2,FALSE),0)","v":0}]
["0",4,null,null,null,null,{"$f":"+G442","v":0},null,null,{"$error":"#N/A"},{"$error":"#N/A"},{"$f":"IFERROR(VLOOKUP(K443,'Paramétrage des points'!AA:AB,2,FALSE),0)","v":0}]
["0",5,null,null,null,null,0,null,null,{"$error":"#N/A"},{"$error":"#N/A"},{"$f":"IFERROR(VLOOKUP(K444,'Paramétrage des points'!AA:AB,2,FALSE),0)","v":0}]
["0",6,null,null,null,null,0,null,null,{"$error":"#N/A"},{"$error":"#N/A"},{"$f":"IFERROR(VLOOKUP(K445,'Paramétrage des points'!AA:AB,2,FALSE),0)","v":0}]
["0",7,null,null,null,null,0,null,null,{"$error":"#N/A"},{"$error":"#N/A"},{"$f":"IFERROR(VLOOKUP(K446,'Paramétrage des points'!AA:AB,2,FALSE),0)","v":0}]
["0",8,null,null,null,null,0,null,null,{"$error":"#N/A"},{"$error":"#N/A"},{"$f":"IFERROR(VLOOKUP(K447,'Paramétrage des points'!AA:AB,2,FALSE),0)","v":0}]
["0",9,null,null,null,null,0,null,null,{"$error":"#N/A"},{"$error":"#N/A"},{"$f":"IFERROR(VLOOKUP(K448,'Paramétrage des points'!AA:AB,2,FALSE),0)","v":0}]
["0",10,null,null,null,null,0,null,null,{"$error":"#N/A"},{"$error":"#N/A"},{"$f":"IFERROR(VLOOKUP(K449,'Paramétrage des points'!AA:AB,2,FALSE),0)","v":0}]
["0",11,null,null,null,null,0,null,null,{"$error":"#N/A"},{"$error":"#N/A"},{"$f":"IFERROR(VLOOKUP(K450,'Paramétrage des points'!AA:AB,2,FALSE),0)","v":0}]
["0",12,null,null,null,null,0,null,null,{"$error":"#N/A"},{"$error":"#N/A"},{"$f":"IFERROR(VLOOKUP(K451,'Paramétrage des points'!AA:AB,2,FALSE),0)","v":0}]
["0",13,null,null,null,null,0,null,null,{"$error":"#N/A"},{"$error":"#N/A"},{"$f":"IFERROR(VLOOKUP(K452,'Paramétrage des points'!AA:AB,2,FALSE),0)","v":0}]
["0",14,null,null,null,null,0,null,null,{"$error":"#N/A"},{"$error":"#N/A"},{"$f":"IFERROR(VLOOKUP(K453,'Paramétrage des points'!AA:AB,2,FALSE),0)","v":0}]
["0",15,null,null,null,null,0,null,null,{"$error":"#N/A"},{"$error":"#N/A"},{"$f":"IFERROR(VLOOKUP(K454,'Paramétrage des points'!AA:AB,2,FALSE),0)","v":0}]
["",null,null,null,null,null,null,null,null,null,null,{"$f":"IFERROR(VLOOKUP(K455,'Paramétrage des points'!AA:AB,2,FALSE),0)","v":0}]
["0",{"$f":"Juges!AA1","v":0},null,null,null,null,{"$f":"B456","v":0},null,null,{"$f":"VLOOKUP(B456,'Paramétrage des points'!$A$5:$C$28,3,FALSE)","v":{"$error":"#N/A"}},null,{"$f":"IFERROR(VLOOKUP(K456,'Paramétrage des points'!AA:AB,2,FALSE),0)","v":0}]
[{"$f":"C457&G457","v":"N0M / PRENOM0"},"PLACE","N0M / PRENOM","DOSSARD","CLUB","COMITE",{"$f":"+G456","v":0},null,null,{"$f":"J456","v":{"$error":"#N/A"}},null,{"$f":"IFERROR(VLOOKUP(K457,'Paramétrage des points'!AA:AB,2,FALSE),0)","v":0}]
["0",1,null,null,null,null,{"$f":"+G457","v":0},null,null,{"$f":"J457","v":{"$error":"#N/A"}},{"$f":"IF($I$3=\"N\",\"N\"&J458&B458,\"\")","v":{"$error":"#N/A"}},{"$f":"IFERROR(VLOOKUP(K458,'Paramétrage des points'!AA:AB,2,FALSE),0)","v":0}]
["0",2,null,null,null,null,{"$f":"+G458","v":0},null,null,{"$error":"#N/A"},{"$error":"#N/A"},{"$f":"IFERROR(VLOOKUP(K459,'Paramétrage des points'!AA:AB,2,FALSE),0)","v":0}]
["0",3,null,null,null,null,{"$f":"+G459","v":0},null,null,{"$error":"#N/A"},{"$error":"#N/A"},{"$f":"IFERROR(VLOOKUP(K460,'Paramétrage des points'!AA:AB,2,FALSE),0)","v":0}]
["0",4,null,null,null,null,{"$f":"+G460","v":0},null,null,{"$error":"#N/A"},{"$error":"#N/A"},{"$f":"IFERROR(VLOOKUP(K461,'Paramétrage des points'!AA:AB,2,FALSE),0)","v":0}]
["0",5,null,null,null,null,0,null,null,{"$error":"#N/A"},{"$error":"#N/A"},{"$f":"IFERROR(VLOOKUP(K462,'Paramétrage des points'!AA:AB,2,FALSE),0)","v":0}]
["0",6,null,null,null,null,0,null,null,{"$error":"#N/A"},{"$error":"#N/A"},{"$f":"IFERROR(VLOOKUP(K463,'Paramétrage des points'!AA:AB,2,FALSE),0)","v":0}]
["0",7,null,null,null,null,0,null,null,{"$error":"#N/A"},{"$error":"#N/A"},{"$f":"IFERROR(VLOOKUP(K464,'Paramétrage des points'!AA:AB,2,FALSE),0)","v":0}]
["0",8,null,null,null,null,0,null,null,{"$error":"#N/A"},{"$error":"#N/A"},{"$f":"IFERROR(VLOOKUP(K465,'Paramétrage des points'!AA:AB,2,FALSE),0)","v":0}]
["0",9,null,null,null,null,0,null,null,{"$error":"#N/A"},{"$error":"#N/A"},{"$f":"IFERROR(VLOOKUP(K466,'Paramétrage des points'!AA:AB,2,FALSE),0)","v":0}]
["0",10,null,null,null,null,0,null,null,{"$error":"#N/A"},{"$error":"#N/A"},{"$f":"IFERROR(VLOOKUP(K467,'Paramétrage des points'!AA:AB,2,FALSE),0)","v":0}]
["0",11,null,null,null,null,0,null,null,{"$error":"#N/A"},{"$error":"#N/A"},{"$f":"IFERROR(VLOOKUP(K468,'Paramétrage des points'!AA:AB,2,FALSE),0)","v":0}]
["0",12,null,null,null,null,0,null,null,{"$error":"#N/A"},{"$error":"#N/A"},{"$f":"IFERROR(VLOOKUP(K469,'Paramétrage des points'!AA:AB,2,FALSE),0)","v":0}]
["0",13,null,null,null,null,0,null,null,{"$error":"#N/A"},{"$error":"#N/A"},{"$f":"IFERROR(VLOOKUP(K470,'Paramétrage des points'!AA:AB,2,FALSE),0)","v":0}]
["0",14,null,null,null,null,0,null,null,{"$error":"#N/A"},{"$error":"#N/A"},{"$f":"IFERROR(VLOOKUP(K471,'Paramétrage des points'!AA:AB,2,FALSE),0)","v":0}]
["0",15,null,null,null,null,0,null,null,{"$error":"#N/A"},{"$error":"#N/A"},{"$f":"IFERROR(VLOOKUP(K472,'Paramétrage des points'!AA:AB,2,FALSE),0)","v":0}]
["",null,null,null,null,null,null,null,null,null,null,{"$f":"IFERROR(VLOOKUP(K473,'Paramétrage des points'!AA:AB,2,FALSE),0)","v":0}]
["0",{"$f":"Juges!AB1","v":0},null,null,null,null,{"$f":"B474","v":0},null,null,{"$f":"VLOOKUP(B474,'Paramétrage des points'!$A$5:$C$28,3,FALSE)","v":{"$error":"#N/A"}},null,{"$f":"IFERROR(VLOOKUP(K474,'Paramétrage des points'!AA:AB,2,FALSE),0)","v":0}]
["N0M / PRENOM0","PLACE","N0M / PRENOM","DOSSARD","CLUB","COMITE",{"$f":"+G474","v":0},null,null,{"$f":"J474","v":{"$error":"#N/A"}},null,{"$f":"IFERROR(VLOOKUP(K475,'Paramétrage des points'!AA:AB,2,FALSE),0)","v":0}]
["0",1,null,null,null,null,{"$f":"+G475","v":0},null,null,{"$f":"J475","v":{"$error":"#N/A"}},{"$f":"IF($I$3=\"N\",\"N\"&J476&B476,\"\")","v":{"$error":"#N/A"}},{"$f":"IFERROR(VLOOKUP(K476,'Paramétrage des points'!AA:AB,2,FALSE),0)","v":0}]
["0",2,null,null,null,null,{"$f":"+G476","v":0},null,null,{"$error":"#N/A"},{"$error":"#N/A"},{"$f":"IFERROR(VLOOKUP(K477,'Paramétrage des points'!AA:AB,2,FALSE),0)","v":0}]
["0",3,null,null,null,null,{"$f":"+G477","v":0},null,null,{"$error":"#N/A"},{"$error":"#N/A"},{"$f":"IFERROR(VLOOKUP(K478,'Paramétrage des points'!AA:AB,2,FALSE),0)","v":0}]
["0",4,null,null,null,null,{"$f":"+G478","v":0},null,null,{"$error":"#N/A"},{"$error":"#N/A"},{"$f":"IFERROR(VLOOKUP(K479,'Paramétrage des points'!AA:AB,2,FALSE),0)","v":0}]
["0",5,null,null,null,null,0,null,null,{"$error":"#N/A"},{"$error":"#N/A"},{"$f":"IFERROR(VLOOKUP(K480,'Paramétrage des points'!AA:AB,2,FALSE),0)","v":0}]
["0",6,null,null,null,null,0,null,null,{"$error":"#N/A"},{"$error":"#N/A"},{"$f":"IFERROR(VLOOKUP(K481,'Paramétrage des points'!AA:AB,2,FALSE),0)","v":0}]
["0",7,null,null,null,null,0,null,null,{"$error":"#N/A"},{"$error":"#N/A"},{"$f":"IFERROR(VLOOKUP(K482,'Paramétrage des points'!AA:AB,2,FALSE),0)","v":0}]
["0",8,null,null,null,null,0,null,null,{"$error":"#N/A"},{"$error":"#N/A"},{"$f":"IFERROR(VLOOKUP(K483,'Paramétrage des points'!AA:AB,2,FALSE),0)","v":0}]
["0",9,null,null,null,null,0,null,null,{"$error":"#N/A"},{"$error":"#N/A"},{"$f":"IFERROR(VLOOKUP(K484,'Paramétrage des points'!AA:AB,2,FALSE),0)","v":0}]
["0",10,null,null,null,null,0,null,null,{"$error":"#N/A"},{"$error":"#N/A"},{"$f":"IFERROR(VLOOKUP(K485,'Paramétrage des points'!AA:AB,2,FALSE),0)","v":0}]
["0",11,null,null,null,null,0,null,null,{"$error":"#N/A"},{"$error":"#N/A"},{"$f":"IFERROR(VLOOKUP(K486,'Paramétrage des points'!AA:AB,2,FALSE),0)","v":0}]
["0",12,null,null,null,null,0,null,null,{"$error":"#N/A"},{"$error":"#N/A"},{"$f":"IFERROR(VLOOKUP(K487,'Paramétrage des points'!AA:AB,2,FALSE),0)","v":0}]
["0",13,null,null,null,null,0,null,null,{"$error":"#N/A"},{"$error":"#N/A"},{"$f":"IFERROR(VLOOKUP(K488,'Paramétrage des points'!AA:AB,2,FALSE),0)","v":0}]
["0",14,null,null,null,null,0,null,null,{"$error":"#N/A"},{"$error":"#N/A"},{"$f":"IFERROR(VLOOKUP(K489,'Paramétrage des points'!AA:AB,2,FALSE),0)","v":0}]
["0",15,null,null,null,null,0,null,null,{"$error":"#N/A"},{"$error":"#N/A"},{"$f":"IFERROR(VLOOKUP(K490,'Paramétrage des points'!AA:AB,2,FALSE),0)","v":0}]
["",null,null,null,null,null,null,null,null,null,null,{"$f":"IFERROR(VLOOKUP(K491,'Paramétrage des points'!AA:AB,2,FALSE),0)","v":0}]
["0",{"$f":"Juges!AC1","v":0},null,null,null,null,{"$f":"B492","v":0},null,null,{"$f":"VLOOKUP(B492,'Paramétrage des points'!$A$5:$C$28,3,FALSE)","v":{"$error":"#N/A"}},null,{"$f":"IFERROR(VLOOKUP(K492,'Paramétrage des points'!AA:AB,2,FALSE),0)","v":0}]
["N0M / PRENOM0","PLACE","N0M / PRENOM","DOSSARD","CLUB","COMITE",{"$f":"+G492","v":0},null,null,{"$f":"J492","v":{"$error":"#N/A"}},null,{"$f":"IFERROR(VLOOKUP(K493,'Paramétrage des points'!AA:AB,2,FALSE),0)","v":0}]
["0",1,null,null,null,null,{"$f":"+G493","v":0},null,null,{"$f":"J493","v":{"$error":"#N/A"}},{"$f":"IF($I$3=\"N\",\"N\"&J494&B494,\"\")","v":{"$error":"#N/A"}},{"$f":"IFERROR(VLOOKUP(K494,'Paramétrage des points'!AA:AB,2,FALSE),0)","v":0}]
["0",2,null,null,null,null,{"$f":"+G494","v":0},null,null,{"$error":"#N/A"},{"$error":"#N/A"},{"$f":"IFERROR(VLOOKUP(K495,'Paramétrage des points'!AA:AB,2,FALSE),0)","v":0}]
["0",3,null,null,null,null,{"$f":"+G495","v":0},null,null,{"$error":"#N/A"},{"$error":"#N/A"},{"$f":"IFERROR(VLOOKUP(K496,'Paramétrage des points'!AA:AB,2,FALSE),0)","v":0}]
["0",4,null,null,null,null,{"$f":"+G496","v":0},null,null,{"$error":"#N/A"},{"$error":"#N/A"},{"$f":"IFERROR(VLOOKUP(K497,'Paramétrage des points'!AA:AB,2,FALSE),0)","v":0}]
["0",5,null,null,null,null,0,null,null,{"$error":"#N/A"},{"$error":"#N/A"},{"$f":"IFERROR(VLOOKUP(K498,'Paramétrage des points'!AA:AB,2,FALSE),0)","v":0}]
["0",6,null,null,null,null,0,null,null,{"$error":"#N/A"},{"$error":"#N/A"},{"$f":"IFERROR(VLOOKUP(K499,'Paramétrage des points'!AA:AB,2,FALSE),0)","v":0}]
["0",7,null,null,null,null,0,null,null,{"$error":"#N/A"},{"$error":"#N/A"},{"$f":"IFERROR(VLOOKUP(K500,'Paramétrage des points'!AA:AB,2,FALSE),0)","v":0}]
["0",8,null,null,null,null,0,null,null,{"$error":"#N/A"},{"$error":"#N/A"},{"$f":"IFERROR(VLOOKUP(K501,'Paramétrage des points'!AA:AB,2,FALSE),0)","v":0}]
["0",9,null,null,null,null,0,null,null,{"$error":"#N/A"},{"$error":"#N/A"},{"$f":"IFERROR(VLOOKUP(K502,'Paramétrage des points'!AA:AB,2,FALSE),0)","v":0}]
["0",10,null,null,null,null,0,null,null,{"$error":"#N/A"},{"$error":"#N/A"},{"$f":"IFERROR(VLOOKUP(K503,'Paramétrage des points'!AA:AB,2,FALSE),0)","v":0}]
["0",11,null,null,null,null,0,null,null,{"$error":"#N/A"},{"$error":"#N/A"},{"$f":"IFERROR(VLOOKUP(K504,'Paramétrage des points'!AA:AB,2,FALSE),0)","v":0}]
["0",12,null,null,null,null,0,null,null,{"$error":"#N/A"},{"$error":"#N/A"},{"$f":"IFERROR(VLOOKUP(K505,'Paramétrage des points'!AA:AB,2,FALSE),0)","v":0}]
["0",13,null,null,null,null,0,null,null,{"$error":"#N/A"},{"$error":"#N/A"},{"$f":"IFERROR(VLOOKUP(K506,'Paramétrage des points'!AA:AB,2,FALSE),0)","v":0}]
["0",14,null,null,null,null,0,null,null,{"$error":"#N/A"},{"$error":"#N/A"},{"$f":"IFERROR(VLOOKUP(K507,'Paramétrage des points'!AA:AB,2,FALSE),0)","v":0}]
["0",15,null,null,null,null,0,null,null,{"$error":"#N/A"},{"$error":"#N/A"},{"$f":"IFERROR(VLOOKUP(K508,'Paramétrage des points'!AA:AB,2,FALSE),0)","v":0}]
["",null,null,null,null,null,null,null,null,null,null,{"$f":"IFERROR(VLOOKUP(K509,'Paramétrage des points'!AA:AB,2,FALSE),0)","v":0}]
["0",{"$f":"Juges!AD1","v":0},null,null,null,null,{"$f":"B510","v":0},null,null,{"$f":"VLOOKUP(B510,'Paramétrage des points'!$A$5:$C$28,3,FALSE)","v":{"$error":"#N/A"}},null,{"$f":"IFERROR(VLOOKUP(K510,'Paramétrage des points'!AA:AB,2,FALSE),0)","v":0}]
["N0M / PRENOM0","PLACE","N0M / PRENOM","DOSSARD","CLUB","COMITE",{"$f":"+G510","v":0},null,null,{"$f":"J510","v":{"$error":"#N/A"}},null,{"$f":"IFERROR(VLOOKUP(K511,'Paramétrage des points'!AA:AB,2,FALSE),0)","v":0}]
["0",1,null,null,null,null,{"$f":"+G511","v":0},null,null,{"$f":"J511","v":{"$error":"#N/A"}},{"$f":"IF($I$3=\"N\",\"N\"&J512&B512,\"\")","v":{"$error":"#N/A"}},{"$f":"IFERROR(VLOOKUP(K512,'Paramétrage des points'!AA:AB,2,FALSE),0)","v":0}]
["0",2,null,null,null,null,{"$f":"+G512","v":0},null,null,{"$error":"#N/A"},{"$error":"#N/A"},{"$f":"IFERROR(VLOOKUP(K513,'Paramétrage des points'!AA:AB,2,FALSE),0)","v":0}]
["0",3,null,null,null,null,{"$f":"+G513","v":0},null,null,{"$error":"#N/A"},{"$error":"#N/A"},{"$f":"IFERROR(VLOOKUP(K514,'Paramétrage des points'!AA:AB,2,FALSE),0)","v":0}]
["0",4,null,null,null,null,{"$f":"+G514","v":0},null,null,{"$error":"#N/A"},{"$error":"#N/A"},{"$f":"IFERROR(VLOOKUP(K515,'Paramétrage des points'!AA:AB,2,FALSE),0)","v":0}]
["0",5,null,null,null,null,0,null,null,{"$error":"#N/A"},{"$error":"#N/A"},{"$f":"IFERROR(VLOOKUP(K516,'Paramétrage des points'!AA:AB,2,FALSE),0)","v":0}]
["0",6,null,null,null,null,0,null,null,{"$error":"#N/A"},{"$error":"#N/A"},{"$f":"IFERROR(VLOOKUP(K517,'Paramétrage des points'!AA:AB,2,FALSE),0)","v":0}]
["0",7,null,null,null,null,0,null,null,{"$error":"#N/A"},{"$error":"#N/A"},{"$f":"IFERROR(VLOOKUP(K518,'Paramétrage des points'!AA:AB,2,FALSE),0)","v":0}]
["0",8,null,null,null,null,0,null,null,{"$error":"#N/A"},{"$error":"#N/A"},{"$f":"IFERROR(VLOOKUP(K519,'Paramétrage des points'!AA:AB,2,FALSE),0)","v":0}]
["0",9,null,null,null,null,0,null,null,{"$error":"#N/A"},{"$error":"#N/A"},{"$f":"IFERROR(VLOOKUP(K520,'Paramétrage des points'!AA:AB,2,FALSE),0)","v":0}]
[{"$f":"C521&G521","v":"0"},10,null,null,null,null,0,null,null,{"$error":"#N/A"},{"$error":"#N/A"},{"$f":"IFERROR(VLOOKUP(K521,'Paramétrage des points'!AA:AB,2,FALSE),0)","v":0}]
["0",11,null,null,null,null,0,null,null,{"$error":"#N/A"},{"$error":"#N/A"},{"$f":"IFERROR(VLOOKUP(K522,'Paramétrage des points'!AA:AB,2,FALSE),0)","v":0}]
["0",12,null,null,null,null,0,null,null,{"$error":"#N/A"},{"$error":"#N/A"},{"$f":"IFERROR(VLOOKUP(K523,'Paramétrage des points'!AA:AB,2,FALSE),0)","v":0}]
["0",13,null,null,null,null,0,null,null,{"$error":"#N/A"},{"$error":"#N/A"},{"$f":"IFERROR(VLOOKUP(K524,'Paramétrage des points'!AA:AB,2,FALSE),0)","v":0}]
["0",14,null,null,null,null,0,null,null,{"$error":"#N/A"},{"$error":"#N/A"},{"$f":"IFERROR(VLOOKUP(K525,'Paramétrage des points'!AA:AB,2,FALSE),0)","v":0}]
["0",15,null,null,null,null,0,null,null,{"$error":"#N/A"},{"$error":"#N/A"},{"$f":"IFERROR(VLOOKUP(K526,'Paramétrage des points'!AA:AB,2,FALSE),0)","v":0}]
["",null,null,null,null,null,null,null,null,null,null,{"$f":"IFERROR(VLOOKUP(K527,'Paramétrage des points'!AA:AB,2,FALSE),0)","v":0}]
["0",{"$f":"Juges!AE1","v":0},null,null,null,null,{"$f":"B528","v":0},null,null,{"$f":"VLOOKUP(B528,'Paramétrage des points'!$A$5:$C$28,3,FALSE)","v":{"$error":"#N/A"}},null,{"$f":"IFERROR(VLOOKUP(K528,'Paramétrage des points'!AA:AB,2,FALSE),0)","v":0}]
["N0M / PRENOM0","PLACE","N0M / PRENOM","DOSSARD","CLUB","COMITE",{"$f":"+G528","v":0},null,null,{"$f":"J528","v":{"$error":"#N/A"}},null,{"$f":"IFERROR(VLOOKUP(K529,'Paramétrage des points'!AA:AB,2,FALSE),0)","v":0}]
["0",1,null,null,null,null,{"$f":"+G529","v":0},null,null,{"$f":"J529","v":{"$error":"#N/A"}},{"$f":"IF($I$3=\"N\",\"N\"&J530&B530,\"\")","v":{"$error":"#N/A"}},{"$f":"IFERROR(VLOOKUP(K530,'Paramétrage des points'!AA:AB,2,FALSE),0)","v":0}]
["0",2,null,null,null,null,{"$f":"+G530","v":0},null,null,{"$error":"#N/A"},{"$error":"#N/A"},{"$f":"IFERROR(VLOOKUP(K531,'Paramétrage des points'!AA:AB,2,FALSE),0)","v":0}]
["0",3,null,null,null,null,{"$f":"+G531","v":0},null,null,{"$error":"#N/A"},{"$error":"#N/A"},{"$f":"IFERROR(VLOOKUP(K532,'Paramétrage des points'!AA:AB,2,FALSE),0)","v":0}]
["0",4,null,null,null,null,{"$f":"+G532","v":0},null,null,{"$error":"#N/A"},{"$error":"#N/A"},{"$f":"IFERROR(VLOOKUP(K533,'Paramétrage des points'!AA:AB,2,FALSE),0)","v":0}]
["0",5,null,null,null,null,0,null,null,{"$error":"#N/A"},{"$error":"#N/A"},{"$f":"IFERROR(VLOOKUP(K534,'Paramétrage des points'!AA:AB,2,FALSE),0)","v":0}]
["0",6,null,null,null,null,0,null,null,{"$error":"#N/A"},{"$error":"#N/A"},{"$f":"IFERROR(VLOOKUP(K535,'Paramétrage des points'!AA:AB,2,FALSE),0)","v":0}]
["0",7,null,null,null,null,0,null,null,{"$error":"#N/A"},{"$error":"#N/A"},{"$f":"IFERROR(VLOOKUP(K536,'Paramétrage des points'!AA:AB,2,FALSE),0)","v":0}]
["0",8,null,null,null,null,0,null,null,{"$error":"#N/A"},{"$error":"#N/A"},{"$f":"IFERROR(VLOOKUP(K537,'Paramétrage des points'!AA:AB,2,FALSE),0)","v":0}]
["0",9,null,null,null,null,0,null,null,{"$error":"#N/A"},{"$error":"#N/A"},{"$f":"IFERROR(VLOOKUP(K538,'Paramétrage des points'!AA:AB,2,FALSE),0)","v":0}]
["0",10,null,null,null,null,0,null,null,{"$error":"#N/A"},{"$error":"#N/A"},{"$f":"IFERROR(VLOOKUP(K539,'Paramétrage des points'!AA:AB,2,FALSE),0)","v":0}]
["0",11,null,null,null,null,0,null,null,{"$error":"#N/A"},{"$error":"#N/A"},{"$f":"IFERROR(VLOOKUP(K540,'Paramétrage des points'!AA:AB,2,FALSE),0)","v":0}]
["0",12,null,null,null,null,0,null,null,{"$error":"#N/A"},{"$error":"#N/A"},{"$f":"IFERROR(VLOOKUP(K541,'Paramétrage des points'!AA:AB,2,FALSE),0)","v":0}]
["0",13,null,null,null,null,0,null,null,{"$error":"#N/A"},{"$error":"#N/A"},{"$f":"IFERROR(VLOOKUP(K542,'Paramétrage des points'!AA:AB,2,FALSE),0)","v":0}]
["0",14,null,null,null,null,0,null,null,{"$error":"#N/A"},{"$error":"#N/A"},{"$f":"IFERROR(VLOOKUP(K543,'Paramétrage des points'!AA:AB,2,FALSE),0)","v":0}]
["0",15,null,null,null,null,0,null,null,{"$error":"#N/A"},{"$error":"#N/A"},{"$f":"IFERROR(VLOOKUP(K544,'Paramétrage des points'!AA:AB,2,FALSE),0)","v":0}]

{"sheet":"Résultats clubs","index":11,"n_rows":50,"n_cols":4,"rows_kept":50,"cut":false,"hidden":false,"merged":[[12,1,12,3]]}
[null,{"$f":"pesée!A1","v":"FEDERATION FRANCAISE D'HALTEROPHILIE,"}]
[null,{"$f":"pesée!A2","v":"MUSCULATION, FORCE ATHLETIQUE ET CULTURISME"}]
[]
[null,{"$f":"pesée!A4","v":" DISCIPLINE  CULTURISME"}]
[]
[]
[null,"Compétition : ",{"$f":"pesée!$B$6","v":"Compétition magnifique"}]
[null,"Date : ",{"$f":"pesée!$B$8","v":"2013-03-13"}]
[null,"Lieu : ",{"$f":"+pesée!G6","v":"Gymnase c'est ici"}]
[]
[]
[]
[null,"CLASSEMENT CLUBS - Top 20"]
[]
[null,null,"Somme de POINTS"]
[null,"Place","Clubs","Total"]
[null,{"$f":"IFERROR(RANK(D17,$D$17:$D$100),\"\")","v":13},"ACADEMIE CLUB LUCON",8]
[null,{"$f":"IFERROR(RANK(D18,$D$17:$D$100),\"\")","v":14},"ACH FONTENAY",0]
[null,14,"AFHMA FRANCONVILLE",0]
[null,11,"AGOS INRIA",12]
[null,14,"APOLLO CLUB TREMBLAY",0]
[null,14,"AS FOURCHAMBAULT",0]
[null,2,"ASC MUSCLE GYM SOISSONS",30]
[null,14,"ASCAP - POISSY",0]
[null,14,"ATHLETIQUE DE SAINT PRIX",0]
[null,14,"BBF ALLONES",0]
[null,14,"CA LENSOIS",0]
[null,14,"CERCLE ATHLETIQUE PARIS 10",0]
[null,8,"CH LUNEVILLE",20]
[null,10,"CHFM ROISEL",15]
[null,14,"CHRIS FITNESS THIBOUVILLE",0]
[null,14,"CMF LOCMINE",0]
[null,8,"CP MEDIOLANAISE",20]
[null,14,"CSAG MOURMELON",0]
[null,5,"EC FOURMISIENNE",25]
[null,14,"EVA FITNESS EMERAINVILLE",0]
[null,5,"FIT BODY HOUDINOIS",25]
[null,11,"FORCE ATHLETIQUE LONGJUMEAU",12]
[null,14,"GS SENLIS",0]
[null,2,"HC BEAUVAIS",30]
[null,2,"MC FORM AUDRUICQ",30]
[null,14,"MH CLERMONTOIS",0]
[null,1,"MUSCULATION HAUBOURDINOISE",32]
[null,14,"POWER CLUB DE FAREMOUTIERS",0]
[null,14,"PSA ACC CHARLEVILLE MEZIERES",0]
[null,14,"TOP FORME DOMART EN PONTHIEU",0]
[null,14,"US GRIGNY",0]
[null,5,"US METRO PARIS",25]
[null,14,"VELIZY MUSCULATION",0]
[null,14,"(vide)"]

{"sheet":"comparaison","index":12,"n_rows":32,"n_cols":8,"rows_kept":32,"cut":false,"hidden":false,"merged":[[20,1,20,2],[20,6,20,7],[21,0,21,2],[21,5,21,7],[25,0,25,2],[25,5,25,7],[23,0,23,1],[23,5,23,6],[24,0,24,2],[24,5,24,7],[17,0,19,0],[17,1,17,2],[17,5,19,5],[17,6,17,7],[18,1,18,2],[18,6,18,7],[19,1,19,2],[19,6,19,7],[7,0,7,2],[7,5,7,7],[8,0,8,2],[8,5,8,7],[13,0,13,2],[13,5,13,7],[3,1,3,2],[3,6,3,7],[4,0,4,2],[4,5,4,7],[6,0,6,1],[6,5,6,6],[0,0,2,0],[0,1,0,2],[0,5,2,5],[0,6,0,7],[1,1,1,2],[1,6,1,7],[2,1,2,2],[2,6,2,7]]}
[]
[]
[]
[]
["DEMANDE DE COMPARAISONS",null,null,null,null,"DEMANDE DE COMPARAISONS"]
[]
["NOM",null,"PRENOM",null,null,"NOM",null,"PRENOM"]
[]
["JUGE N°",null,null,null,null,"JUGE N°"]
[]
["A GAUCHE ","AU CENTRE","A DROITE",null,null,"A GAUCHE ","AU CENTRE","A DROITE"]
["N°","N°","N°",null,null,"N°","N°","N°"]
[]
[]
["Signature",null,null,null,null,"Signature"]
[]
[]
[]
[]
[]
[]
["DEMANDE DE COMPARAISONS",null,null,null,null,"DEMANDE DE COMPARAISONS"]
[]
["NOM",null,"PRENOM",null,null,"NOM",null,"PRENOM"]
[]
["JUGE N°",null,null,null,null,"JUGE N°"]
[]
["A GAUCHE ","AU CENTRE","A DROITE",null,null,"A GAUCHE ","AU CENTRE","A DROITE"]
["N°","N°","N°",null,null,"N°","N°","N°"]
[]
[]
["Signature",null,null,null,null,"Signature"]